Workbook

Sheet Dashboard
S1: DANE Dashboard
B2: Cumulative Funnel | S2: Counts with Respect to Targets | AA2: Rates
G3: =_xlfn.CONCAT(Q4, " ",N4) -> 12574 Screened | N3: Action | O3: Study Target | P3: To Reach Target | Q3: Total to Date | R3: Goal w.r.t. Target | S3: Weekly Target | T3: Weekly Average | U3: Last Week Count | V3: CountStatus | W3: Count Trend | X3: Expected Rate | Y3: Overall Rate | Z3: Cum. Rate | AA3: Last Week Rate | AC3: Rate Trend
G4: =_xlfn.CONCAT(Y5*100, "% ",N5, " Rate") -> 9.75% Eligible Rate | N4: Screened | O4: =O9/((Q7-Q8)/Q4) -> 25,833 | P4: =P9/((Q7-Q8)/Q4) -> 13,259 | Q4: ='Screened Control Chart'!B37 -> 12,574 | R4: above | S4: =ROUND(P4/'Start Date'!B$7,0) -> 402 | T4: ='Screened Control Chart'!M5 -> 147.93 | U4: =ROUND('Screened Control Chart'!C34,0) -> 168 | V4: =IF(S4>0,U4/S4,-U4+1) -> 0.42 | W4: =GraphicData!K4 -> 0
G5: =_xlfn.CONCAT(Q5, " ",N5) -> 1226 Eligible | N5: Eligible | O5: =O4*Y5 -> 2,519 | P5: =P4*Y5 -> 1,293 | Q5: ='Eligible Control Chart'!B37 -> 1,226 | R5: above | S5: =ROUND(P5/'Start Date'!B$7,0) -> 39 | T5: ='Eligible Control Chart'!M5 -> 14.42 | U5: =ROUND('Eligible Control Chart'!C34,0) -> 24 | V5: 0.62 | W5: =GraphicData!K5 -> 1 | Y5: =ROUND(Q5/Q4,4) -> 9.75% | Z5: =ROUND(Q5/Q$4,4) -> 9.75% | AA5: ='%Eligible Control Chart'!C34 -> 14.3% | AC5: =GraphicData!R5 -> 1
G6: =_xlfn.CONCAT(Y6*100, "% ",N6, " Rate") -> 66.88% Approached Rate | N6: Approached | O6: =O5*Y6 -> 1,685 | P6: =P5*Y6 -> 865 | Q6: ='Approached Control Chart'!B37 -> 820 | R6: above | S6: =ROUND(P6/'Start Date'!B$7,0) -> 26 | T6: ='Approached Control Chart'!M5 -> 9.63 | U6: =ROUND('Approached Control Chart'!C34,0) -> 13 | V6: 0.50 | W6: =GraphicData!K6 -> 0 | Y6: =ROUND(Q6/Q5,4) -> 66.88% | Z6: 6.52% | AA6: ='%Approached Control Chart'!C34 -> 17.6% | AB6: * | AC6: =GraphicData!R6 -> -1
G7: =_xlfn.CONCAT(Q6, " ",N6) -> 820 Approached | N7: Consented | O7: =O6*Y7 -> 731 | P7: =P6*Y7 -> 375 | Q7: ='Consented Control Chart'!B37 -> 356 | R7: above | S7: =ROUND(P7/'Start Date'!B$7,0) -> 11 | T7: ='Consented Control Chart'!M5 -> 4.24 | U7: =ROUND('Consented Control Chart'!C34,0) -> 3 | V7: 0.27 | W7: =GraphicData!K7 -> 0 | Y7: =ROUND(Q7/Q6,4) -> 43.41% | Z7: 2.83% | AA7: ='%Consented Control Chart'!C34 -> 30.0% | AC7: =GraphicData!R7 -> 0
G8: =_xlfn.CONCAT(Y7*100, "% ",N7, " Rate") -> 43.41% Consented Rate | N8: Withdrawn before baseline | O8: =O7*Y8 -> 203 | P8: =O8-Q8 -> 104 | Q8: ='Data from Query'!I1 -> 99 | R8: below | S8: =ROUND(P8/'Start Date'!B$7,0) -> 3 | T8: ='Withdrawn Control Chart'!M5 -> 1.84 | U8: =ROUND('Withdrawn Control Chart'!C34,0) -> 3 | V8: 1.00 | W8: =GraphicData!K8 -> 0 | X8: 0.25 | Y8: =ROUND(Q8/Q7,4) -> 27.81% | Z8: 0.79% | AC8: =GraphicData!R8 -> 0
G9: =_xlfn.CONCAT(Q7, " ",N7) -> 356 Consented | N9: Baselines | O9: 528 | P9: =O9-(Q$7-Q$8) -> 271 | Q9: ='Baseline Control Chart'!B37 -> 240 | R9: above | S9: =ROUND(P9/'Start Date'!B$7,0) -> 8 | T9: ='Baseline Control Chart'!M5 -> 2.81 | U9: =ROUND('Baseline Control Chart'!C34,0) -> 4 | V9: 0.50 | W9: =GraphicData!K9 -> 1 | X9: 0.75 | Y9: =ROUND((Q9)/(Q7-Q8),4) -> 93.39% | Z9: 1.91% | AA9: =IF('%Baseline Control Chart'!C34="", "none eligible",'%Baseline Control Chart'!C34) -> 16.7% | AC9: =GraphicData!R9 -> 1
G10: =_xlfn.CONCAT(Y9*100, "% ",N9, " Rate") -> 93.39% Baselines Rate | N10: Randomized | O10: =O9*X10 -> 528 | P10: =O10-(Q$7-Q$8) -> 271 | Q10: ='Randomized Control Chart'!B37 -> 230 | R10: above | S10: =ROUND(P10/'Start Date'!B$7,0) -> 8 | T10: ='Randomized Control Chart'!M5 -> 2.67 | U10: =ROUND('Randomized Control Chart'!C34,0) -> 5 | V10: 0.63 | W10: =GraphicData!K10 -> 0 | X10: 1 | Y10: =ROUND(Q10/Q9,4) -> 95.83% | Z10: 1.83% | AA10: =IF('%Randomized Control Chart'!C34="", "none eligible",'%Randomized Control Chart'!C34) -> 45.5% | AC10: =GraphicData!R10 -> 0
G11: =_xlfn.CONCAT(Q9, " ",N9) -> 240 Baselines | N11: 6-Month OA | O11: =O10*X11 -> 469 | P11: =O11-Q11 -> 381 | Q11: ='6-Month Control Chart'!B37 -> 88 | R11: above | S11: =ROUND(P11/'Start Date'!B$7,0) -> 12 | T11: ='6-Month Control Chart'!M5 -> 1.00 | U11: =ROUND('6-Month Control Chart'!C34,0) -> 2 | V11: 0.17 | W11: =GraphicData!K11 -> 1 | X11: ='Study targets'!B$2 -> 0.8882241979 | Y11: =ROUND(Q11/'Data from Query'!J1,4) -> 79.28% | Z11: 0.70% | AA11: =IF('%6-Month Control Chart'!C34="", "none eligible",'%6-Month Control Chart'!C34) -> 6.5% | AB11: ** | AC11: =GraphicData!R11 -> 0
G12: =_xlfn.CONCAT(Y10*100, "% ",N10) -> 95.83% Randomized | N12: 12-Month OA | O12: =O11*X12 -> 417 | P12: =O12-Q12 -> 387 | Q12: ='12-Month Control Chart'!B37 -> 30 | S12: =ROUND(P12/'Start Date'!B$7,0) -> 12 | U12: =ROUND('12-Month Control Chart'!C34,) -> 3 | V12: 0.25 | W12: =GraphicData!K12 -> 1 | X12: ='Study targets'!B$2 -> 0.8882241979 | Y12: =ROUND(Q12/'Data from Query'!K1,4) -> 78.95% | AA12: =IF('%12-Month Control Chart'!C34="", "none eligible",'%12-Month Control Chart'!C34) -> 9.7% | AB12: ** | AC12: =GraphicData!R12 -> 1
G13: =_xlfn.CONCAT(Q10, " ",N10) -> 230 Randomized | N13: 18-Month OA | O13: =O12*X13 -> 370 | P13: =O13-Q13 -> 369 | Q13: ='18-Month Control Chart'!B37 -> 1 | S13: =ROUND(P13/'Start Date'!B$7,0) -> 11 | U13: =ROUND('18-Month Control Chart'!C34,0) -> 0 | V13: 0.00 | W13: =GraphicData!K13 -> 0 | X13: ='Study targets'!B$2 -> 0.8882241979 | Y13: =ROUND(Q13/'Data from Query'!L1,4) -> 100.00% | AA13: =IF('%18-Month Control Chart'!C34="", "none eligible",'%18-Month Control Chart'!C34) -> 0.0% | AB13: ** | AC13: =GraphicData!R13 -> 1
G14: =_xlfn.CONCAT(Y11*100, "% ",N11) -> 79.28% 6-Month OA
G15: =_xlfn.CONCAT(Q11, " ",N11) -> 88 6-Month OA
G16: =_xlfn.CONCAT(Y12*100, "% ",N12) -> 78.95% 12-Month OA | N16: *The denominator for %approached is based on the total eligible in the last 6 weeks less those approached.
G17: =_xlfn.CONCAT(Q12, " ",N12) -> 30 12-Month OA | N17: ** The rates for 6-, 12-, and 18-month visits are based on the number completed in the preceding stage without taking into consideration time delays between stages.
G18: =_xlfn.CONCAT(Y13*100, "% ",N13) -> 100% 18-Month OA
G19: =_xlfn.CONCAT(Q13, " ",N13) -> 1 18-Month OA

Sheet GraphicData
B1: Agile Tools
B2: Dashboard
B3: =Dashboard!N3 -> Action | C3: =Dashboard!S3 -> Weekly Target | D3: =Dashboard!T3 -> Weekly Average | E3: =Dashboard!U3 -> Last Week Count | F3: Goal wrt Target | G3: 4wkavg count | H3: stdev count | I3: 2stdev+ | J3: 2stdev- | K3: Adj Trend | L3: =Dashboard!Y3 -> Overall Rate | M3: =Dashboard!AA3 -> Last Week Rate | N3: 4wkavg % | O3: stdev count | P3: 2stdev+ | Q3: 2stdev- | R3: Adj Trend | S3: sample size
B4: =Dashboard!N4 -> Screened | C4: =Dashboard!S4 -> 402 | D4: =Dashboard!T4 -> 147.9294118 | E4: =Dashboard!U4 -> 168 | F4: =IF(EXACT(Dashboard!R4,"below"),-1,IF(EXACT(Dashboard!R4,"above"),1,0)) -> 1 | G4: =AVERAGE('Screened Control Chart'!G$32:G$35) -> 151.25 | H4: ='Screened Control Chart'!M$6/S4^0.5 -> 6.08 | I4: =D4+2*H4 -> 160.09 | J4: =D4-2*H4 -> 135.77 | K4: =IF(G4>I4,1,IF(G4<J4,-1,0)) -> 0 | L4: =Dashboard!Y4 -> 0 | M4: =Dashboard!AA4 -> 0 | S4: 4
B5: =Dashboard!N5 -> Eligible | C5: =Dashboard!S5 -> 39 | D5: =Dashboard!T5 -> 14.42352941 | E5: =Dashboard!U5 -> 24 | F5: =IF(EXACT(Dashboard!R5,"below"),-1,IF(EXACT(Dashboard!R5,"above"),1,0)) -> 1 | G5: =AVERAGE('Eligible Control Chart'!G$32:G$35) -> 19.75 | H5: ='Eligible Control Chart'!M$6/S5^0.5 -> 1.90 | I5: =D5+2*H5 -> 18.22 | J5: =D5-2*H5 -> 10.63 | K5: =IF(G5>I5,1,IF(G5<J5,-1,0)) -> 1 | L5: =Dashboard!Y5 -> 0.0975 | M5: =Dashboard!AA5 -> 0.1428571429 | N5: =AVERAGE('%Eligible Control Chart'!G32:G35) -> 0.13 | O5: ='%Eligible Control Chart'!M6/S5^0.5 -> 0.02 | P5: =L5+2*O5 -> 0.13 | Q5: =L5-2*O5 -> 0.07 | R5: =IF(N5>P5,1,IF(N5<Q5,-1,0)) -> 1 | S5: 4
B6: =Dashboard!N6 -> Approached | C6: =Dashboard!S6 -> 26 | D6: =Dashboard!T6 -> 9.626506024 | E6: =Dashboard!U6 -> 13 | F6: =IF(EXACT(Dashboard!R6,"below"),-1,IF(EXACT(Dashboard!R6,"above"),1,0)) -> 1 | G6: =AVERAGE('Approached Control Chart'!G$32:G$35) -> 8.75 | H6: ='Approached Control Chart'!M$6/S6^0.5 -> 1.55 | I6: 12.73 | J6: 6.52 | K6: 0 | L6: ='%Approached Control Chart'!M5 -> 29.41% | M6: =Dashboard!AA6 -> 0.1756756757 | N6: =AVERAGE('%Approached Control Chart'!G32:G35) -> 0.16 | O6: ='%Approached Control Chart'!M$6/S6^0.5 -> 0.02 | P6: =L6+2*O6 -> 0.34 | Q6: =L6-2*O6 -> 0.24 | R6: =IF(N6>P6,1,IF(N6<Q6,-1,0)) -> -1 | S6: 4
B7: =Dashboard!N7 -> Consented | C7: =Dashboard!S7 -> 11 | D7: =Dashboard!T7 -> 4.240963855 | E7: =Dashboard!U7 -> 3 | F7: =IF(EXACT(Dashboard!R7,"below"),-1,IF(EXACT(Dashboard!R7,"above"),1,0)) -> 1 | G7: =AVERAGE('Consented Control Chart'!G$32:G$35) -> 3.25 | H7: ='Consented Control Chart'!M$6/S7^0.5 -> 1.03 | I7: 6.30 | J7: 2.18 | K7: 0 | L7: =Dashboard!Y7 -> 0.4341 | M7: =Dashboard!AA7 -> 0.3 | N7: =AVERAGE('%Consented Control Chart'!G32:G35) -> 0.48 | O7: ='%Consented Control Chart'!M$6/S7^0.5 -> 0.03 | P7: 0.49 | Q7: 0.38 | R7: 0 | S7: 4
B8: =Dashboard!N8 -> Withdrawn before baseline | C8: =Dashboard!S8 -> 3 | D8: =Dashboard!T8 -> 1.835294118 | E8: =Dashboard!U8 -> 3 | F8: =IF(EXACT(Dashboard!R8,"below"),-1,IF(EXACT(Dashboard!R8,"above"),1,0)) -> -1 | G8: =AVERAGE('Withdrawn Control Chart'!G$32:G$35) -> 1.75 | H8: ='Withdrawn Control Chart'!M$6/S8^0.5 -> 0.68 | I8: 3.19 | J8: 0.48 | K8: 0 | L8: =Dashboard!Y8 -> 0.2781 | M8: =Dashboard!AA8 -> 0 | R8: 0 | S8: 4
B9: =Dashboard!N9 -> Baselines | C9: =Dashboard!S9 -> 8 | D9: =Dashboard!T9 -> 2.807228916 | E9: =Dashboard!U9 -> 4 | F9: =IF(EXACT(Dashboard!R9,"below"),-1,IF(EXACT(Dashboard!R9,"above"),1,0)) -> 1 | G9: =AVERAGE('Baseline Control Chart'!G$32:G$35) -> 4.50 | H9: ='Baseline Control Chart'!M$6/S9^0.5 -> 0.84 | I9: 4.48 | J9: 1.13 | K9: 1 | L9: ='%Baseline Control Chart'!M5 -> 11.98% | M9: =Dashboard!AA9 -> 0.1666666667 | N9: =IF('%Baseline Control Chart'!C34="","",AVERAGE('%Baseline Control Chart'!G32:G35)) -> 0.16 | O9: ='%Baseline Control Chart'!M6/S9^0.5 -> 0.02 | P9: =L9+2*O9 -> 0.16 | Q9: =L9-2*O9 -> 0.08 | R9: 1 | S9: 4
B10: =Dashboard!N10 -> Randomized | C10: =Dashboard!S10 -> 8 | D10: =Dashboard!T10 -> 2.674698795 | E10: =Dashboard!U10 -> 5 | F10: =IF(EXACT(Dashboard!R10,"below"),-1,IF(EXACT(Dashboard!R10,"above"),1,0)) -> 1 | G10: =AVERAGE('Randomized Control Chart'!G$32:G$35) -> 4.25 | H10: ='Randomized Control Chart'!M$6/S10^0.5 -> 0.82 | I10: 4.31 | J10: 1.04 | K10: 0 | L10: ='%Randomized Control Chart'!M5 -> 43.81% | M10: =Dashboard!AA10 -> 0.4545454545 | N10: =IF('%Randomized Control Chart'!C34="","",AVERAGE('%Randomized Control Chart'!G32:G35)) -> 0.40 | O10: ='%Randomized Control Chart'!M6/S10^0.5 -> 0.03 | P10: =L10+2*O10 -> 0.49 | Q10: =L10-2*O10 -> 0.38 | R10: 0 | S10: 4
B11: =Dashboard!N11 -> 6-Month OA | C11: =Dashboard!S11 -> 12 | D11: =Dashboard!T11 -> 1 | E11: =Dashboard!U11 -> 2 | F11: =IF(EXACT(Dashboard!R11,"below"),-1,IF(EXACT(Dashboard!R11,"above"),1,0)) -> 1 | G11: =AVERAGE('6-Month Control Chart'!G$32:G$35) -> 2.75 | H11: ='6-Month Control Chart'!M$6/S11^0.5 -> 0.50 | I11: 2.00 | J11: 0.00 | K11: 1 | L11: ='%6-Month Control Chart'!M5 -> 10.21% | M11: =Dashboard!AA11 -> 0.06451612903 | N11: =IF('%6-Month Control Chart'!C34="","",AVERAGE('%6-Month Control Chart'!G32:G35)) -> 0.10 | O11: ='%6-Month Control Chart'!M6/S11^0.5 -> 0.02 | P11: 0.13 | Q11: 0.07 | R11: 0 | S11: 4
B12: =Dashboard!N12 -> 12-Month OA | C12: =Dashboard!S12 -> 12 | D12: =Dashboard!T12 -> 0 | E12: =Dashboard!U12 -> 3 | F12: =IF(EXACT(Dashboard!R12,"below"),-1,IF(EXACT(Dashboard!R12,"above"),1,0)) -> 0 | G12: =AVERAGE('12-Month Control Chart'!G$32:G$35) -> 2.00 | H12: ='12-Month Control Chart'!M$6/S12^0.5 -> 0.27 | I12: =D12+2*H12 -> 0.55 | J12: =D12-2*H12 -> -0.55 | K12: 1 | L12: ='%12-Month Control Chart'!M5 -> 3.51% | M12: =Dashboard!AA12 -> 0.09677419355 | N12: =IF('%12-Month Control Chart'!C34="","",AVERAGE('%12-Month Control Chart'!G32:G35)) -> 0.07 | O12: ='%12-Month Control Chart'!M6/S12^0.5 -> 0.01 | P12: =L12+2*O12 -> 0.06 | Q12: =L12-2*O12 -> 0.02 | R12: 1 | S12: 4
B13: =Dashboard!N13 -> 18-Month OA | C13: =Dashboard!S13 -> 11 | D13: =Dashboard!T13 -> 0 | E13: =Dashboard!U13 -> 0 | F13: =IF(EXACT(Dashboard!R13,"below"),-1,IF(EXACT(Dashboard!R13,"above"),1,0)) -> 0 | G13: =AVERAGE('18-Month Control Chart'!G$32:G$35) -> 0.00 | H13: ='18-Month Control Chart'!M$6/S13^0.5 -> 0.05 | I13: 0.11 | J13: -0.11 | K13: 0 | L13: =Dashboard!Y13 -> 1 | M13: =Dashboard!AA13 -> 0 | N13: =IF('%18-Month Control Chart'!C34="","",AVERAGE('%18-Month Control Chart'!G32:G35)) -> 0.00 | O13: =IFERROR('%18-Month Control Chart'!M6/S13^0.5,"no data") -> 0.00 | P13: =IFERROR(L13+2*O13, "no data") -> 1.00 | Q13: =IFERROR(L13-2*O13, "no data") -> 1.00 | R13: =IFERROR(IF(13>P13,1,IF(N13<Q13,K13-1,0)), "no data") -> 1 | S13: 4

Sheet Signal Process Switches
A1: On=1, Off=0 | B1: Signal Processing Rule | C1: Bound on Number of points (strictly greater than) | D1: Default bound
A2: 1 | B2: points above UCL | C2: 0 | D2: 0
A3: 1 | B3: points below LCL | C3: 0 | D3: 0
A4: 1 | B4: points outside 3 std dev | C4: 0 | D4: 0
A5: 1 | B5: 2 out of 3 outside 2 std dev | C5: 1 | D5: 1
A6: 0 | B6: 4 out of 5 outside 1 std dev | C6: 3 | D6: 3
A7: 1 | B7: consecutive going up | C7: 5 | D7: 5
A8: 1 | B8: consecutive going down | C8: 5 | D8: 5
A9: 1 | B9: consecutive alternating points | C9: 13 | D9: 13
A10: 1 | B10: consecutive inside 1 std dev | C10: 14 | D10: 14
A11: 1 | B11: consecutive above mean | C11: 7 | D11: 7
A12: 1 | B12: consecutive below mean | C12: 7 | D12: 7

Sheet Study targets
E1: Target | F1: Per week to reach | G1: Where we should be | H1: Where we are | I1: Ahead or behind | J1: % of target | L1: check highlight
A2: rate | B2: =(B7/B3)^(1/3) -> 0.8882241979 | D2: =Dashboard!N4 -> Screened | E2: =Dashboard!O4 -> 25832.96498 | F2: =E2/'Start Date'!B$6 -> 215.2747082 | G2: =F2*'Start Date'!B$5 -> 18728.89961 | H2: =Dashboard!Q4 -> 12,574 | I2: =H2-G2 -> -6,155 | J2: =H2/G2 -> 0.671368861 | L2: 1
A3: Baseline | B3: 528 | D3: =Dashboard!N5 -> Eligible | E3: =Dashboard!O5 -> 2518.714086 | F3: =E3/'Start Date'!B$6 -> 20.98928405 | G3: =F3*'Start Date'!B$5 -> 1826.067712 | H3: =Dashboard!Q5 -> 1,226 | I3: =H3-G3 -> -600 | J3: =H3/G3 -> 0.6713880279 | L3: =L2-0.1 -> 0.9
A4: Randomized | B4: =B5/B2 -> 528 | D4: =Dashboard!N6 -> Approached | E4: =Dashboard!O6 -> 1684.51598 | F4: =E4/'Start Date'!B$6 -> 14.03763317 | G4: =F4*'Start Date'!B$5 -> 1221.274086 | H4: =Dashboard!Q6 -> 820 | I4: -401 | J4: 0.6714299513 | L4: =L3-0.1 -> 0.8
A5: 6-mo | B5: =B6/B2 -> 468.9823765 | D5: =Dashboard!N7 -> Consented | E5: =Dashboard!O7 -> 731.2483871 | F5: =E5/'Start Date'!B$6 -> 6.093736559 | G5: =F5*'Start Date'!B$5 -> 530.1550807 | H5: =Dashboard!Q7 -> 356 | I5: -174 | J5: 0.6715016285 | L5: 0.7
A6: 12-mo | B6: =B7/B2 -> 416.5614952 | D6: =Dashboard!N8 -> Withdrawn before baseline | E6: =Dashboard!O8 -> 203.3601765 | F6: =E6/'Start Date'!B$6 -> 1.694668137 | G6: =F6*'Start Date'!B$5 -> 147.4361279 | H6: =Dashboard!Q8 -> 99 | I6: -48 | J6: 0.6714772111 | L6: 0.6
A7: 18-mo | B7: =2*185 -> 370 | D7: =Dashboard!N9 -> Baselines | E7: =Dashboard!O9 -> 528 | F7: =E7/'Start Date'!B$6 -> 4.4 | G7: =F7*'Start Date'!B$5 -> 382.8 | H7: =Dashboard!Q9 -> 240 | I7: -143 | J7: 0.6269592476 | L7: 0.5
D8: =Dashboard!N10 -> Randomized | E8: =Dashboard!O10 -> 528 | F8: =E8/'Start Date'!B$6 -> 4.4 | G8: =F8*'Start Date'!B$5 -> 382.8 | H8: =Dashboard!Q10 -> 230 | I8: -153 | J8: 0.6008359457 | L8: 0.4
D9: =Dashboard!N11 -> 6-Month OA | E9: =Dashboard!O11 -> 468.9823765
D10: =Dashboard!N12 -> 12-Month OA | E10: =Dashboard!O12 -> 416.5614952
D11: =Dashboard!N13 -> 18-Month OA | E11: =Dashboard!O13 -> 370

Sheet Start Date
A2: Start of study | B2: 2023-02-05 | D2: Days rand to 6 mo | E2: 140
A3: today | B3: =TODAY() -> 2024-10-01 | D3: Days 6 mo to 12 mo | E3: 140
A4: difference | B4: =B3-StartDate -> 604.00 | D4: Days 12 mo to 18 mo | E4: 140
A5: weeks to date | B5: =ROUNDUP(B4/7,0) -> 87
A6: total weeks | B6: =30*4 -> 120
A7: weeks remaining | B7: =B6-B5 -> 33
A8: Last complete week | B8: =ROUNDDOWN(B4/7,0) -> 86

Sheet Screening Data
A1: Screening ID | B1: blank1 | C1: blank2 | D1: Medical Record Num | E1: Screen date | F1: Eligibility Status | G1: Rec_outcome | H1: Screen week
A2: 3762-6 | D2: xxx | E2: 2023-02-07 | F2: Ineligible (1) | H2: =ROUNDUP((E2-StartDate)/7,0) -> 1
A3: 3762-8 | D3: xxx | E3: 2023-02-07 | F3: Ineligible (1) | H3: =ROUNDUP((E3-StartDate)/7,0) -> 1
A4: 3762-9 | D4: xxx | E4: 2023-02-07 | F4: Ineligible (1) | H4: 1
A5: 3762-10 | D5: xxx | E5: 2023-02-07 | F5: Ineligible (1) | H5: 1
A6: 3762-11 | D6: xxx | E6: 2023-02-07 | F6: Ineligible (1) | H6: 1
A7: 3762-12 | D7: xxx | E7: 2023-02-07 | F7: Ineligible (1) | H7: 1
A8: 3762-13 | D8: xxx | E8: 2023-02-07 | F8: Ineligible (1) | H8: 1
A9: 3762-14 | D9: xxx | E9: 2023-02-07 | F9: Ineligible (1) | H9: 1
A10: 3762-15 | D10: xxx | E10: 2023-02-07 | F10: Ineligible (1) | H10: 1
A11: 3762-16 | D11: xxx | E11: 2023-02-07 | F11: Ineligible (1) | H11: 1
A12: 3762-17 | D12: xxx | E12: 2023-02-07 | F12: Ineligible (1) | H12: 1
A13: 3762-18 | D13: xxx | E13: 2023-02-07 | F13: Ineligible (1) | H13: 1
A14: 3762-19 | D14: xxx | E14: 2023-02-07 | F14: Ineligible (1) | H14: 1
A15: 3762-20 | D15: xxx | E15: 2023-02-07 | F15: Ineligible (1) | H15: 1
A16: 3762-21 | D16: xxx | E16: 2023-02-07 | F16: Ineligible (1) | H16: 1
A17: 3762-22 | D17: xxx | E17: 2023-02-07 | F17: Ineligible (1) | H17: 1
A18: 3762-23 | D18: xxx | E18: 2023-02-07 | F18: Ineligible (1) | H18: 1
A19: 3762-24 | D19: xxx | E19: 2023-02-07 | F19: Ineligible (1) | H19: 1
A20: 3762-25 | D20: xxx | E20: 2023-02-07 | F20: Ineligible (1) | H20: 1
A21: 3762-26 | D21: xxx | E21: 2023-02-07 | F21: Ineligible (1) | H21: 1
A22: 3762-27 | D22: xxx | E22: 2023-02-07 | F22: Ineligible (1) | H22: 1
A23: 3762-28 | D23: xxx | E23: 2023-02-07 | F23: Ineligible (1) | H23: 1
A24: 3762-29 | D24: xxx | E24: 2023-02-07 | F24: Ineligible (1) | H24: 1
A25: 3762-30 | D25: xxx | E25: 2023-02-08 | F25: Ineligible (1) | H25: 1
A26: 3762-31 | D26: xxx | E26: 2023-02-07 | F26: Ineligible (1) | H26: 1
A27: 3762-32 | D27: xxx | E27: 2023-02-08 | F27: Ineligible (1) | H27: 1
A28: 3762-33 | D28: xxx | E28: 2023-02-07 | F28: Ineligible (1) | H28: 1
A29: 3762-34 | D29: xxx | E29: 2023-02-07 | F29: Ineligible (1) | H29: 1
A30: 3762-35 | D30: xxx | E30: 2023-02-07 | F30: Ineligible (1) | H30: 1
A31: 3762-36 | D31: xxx | E31: 2023-02-08 | F31: Ineligible (1) | H31: 1
A32: 3762-37 | D32: xxx | E32: 2023-02-07 | F32: Ineligible (1) | H32: 1
A33: 3762-38 | D33: xxx | E33: 2023-02-07 | F33: Ineligible (1) | H33: 1
A34: 3762-39 | D34: xxx | E34: 2023-02-07 | F34: Ineligible (1) | H34: 1
A35: 3762-40 | D35: xxx | E35: 2023-02-07 | F35: Ineligible (1) | H35: 1
A36: 3762-41 | D36: xxx | E36: 2023-02-08 | F36: Ineligible (1) | H36: 1
A37: 3762-42 | D37: xxx | E37: 2023-02-07 | F37: Ineligible (1) | H37: 1
A38: 3762-43 | D38: xxx | E38: 2023-02-07 | F38: Ineligible (1) | H38: 1
A39: 3762-44 | D39: xxx | E39: 2023-02-08 | F39: Ineligible (1) | H39: 1
A40: 3762-45 | D40: xxx | E40: 2023-02-07 | F40: Ineligible (1) | H40: 1
A41: 3762-46 | D41: xxx | E41: 2023-02-07 | F41: Ineligible (1) | H41: 1
A42: 3762-47 | D42: xxx | E42: 2023-02-08 | F42: Ineligible (1) | H42: 1
A43: 3762-48 | D43: xxx | E43: 2023-02-08 | F43: Ineligible (1) | H43: 1
A44: 3762-49 | D44: xxx | E44: 2023-02-07 | F44: Ineligible (1) | H44: 1
A45: 3762-50 | D45: xxx | E45: 2023-02-07 | F45: Ineligible (1) | H45: 1
A46: 3762-51 | D46: xxx | E46: 2023-02-08 | F46: Ineligible (1) | H46: 1
A47: 3762-52 | D47: xxx | E47: 2023-02-08 | F47: Ineligible (1) | H47: 1
A48: 3762-53 | D48: xxx | E48: 2023-02-08 | F48: Ineligible (1) | H48: 1
A49: 3762-54 | D49: xxx | E49: 2023-02-07 | F49: Ineligible (1) | H49: 1
A50: 3762-55 | D50: xxx | E50: 2023-02-07 | F50: Ineligible (1) | H50: 1
A51: 3762-56 | D51: xxx | E51: 2023-02-07 | F51: Ineligible (1) | H51: 1
A52: 3762-57 | D52: xxx | E52: 2023-02-07 | F52: Ineligible (1) | H52: 1
A53: 3762-58 | D53: xxx | E53: 2023-02-07 | F53: Ineligible (1) | H53: 1
A54: 3762-59 | D54: xxx | E54: 2023-02-08 | F54: Ineligible (1) | H54: 1
A55: 3762-60 | D55: xxx | E55: 2023-02-07 | F55: Ineligible (1) | H55: 1
A56: 3762-61 | D56: xxx | E56: 2023-02-07 | F56: Ineligible (1) | H56: 1
A57: 3762-62 | D57: xxx | E57: 2023-02-07 | F57: Ineligible (1) | H57: 1
A58: 3762-63 | D58: xxx | E58: 2023-02-07 | F58: Ineligible (1) | H58: 1
A59: 3762-64 | D59: xxx | E59: 2023-02-08 | F59: Ineligible (1) | H59: 1
A60: 3762-65 | D60: xxx | E60: 2023-02-07 | F60: Ineligible (1) | H60: 1
A61: 3762-66 | D61: xxx | E61: 2023-02-08 | F61: Ineligible (1) | H61: 1
A62: 3762-67 | D62: xxx | E62: 2023-02-07 | F62: Ineligible (1) | H62: 1
... 77 more rows

Sheet Screened by week pivot
A1: Last row | B1: =ROW(INDEX(A:A,MAX((A:A<>"")*(ROW(A:A))))) -> 90
A3: Row Labels | B3: Count of Screening ID
A4: 1 | B4: 166
A5: 2 | B5: 59
A6: 3 | B6: 71
A7: 4 | B7: 166
A8: 5 | B8: 193
A9: 6 | B9: 199
A10: 7 | B10: 191
A11: 8 | B11: 232
A12: 9 | B12: 199
A13: 10 | B13: 207
A14: 11 | B14: 126
A15: 12 | B15: 91
A16: 13 | B16: 133
A17: 14 | B17: 106
A18: 15 | B18: 118
A19: 16 | B19: 106
A20: 17 | B20: 116
A21: 18 | B21: 107
A22: 19 | B22: 136
A23: 20 | B23: 156
A24: 21 | B24: 214
A25: 22 | B25: 154
A26: 23 | B26: 163
A27: 24 | B27: 199
A28: 25 | B28: 157
A29: 26 | B29: 171
A30: 27 | B30: 168
A31: 28 | B31: 165
A32: 29 | B32: 169
A33: 30 | B33: 195
A34: 31 | B34: 132
A35: 32 | B35: 117
A36: 33 | B36: 143
A37: 34 | B37: 162
A38: 35 | B38: 197
A39: 36 | B39: 193
A40: 37 | B40: 147
A41: 38 | B41: 181
A42: 39 | B42: 104
A43: 40 | B43: 149
A44: 41 | B44: 164
A45: 42 | B45: 104
A46: 43 | B46: 138
A47: 44 | B47: 167
A48: 45 | B48: 119
A49: 46 | B49: 142
A50: 47 | B50: 115
A51: 48 | B51: 94
A52: 49 | B52: 122
A53: 50 | B53: 103
A54: 51 | B54: 116
A55: 52 | B55: 118
A56: 53 | B56: 124
A57: 54 | B57: 130
A58: 55 | B58: 126
A59: 56 | B59: 118
A60: 57 | B60: 140
A61: 58 | B61: 138
A62: 59 | B62: 153
A63: 60 | B63: 135
A64: 61 | B64: 141
A65: 62 | B65: 142
A66: 63 | B66: 156
A67: 64 | B67: 159
A68: 65 | B68: 120
A69: 66 | B69: 154
A70: 67 | B70: 149
A71: 68 | B71: 188
A72: 69 | B72: 146
A73: 70 | B73: 167
A74: 71 | B74: 151
A75: 72 | B75: 120
A76: 73 | B76: 156
A77: 74 | B77: 129
A78: 75 | B78: 160
A79: 76 | B79: 158
A80: 77 | B80: 162
A81: 78 | B81: 172
A82: 79 | B82: 167
A83: 80 | B83: 159
A84: 81 | B84: 189
A85: 82 | B85: 141
A86: 83 | B86: 164
A87: 84 | B87: 132
A88: 85 | B88: 168
A89: 86 | B89: 139
A90: Grand Total | B90: 12713

Sheet Screened Control Chart
L1: Control Chart Parameters
L2: Sigma | M2: 3
L4: Sample statistics
L5: mean | M5: =AVERAGE(B39:B123) -> 147.93
L6: sample stdev | M6: =M5^0.5 -> 12.16
L7: UCL | M7: =M5+M2*M6 -> 184.42
L8: LCL | M8: =MAX(0,M5-M2*M6) -> 111.4415411
L9: Target | M9: 200
P10: Signal Flag
L11: Signal Processing Results | P11: =SUM(P12:P22) -> 6 | Q11: =S12-Q12 -> -1 | R11: Trend Results
L12: =IF(M12>0, "Possible nonrandom event", "Random") -> Possible nonrandom event | M12: =R37 -> 9 | N12: points above UCL | O12: =IF(M12>'Signal Process Switches'!C2, 1, 0) -> 1 | P12: =O12*'Signal Process Switches'!A2 -> 1 | Q12: =SUM(Q13:Q20) -> 1 | R12: Down | S12: =SUM(S13:S20) -> 0 | T12: Up
L13: =IF(M13>0, "Possible nonrandom event", "Random") -> Possible nonrandom event | M13: =S37 -> 6 | N13: points below LCL | O13: =IF(M13>'Signal Process Switches'!C3, 1, 0) -> 1 | P13: =O13*'Signal Process Switches'!A3 -> 1 | Q13: =IF(B50<$M$5-3*$M$6,1,0) -> 1 | R13: Last point 3 standard deviations below mean or lower | S13: =IF(B50>$M$5+3*$M$6,1,0) -> 0 | T13: Last point 3 standard deviations above mean or higher
L14: =IF(M14>0, "Possible nonrandom event", "Random") -> Possible nonrandom event | M14: =T37 -> 31 | N14: points outside 3 std dev | O14: =IF(M14>'Signal Process Switches'!C4, 1, 0) -> 1 | P14: =O14*'Signal Process Switches'!A4 -> 1 | Q14: =IF(AG50>1,1,0) -> 0 | R14: Last 2 out of 3 points 2 standard deviations below mean or lower | S14: =IF(AI50>1,1,0) -> 0 | T14: Last 2 out of 3 points 2 standard deviations above mean or higher
L15: =IF(M15>1, "Potential instability", "Random") -> Potential instability | M15: =V37 -> 3 | N15: 2 out of 3 outside 2 std dev | O15: =IF(M15>'Signal Process Switches'!C5, 1, 0) -> 1 | P15: =O15*'Signal Process Switches'!A5 -> 1 | Q15: =IF(AK50>3,1,0) -> 0 | R15: Last 4 out of 5 points 1 standard deviation below mean or lower | S15: =IF(AM50>3,1,0) -> 0 | T15: Last 4 out of 5 points 1 standard deviation above mean or higher
L16: =IF(M16>3, "Potential instability", "Random") -> Potential instability | M16: =X37 -> 5 | N16: 4 out of 5 outside 1 std dev | O16: =IF(M16>'Signal Process Switches'!C6, 1, 0) -> 1 | P16: =O16*'Signal Process Switches'!A6 -> 0 | Q16: =IF(AD50>5,1,0) -> 0 | R16: Last 6 points below mean | S16: =IF(AC50>5,1,0) -> 0 | T16: Last 6 points above mean
L17: =IF(M17>5, "Possible trend", "Random") -> Random | M17: =Y37 -> 4 | N17: consecutive going up | O17: =IF(M17>'Signal Process Switches'!C7, 1, 0) -> 0 | P17: =O17*'Signal Process Switches'!A7 -> 0 | Q17: =IF(AB$50<-5,1,0) -> 0 | R17: Last 6 points going down | S17: =IF(Y50>5,1,0) -> 0 | T17: Last 6 points going up
L18: =IF(M18>5, "Possible trend", "Random") -> Random | M18: =-Z37 -> 2 | N18: consecutive going down | O18: =IF(M18>'Signal Process Switches'!C8, 1, 0) -> 0 | P18: =O18*'Signal Process Switches'!A8 -> 0 | Q18: =IF(AND(Z50<-2,B50<M$5-2*M$6),1,0) -> 0 | R18: Last 3 points going down with last point 2 standard deviations below mean or lower | S18: =IF(AND(Y50>2,B50>M$5+2*M$6),1,0) -> 0 | T18: Last 3 points going up with last point 2 standard deviations above mean or higher
L19: =IF(M19>13, "Possible pattern", "Random") -> Random | M19: =AA37 -> 6 | N19: consecutive alternating points | O19: =IF(M19>'Signal Process Switches'!C9, 1, 0) -> 0 | P19: =O19*'Signal Process Switches'!A9 -> 0 | Q19: =IF(AND(Z50<-3,B50<M$5-1*M$6),1,0) -> 0 | R19: Last 4 points going down with last point 1 standard deviations below mean or lower | S19: =IF(AND(Y50>3,B50>M$5+1*M$6),1,0) -> 0 | T19: Last 4 points going up with last point 1 standard deviations above mean or higher
L20: =IF(M20>14, "Possible variance reduction", "Random") -> Random | M20: =AB37 -> 2 | N20: consecutive inside 1 std dev | O20: =IF(M20>'Signal Process Switches'!C10, 1, 0) -> 0 | P20: =O20*'Signal Process Switches'!A10 -> 0 | Q20: =IF(AND(Z50<-4,B50<M$5-0*M$6),1,0) -> 0 | R20: Last 5 points going down with last point below mean or lower | S20: =IF(AND(Y50>4,B50>M$5+0*M$6),1,0) -> 0 | T20: Last 5 points going up with last point above mean or higher
L21: =IF(M21>7, "Possible trend", "Random") -> Possible trend | M21: =AC37 -> 11 | N21: consecutive above mean | O21: =IF(M21>'Signal Process Switches'!C11, 1, 0) -> 1 | P21: =O21*'Signal Process Switches'!A11 -> 1
L22: =IF(M22>7, "Possible trend", "Random") -> Possible trend | M22: =AD37 -> 9 | N22: consecutive below mean | O22: =IF(M22>'Signal Process Switches'!C12, 1, 0) -> 1 | P22: =O22*'Signal Process Switches'!A12 -> 1
E32: last 4 values | F32: =F33-1 -> 120 | G32: =INDEX(B:B,F32,1) -> 141
A33: Date | B33: Row of last nonblank | C33: final_score of last nonblank | D33: final week | F33: 121 | G33: =INDEX(B:B,F33,1) -> 164
A34: =A39 -> 1 | B34: =ROW(INDEX(A:A,MAX((A:A<>"")*(ROW(A:A))))) -> 123 | C34: =INDEX(B:B,B34,1) -> 168 | D34: =INDEX(A:A,B34,1) -> 85 | F34: =F35-1 -> 122 | G34: =INDEX(B:B,F34,1) -> 132
F35: =ROW(INDEX(A:A,MAX((A:A<>"")*(ROW(A:A))))) -> 123 | G35: =INDEX(B:B,F35,1) -> 168
A36: Data | C36: Control Chart Limits | F36: Signal Processing Flags | R36: Signal Processing Data
A37: sum | B37: =SUM(OFFSET(B39,0,0,MATCH(1,IF(B39:B998="",1,0),0),1)) -> 12574 | R37: =SUM(R39:R69) -> 9 | S37: =SUM(S39:S69) -> 6 | T37: =SUM(T39:T69) -> 31 | U37: =MAX(U39:U69) -> 1 | V37: =MAX(V39:V69) -> 3 | W37: =MAX(W39:W69) -> 1 | X37: =MAX(X39:X69) -> 5 | Y37: =MAX(Y39:Y69) -> 4 | Z37: =MIN(Z39:Z69) -> -2 | AA37: =MAX(AA39:AA69) -> 6 | AB37: =MAX(AB39:AB69) -> 2 | AC37: =MAX(AC39:AC69) -> 11 | AD37: =MAX(AD39:AD69) -> 9
A38: Week | B38: Screened | C38: Mean | D38: UCL | E38: LCL | F38: above UCL | G38: below LCL | H38: out3stddev | I38: 2 of 3 out2 | J38: 4 of 5 out1 | K38: uptrend | L38: downtrend | M38: alt | N38: in1stddev | O38: above mean | P38: below mean | Q38: =L9 -> Target | R38: above UCL | S38: below LCL | T38: out3stddev | U38: out2stddev | V38: 2 of 3 out2 | W38: out1stddev | X38: 4 of 5 out1 | Y38: uptrend | Z38: downtrend | AA38: alt | AB38: in1stddev | AC38: above mean | AD38: below mean
A39: ='Screened by week pivot'!A4 -> 1 | B39: ='Screened by week pivot'!B4 -> 166 | C39: =M$5 -> 147.9294118 | D39: =M$7 -> 184.4172824 | E39: =M$8 -> 111.4415411 | F39: =IF(B39>D39,B39,#N/A) ->  | G39: =IF(B39<E39,B39,#N/A) ->  | H39: =IF(OR(B39>$M$5+3*$M$6,B39<$M$5-3*$M$6),B39,#N/A) ->  | K39: =IF(Y39>5,B39,#N/A) ->  | L39: =IF(Z39<-5,B39,#N/A) ->  | M39: =IF(AA39>13,B39,#N/A) ->  | N39: =IF(AB39>14,B39,#N/A) ->  | O39: =IF(AC39>7,B39,#N/A) ->  | P39: =IF(AD39>7,B39,#N/A) ->  | Q39: =M$9 -> 200 | R39: =IF(B39>D39,1,0) -> 0 | S39: =IF(B39<E39,1,0) -> 0 | T39: =IF(OR(B39>$M$5+3*$M$6,B39<$M$5-3*$M$6),1,0) -> 0 | U39: =IF(OR(B39>$M$5+2*$M$6,B39<$M$5-2*$M$6),1,0) -> 0 | W39: =IF(OR(B39>$M$5+1*$M$6,B39<$M$5-1*$M$6),1,0) -> 1 | Y39: 0 | Z39: 0 | AA39: 0 | AB39: =IF(AND(B39<M$5+1*M$6,B39>M$5-1*M$6),1,0) -> 0 | AC39: =IF(B39>C39,1,0) -> 1 | AD39: =IF(B39<C39,1,0) -> 0
A40: ='Screened by week pivot'!A5 -> 2 | B40: ='Screened by week pivot'!B5 -> 59 | C40: 147.9294118 | D40: 184.4172824 | E40: 111.4415411 | G40: 59 | H40: 59 | Q40: =M$9 -> 200 | R40: 0 | S40: 1 | T40: =IF(OR(B40>$M$5+3*$M$6,B40<$M$5-3*$M$6),T39+1,0) -> 1 | U40: 1 | W40: 1 | Y40: =IF(B40>B39,Y39+1,0) -> 0 | Z40: =IF(B40<B39,Z39-1,0) -> -1 | AA40: =IF(OR(AND(Z40=-Y39,Z40<>0),AND(Y40=-Z39,Y40<>0)),AA39+1,0) -> 0 | AB40: =IF(AND(B40<M$5+1*M$6,B40>M$5-1*M$6),AB39+1,0) -> 0 | AC40: =IF(B40>C40,AC39+1,0) -> 0 | AD40: =IF(B40<C40,AD39+1,0) -> 1
A41: ='Screened by week pivot'!A6 -> 3 | B41: ='Screened by week pivot'!B6 -> 71 | C41: 147.9294118 | D41: 184.4172824 | E41: 111.4415411 | G41: 71 | H41: 71 | I41: =IF(V41>1,B41,#N/A) -> 71 | Q41: 200 | R41: 0 | S41: 1 | T41: =IF(OR(B41>$M$5+3*$M$6,B41<$M$5-3*$M$6),T40+1,0) -> 2 | U41: 1 | V41: =SUM(U39:U41) -> 2 | W41: 1 | Y41: =IF(B41>B40,Y40+1,0) -> 1 | Z41: =IF(B41<B40,Z40-1,0) -> 0 | AA41: =IF(OR(AND(Z41=-Y40,Z41<>0),AND(Y41=-Z40,Y41<>0)),AA40+1,0) -> 1 | AB41: =IF(AND(B41<M$5+1*M$6,B41>M$5-1*M$6),AB40+1,0) -> 0 | AC41: =IF(B41>C41,AC40+1,0) -> 0 | AD41: =IF(B41<C41,AD40+1,0) -> 2
A42: ='Screened by week pivot'!A7 -> 4 | B42: ='Screened by week pivot'!B7 -> 166 | C42: 147.9294118 | D42: 184.4172824 | E42: 111.4415411 | I42: 166 | Q42: 200 | R42: 0 | S42: 0 | T42: 0 | U42: 0 | V42: =SUM(U40:U42) -> 2 | W42: 1 | Y42: 2 | Z42: 0 | AA42: 0 | AB42: 0 | AC42: 1 | AD42: 0
A43: ='Screened by week pivot'!A8 -> 5 | B43: ='Screened by week pivot'!B8 -> 193 | C43: 147.9294118 | D43: 184.4172824 | E43: 111.4415411 | F43: 193 | H43: 193 | I43: 193 | J43: =IF(X43>3,B43,#N/A) -> 193 | Q43: 200 | R43: 1 | S43: 0 | T43: 1 | U43: 1 | V43: 2 | W43: 1 | X43: =SUM(W39:W43) -> 5 | Y43: 3 | Z43: 0 | AA43: 0 | AB43: 0 | AC43: 2 | AD43: 0
A44: ='Screened by week pivot'!A9 -> 6 | B44: ='Screened by week pivot'!B9 -> 199 | C44: 147.9294118 | D44: 184.4172824 | E44: 111.4415411 | F44: 199 | H44: 199 | I44: 199 | J44: 199 | Q44: 200 | R44: 1 | S44: 0 | T44: 2 | U44: 1 | V44: 2 | W44: 1 | X44: =SUM(W40:W44) -> 5 | Y44: 4 | Z44: 0 | AA44: =IF(OR(AND(Z44=-Y43,Z44<>0),AND(Y44=-Z43,Y44<>0)),AA43+1,0) -> 0 | AB44: 0 | AC44: 3 | AD44: 0
A45: ='Screened by week pivot'!A10 -> 7 | B45: ='Screened by week pivot'!B10 -> 191 | C45: 147.9294118 | D45: 184.4172824 | E45: 111.4415411 | F45: 191 | H45: 191 | I45: 191 | J45: 191 | Q45: 200 | R45: 1 | S45: 0 | T45: 3 | U45: 1 | V45: 3 | W45: 1 | X45: 5 | Y45: 0 | Z45: -1 | AA45: 0 | AB45: 0 | AC45: 4 | AD45: 0
A46: ='Screened by week pivot'!A11 -> 8 | B46: ='Screened by week pivot'!B11 -> 232 | C46: 147.9294118 | D46: 184.4172824 | E46: 111.4415411 | F46: 232 | H46: 232 | I46: 232 | J46: 232 | Q46: 200 | R46: 1 | S46: 0 | T46: 4 | U46: 1 | V46: 3 | W46: 1 | X46: 5 | Y46: 1 | Z46: 0 | AA46: =IF(OR(AND(Z46=-Y45,Z46<>0),AND(Y46=-Z45,Y46<>0)),AA45+1,0) -> 1 | AB46: 0 | AC46: 5 | AD46: 0
A47: ='Screened by week pivot'!A12 -> 9 | B47: ='Screened by week pivot'!B12 -> 199 | C47: 147.9294118 | D47: 184.4172824 | E47: 111.4415411 | F47: 199 | H47: 199 | I47: 199 | J47: 199 | Q47: 200 | R47: 1 | S47: 0 | T47: 5 | U47: 1 | V47: 3 | W47: 1 | X47: 5 | Y47: 0 | Z47: -1 | AA47: =IF(OR(AND(Z47=-Y46,Z47<>0),AND(Y47=-Z46,Y47<>0)),AA46+1,0) -> 2 | AB47: 0 | AC47: 6 | AD47: 0
A48: ='Screened by week pivot'!A13 -> 10 | B48: ='Screened by week pivot'!B13 -> 207 | C48: 147.9294118 | D48: 184.4172824 | E48: 111.4415411 | F48: 207 | H48: 207 | I48: 207 | J48: 207 | Q48: 200 | R48: 1 | S48: 0 | T48: 6 | U48: 1 | V48: 3 | W48: 1 | X48: 5 | Y48: 1 | Z48: 0 | AA48: 3 | AB48: 0 | AC48: 7 | AD48: 0
A49: ='Screened by week pivot'!A14 -> 11 | B49: ='Screened by week pivot'!B14 -> 126 | C49: 147.9294118 | D49: 184.4172824 | E49: 111.4415411 | I49: 126 | J49: 126 | Q49: 200 | R49: 0 | S49: 0 | T49: 0 | U49: 0 | V49: 2 | W49: 1 | X49: 5 | Y49: 0 | Z49: -1 | AA49: 4 | AB49: 0 | AC49: 0 | AD49: 1
A50: ='Screened by week pivot'!A15 -> 12 | B50: ='Screened by week pivot'!B15 -> 91 | C50: 147.9294118 | D50: 184.4172824 | E50: 111.4415411 | G50: 91 | H50: 91 | I50: 91 | J50: 91 | Q50: 200 | R50: 0 | S50: 1 | T50: 1 | U50: 1 | V50: 2 | W50: 1 | X50: 5 | Y50: 0 | Z50: -2 | AA50: 0 | AB50: 0 | AC50: 0 | AD50: 2
A51: ='Screened by week pivot'!A16 -> 13 | B51: ='Screened by week pivot'!B16 -> 133 | C51: 147.9294118 | D51: 184.4172824 | E51: 111.4415411 | J51: 133 | Q51: 200 | R51: 0 | S51: 0 | T51: 0 | U51: 0 | V51: 1 | W51: 1 | X51: 5 | Y51: 1 | Z51: 0 | AA51: 0 | AB51: 0 | AC51: 0 | AD51: 3
A52: ='Screened by week pivot'!A17 -> 14 | B52: ='Screened by week pivot'!B17 -> 106 | C52: 147.9294118 | D52: 184.4172824 | E52: 111.4415411 | G52: 106 | H52: 106 | I52: 106 | J52: 106 | Q52: 200 | R52: 0 | S52: 1 | T52: 1 | U52: 1 | V52: 2 | W52: 1 | X52: 5 | Y52: 0 | Z52: -1 | AA52: 1 | AB52: 0 | AC52: 0 | AD52: 4
A53: ='Screened by week pivot'!A18 -> 15 | B53: ='Screened by week pivot'!B18 -> 118 | C53: 147.9294118 | D53: 184.4172824 | E53: 111.4415411 | I53: 118 | J53: 118 | Q53: 200 | R53: 0 | S53: 0 | T53: 0 | U53: 1 | V53: 2 | W53: 1 | X53: 5 | Y53: 1 | Z53: 0 | AA53: 2 | AB53: 0 | AC53: 0 | AD53: 5
A54: ='Screened by week pivot'!A19 -> 16 | B54: ='Screened by week pivot'!B19 -> 106 | C54: 147.9294118 | D54: 184.4172824 | E54: 111.4415411 | G54: 106 | H54: 106 | I54: 106 | J54: 106 | Q54: 200 | R54: 0 | S54: 1 | T54: 1 | U54: 1 | V54: =SUM(U52:U54) -> 3 | W54: 1 | X54: =SUM(W50:W54) -> 5 | Y54: 0 | Z54: -1 | AA54: 3 | AB54: 0 | AC54: 0 | AD54: 6
A55: ='Screened by week pivot'!A20 -> 17 | B55: ='Screened by week pivot'!B20 -> 116 | C55: =M$5 -> 147.9294118 | D55: =M$7 -> 184.4172824 | E55: =M$8 -> 111.4415411 | F55: =IF(B55>D55,B55,#N/A) ->  | G55: =IF(B55<E55,B55,#N/A) ->  | H55: =IF(OR(B55>$M$5+3*$M$6,B55<$M$5-3*$M$6),B55,#N/A) ->  | I55: =IF(V55>1,B55,#N/A) -> 116 | J55: =IF(X55>3,B55,#N/A) -> 116 | K55: =IF(Y55>5,B55,#N/A) ->  | L55: =IF(Z55<-5,B55,#N/A) ->  | M55: =IF(AA55>13,B55,#N/A) ->  | N55: =IF(AB55>14,B55,#N/A) ->  | O55: =IF(AC55>7,B55,#N/A) ->  | P55: =IF(AD55>7,B55,#N/A) ->  | Q55: =M$9 -> 200 | R55: =IF(B55>D55,1,0) -> 0 | S55: =IF(B55<E55,1,0) -> 0 | T55: =IF(OR(B55>$M$5+3*$M$6,B55<$M$5-3*$M$6),T54+1,0) -> 0 | U55: =IF(OR(B55>$M$5+2*$M$6,B55<$M$5-2*$M$6),1,0) -> 1 | V55: =SUM(U53:U55) -> 3 | W55: =IF(OR(B55>$M$5+1*$M$6,B55<$M$5-1*$M$6),1,0) -> 1 | X55: =SUM(W51:W55) -> 5 | Y55: =IF(B55>B54,Y54+1,0) -> 1 | Z55: =IF(B55<B54,Z54-1,0) -> 0 | AA55: =IF(OR(AND(Z55=-Y54,Z55<>0),AND(Y55=-Z54,Y55<>0)),AA54+1,0) -> 4 | AB55: =IF(AND(B55<M$5+1*M$6,B55>M$5-1*M$6),AB54+1,0) -> 0 | AC55: =IF(B55>C55,AC54+1,0) -> 0 | AD55: =IF(B55<C55,AD54+1,0) -> 7
A56: ='Screened by week pivot'!A21 -> 18 | B56: ='Screened by week pivot'!B21 -> 107 | C56: 147.9294118 | D56: 184.4172824 | E56: 111.4415411 | G56: 107 | H56: 107 | I56: 107 | J56: 107 | P56: 107 | Q56: 200 | R56: 0 | S56: 1 | T56: 1 | U56: 1 | V56: 3 | W56: 1 | X56: 5 | Y56: 0 | Z56: -1 | AA56: 5 | AB56: 0 | AC56: 0 | AD56: 8
A57: ='Screened by week pivot'!A22 -> 19 | B57: ='Screened by week pivot'!B22 -> 136 | C57: 147.9294118 | D57: 184.4172824 | E57: 111.4415411 | I57: 136 | J57: 136 | P57: 136 | Q57: 200 | R57: 0 | S57: 0 | T57: 0 | U57: 0 | V57: 2 | W57: 0 | X57: 4 | Y57: 1 | Z57: 0 | AA57: 6 | AB57: 1 | AC57: 0 | AD57: 9
A58: ='Screened by week pivot'!A23 -> 20 | B58: ='Screened by week pivot'!B23 -> 156 | C58: 147.9294118 | D58: 184.4172824 | E58: 111.4415411 | Q58: 200 | R58: 0 | S58: 0 | T58: 0 | U58: 0 | V58: 1 | W58: 0 | X58: 3 | Y58: 2 | Z58: 0 | AA58: 0 | AB58: 2 | AC58: 1 | AD58: 0
A59: ='Screened by week pivot'!A24 -> 21 | B59: ='Screened by week pivot'!B24 -> 214 | C59: 147.9294118 | D59: 184.4172824 | E59: 111.4415411 | F59: 214 | H59: 214 | Q59: 200 | R59: 1 | S59: 0 | T59: 1 | U59: 1 | V59: 1 | W59: 1 | X59: 3 | Y59: 3 | Z59: 0 | AA59: 0 | AB59: 0 | AC59: 2 | AD59: 0
A60: ='Screened by week pivot'!A25 -> 22 | B60: ='Screened by week pivot'!B25 -> 154 | C60: 147.9294118 | D60: 184.4172824 | E60: 111.4415411 | Q60: 200 | R60: 0 | S60: 0 | T60: 0 | U60: 0 | V60: 1 | W60: 0 | X60: 2 | Y60: 0 | Z60: -1 | AA60: 0 | AB60: 1 | AC60: 3 | AD60: 0
A61: ='Screened by week pivot'!A26 -> 23 | B61: ='Screened by week pivot'!B26 -> 163 | C61: 147.9294118 | D61: 184.4172824 | E61: 111.4415411 | Q61: 200 | R61: 0 | S61: 0 | T61: 0 | U61: 0 | V61: 1 | W61: 1 | X61: 2 | Y61: 1 | Z61: 0 | AA61: 1 | AB61: 0 | AC61: 4 | AD61: 0
A62: ='Screened by week pivot'!A27 -> 24 | B62: ='Screened by week pivot'!B27 -> 199 | C62: 147.9294118 | D62: 184.4172824 | E62: 111.4415411 | F62: 199 | H62: 199 | Q62: 200 | R62: 1 | S62: 0 | T62: 1 | U62: 1 | V62: 1 | W62: 1 | X62: 3 | Y62: 2 | Z62: 0 | AA62: 0 | AB62: 0 | AC62: 5 | AD62: 0
A63: ='Screened by week pivot'!A28 -> 25 | B63: ='Screened by week pivot'!B28 -> 157 | C63: 147.9294118 | D63: 184.4172824 | E63: 111.4415411 | Q63: 200 | R63: 0 | S63: 0 | T63: 0 | U63: 0 | V63: 1 | W63: 0 | X63: 3 | Y63: 0 | Z63: -1 | AA63: 0 | AB63: 1 | AC63: 6 | AD63: 0
A64: ='Screened by week pivot'!A29 -> 26 | B64: ='Screened by week pivot'!B29 -> 171 | C64: 147.9294118 | D64: 184.4172824 | E64: 111.4415411 | Q64: 200 | R64: 0 | S64: 0 | T64: 0 | U64: 0 | V64: 1 | W64: 1 | X64: 3 | Y64: 1 | Z64: 0 | AA64: 1 | AB64: 0 | AC64: 7 | AD64: 0
A65: ='Screened by week pivot'!A30 -> 27 | B65: ='Screened by week pivot'!B30 -> 168 | C65: 147.9294118 | D65: 184.4172824 | E65: 111.4415411 | J65: 168 | O65: 168 | Q65: 200 | R65: 0 | S65: 0 | T65: 0 | U65: 0 | V65: 0 | W65: 1 | X65: 4 | Y65: 0 | Z65: -1 | AA65: 2 | AB65: 0 | AC65: 8 | AD65: 0
A66: ='Screened by week pivot'!A31 -> 28 | B66: ='Screened by week pivot'!B31 -> 165 | C66: 147.9294118 | D66: 184.4172824 | E66: 111.4415411 | J66: 165 | O66: 165 | Q66: 200 | R66: 0 | S66: 0 | T66: 0 | U66: 0 | V66: 0 | W66: 1 | X66: 4 | Y66: 0 | Z66: -2 | AA66: 0 | AB66: 0 | AC66: 9 | AD66: 0
A67: ='Screened by week pivot'!A32 -> 29 | B67: ='Screened by week pivot'!B32 -> 169 | C67: 147.9294118 | D67: 184.4172824 | E67: 111.4415411 | J67: 169 | O67: 169 | Q67: 200 | R67: 0 | S67: 0 | T67: 0 | U67: 0 | V67: 0 | W67: 1 | X67: 4 | Y67: 1 | Z67: 0 | AA67: 0 | AB67: 0 | AC67: 10 | AD67: 0
A68: ='Screened by week pivot'!A33 -> 30 | B68: ='Screened by week pivot'!B33 -> 195 | C68: 147.9294118 | D68: 184.4172824 | E68: 111.4415411 | F68: 195 | H68: 195 | J68: 195 | O68: 195 | Q68: 200 | R68: 1 | S68: 0 | T68: 1 | U68: 1 | V68: 1 | W68: 1 | X68: 5 | Y68: 2 | Z68: 0 | AA68: 0 | AB68: 0 | AC68: 11 | AD68: 0
A69: ='Screened by week pivot'!A34 -> 31 | B69: ='Screened by week pivot'!B34 -> 132 | C69: 147.9294118 | D69: 184.4172824 | E69: 111.4415411 | J69: 132 | Q69: 200 | R69: 0 | S69: 0 | T69: 0 | U69: 0 | V69: 1 | W69: 1 | X69: 5 | Y69: 0 | Z69: -1 | AA69: 0 | AB69: 0 | AC69: 0 | AD69: 1
A70: ='Screened by week pivot'!A35 -> 32 | B70: ='Screened by week pivot'!B35 -> 117 | C70: 147.9294118 | D70: 184.4172824 | E70: 111.4415411 | I70: 117 | J70: 117 | Q70: 200 | R70: 0 | S70: 0 | T70: 0 | U70: 1 | V70: 2 | W70: 1 | X70: 5 | Y70: 0 | Z70: -2 | AA70: 0 | AB70: 0 | AC70: 0 | AD70: 2
A71: ='Screened by week pivot'!A36 -> 33 | B71: ='Screened by week pivot'!B36 -> 143 | C71: 147.9294118 | D71: 184.4172824 | E71: 111.4415411 | J71: 143 | Q71: 200 | R71: 0 | S71: 0 | T71: 0 | U71: 0 | V71: 1 | W71: 0 | X71: 4 | Y71: 1 | Z71: 0 | AA71: 0 | AB71: 1 | AC71: 0 | AD71: 3
A72: ='Screened by week pivot'!A37 -> 34 | B72: ='Screened by week pivot'!B37 -> 162 | C72: 147.9294118 | D72: 184.4172824 | E72: 111.4415411 | J72: 162 | Q72: 200 | R72: 0 | S72: 0 | T72: 0 | U72: 0 | V72: 1 | W72: 1 | X72: 4 | Y72: 2 | Z72: 0 | AA72: 0 | AB72: 0 | AC72: 1 | AD72: 0
A73: ='Screened by week pivot'!A38 -> 35 | B73: ='Screened by week pivot'!B38 -> 197 | C73: 147.9294118 | D73: 184.4172824 | E73: 111.4415411 | F73: 197 | H73: 197 | J73: 197 | Q73: 200 | R73: 1 | S73: 0 | T73: 1 | U73: 1 | V73: 1 | W73: 1 | X73: 4 | Y73: 3 | Z73: 0 | AA73: 0 | AB73: 0 | AC73: 2 | AD73: 0
A74: ='Screened by week pivot'!A39 -> 36 | B74: ='Screened by week pivot'!B39 -> 193 | C74: 147.9294118 | D74: 184.4172824 | E74: 111.4415411 | F74: 193 | H74: 193 | I74: 193 | J74: 193 | Q74: 200 | R74: 1 | S74: 0 | T74: 2 | U74: 1 | V74: 2 | W74: 1 | X74: 4 | Y74: 0 | Z74: -1 | AA74: 0 | AB74: 0 | AC74: 3 | AD74: 0
A75: ='Screened by week pivot'!A40 -> 37 | B75: ='Screened by week pivot'!B40 -> 147 | C75: 147.9294118 | D75: 184.4172824 | E75: 111.4415411 | I75: 147 | Q75: 200 | R75: 0 | S75: 0 | T75: 0 | U75: 0 | V75: 2 | W75: 0 | X75: 3 | Y75: 0 | Z75: -2 | AA75: 0 | AB75: 1 | AC75: 0 | AD75: 1
A76: ='Screened by week pivot'!A41 -> 38 | B76: ='Screened by week pivot'!B41 -> 181 | C76: 147.9294118 | D76: 184.4172824 | E76: 111.4415411 | I76: 181 | J76: 181 | Q76: 200 | R76: 0 | S76: 0 | T76: 0 | U76: 1 | V76: 2 | W76: 1 | X76: 4 | Y76: 1 | Z76: 0 | AA76: 0 | AB76: 0 | AC76: 1 | AD76: 0
A77: ='Screened by week pivot'!A42 -> 39 | B77: ='Screened by week pivot'!B42 -> 104 | C77: 147.9294118 | D77: 184.4172824 | E77: 111.4415411 | G77: 104 | H77: 104 | I77: 104 | J77: 104 | Q77: 200 | R77: 0 | S77: 1 | T77: 1 | U77: 1 | V77: 2 | W77: 1 | X77: 4 | Y77: 0 | Z77: -1 | AA77: 1 | AB77: 0 | AC77: 0 | AD77: 1
A78: ='Screened by week pivot'!A43 -> 40 | B78: ='Screened by week pivot'!B43 -> 149 | C78: 147.9294118 | D78: 184.4172824 | E78: 111.4415411 | I78: 149 | Q78: 200 | R78: 0 | S78: 0 | T78: 0 | U78: 0 | V78: 2 | W78: 0 | X78: 3 | Y78: 1 | Z78: 0 | AA78: 2 | AB78: 1 | AC78: 1 | AD78: 0
A79: ='Screened by week pivot'!A44 -> 41 | B79: ='Screened by week pivot'!B44 -> 164 | C79: =M$5 -> 147.9294118 | D79: =M$7 -> 184.4172824 | E79: =M$8 -> 111.4415411 | F79: =IF(B79>D79,B79,#N/A) ->  | G79: =IF(B79<E79,B79,#N/A) ->  | H79: =IF(OR(B79>$M$5+3*$M$6,B79<$M$5-3*$M$6),B79,#N/A) ->  | I79: =IF(V79>1,B79,#N/A) ->  | J79: =IF(X79>3,B79,#N/A) ->  | K79: =IF(Y79>5,B79,#N/A) ->  | L79: =IF(Z79<-5,B79,#N/A) ->  | M79: =IF(AA79>13,B79,#N/A) ->  | N79: =IF(AB79>14,B79,#N/A) ->  | O79: =IF(AC79>7,B79,#N/A) ->  | P79: =IF(AD79>7,B79,#N/A) ->  | Q79: =M$9 -> 200 | R79: =IF(B79>D79,1,0) -> 0 | S79: =IF(B79<E79,1,0) -> 0 | T79: =IF(OR(B79>$M$5+3*$M$6,B79<$M$5-3*$M$6),T78+1,0) -> 0 | U79: =IF(OR(B79>$M$5+2*$M$6,B79<$M$5-2*$M$6),1,0) -> 0 | V79: =SUM(U77:U79) -> 1 | W79: =IF(OR(B79>$M$5+1*$M$6,B79<$M$5-1*$M$6),1,0) -> 1 | X79: =SUM(W75:W79) -> 3 | Y79: =IF(B79>B78,Y78+1,0) -> 2 | Z79: =IF(B79<B78,Z78-1,0) -> 0 | AA79: =IF(OR(AND(Z79=-Y78,Z79<>0),AND(Y79=-Z78,Y79<>0)),AA78+1,0) -> 0 | AB79: =IF(AND(B79<M$5+1*M$6,B79>M$5-1*M$6),AB78+1,0) -> 0 | AC79: =IF(B79>C79,AC78+1,0) -> 2 | AD79: 0
A80: ='Screened by week pivot'!A45 -> 42 | B80: ='Screened by week pivot'!B45 -> 104 | C80: =M$5 -> 147.9294118 | D80: =M$7 -> 184.4172824 | E80: =M$8 -> 111.4415411 | F80: =IF(B80>D80,B80,#N/A) ->  | G80: =IF(B80<E80,B80,#N/A) -> 104 | H80: =IF(OR(B80>$M$5+3*$M$6,B80<$M$5-3*$M$6),B80,#N/A) -> 104 | I80: =IF(V80>1,B80,#N/A) ->  | J80: =IF(X80>3,B80,#N/A) -> 104 | K80: =IF(Y80>5,B80,#N/A) ->  | L80: =IF(Z80<-5,B80,#N/A) ->  | M80: =IF(AA80>13,B80,#N/A) ->  | N80: =IF(AB80>14,B80,#N/A) ->  | O80: =IF(AC80>7,B80,#N/A) ->  | P80: =IF(AD80>7,B80,#N/A) ->  | Q80: =M$9 -> 200 | R80: =IF(B80>D80,1,0) -> 0 | S80: =IF(B80<E80,1,0) -> 1 | T80: =IF(OR(B80>$M$5+3*$M$6,B80<$M$5-3*$M$6),T79+1,0) -> 1 | U80: =IF(OR(B80>$M$5+2*$M$6,B80<$M$5-2*$M$6),1,0) -> 1 | V80: =SUM(U78:U80) -> 1 | W80: =IF(OR(B80>$M$5+1*$M$6,B80<$M$5-1*$M$6),1,0) -> 1 | X80: =SUM(W76:W80) -> 4 | Y80: =IF(B80>B79,Y79+1,0) -> 0 | Z80: =IF(B80<B79,Z79-1,0) -> -1 | AA80: =IF(OR(AND(Z80=-Y79,Z80<>0),AND(Y80=-Z79,Y80<>0)),AA79+1,0) -> 0 | AB80: =IF(AND(B80<M$5+1*M$6,B80>M$5-1*M$6),AB79+1,0) -> 0 | AC80: =IF(B80>C80,AC79+1,0) -> 0 | AD80: =IF(B80<C80,AD79+1,0) -> 1
A81: ='Screened by week pivot'!A46 -> 43 | B81: ='Screened by week pivot'!B46 -> 138 | C81: 147.9294118 | D81: 184.4172824 | E81: 111.4415411 | Q81: 200 | R81: 0 | S81: 0 | T81: 0 | U81: 0 | V81: 1 | W81: 0 | X81: 3 | Y81: 1 | Z81: 0 | AA81: 1 | AB81: 1 | AC81: 0 | AD81: 2
A82: ='Screened by week pivot'!A47 -> 44 | B82: ='Screened by week pivot'!B47 -> 167 | C82: =M$5 -> 147.9294118 | D82: =M$7 -> 184.4172824 | E82: =M$8 -> 111.4415411 | F82: =IF(B82>D82,B82,#N/A) ->  | G82: =IF(B82<E82,B82,#N/A) ->  | H82: =IF(OR(B82>$M$5+3*$M$6,B82<$M$5-3*$M$6),B82,#N/A) ->  | I82: =IF(V82>1,B82,#N/A) ->  | J82: =IF(X82>3,B82,#N/A) ->  | K82: =IF(Y82>5,B82,#N/A) ->  | L82: =IF(Z82<-5,B82,#N/A) ->  | M82: =IF(AA82>13,B82,#N/A) ->  | N82: =IF(AB82>14,B82,#N/A) ->  | O82: =IF(AC82>7,B82,#N/A) ->  | P82: =IF(AD82>7,B82,#N/A) ->  | Q82: =M$9 -> 200 | R82: =IF(B82>D82,1,0) -> 0 | S82: =IF(B82<E82,1,0) -> 0 | T82: =IF(OR(B82>$M$5+3*$M$6,B82<$M$5-3*$M$6),T81+1,0) -> 0 | U82: =IF(OR(B82>$M$5+2*$M$6,B82<$M$5-2*$M$6),1,0) -> 0 | V82: =SUM(U80:U82) -> 1 | W82: =IF(OR(B82>$M$5+1*$M$6,B82<$M$5-1*$M$6),1,0) -> 1 | X82: =SUM(W78:W82) -> 3 | Y82: =IF(B82>B81,Y81+1,0) -> 2 | Z82: =IF(B82<B81,Z81-1,0) -> 0 | AA82: =IF(OR(AND(Z82=-Y81,Z82<>0),AND(Y82=-Z81,Y82<>0)),AA81+1,0) -> 0 | AB82: =IF(AND(B82<M$5+1*M$6,B82>M$5-1*M$6),AB81+1,0) -> 0 | AC82: =IF(B82>C82,AC81+1,0) -> 1 | AD82: =IF(B82<C82,AD81+1,0) -> 0
A83: ='Screened by week pivot'!A48 -> 45 | B83: ='Screened by week pivot'!B48 -> 119 | C83: 147.9294118 | D83: 184.4172824 | E83: 111.4415411 | J83: 119 | Q83: 200 | R83: 0 | S83: 0 | T83: 0 | U83: 1 | V83: 1 | W83: 1 | X83: 4 | Y83: 0 | Z83: -1 | AA83: 0 | AB83: 0 | AC83: 0 | AD83: 1
A84: ='Screened by week pivot'!A49 -> 46 | B84: ='Screened by week pivot'!B49 -> 142 | C84: =M$5 -> 147.9294118 | D84: =M$7 -> 184.4172824 | E84: =M$8 -> 111.4415411 | F84: =IF(B84>D84,B84,#N/A) ->  | G84: =IF(B84<E84,B84,#N/A) ->  | H84: =IF(OR(B84>$M$5+3*$M$6,B84<$M$5-3*$M$6),B84,#N/A) ->  | I84: =IF(V84>1,B84,#N/A) ->  | J84: =IF(X84>3,B84,#N/A) ->  | K84: =IF(Y84>5,B84,#N/A) ->  | L84: =IF(Z84<-5,B84,#N/A) ->  | M84: =IF(AA84>13,B84,#N/A) ->  | N84: =IF(AB84>14,B84,#N/A) ->  | O84: =IF(AC84>7,B84,#N/A) ->  | P84: =IF(AD84>7,B84,#N/A) ->  | Q84: =M$9 -> 200 | R84: =IF(B84>D84,1,0) -> 0 | S84: =IF(B84<E84,1,0) -> 0 | T84: =IF(OR(B84>$M$5+3*$M$6,B84<$M$5-3*$M$6),T83+1,0) -> 0 | U84: =IF(OR(B84>$M$5+2*$M$6,B84<$M$5-2*$M$6),1,0) -> 0 | V84: =SUM(U82:U84) -> 1 | W84: =IF(OR(B84>$M$5+1*$M$6,B84<$M$5-1*$M$6),1,0) -> 0 | X84: =SUM(W80:W84) -> 3 | Y84: =IF(B84>B83,Y83+1,0) -> 1 | Z84: =IF(B84<B83,Z83-1,0) -> 0 | AA84: =IF(OR(AND(Z84=-Y83,Z84<>0),AND(Y84=-Z83,Y84<>0)),AA83+1,0) -> 1 | AB84: =IF(AND(B84<M$5+1*M$6,B84>M$5-1*M$6),AB83+1,0) -> 1 | AC84: =IF(B84>C84,AC83+1,0) -> 0 | AD84: =IF(B84<C84,AD83+1,0) -> 2
A85: ='Screened by week pivot'!A50 -> 47 | B85: ='Screened by week pivot'!B50 -> 115 | C85: =M$5 -> 147.9294118 | D85: =M$7 -> 184.4172824 | E85: =M$8 -> 111.4415411 | F85: =IF(B85>D85,B85,#N/A) ->  | G85: =IF(B85<E85,B85,#N/A) ->  | H85: =IF(OR(B85>$M$5+3*$M$6,B85<$M$5-3*$M$6),B85,#N/A) ->  | I85: =IF(V85>1,B85,#N/A) -> 115 | J85: =IF(X85>3,B85,#N/A) ->  | K85: =IF(Y85>5,B85,#N/A) ->  | L85: =IF(Z85<-5,B85,#N/A) ->  | M85: =IF(AA85>13,B85,#N/A) ->  | N85: =IF(AB85>14,B85,#N/A) ->  | O85: =IF(AC85>7,B85,#N/A) ->  | P85: =IF(AD85>7,B85,#N/A) ->  | Q85: =M$9 -> 200 | R85: =IF(B85>D85,1,0) -> 0 | S85: =IF(B85<E85,1,0) -> 0 | T85: =IF(OR(B85>$M$5+3*$M$6,B85<$M$5-3*$M$6),T84+1,0) -> 0 | U85: =IF(OR(B85>$M$5+2*$M$6,B85<$M$5-2*$M$6),1,0) -> 1 | V85: =SUM(U83:U85) -> 2 | W85: =IF(OR(B85>$M$5+1*$M$6,B85<$M$5-1*$M$6),1,0) -> 1 | X85: =SUM(W81:W85) -> 3 | Y85: =IF(B85>B84,Y84+1,0) -> 0 | Z85: =IF(B85<B84,Z84-1,0) -> -1 | AA85: =IF(OR(AND(Z85=-Y84,Z85<>0),AND(Y85=-Z84,Y85<>0)),AA84+1,0) -> 2 | AB85: =IF(AND(B85<M$5+1*M$6,B85>M$5-1*M$6),AB84+1,0) -> 0 | AC85: =IF(B85>C85,AC84+1,0) -> 0 | AD85: =IF(B85<C85,AD84+1,0) -> 3
A86: ='Screened by week pivot'!A51 -> 48 | B86: ='Screened by week pivot'!B51 -> 94 | C86: =M$5 -> 147.9294118 | D86: =M$7 -> 184.4172824 | E86: =M$8 -> 111.4415411 | F86: =IF(B86>D86,B86,#N/A) ->  | G86: =IF(B86<E86,B86,#N/A) -> 94 | H86: =IF(OR(B86>$M$5+3*$M$6,B86<$M$5-3*$M$6),B86,#N/A) -> 94 | I86: =IF(V86>1,B86,#N/A) -> 94 | J86: =IF(X86>3,B86,#N/A) -> 94 | K86: =IF(Y86>5,B86,#N/A) ->  | L86: =IF(Z86<-5,B86,#N/A) ->  | M86: =IF(AA86>13,B86,#N/A) ->  | N86: =IF(AB86>14,B86,#N/A) ->  | O86: =IF(AC86>7,B86,#N/A) ->  | P86: =IF(AD86>7,B86,#N/A) ->  | Q86: =M$9 -> 200 | R86: =IF(B86>D86,1,0) -> 0 | S86: =IF(B86<E86,1,0) -> 1 | T86: =IF(OR(B86>$M$5+3*$M$6,B86<$M$5-3*$M$6),T85+1,0) -> 1 | U86: =IF(OR(B86>$M$5+2*$M$6,B86<$M$5-2*$M$6),1,0) -> 1 | V86: =SUM(U84:U86) -> 2 | W86: =IF(OR(B86>$M$5+1*$M$6,B86<$M$5-1*$M$6),1,0) -> 1 | X86: =SUM(W82:W86) -> 4 | Y86: =IF(B86>B85,Y85+1,0) -> 0 | Z86: =IF(B86<B85,Z85-1,0) -> -2 | AA86: =IF(OR(AND(Z86=-Y85,Z86<>0),AND(Y86=-Z85,Y86<>0)),AA85+1,0) -> 0 | AB86: =IF(AND(B86<M$5+1*M$6,B86>M$5-1*M$6),AB85+1,0) -> 0 | AC86: =IF(B86>C86,AC85+1,0) -> 0 | AD86: =IF(B86<C86,AD85+1,0) -> 4
A87: ='Screened by week pivot'!A52 -> 49 | B87: ='Screened by week pivot'!B52 -> 122 | C87: =M$5 -> 147.9294118 | D87: =M$7 -> 184.4172824 | E87: =M$8 -> 111.4415411 | F87: =IF(B87>D87,B87,#N/A) ->  | G87: =IF(B87<E87,B87,#N/A) ->  | H87: =IF(OR(B87>$M$5+3*$M$6,B87<$M$5-3*$M$6),B87,#N/A) ->  | I87: =IF(V87>1,B87,#N/A) -> 122 | J87: =IF(X87>3,B87,#N/A) -> 122 | K87: =IF(Y87>5,B87,#N/A) ->  | L87: =IF(Z87<-5,B87,#N/A) ->  | M87: =IF(AA87>13,B87,#N/A) ->  | N87: =IF(AB87>14,B87,#N/A) ->  | O87: =IF(AC87>7,B87,#N/A) ->  | P87: =IF(AD87>7,B87,#N/A) ->  | Q87: =M$9 -> 200 | R87: =IF(B87>D87,1,0) -> 0 | S87: =IF(B87<E87,1,0) -> 0 | T87: =IF(OR(B87>$M$5+3*$M$6,B87<$M$5-3*$M$6),T86+1,0) -> 0 | U87: =IF(OR(B87>$M$5+2*$M$6,B87<$M$5-2*$M$6),1,0) -> 1 | V87: =SUM(U85:U87) -> 3 | W87: =IF(OR(B87>$M$5+1*$M$6,B87<$M$5-1*$M$6),1,0) -> 1 | X87: =SUM(W83:W87) -> 4 | Y87: =IF(B87>B86,Y86+1,0) -> 1 | Z87: =IF(B87<B86,Z86-1,0) -> 0 | AA87: =IF(OR(AND(Z87=-Y86,Z87<>0),AND(Y87=-Z86,Y87<>0)),AA86+1,0) -> 0 | AB87: =IF(AND(B87<M$5+1*M$6,B87>M$5-1*M$6),AB86+1,0) -> 0 | AC87: =IF(B87>C87,AC86+1,0) -> 0 | AD87: =IF(B87<C87,AD86+1,0) -> 5
A88: ='Screened by week pivot'!A53 -> 50 | B88: ='Screened by week pivot'!B53 -> 103 | C88: =M$5 -> 147.9294118 | D88: =M$7 -> 184.4172824 | E88: =M$8 -> 111.4415411 | F88: =IF(B88>D88,B88,#N/A) ->  | G88: =IF(B88<E88,B88,#N/A) -> 103 | H88: =IF(OR(B88>$M$5+3*$M$6,B88<$M$5-3*$M$6),B88,#N/A) -> 103 | I88: =IF(V88>1,B88,#N/A) -> 103 | J88: =IF(X88>3,B88,#N/A) -> 103 | K88: =IF(Y88>5,B88,#N/A) ->  | L88: =IF(Z88<-5,B88,#N/A) ->  | M88: =IF(AA88>13,B88,#N/A) ->  | N88: =IF(AB88>14,B88,#N/A) ->  | O88: =IF(AC88>7,B88,#N/A) ->  | P88: =IF(AD88>7,B88,#N/A) ->  | Q88: =M$9 -> 200 | R88: =IF(B88>D88,1,0) -> 0 | S88: =IF(B88<E88,1,0) -> 1 | T88: =IF(OR(B88>$M$5+3*$M$6,B88<$M$5-3*$M$6),T87+1,0) -> 1 | U88: =IF(OR(B88>$M$5+2*$M$6,B88<$M$5-2*$M$6),1,0) -> 1 | V88: =SUM(U86:U88) -> 3 | W88: =IF(OR(B88>$M$5+1*$M$6,B88<$M$5-1*$M$6),1,0) -> 1 | X88: =SUM(W84:W88) -> 4 | Y88: =IF(B88>B87,Y87+1,0) -> 0 | Z88: =IF(B88<B87,Z87-1,0) -> -1 | AA88: =IF(OR(AND(Z88=-Y87,Z88<>0),AND(Y88=-Z87,Y88<>0)),AA87+1,0) -> 1 | AB88: =IF(AND(B88<M$5+1*M$6,B88>M$5-1*M$6),AB87+1,0) -> 0 | AC88: =IF(B88>C88,AC87+1,0) -> 0 | AD88: =IF(B88<C88,AD87+1,0) -> 6
A89: ='Screened by week pivot'!A54 -> 51 | B89: ='Screened by week pivot'!B54 -> 116 | C89: =M$5 -> 147.9294118 | D89: =M$7 -> 184.4172824 | E89: =M$8 -> 111.4415411 | F89: =IF(B89>D89,B89,#N/A) ->  | G89: =IF(B89<E89,B89,#N/A) ->  | H89: =IF(OR(B89>$M$5+3*$M$6,B89<$M$5-3*$M$6),B89,#N/A) ->  | I89: =IF(V89>1,B89,#N/A) -> 116 | J89: =IF(X89>3,B89,#N/A) -> 116 | K89: =IF(Y89>5,B89,#N/A) ->  | L89: =IF(Z89<-5,B89,#N/A) ->  | M89: =IF(AA89>13,B89,#N/A) ->  | N89: =IF(AB89>14,B89,#N/A) ->  | O89: =IF(AC89>7,B89,#N/A) ->  | P89: =IF(AD89>7,B89,#N/A) ->  | Q89: =M$9 -> 200 | R89: =IF(B89>D89,1,0) -> 0 | S89: =IF(B89<E89,1,0) -> 0 | T89: =IF(OR(B89>$M$5+3*$M$6,B89<$M$5-3*$M$6),T88+1,0) -> 0 | U89: =IF(OR(B89>$M$5+2*$M$6,B89<$M$5-2*$M$6),1,0) -> 1 | V89: =SUM(U87:U89) -> 3 | W89: =IF(OR(B89>$M$5+1*$M$6,B89<$M$5-1*$M$6),1,0) -> 1 | X89: =SUM(W85:W89) -> 5 | Y89: =IF(B89>B88,Y88+1,0) -> 1 | Z89: =IF(B89<B88,Z88-1,0) -> 0 | AA89: =IF(OR(AND(Z89=-Y88,Z89<>0),AND(Y89=-Z88,Y89<>0)),AA88+1,0) -> 2 | AB89: =IF(AND(B89<M$5+1*M$6,B89>M$5-1*M$6),AB88+1,0) -> 0 | AC89: =IF(B89>C89,AC88+1,0) -> 0 | AD89: =IF(B89<C89,AD88+1,0) -> 7
A90: ='Screened by week pivot'!A55 -> 52 | B90: ='Screened by week pivot'!B55 -> 118 | C90: =M$5 -> 147.9294118 | D90: =M$7 -> 184.4172824 | E90: =M$8 -> 111.4415411 | F90: =IF(B90>D90,B90,#N/A) ->  | G90: =IF(B90<E90,B90,#N/A) ->  | H90: =IF(OR(B90>$M$5+3*$M$6,B90<$M$5-3*$M$6),B90,#N/A) ->  | I90: =IF(V90>1,B90,#N/A) -> 118 | J90: =IF(X90>3,B90,#N/A) -> 118 | K90: =IF(Y90>5,B90,#N/A) ->  | L90: =IF(Z90<-5,B90,#N/A) ->  | M90: =IF(AA90>13,B90,#N/A) ->  | N90: =IF(AB90>14,B90,#N/A) ->  | O90: =IF(AC90>7,B90,#N/A) ->  | P90: =IF(AD90>7,B90,#N/A) -> 118 | Q90: =M$9 -> 200 | R90: =IF(B90>D90,1,0) -> 0 | S90: =IF(B90<E90,1,0) -> 0 | T90: =IF(OR(B90>$M$5+3*$M$6,B90<$M$5-3*$M$6),T89+1,0) -> 0 | U90: =IF(OR(B90>$M$5+2*$M$6,B90<$M$5-2*$M$6),1,0) -> 1 | V90: =SUM(U88:U90) -> 3 | W90: =IF(OR(B90>$M$5+1*$M$6,B90<$M$5-1*$M$6),1,0) -> 1 | X90: =SUM(W86:W90) -> 5 | Y90: =IF(B90>B89,Y89+1,0) -> 2 | Z90: =IF(B90<B89,Z89-1,0) -> 0 | AA90: =IF(OR(AND(Z90=-Y89,Z90<>0),AND(Y90=-Z89,Y90<>0)),AA89+1,0) -> 0 | AB90: =IF(AND(B90<M$5+1*M$6,B90>M$5-1*M$6),AB89+1,0) -> 0 | AC90: =IF(B90>C90,AC89+1,0) -> 0 | AD90: =IF(B90<C90,AD89+1,0) -> 8
A91: ='Screened by week pivot'!A56 -> 53 | B91: ='Screened by week pivot'!B56 -> 124 | C91: =M$5 -> 147.9294118 | D91: =M$7 -> 184.4172824 | E91: =M$8 -> 111.4415411 | F91: =IF(B91>D91,B91,#N/A) ->  | G91: =IF(B91<E91,B91,#N/A) ->  | H91: =IF(OR(B91>$M$5+3*$M$6,B91<$M$5-3*$M$6),B91,#N/A) ->  | I91: =IF(V91>1,B91,#N/A) -> 124 | J91: =IF(X91>3,B91,#N/A) -> 124 | K91: =IF(Y91>5,B91,#N/A) ->  | L91: =IF(Z91<-5,B91,#N/A) ->  | M91: =IF(AA91>13,B91,#N/A) ->  | N91: =IF(AB91>14,B91,#N/A) ->  | O91: =IF(AC91>7,B91,#N/A) ->  | P91: =IF(AD91>7,B91,#N/A) -> 124 | Q91: =M$9 -> 200 | R91: =IF(B91>D91,1,0) -> 0 | S91: =IF(B91<E91,1,0) -> 0 | T91: =IF(OR(B91>$M$5+3*$M$6,B91<$M$5-3*$M$6),T90+1,0) -> 0 | U91: =IF(OR(B91>$M$5+2*$M$6,B91<$M$5-2*$M$6),1,0) -> 0 | V91: =SUM(U89:U91) -> 2 | W91: =IF(OR(B91>$M$5+1*$M$6,B91<$M$5-1*$M$6),1,0) -> 1 | X91: =SUM(W87:W91) -> 5 | Y91: =IF(B91>B90,Y90+1,0) -> 3 | Z91: =IF(B91<B90,Z90-1,0) -> 0 | AA91: =IF(OR(AND(Z91=-Y90,Z91<>0),AND(Y91=-Z90,Y91<>0)),AA90+1,0) -> 0 | AB91: =IF(AND(B91<M$5+1*M$6,B91>M$5-1*M$6),AB90+1,0) -> 0 | AC91: =IF(B91>C91,AC90+1,0) -> 0 | AD91: =IF(B91<C91,AD90+1,0) -> 9
A92: ='Screened by week pivot'!A57 -> 54 | B92: ='Screened by week pivot'!B57 -> 130 | C92: =M$5 -> 147.9294118 | D92: =M$7 -> 184.4172824 | E92: =M$8 -> 111.4415411 | F92: =IF(B92>D92,B92,#N/A) ->  | G92: =IF(B92<E92,B92,#N/A) ->  | H92: =IF(OR(B92>$M$5+3*$M$6,B92<$M$5-3*$M$6),B92,#N/A) ->  | I92: =IF(V92>1,B92,#N/A) ->  | J92: =IF(X92>3,B92,#N/A) -> 130 | K92: =IF(Y92>5,B92,#N/A) ->  | L92: =IF(Z92<-5,B92,#N/A) ->  | M92: =IF(AA92>13,B92,#N/A) ->  | N92: =IF(AB92>14,B92,#N/A) ->  | O92: =IF(AC92>7,B92,#N/A) ->  | P92: =IF(AD92>7,B92,#N/A) -> 130 | Q92: =M$9 -> 200 | R92: =IF(B92>D92,1,0) -> 0 | S92: =IF(B92<E92,1,0) -> 0 | T92: =IF(OR(B92>$M$5+3*$M$6,B92<$M$5-3*$M$6),T91+1,0) -> 0 | U92: =IF(OR(B92>$M$5+2*$M$6,B92<$M$5-2*$M$6),1,0) -> 0 | V92: =SUM(U90:U92) -> 1 | W92: =IF(OR(B92>$M$5+1*$M$6,B92<$M$5-1*$M$6),1,0) -> 1 | X92: =SUM(W88:W92) -> 5 | Y92: =IF(B92>B91,Y91+1,0) -> 4 | Z92: =IF(B92<B91,Z91-1,0) -> 0 | AA92: =IF(OR(AND(Z92=-Y91,Z92<>0),AND(Y92=-Z91,Y92<>0)),AA91+1,0) -> 0 | AB92: =IF(AND(B92<M$5+1*M$6,B92>M$5-1*M$6),AB91+1,0) -> 0 | AC92: =IF(B92>C92,AC91+1,0) -> 0 | AD92: =IF(B92<C92,AD91+1,0) -> 10
A93: ='Screened by week pivot'!A58 -> 55 | B93: ='Screened by week pivot'!B58 -> 126 | C93: =M$5 -> 147.9294118 | D93: =M$7 -> 184.4172824 | E93: =M$8 -> 111.4415411 | F93: =IF(B93>D93,B93,#N/A) ->  | G93: =IF(B93<E93,B93,#N/A) ->  | H93: =IF(OR(B93>$M$5+3*$M$6,B93<$M$5-3*$M$6),B93,#N/A) ->  | I93: =IF(V93>1,B93,#N/A) ->  | J93: =IF(X93>3,B93,#N/A) -> 126 | K93: =IF(Y93>5,B93,#N/A) ->  | L93: =IF(Z93<-5,B93,#N/A) ->  | M93: =IF(AA93>13,B93,#N/A) ->  | N93: =IF(AB93>14,B93,#N/A) ->  | O93: =IF(AC93>7,B93,#N/A) ->  | P93: =IF(AD93>7,B93,#N/A) -> 126 | Q93: =M$9 -> 200 | R93: =IF(B93>D93,1,0) -> 0 | S93: =IF(B93<E93,1,0) -> 0 | T93: =IF(OR(B93>$M$5+3*$M$6,B93<$M$5-3*$M$6),T92+1,0) -> 0 | U93: =IF(OR(B93>$M$5+2*$M$6,B93<$M$5-2*$M$6),1,0) -> 0 | V93: =SUM(U91:U93) -> 0 | W93: =IF(OR(B93>$M$5+1*$M$6,B93<$M$5-1*$M$6),1,0) -> 1 | X93: =SUM(W89:W93) -> 5 | Y93: =IF(B93>B92,Y92+1,0) -> 0 | Z93: =IF(B93<B92,Z92-1,0) -> -1 | AA93: =IF(OR(AND(Z93=-Y92,Z93<>0),AND(Y93=-Z92,Y93<>0)),AA92+1,0) -> 0 | AB93: =IF(AND(B93<M$5+1*M$6,B93>M$5-1*M$6),AB92+1,0) -> 0 | AC93: =IF(B93>C93,AC92+1,0) -> 0 | AD93: =IF(B93<C93,AD92+1,0) -> 11
A94: ='Screened by week pivot'!A59 -> 56 | B94: ='Screened by week pivot'!B59 -> 118 | C94: =M$5 -> 147.9294118 | D94: =M$7 -> 184.4172824 | E94: =M$8 -> 111.4415411 | F94: =IF(B94>D94,B94,#N/A) ->  | G94: =IF(B94<E94,B94,#N/A) ->  | H94: =IF(OR(B94>$M$5+3*$M$6,B94<$M$5-3*$M$6),B94,#N/A) ->  | I94: =IF(V94>1,B94,#N/A) ->  | J94: =IF(X94>3,B94,#N/A) -> 118 | K94: =IF(Y94>5,B94,#N/A) ->  | L94: =IF(Z94<-5,B94,#N/A) ->  | M94: =IF(AA94>13,B94,#N/A) ->  | N94: =IF(AB94>14,B94,#N/A) ->  | O94: =IF(AC94>7,B94,#N/A) ->  | P94: =IF(AD94>7,B94,#N/A) -> 118 | Q94: =M$9 -> 200 | R94: =IF(B94>D94,1,0) -> 0 | S94: =IF(B94<E94,1,0) -> 0 | T94: =IF(OR(B94>$M$5+3*$M$6,B94<$M$5-3*$M$6),T93+1,0) -> 0 | U94: =IF(OR(B94>$M$5+2*$M$6,B94<$M$5-2*$M$6),1,0) -> 1 | V94: =SUM(U92:U94) -> 1 | W94: =IF(OR(B94>$M$5+1*$M$6,B94<$M$5-1*$M$6),1,0) -> 1 | X94: =SUM(W90:W94) -> 5 | Y94: =IF(B94>B93,Y93+1,0) -> 0 | Z94: =IF(B94<B93,Z93-1,0) -> -2 | AA94: =IF(OR(AND(Z94=-Y93,Z94<>0),AND(Y94=-Z93,Y94<>0)),AA93+1,0) -> 0 | AB94: =IF(AND(B94<M$5+1*M$6,B94>M$5-1*M$6),AB93+1,0) -> 0 | AC94: =IF(B94>C94,AC93+1,0) -> 0 | AD94: =IF(B94<C94,AD93+1,0) -> 12
A95: ='Screened by week pivot'!A60 -> 57 | B95: ='Screened by week pivot'!B60 -> 140 | C95: =M$5 -> 147.9294118 | D95: =M$7 -> 184.4172824 | E95: =M$8 -> 111.4415411 | F95: =IF(B95>D95,B95,#N/A) ->  | G95: =IF(B95<E95,B95,#N/A) ->  | H95: =IF(OR(B95>$M$5+3*$M$6,B95<$M$5-3*$M$6),B95,#N/A) ->  | I95: =IF(V95>1,B95,#N/A) ->  | J95: =IF(X95>3,B95,#N/A) -> 140 | K95: =IF(Y95>5,B95,#N/A) ->  | L95: =IF(Z95<-5,B95,#N/A) ->  | M95: =IF(AA95>13,B95,#N/A) ->  | N95: =IF(AB95>14,B95,#N/A) ->  | O95: =IF(AC95>7,B95,#N/A) ->  | P95: =IF(AD95>7,B95,#N/A) -> 140 | Q95: =M$9 -> 200 | R95: =IF(B95>D95,1,0) -> 0 | S95: =IF(B95<E95,1,0) -> 0 | T95: =IF(OR(B95>$M$5+3*$M$6,B95<$M$5-3*$M$6),T94+1,0) -> 0 | U95: =IF(OR(B95>$M$5+2*$M$6,B95<$M$5-2*$M$6),1,0) -> 0 | V95: =SUM(U93:U95) -> 1 | W95: =IF(OR(B95>$M$5+1*$M$6,B95<$M$5-1*$M$6),1,0) -> 0 | X95: =SUM(W91:W95) -> 4 | Y95: =IF(B95>B94,Y94+1,0) -> 1 | Z95: =IF(B95<B94,Z94-1,0) -> 0 | AA95: =IF(OR(AND(Z95=-Y94,Z95<>0),AND(Y95=-Z94,Y95<>0)),AA94+1,0) -> 0 | AB95: =IF(AND(B95<M$5+1*M$6,B95>M$5-1*M$6),AB94+1,0) -> 1 | AC95: =IF(B95>C95,AC94+1,0) -> 0 | AD95: =IF(B95<C95,AD94+1,0) -> 13
A96: ='Screened by week pivot'!A61 -> 58 | B96: ='Screened by week pivot'!B61 -> 138 | C96: =M$5 -> 147.9294118 | D96: =M$7 -> 184.4172824 | E96: =M$8 -> 111.4415411 | F96: =IF(B96>D96,B96,#N/A) ->  | G96: =IF(B96<E96,B96,#N/A) ->  | H96: =IF(OR(B96>$M$5+3*$M$6,B96<$M$5-3*$M$6),B96,#N/A) ->  | I96: =IF(V96>1,B96,#N/A) ->  | J96: =IF(X96>3,B96,#N/A) ->  | K96: =IF(Y96>5,B96,#N/A) ->  | L96: =IF(Z96<-5,B96,#N/A) ->  | M96: =IF(AA96>13,B96,#N/A) ->  | N96: =IF(AB96>14,B96,#N/A) ->  | O96: =IF(AC96>7,B96,#N/A) ->  | P96: =IF(AD96>7,B96,#N/A) -> 138 | Q96: =M$9 -> 200 | R96: =IF(B96>D96,1,0) -> 0 | S96: =IF(B96<E96,1,0) -> 0 | T96: =IF(OR(B96>$M$5+3*$M$6,B96<$M$5-3*$M$6),T95+1,0) -> 0 | U96: =IF(OR(B96>$M$5+2*$M$6,B96<$M$5-2*$M$6),1,0) -> 0 | V96: =SUM(U94:U96) -> 1 | W96: =IF(OR(B96>$M$5+1*$M$6,B96<$M$5-1*$M$6),1,0) -> 0 | X96: =SUM(W92:W96) -> 3 | Y96: =IF(B96>B95,Y95+1,0) -> 0 | Z96: =IF(B96<B95,Z95-1,0) -> -1 | AA96: =IF(OR(AND(Z96=-Y95,Z96<>0),AND(Y96=-Z95,Y96<>0)),AA95+1,0) -> 1 | AB96: =IF(AND(B96<M$5+1*M$6,B96>M$5-1*M$6),AB95+1,0) -> 2 | AC96: =IF(B96>C96,AC95+1,0) -> 0 | AD96: =IF(B96<C96,AD95+1,0) -> 14
A97: ='Screened by week pivot'!A62 -> 59 | B97: ='Screened by week pivot'!B62 -> 153 | C97: 147.9294118 | D97: 184.4172824 | E97: 111.4415411 | Q97: 200 | R97: 0 | S97: 0 | T97: 0 | U97: 0 | V97: 0 | W97: 0 | X97: 2 | Y97: 1 | Z97: 0 | AA97: 2 | AB97: 3 | AC97: 1 | AD97: 0
A98: ='Screened by week pivot'!A63 -> 60 | B98: ='Screened by week pivot'!B63 -> 135 | C98: 147.9294118 | D98: 184.4172824 | E98: 111.4415411 | Q98: 200 | R98: 0 | S98: 0 | T98: 0 | U98: 0 | V98: 0 | W98: 1 | X98: 2 | Y98: 0 | Z98: -1 | AA98: 3 | AB98: 0 | AC98: 0 | AD98: 1
A99: ='Screened by week pivot'!A64 -> 61 | B99: ='Screened by week pivot'!B64 -> 141 | C99: =M$5 -> 147.9294118 | D99: =M$7 -> 184.4172824 | E99: =M$8 -> 111.4415411 | F99: =IF(B99>D99,B99,#N/A) ->  | G99: =IF(B99<E99,B99,#N/A) ->  | H99: =IF(OR(B99>$M$5+3*$M$6,B99<$M$5-3*$M$6),B99,#N/A) ->  | I99: =IF(V99>1,B99,#N/A) ->  | J99: =IF(X99>3,B99,#N/A) ->  | K99: =IF(Y99>5,B99,#N/A) ->  | L99: =IF(Z99<-5,B99,#N/A) ->  | M99: =IF(AA99>13,B99,#N/A) ->  | N99: =IF(AB99>14,B99,#N/A) ->  | O99: =IF(AC99>7,B99,#N/A) ->  | P99: =IF(AD99>7,B99,#N/A) ->  | Q99: =M$9 -> 200 | R99: =IF(B99>D99,1,0) -> 0 | S99: =IF(B99<E99,1,0) -> 0 | T99: =IF(OR(B99>$M$5+3*$M$6,B99<$M$5-3*$M$6),T98+1,0) -> 0 | U99: =IF(OR(B99>$M$5+2*$M$6,B99<$M$5-2*$M$6),1,0) -> 0 | V99: =SUM(U97:U99) -> 0 | W99: =IF(OR(B99>$M$5+1*$M$6,B99<$M$5-1*$M$6),1,0) -> 0 | X99: =SUM(W95:W99) -> 1 | Y99: =IF(B99>B98,Y98+1,0) -> 1 | Z99: =IF(B99<B98,Z98-1,0) -> 0 | AA99: =IF(OR(AND(Z99=-Y98,Z99<>0),AND(Y99=-Z98,Y99<>0)),AA98+1,0) -> 4 | AB99: =IF(AND(B99<M$5+1*M$6,B99>M$5-1*M$6),AB98+1,0) -> 1 | AC99: =IF(B99>C99,AC98+1,0) -> 0 | AD99: =IF(B99<C99,AD98+1,0) -> 2
A100: ='Screened by week pivot'!A65 -> 62 | B100: ='Screened by week pivot'!B65 -> 142 | C100: =M$5 -> 147.9294118 | D100: =M$7 -> 184.4172824 | E100: =M$8 -> 111.4415411 | F100: =IF(B100>D100,B100,#N/A) ->  | G100: =IF(B100<E100,B100,#N/A) ->  | H100: =IF(OR(B100>$M$5+3*$M$6,B100<$M$5-3*$M$6),B100,#N/A) ->  | I100: =IF(V100>1,B100,#N/A) ->  | J100: =IF(X100>3,B100,#N/A) ->  | K100: =IF(Y100>5,B100,#N/A) ->  | L100: =IF(Z100<-5,B100,#N/A) ->  | M100: =IF(AA100>13,B100,#N/A) ->  | N100: =IF(AB100>14,B100,#N/A) ->  | O100: =IF(AC100>7,B100,#N/A) ->  | P100: =IF(AD100>7,B100,#N/A) ->  | Q100: =M$9 -> 200 | R100: =IF(B100>D100,1,0) -> 0 | S100: =IF(B100<E100,1,0) -> 0 | T100: =IF(OR(B100>$M$5+3*$M$6,B100<$M$5-3*$M$6),T99+1,0) -> 0 | U100: =IF(OR(B100>$M$5+2*$M$6,B100<$M$5-2*$M$6),1,0) -> 0 | V100: =SUM(U98:U100) -> 0 | W100: =IF(OR(B100>$M$5+1*$M$6,B100<$M$5-1*$M$6),1,0) -> 0 | X100: =SUM(W96:W100) -> 1 | Y100: =IF(B100>B99,Y99+1,0) -> 2 | Z100: =IF(B100<B99,Z99-1,0) -> 0 | AA100: =IF(OR(AND(Z100=-Y99,Z100<>0),AND(Y100=-Z99,Y100<>0)),AA99+1,0) -> 0 | AB100: =IF(AND(B100<M$5+1*M$6,B100>M$5-1*M$6),AB99+1,0) -> 2 | AC100: =IF(B100>C100,AC99+1,0) -> 0 | AD100: =IF(B100<C100,AD99+1,0) -> 3
A101: ='Screened by week pivot'!A66 -> 63 | B101: ='Screened by week pivot'!B66 -> 156 | C101: =M$5 -> 147.9294118 | D101: =M$7 -> 184.4172824 | E101: =M$8 -> 111.4415411 | F101: =IF(B101>D101,B101,#N/A) ->  | G101: =IF(B101<E101,B101,#N/A) ->  | H101: =IF(OR(B101>$M$5+3*$M$6,B101<$M$5-3*$M$6),B101,#N/A) ->  | I101: =IF(V101>1,B101,#N/A) ->  | J101: =IF(X101>3,B101,#N/A) ->  | K101: =IF(Y101>5,B101,#N/A) ->  | L101: =IF(Z101<-5,B101,#N/A) ->  | M101: =IF(AA101>13,B101,#N/A) ->  | N101: =IF(AB101>14,B101,#N/A) ->  | O101: =IF(AC101>7,B101,#N/A) ->  | P101: =IF(AD101>7,B101,#N/A) ->  | Q101: =M$9 -> 200 | R101: =IF(B101>D101,1,0) -> 0 | S101: =IF(B101<E101,1,0) -> 0 | T101: =IF(OR(B101>$M$5+3*$M$6,B101<$M$5-3*$M$6),T100+1,0) -> 0 | U101: =IF(OR(B101>$M$5+2*$M$6,B101<$M$5-2*$M$6),1,0) -> 0 | V101: =SUM(U99:U101) -> 0 | W101: =IF(OR(B101>$M$5+1*$M$6,B101<$M$5-1*$M$6),1,0) -> 0 | X101: =SUM(W97:W101) -> 1 | Y101: =IF(B101>B100,Y100+1,0) -> 3 | Z101: =IF(B101<B100,Z100-1,0) -> 0 | AA101: =IF(OR(AND(Z101=-Y100,Z101<>0),AND(Y101=-Z100,Y101<>0)),AA100+1,0) -> 0 | AB101: =IF(AND(B101<M$5+1*M$6,B101>M$5-1*M$6),AB100+1,0) -> 3 | AC101: =IF(B101>C101,AC100+1,0) -> 1 | AD101: =IF(B101<C101,AD100+1,0) -> 0
A102: ='Screened by week pivot'!A67 -> 64 | B102: ='Screened by week pivot'!B67 -> 159 | C102: =M$5 -> 147.9294118 | D102: =M$7 -> 184.4172824 | E102: =M$8 -> 111.4415411 | F102: =IF(B102>D102,B102,#N/A) ->  | G102: =IF(B102<E102,B102,#N/A) ->  | H102: =IF(OR(B102>$M$5+3*$M$6,B102<$M$5-3*$M$6),B102,#N/A) ->  | I102: =IF(V102>1,B102,#N/A) ->  | J102: =IF(X102>3,B102,#N/A) ->  | K102: =IF(Y102>5,B102,#N/A) ->  | L102: =IF(Z102<-5,B102,#N/A) ->  | M102: =IF(AA102>13,B102,#N/A) ->  | N102: =IF(AB102>14,B102,#N/A) ->  | O102: =IF(AC102>7,B102,#N/A) ->  | P102: =IF(AD102>7,B102,#N/A) ->  | Q102: =M$9 -> 200 | R102: =IF(B102>D102,1,0) -> 0 | S102: =IF(B102<E102,1,0) -> 0 | T102: =IF(OR(B102>$M$5+3*$M$6,B102<$M$5-3*$M$6),T101+1,0) -> 0 | U102: =IF(OR(B102>$M$5+2*$M$6,B102<$M$5-2*$M$6),1,0) -> 0 | V102: =SUM(U100:U102) -> 0 | W102: =IF(OR(B102>$M$5+1*$M$6,B102<$M$5-1*$M$6),1,0) -> 0 | X102: =SUM(W98:W102) -> 1 | Y102: =IF(B102>B101,Y101+1,0) -> 4 | Z102: =IF(B102<B101,Z101-1,0) -> 0 | AA102: =IF(OR(AND(Z102=-Y101,Z102<>0),AND(Y102=-Z101,Y102<>0)),AA101+1,0) -> 0 | AB102: =IF(AND(B102<M$5+1*M$6,B102>M$5-1*M$6),AB101+1,0) -> 4 | AC102: =IF(B102>C102,AC101+1,0) -> 2 | AD102: =IF(B102<C102,AD101+1,0) -> 0
A103: ='Screened by week pivot'!A68 -> 65 | B103: ='Screened by week pivot'!B68 -> 120 | C103: 147.9294118 | D103: 184.4172824 | E103: 111.4415411 | Q103: 200 | R103: 0 | S103: 0 | T103: 0 | U103: 1 | V103: 1 | W103: 1 | X103: 1 | Y103: 0 | Z103: -1 | AA103: 0 | AB103: 0 | AC103: 0 | AD103: 1
A104: ='Screened by week pivot'!A69 -> 66 | B104: ='Screened by week pivot'!B69 -> 154 | C104: 147.9294118 | D104: 184.4172824 | E104: 111.4415411 | Q104: 200 | R104: 0 | S104: 0 | T104: 0 | U104: 0 | V104: 1 | W104: 0 | X104: 1 | Y104: 1 | Z104: 0 | AA104: 1 | AB104: 1 | AC104: 1 | AD104: 0
A105: ='Screened by week pivot'!A70 -> 67 | B105: ='Screened by week pivot'!B70 -> 149 | C105: 147.9294118 | D105: 184.4172824 | E105: 111.4415411 | Q105: 200 | R105: 0 | S105: 0 | T105: 0 | U105: 0 | V105: 1 | W105: 0 | X105: 1 | Y105: 0 | Z105: -1 | AA105: 2 | AB105: 2 | AC105: 2 | AD105: 0
A106: ='Screened by week pivot'!A71 -> 68 | B106: ='Screened by week pivot'!B71 -> 188 | C106: 147.9294118 | D106: 184.4172824 | E106: 111.4415411 | F106: 188 | H106: 188 | Q106: 200 | R106: 1 | S106: 0 | T106: 1 | U106: 1 | V106: 1 | W106: 1 | X106: 2 | Y106: 1 | Z106: 0 | AA106: 3 | AB106: 0 | AC106: 3 | AD106: 0
A107: ='Screened by week pivot'!A72 -> 69 | B107: ='Screened by week pivot'!B72 -> 146 | C107: =M$5 -> 147.9294118 | D107: =M$7 -> 184.4172824 | E107: =M$8 -> 111.4415411 | F107: =IF(B107>D107,B107,#N/A) ->  | G107: =IF(B107<E107,B107,#N/A) ->  | H107: =IF(OR(B107>$M$5+3*$M$6,B107<$M$5-3*$M$6),B107,#N/A) ->  | I107: =IF(V107>1,B107,#N/A) ->  | J107: =IF(X107>3,B107,#N/A) ->  | K107: =IF(Y107>5,B107,#N/A) ->  | L107: =IF(Z107<-5,B107,#N/A) ->  | M107: =IF(AA107>13,B107,#N/A) ->  | N107: =IF(AB107>14,B107,#N/A) ->  | O107: =IF(AC107>7,B107,#N/A) ->  | P107: =IF(AD107>7,B107,#N/A) ->  | Q107: =M$9 -> 200 | R107: =IF(B107>D107,1,0) -> 0 | S107: =IF(B107<E107,1,0) -> 0 | T107: =IF(OR(B107>$M$5+3*$M$6,B107<$M$5-3*$M$6),T106+1,0) -> 0 | U107: =IF(OR(B107>$M$5+2*$M$6,B107<$M$5-2*$M$6),1,0) -> 0 | V107: =SUM(U105:U107) -> 1 | W107: =IF(OR(B107>$M$5+1*$M$6,B107<$M$5-1*$M$6),1,0) -> 0 | X107: =SUM(W103:W107) -> 2 | Y107: =IF(B107>B106,Y106+1,0) -> 0 | Z107: =IF(B107<B106,Z106-1,0) -> -1 | AA107: =IF(OR(AND(Z107=-Y106,Z107<>0),AND(Y107=-Z106,Y107<>0)),AA106+1,0) -> 4 | AB107: =IF(AND(B107<M$5+1*M$6,B107>M$5-1*M$6),AB106+1,0) -> 1 | AC107: =IF(B107>C107,AC106+1,0) -> 0 | AD107: =IF(B107<C107,AD106+1,0) -> 1
A108: ='Screened by week pivot'!A73 -> 70 | B108: ='Screened by week pivot'!B73 -> 167 | C108: =M$5 -> 147.9294118 | D108: =M$7 -> 184.4172824 | E108: =M$8 -> 111.4415411 | F108: =IF(B108>D108,B108,#N/A) ->  | G108: =IF(B108<E108,B108,#N/A) ->  | H108: =IF(OR(B108>$M$5+3*$M$6,B108<$M$5-3*$M$6),B108,#N/A) ->  | I108: =IF(V108>1,B108,#N/A) ->  | J108: =IF(X108>3,B108,#N/A) ->  | K108: =IF(Y108>5,B108,#N/A) ->  | L108: =IF(Z108<-5,B108,#N/A) ->  | M108: =IF(AA108>13,B108,#N/A) ->  | N108: =IF(AB108>14,B108,#N/A) ->  | O108: =IF(AC108>7,B108,#N/A) ->  | P108: =IF(AD108>7,B108,#N/A) ->  | Q108: =M$9 -> 200 | R108: =IF(B108>D108,1,0) -> 0 | S108: =IF(B108<E108,1,0) -> 0 | T108: =IF(OR(B108>$M$5+3*$M$6,B108<$M$5-3*$M$6),T107+1,0) -> 0 | U108: =IF(OR(B108>$M$5+2*$M$6,B108<$M$5-2*$M$6),1,0) -> 0 | V108: =SUM(U106:U108) -> 1 | W108: =IF(OR(B108>$M$5+1*$M$6,B108<$M$5-1*$M$6),1,0) -> 1 | X108: =SUM(W104:W108) -> 2 | Y108: =IF(B108>B107,Y107+1,0) -> 1 | Z108: =IF(B108<B107,Z107-1,0) -> 0 | AA108: =IF(OR(AND(Z108=-Y107,Z108<>0),AND(Y108=-Z107,Y108<>0)),AA107+1,0) -> 5 | AB108: =IF(AND(B108<M$5+1*M$6,B108>M$5-1*M$6),AB107+1,0) -> 0 | AC108: =IF(B108>C108,AC107+1,0) -> 1 | AD108: =IF(B108<C108,AD107+1,0) -> 0
A109: ='Screened by week pivot'!A74 -> 71 | B109: ='Screened by week pivot'!B74 -> 151 | C109: 147.9294118 | D109: 184.4172824 | E109: 111.4415411 | Q109: 200 | R109: 0 | S109: 0 | T109: 0 | U109: 0 | V109: 0 | W109: 0 | X109: 2 | Y109: 0 | Z109: -1 | AA109: 6 | AB109: 1 | AC109: 2 | AD109: 0
A110: ='Screened by week pivot'!A75 -> 72 | B110: ='Screened by week pivot'!B75 -> 120 | C110: 147.9294118 | D110: 184.4172824 | E110: 111.4415411 | Q110: 200 | R110: 0 | S110: 0 | T110: 0 | U110: 1 | V110: 1 | W110: 1 | X110: 3 | Y110: 0 | Z110: -2 | AA110: 0 | AB110: 0 | AC110: 0 | AD110: 1
A111: ='Screened by week pivot'!A76 -> 73 | B111: ='Screened by week pivot'!B76 -> 156 | C111: 147.9294118 | D111: 184.4172824 | E111: 111.4415411 | Q111: 200 | R111: 0 | S111: 0 | T111: 0 | U111: 0 | V111: 1 | W111: 0 | X111: 2 | Y111: 1 | Z111: 0 | AA111: 0 | AB111: 1 | AC111: 1 | AD111: 0
A112: ='Screened by week pivot'!A77 -> 74 | B112: ='Screened by week pivot'!B77 -> 129 | C112: 147.9294118 | D112: 184.4172824 | E112: 111.4415411 | Q112: 200 | R112: 0 | S112: 0 | T112: 0 | U112: 0 | V112: 1 | W112: 1 | X112: 3 | Y112: 0 | Z112: -1 | AA112: 1 | AB112: 0 | AC112: 0 | AD112: 1
A113: ='Screened by week pivot'!A78 -> 75 | B113: ='Screened by week pivot'!B78 -> 160 | C113: 147.9294118 | D113: 184.4172824 | E113: 111.4415411 | Q113: 200 | R113: 0 | S113: 0 | T113: 0 | U113: 0 | V113: 0 | W113: 0 | X113: 2 | Y113: 1 | Z113: 0 | AA113: 2 | AB113: 1 | AC113: 1 | AD113: 0
A114: ='Screened by week pivot'!A79 -> 76 | B114: ='Screened by week pivot'!B79 -> 158 | C114: =M$5 -> 147.9294118 | D114: =M$7 -> 184.4172824 | E114: =M$8 -> 111.4415411 | F114: =IF(B114>D114,B114,#N/A) ->  | G114: =IF(B114<E114,B114,#N/A) ->  | H114: =IF(OR(B114>$M$5+3*$M$6,B114<$M$5-3*$M$6),B114,#N/A) ->  | I114: =IF(V114>1,B114,#N/A) ->  | J114: =IF(X114>3,B114,#N/A) ->  | K114: =IF(Y114>5,B114,#N/A) ->  | L114: =IF(Z114<-5,B114,#N/A) ->  | M114: =IF(AA114>13,B114,#N/A) ->  | N114: =IF(AB114>14,B114,#N/A) ->  | O114: =IF(AC114>7,B114,#N/A) ->  | P114: =IF(AD114>7,B114,#N/A) ->  | Q114: =M$9 -> 200 | R114: =IF(B114>D114,1,0) -> 0 | S114: =IF(B114<E114,1,0) -> 0 | T114: =IF(OR(B114>$M$5+3*$M$6,B114<$M$5-3*$M$6),T113+1,0) -> 0 | U114: =IF(OR(B114>$M$5+2*$M$6,B114<$M$5-2*$M$6),1,0) -> 0 | V114: =SUM(U112:U114) -> 0 | W114: =IF(OR(B114>$M$5+1*$M$6,B114<$M$5-1*$M$6),1,0) -> 0 | X114: =SUM(W110:W114) -> 2 | Y114: =IF(B114>B113,Y113+1,0) -> 0 | Z114: =IF(B114<B113,Z113-1,0) -> -1 | AA114: =IF(OR(AND(Z114=-Y113,Z114<>0),AND(Y114=-Z113,Y114<>0)),AA113+1,0) -> 3 | AB114: =IF(AND(B114<M$5+1*M$6,B114>M$5-1*M$6),AB113+1,0) -> 2 | AC114: =IF(B114>C114,AC113+1,0) -> 2 | AD114: =IF(B114<C114,AD113+1,0) -> 0
A115: ='Screened by week pivot'!A80 -> 77 | B115: ='Screened by week pivot'!B80 -> 162 | C115: =M$5 -> 147.9294118 | D115: =M$7 -> 184.4172824 | E115: =M$8 -> 111.4415411 | F115: =IF(B115>D115,B115,#N/A) ->  | G115: =IF(B115<E115,B115,#N/A) ->  | H115: =IF(OR(B115>$M$5+3*$M$6,B115<$M$5-3*$M$6),B115,#N/A) ->  | I115: =IF(V115>1,B115,#N/A) ->  | J115: =IF(X115>3,B115,#N/A) ->  | K115: =IF(Y115>5,B115,#N/A) ->  | L115: =IF(Z115<-5,B115,#N/A) ->  | M115: =IF(AA115>13,B115,#N/A) ->  | N115: =IF(AB115>14,B115,#N/A) ->  | O115: =IF(AC115>7,B115,#N/A) ->  | P115: =IF(AD115>7,B115,#N/A) ->  | Q115: =M$9 -> 200 | R115: =IF(B115>D115,1,0) -> 0 | S115: =IF(B115<E115,1,0) -> 0 | T115: =IF(OR(B115>$M$5+3*$M$6,B115<$M$5-3*$M$6),T114+1,0) -> 0 | U115: =IF(OR(B115>$M$5+2*$M$6,B115<$M$5-2*$M$6),1,0) -> 0 | V115: =SUM(U113:U115) -> 0 | W115: =IF(OR(B115>$M$5+1*$M$6,B115<$M$5-1*$M$6),1,0) -> 1 | X115: =SUM(W111:W115) -> 2 | Y115: =IF(B115>B114,Y114+1,0) -> 1 | Z115: =IF(B115<B114,Z114-1,0) -> 0 | AA115: =IF(OR(AND(Z115=-Y114,Z115<>0),AND(Y115=-Z114,Y115<>0)),AA114+1,0) -> 4 | AB115: =IF(AND(B115<M$5+1*M$6,B115>M$5-1*M$6),AB114+1,0) -> 0 | AC115: =IF(B115>C115,AC114+1,0) -> 3 | AD115: =IF(B115<C115,AD114+1,0) -> 0
A116: ='Screened by week pivot'!A81 -> 78 | B116: ='Screened by week pivot'!B81 -> 172 | C116: =M$5 -> 147.9294118 | D116: =M$7 -> 184.4172824 | E116: =M$8 -> 111.4415411 | F116: =IF(B116>D116,B116,#N/A) ->  | G116: =IF(B116<E116,B116,#N/A) ->  | H116: =IF(OR(B116>$M$5+3*$M$6,B116<$M$5-3*$M$6),B116,#N/A) ->  | I116: =IF(V116>1,B116,#N/A) ->  | J116: =IF(X116>3,B116,#N/A) ->  | K116: =IF(Y116>5,B116,#N/A) ->  | L116: =IF(Z116<-5,B116,#N/A) ->  | M116: =IF(AA116>13,B116,#N/A) ->  | N116: =IF(AB116>14,B116,#N/A) ->  | O116: =IF(AC116>7,B116,#N/A) ->  | P116: =IF(AD116>7,B116,#N/A) ->  | Q116: =M$9 -> 200 | R116: =IF(B116>D116,1,0) -> 0 | S116: =IF(B116<E116,1,0) -> 0 | T116: =IF(OR(B116>$M$5+3*$M$6,B116<$M$5-3*$M$6),T115+1,0) -> 0 | U116: =IF(OR(B116>$M$5+2*$M$6,B116<$M$5-2*$M$6),1,0) -> 0 | V116: =SUM(U114:U116) -> 0 | W116: =IF(OR(B116>$M$5+1*$M$6,B116<$M$5-1*$M$6),1,0) -> 1 | X116: =SUM(W112:W116) -> 3 | Y116: =IF(B116>B115,Y115+1,0) -> 2 | Z116: =IF(B116<B115,Z115-1,0) -> 0 | AA116: =IF(OR(AND(Z116=-Y115,Z116<>0),AND(Y116=-Z115,Y116<>0)),AA115+1,0) -> 0 | AB116: =IF(AND(B116<M$5+1*M$6,B116>M$5-1*M$6),AB115+1,0) -> 0 | AC116: =IF(B116>C116,AC115+1,0) -> 4 | AD116: =IF(B116<C116,AD115+1,0) -> 0
A117: ='Screened by week pivot'!A82 -> 79 | B117: ='Screened by week pivot'!B82 -> 167 | C117: =M$5 -> 147.9294118 | D117: =M$7 -> 184.4172824 | E117: =M$8 -> 111.4415411 | F117: =IF(B117>D117,B117,#N/A) ->  | G117: =IF(B117<E117,B117,#N/A) ->  | H117: =IF(OR(B117>$M$5+3*$M$6,B117<$M$5-3*$M$6),B117,#N/A) ->  | I117: =IF(V117>1,B117,#N/A) ->  | J117: =IF(X117>3,B117,#N/A) ->  | K117: =IF(Y117>5,B117,#N/A) ->  | L117: =IF(Z117<-5,B117,#N/A) ->  | M117: =IF(AA117>13,B117,#N/A) ->  | N117: =IF(AB117>14,B117,#N/A) ->  | O117: =IF(AC117>7,B117,#N/A) ->  | P117: =IF(AD117>7,B117,#N/A) ->  | Q117: =M$9 -> 200 | R117: =IF(B117>D117,1,0) -> 0 | S117: =IF(B117<E117,1,0) -> 0 | T117: =IF(OR(B117>$M$5+3*$M$6,B117<$M$5-3*$M$6),T116+1,0) -> 0 | U117: =IF(OR(B117>$M$5+2*$M$6,B117<$M$5-2*$M$6),1,0) -> 0 | V117: =SUM(U115:U117) -> 0 | W117: =IF(OR(B117>$M$5+1*$M$6,B117<$M$5-1*$M$6),1,0) -> 1 | X117: =SUM(W113:W117) -> 3 | Y117: =IF(B117>B116,Y116+1,0) -> 0 | Z117: =IF(B117<B116,Z116-1,0) -> -1 | AA117: =IF(OR(AND(Z117=-Y116,Z117<>0),AND(Y117=-Z116,Y117<>0)),AA116+1,0) -> 0 | AB117: =IF(AND(B117<M$5+1*M$6,B117>M$5-1*M$6),AB116+1,0) -> 0 | AC117: =IF(B117>C117,AC116+1,0) -> 5 | AD117: =IF(B117<C117,AD116+1,0) -> 0
A118: ='Screened by week pivot'!A83 -> 80 | B118: ='Screened by week pivot'!B83 -> 159 | C118: 147.9294118 | D118: 184.4172824 | E118: 111.4415411 | Q118: 200 | R118: 0 | S118: 0 | T118: 0 | U118: 0 | V118: 0 | W118: 0 | X118: 3 | Y118: 0 | Z118: -2 | AA118: 0 | AB118: 1 | AC118: 6 | AD118: 0
A119: ='Screened by week pivot'!A84 -> 81 | B119: ='Screened by week pivot'!B84 -> 189 | C119: =M$5 -> 147.9294118 | D119: =M$7 -> 184.4172824 | E119: =M$8 -> 111.4415411 | F119: =IF(B119>D119,B119,#N/A) -> 189 | G119: =IF(B119<E119,B119,#N/A) ->  | H119: =IF(OR(B119>$M$5+3*$M$6,B119<$M$5-3*$M$6),B119,#N/A) -> 189 | I119: =IF(V119>1,B119,#N/A) ->  | J119: =IF(X119>3,B119,#N/A) -> 189 | K119: =IF(Y119>5,B119,#N/A) ->  | L119: =IF(Z119<-5,B119,#N/A) ->  | M119: =IF(AA119>13,B119,#N/A) ->  | N119: =IF(AB119>14,B119,#N/A) ->  | O119: =IF(AC119>7,B119,#N/A) ->  | P119: =IF(AD119>7,B119,#N/A) ->  | Q119: =M$9 -> 200 | R119: =IF(B119>D119,1,0) -> 1 | S119: =IF(B119<E119,1,0) -> 0 | T119: =IF(OR(B119>$M$5+3*$M$6,B119<$M$5-3*$M$6),T118+1,0) -> 1 | U119: =IF(OR(B119>$M$5+2*$M$6,B119<$M$5-2*$M$6),1,0) -> 1 | V119: =SUM(U117:U119) -> 1 | W119: =IF(OR(B119>$M$5+1*$M$6,B119<$M$5-1*$M$6),1,0) -> 1 | X119: =SUM(W115:W119) -> 4 | Y119: =IF(B119>B118,Y118+1,0) -> 1 | Z119: =IF(B119<B118,Z118-1,0) -> 0 | AA119: =IF(OR(AND(Z119=-Y118,Z119<>0),AND(Y119=-Z118,Y119<>0)),AA118+1,0) -> 0 | AB119: =IF(AND(B119<M$5+1*M$6,B119>M$5-1*M$6),AB118+1,0) -> 0 | AC119: =IF(B119>C119,AC118+1,0) -> 7 | AD119: =IF(B119<C119,AD118+1,0) -> 0
A120: ='Screened by week pivot'!A85 -> 82 | B120: ='Screened by week pivot'!B85 -> 141 | C120: =M$5 -> 147.9294118 | D120: =M$7 -> 184.4172824 | E120: =M$8 -> 111.4415411 | F120: =IF(B120>D120,B120,#N/A) ->  | G120: =IF(B120<E120,B120,#N/A) ->  | H120: =IF(OR(B120>$M$5+3*$M$6,B120<$M$5-3*$M$6),B120,#N/A) ->  | I120: =IF(V120>1,B120,#N/A) ->  | J120: =IF(X120>3,B120,#N/A) ->  | K120: =IF(Y120>5,B120,#N/A) ->  | L120: =IF(Z120<-5,B120,#N/A) ->  | M120: =IF(AA120>13,B120,#N/A) ->  | N120: =IF(AB120>14,B120,#N/A) ->  | O120: =IF(AC120>7,B120,#N/A) ->  | P120: =IF(AD120>7,B120,#N/A) ->  | Q120: =M$9 -> 200 | R120: =IF(B120>D120,1,0) -> 0 | S120: =IF(B120<E120,1,0) -> 0 | T120: =IF(OR(B120>$M$5+3*$M$6,B120<$M$5-3*$M$6),T119+1,0) -> 0 | U120: =IF(OR(B120>$M$5+2*$M$6,B120<$M$5-2*$M$6),1,0) -> 0 | V120: =SUM(U118:U120) -> 1 | W120: =IF(OR(B120>$M$5+1*$M$6,B120<$M$5-1*$M$6),1,0) -> 0 | X120: =SUM(W116:W120) -> 3 | Y120: =IF(B120>B119,Y119+1,0) -> 0 | Z120: =IF(B120<B119,Z119-1,0) -> -1 | AA120: =IF(OR(AND(Z120=-Y119,Z120<>0),AND(Y120=-Z119,Y120<>0)),AA119+1,0) -> 1 | AB120: =IF(AND(B120<M$5+1*M$6,B120>M$5-1*M$6),AB119+1,0) -> 1 | AC120: =IF(B120>C120,AC119+1,0) -> 0 | AD120: =IF(B120<C120,AD119+1,0) -> 1
A121: ='Screened by week pivot'!A86 -> 83 | B121: ='Screened by week pivot'!B86 -> 164 | C121: =M$5 -> 147.9294118 | D121: =M$7 -> 184.4172824 | E121: =M$8 -> 111.4415411 | F121: =IF(B121>D121,B121,#N/A) ->  | G121: =IF(B121<E121,B121,#N/A) ->  | H121: =IF(OR(B121>$M$5+3*$M$6,B121<$M$5-3*$M$6),B121,#N/A) ->  | I121: =IF(V121>1,B121,#N/A) ->  | J121: =IF(X121>3,B121,#N/A) ->  | K121: =IF(Y121>5,B121,#N/A) ->  | L121: =IF(Z121<-5,B121,#N/A) ->  | M121: =IF(AA121>13,B121,#N/A) ->  | N121: =IF(AB121>14,B121,#N/A) ->  | O121: =IF(AC121>7,B121,#N/A) ->  | P121: =IF(AD121>7,B121,#N/A) ->  | Q121: =M$9 -> 200 | R121: =IF(B121>D121,1,0) -> 0 | S121: =IF(B121<E121,1,0) -> 0 | T121: =IF(OR(B121>$M$5+3*$M$6,B121<$M$5-3*$M$6),T120+1,0) -> 0 | U121: =IF(OR(B121>$M$5+2*$M$6,B121<$M$5-2*$M$6),1,0) -> 0 | V121: =SUM(U119:U121) -> 1 | W121: =IF(OR(B121>$M$5+1*$M$6,B121<$M$5-1*$M$6),1,0) -> 1 | X121: =SUM(W117:W121) -> 3 | Y121: =IF(B121>B120,Y120+1,0) -> 1 | Z121: =IF(B121<B120,Z120-1,0) -> 0 | AA121: =IF(OR(AND(Z121=-Y120,Z121<>0),AND(Y121=-Z120,Y121<>0)),AA120+1,0) -> 2 | AB121: =IF(AND(B121<M$5+1*M$6,B121>M$5-1*M$6),AB120+1,0) -> 0 | AC121: =IF(B121>C121,AC120+1,0) -> 1 | AD121: =IF(B121<C121,AD120+1,0) -> 0
A122: ='Screened by week pivot'!A87 -> 84 | B122: ='Screened by week pivot'!B87 -> 132 | C122: =M$5 -> 147.9294118 | D122: =M$7 -> 184.4172824 | E122: =M$8 -> 111.4415411 | F122: =IF(B122>D122,B122,#N/A) ->  | G122: =IF(B122<E122,B122,#N/A) ->  | H122: =IF(OR(B122>$M$5+3*$M$6,B122<$M$5-3*$M$6),B122,#N/A) ->  | I122: =IF(V122>1,B122,#N/A) ->  | J122: =IF(X122>3,B122,#N/A) ->  | K122: =IF(Y122>5,B122,#N/A) ->  | L122: =IF(Z122<-5,B122,#N/A) ->  | M122: =IF(AA122>13,B122,#N/A) ->  | N122: =IF(AB122>14,B122,#N/A) ->  | O122: =IF(AC122>7,B122,#N/A) ->  | P122: =IF(AD122>7,B122,#N/A) ->  | Q122: =M$9 -> 200 | R122: =IF(B122>D122,1,0) -> 0 | S122: =IF(B122<E122,1,0) -> 0 | T122: =IF(OR(B122>$M$5+3*$M$6,B122<$M$5-3*$M$6),T121+1,0) -> 0 | U122: =IF(OR(B122>$M$5+2*$M$6,B122<$M$5-2*$M$6),1,0) -> 0 | V122: =SUM(U120:U122) -> 0 | W122: =IF(OR(B122>$M$5+1*$M$6,B122<$M$5-1*$M$6),1,0) -> 1 | X122: =SUM(W118:W122) -> 3 | Y122: =IF(B122>B121,Y121+1,0) -> 0 | Z122: =IF(B122<B121,Z121-1,0) -> -1 | AA122: =IF(OR(AND(Z122=-Y121,Z122<>0),AND(Y122=-Z121,Y122<>0)),AA121+1,0) -> 3 | AB122: =IF(AND(B122<M$5+1*M$6,B122>M$5-1*M$6),AB121+1,0) -> 0 | AC122: =IF(B122>C122,AC121+1,0) -> 0 | AD122: =IF(B122<C122,AD121+1,0) -> 1
A123: ='Screened by week pivot'!A88 -> 85 | B123: ='Screened by week pivot'!B88 -> 168 | C123: 147.9294118 | D123: 184.4172824 | E123: 111.4415411 | J123: 168 | Q123: 200 | R123: 0 | S123: 0 | T123: 0 | U123: 0 | V123: 0 | W123: 1 | X123: 4 | Y123: 1 | Z123: 0 | AA123: 4 | AB123: 0 | AC123: 1 | AD123: 0

Sheet Eligible Control Chart
L1: Control Chart Parameters
L2: Sigma | M2: 3
L4: Sample statistics
L5: mean | M5: =AVERAGE(B39:B123) -> 14.42
L6: sample stdev | M6: =M5^0.5 -> 3.80
L7: UCL | M7: =M5+M2*M6 -> 25.82
L8: LCL | M8: =MAX(0,M5-M2*M6) -> 3.030032815
L9: Target | M9: 5
P10: Signal Flag
L11: Signal Processing Results | P11: =SUM(P12:P22) -> 4 | Q11: =S12-Q12 -> -2 | R11: Trend Results
L12: =IF(M12>0, "Possible nonrandom event", "Random") -> Random | M12: =R37 -> 0 | N12: points above UCL | O12: =IF(M12>'Signal Process Switches'!C2, 1, 0) -> 0 | P12: =O12*'Signal Process Switches'!A2 -> 0 | Q12: =SUM(Q13:Q20) -> 2 | R12: Down | S12: =SUM(S13:S20) -> 0 | T12: Up
L13: =IF(M13>0, "Possible nonrandom event", "Random") -> Possible nonrandom event | M13: =S37 -> 7 | N13: points below LCL | O13: =IF(M13>'Signal Process Switches'!C3, 1, 0) -> 1 | P13: =O13*'Signal Process Switches'!A3 -> 1 | Q13: =IF(B50<$M$5-3*$M$6,1,0) -> 1 | R13: Last point 3 standard deviations below mean or lower | S13: =IF(B50>$M$5+3*$M$6,1,0) -> 0 | T13: Last point 3 standard deviations above mean or higher
L14: =IF(M14>0, "Possible nonrandom event", "Random") -> Possible nonrandom event | M14: =T37 -> 8 | N14: points outside 3 std dev | O14: =IF(M14>'Signal Process Switches'!C4, 1, 0) -> 1 | P14: =O14*'Signal Process Switches'!A4 -> 1 | Q14: =IF(AG50>1,1,0) -> 0 | R14: Last 2 out of 3 points 2 standard deviations below mean or lower | S14: =IF(AI50>1,1,0) -> 0 | T14: Last 2 out of 3 points 2 standard deviations above mean or higher
L15: =IF(M15>1, "Potential instability", "Random") -> Potential instability | M15: =V37 -> 3 | N15: 2 out of 3 outside 2 std dev | O15: =IF(M15>'Signal Process Switches'!C5, 1, 0) -> 1 | P15: =O15*'Signal Process Switches'!A5 -> 1 | Q15: =IF(AK50>3,1,0) -> 0 | R15: Last 4 out of 5 points 1 standard deviation below mean or lower | S15: =IF(AM50>3,1,0) -> 0 | T15: Last 4 out of 5 points 1 standard deviation above mean or higher
L16: =IF(M16>3, "Potential instability", "Random") -> Potential instability | M16: =X37 -> 5 | N16: 4 out of 5 outside 1 std dev | O16: =IF(M16>'Signal Process Switches'!C6, 1, 0) -> 1 | P16: =O16*'Signal Process Switches'!A6 -> 0 | Q16: =IF(AD50>5,1,0) -> 1 | R16: Last 6 points below mean | S16: =IF(AC50>5,1,0) -> 0 | T16: Last 6 points above mean
L17: =IF(M17>5, "Possible trend", "Random") -> Random | M17: =Y37 -> 2 | N17: consecutive going up | O17: =IF(M17>'Signal Process Switches'!C7, 1, 0) -> 0 | P17: =O17*'Signal Process Switches'!A7 -> 0 | Q17: =IF(AB$50<-5,1,0) -> 0 | R17: Last 6 points going down | S17: =IF(Y50>5,1,0) -> 0 | T17: Last 6 points going up
L18: =IF(M18>5, "Possible trend", "Random") -> Random | M18: =-Z37 -> 3 | N18: consecutive going down | O18: =IF(M18>'Signal Process Switches'!C8, 1, 0) -> 0 | P18: =O18*'Signal Process Switches'!A8 -> 0 | Q18: =IF(AND(Z50<-2,B50<M$5-2*M$6),1,0) -> 0 | R18: Last 3 points going down with last point 2 standard deviations below mean or lower | S18: =IF(AND(Y50>2,B50>M$5+2*M$6),1,0) -> 0 | T18: Last 3 points going up with last point 2 standard deviations above mean or higher
L19: =IF(M19>13, "Possible pattern", "Random") -> Random | M19: =AA37 -> 6 | N19: consecutive alternating points | O19: =IF(M19>'Signal Process Switches'!C9, 1, 0) -> 0 | P19: =O19*'Signal Process Switches'!A9 -> 0 | Q19: =IF(AND(Z50<-3,B50<M$5-1*M$6),1,0) -> 0 | R19: Last 4 points going down with last point 1 standard deviations below mean or lower | S19: =IF(AND(Y50>3,B50>M$5+1*M$6),1,0) -> 0 | T19: Last 4 points going up with last point 1 standard deviations above mean or higher
L20: =IF(M20>14, "Possible variance reduction", "Random") -> Random | M20: =AB37 -> 4 | N20: consecutive inside 1 std dev | O20: =IF(M20>'Signal Process Switches'!C10, 1, 0) -> 0 | P20: =O20*'Signal Process Switches'!A10 -> 0 | Q20: =IF(AND(Z50<-4,B50<M$5-0*M$6),1,0) -> 0 | R20: Last 5 points going down with last point below mean or lower | S20: =IF(AND(Y50>4,B50>M$5+0*M$6),1,0) -> 0 | T20: Last 5 points going up with last point above mean or higher
L21: =IF(M21>7, "Possible trend", "Random") -> Random | M21: =AC37 -> 3 | N21: consecutive above mean | O21: =IF(M21>'Signal Process Switches'!C11, 1, 0) -> 0 | P21: =O21*'Signal Process Switches'!A11 -> 0
L22: =IF(M22>7, "Possible trend", "Random") -> Possible trend | M22: =AD37 -> 19 | N22: consecutive below mean | O22: =IF(M22>'Signal Process Switches'!C12, 1, 0) -> 1 | P22: =O22*'Signal Process Switches'!A12 -> 1
F32: =F33-1 -> 120 | G32: =INDEX(B:B,F32,1) -> 13
A33: Date | B33: Row of last nonblank | C33: final_score of last nonblank | D33: final week | F33: 121 | G33: =INDEX(B:B,F33,1) -> 20
A34: =A39 -> 1 | B34: =ROW(INDEX(A:A,MAX((A:A<>"")*(ROW(A:A))))) -> 123 | C34: =INDEX(B:B,B34,1) -> 24 | D34: =INDEX(A:A,B34,1) -> 85 | F34: =F35-1 -> 122 | G34: =INDEX(B:B,F34,1) -> 22
F35: =ROW(INDEX(A:A,MAX((A:A<>"")*(ROW(A:A))))) -> 123 | G35: =INDEX(B:B,F35,1) -> 24
A36: Data | C36: Control Chart Limits | F36: Signal Processing Flags | R36: Signal Processing Data
A37: sum | B37: =SUM(OFFSET(B39,0,0,MATCH(1,IF(B39:B998="",1,0),0),1)) -> 1226 | R37: =SUM(R39:R69) -> 0 | S37: =SUM(S39:S69) -> 7 | T37: 8 | U37: =MAX(U39:U69) -> 1 | V37: =MAX(V39:V69) -> 3 | W37: 1 | X37: 5 | Y37: 2 | Z37: =MIN(Z39:Z69) -> -3 | AA37: =MAX(AA39:AA69) -> 6 | AB37: =MAX(AB39:AB69) -> 4 | AC37: 3 | AD37: 19
A38: Week | B38: Eligible | C38: Mean | D38: UCL | E38: LCL | F38: above UCL | G38: below LCL | H38: out3stddev | I38: 2 of 3 out2 | J38: 4 of 5 out1 | K38: uptrend | L38: downtrend | M38: alt | N38: in1stddev | O38: above mean | P38: below mean | Q38: =L9 -> Target | R38: above UCL | S38: below LCL | T38: out3stddev | U38: out2stddev | V38: 2 of 3 out2 | W38: out1stddev | X38: 4 of 5 out1 | Y38: uptrend | Z38: downtrend | AA38: alt | AB38: in1stddev | AC38: above mean | AD38: below mean
A39: ='Eligible by week pivot'!A5 -> 1 | B39: ='Eligible by week pivot'!B5 -> 4 | C39: =M$5 -> 14.42352941 | D39: =M$7 -> 25.81702601 | E39: =M$8 -> 3.030032815 | F39: =IF(B39>D39,B39,#N/A) ->  | G39: =IF(B39<E39,B39,#N/A) ->  | H39: =IF(OR(B39>$M$5+3*$M$6,B39<$M$5-3*$M$6),B39,#N/A) ->  | K39: =IF(Y39>5,B39,#N/A) ->  | L39: =IF(Z39<-5,B39,#N/A) ->  | M39: =IF(AA39>13,B39,#N/A) ->  | N39: =IF(AB39>14,B39,#N/A) ->  | O39: =IF(AC39>7,B39,#N/A) ->  | P39: =IF(AD39>7,B39,#N/A) ->  | Q39: =M$9 -> 5 | R39: =IF(B39>D39,1,0) -> 0 | S39: =IF(B39<E39,1,0) -> 0 | T39: =IF(OR(B39>$M$5+3*$M$6,B39<$M$5-3*$M$6),1,0) -> 0 | U39: =IF(OR(B39>$M$5+2*$M$6,B39<$M$5-2*$M$6),1,0) -> 1 | W39: =IF(OR(B39>$M$5+1*$M$6,B39<$M$5-1*$M$6),1,0) -> 1 | Y39: 0 | Z39: 0 | AA39: 0 | AB39: =IF(AND(B39<M$5+1*M$6,B39>M$5-1*M$6),1,0) -> 0 | AC39: =IF(B39>C39,1,0) -> 0 | AD39: =IF(B39<C39,1,0) -> 1
A40: ='Eligible by week pivot'!A6 -> 2 | B40: ='Eligible by week pivot'!B6 -> 0 | C40: 14.42352941 | D40: 25.81702601 | E40: 3.030032815 | G40: 0 | H40: 0 | Q40: =M$9 -> 5 | R40: 0 | S40: 1 | T40: =IF(OR(B40>$M$5+3*$M$6,B40<$M$5-3*$M$6),T39+1,0) -> 1 | U40: 1 | W40: 1 | Y40: =IF(B40>B39,Y39+1,0) -> 0 | Z40: =IF(B40<B39,Z39-1,0) -> -1 | AA40: =IF(OR(AND(Z40=-Y39,Z40<>0),AND(Y40=-Z39,Y40<>0)),AA39+1,0) -> 0 | AB40: =IF(AND(B40<M$5+1*M$6,B40>M$5-1*M$6),AB39+1,0) -> 0 | AC40: =IF(B40>C40,AC39+1,0) -> 0 | AD40: =IF(B40<C40,AD39+1,0) -> 2
A41: ='Eligible by week pivot'!A7 -> 3 | B41: ='Eligible by week pivot'!B7 -> 6 | C41: 14.42352941 | D41: 25.81702601 | E41: 3.030032815 | I41: =IF(V41>1,B41,#N/A) -> 6 | Q41: 5 | R41: 0 | S41: 0 | T41: 0 | U41: 1 | V41: =SUM(U39:U41) -> 3 | W41: 1 | Y41: 1 | Z41: 0 | AA41: =IF(OR(AND(Z41=-Y40,Z41<>0),AND(Y41=-Z40,Y41<>0)),AA40+1,0) -> 1 | AB41: 0 | AC41: 0 | AD41: 3
A42: ='Eligible by week pivot'!A8 -> 4 | B42: ='Eligible by week pivot'!B8 -> 3 | C42: 14.42352941 | D42: 25.81702601 | E42: 3.030032815 | G42: 3 | H42: 3 | I42: 3 | Q42: 5 | R42: 0 | S42: 1 | T42: 1 | U42: 1 | V42: =SUM(U40:U42) -> 3 | W42: 1 | Y42: 0 | Z42: -1 | AA42: 2 | AB42: 0 | AC42: 0 | AD42: 4
A43: ='Eligible by week pivot'!A9 -> 5 | B43: ='Eligible by week pivot'!B9 -> 6 | C43: 14.42352941 | D43: 25.81702601 | E43: 3.030032815 | I43: 6 | J43: =IF(X43>3,B43,#N/A) -> 6 | Q43: 5 | R43: 0 | S43: 0 | T43: 0 | U43: 1 | V43: 3 | W43: 1 | X43: =SUM(W39:W43) -> 5 | Y43: 1 | Z43: 0 | AA43: 3 | AB43: 0 | AC43: 0 | AD43: 5
A44: ='Eligible by week pivot'!A10 -> 6 | B44: ='Eligible by week pivot'!B10 -> 2 | C44: 14.42352941 | D44: 25.81702601 | E44: 3.030032815 | G44: 2 | H44: 2 | I44: 2 | J44: 2 | Q44: 5 | R44: 0 | S44: 1 | T44: 1 | U44: 1 | V44: 3 | W44: 1 | X44: =SUM(W40:W44) -> 5 | Y44: 0 | Z44: -1 | AA44: =IF(OR(AND(Z44=-Y43,Z44<>0),AND(Y44=-Z43,Y44<>0)),AA43+1,0) -> 4 | AB44: 0 | AC44: 0 | AD44: 6
A45: ='Eligible by week pivot'!A11 -> 7 | B45: ='Eligible by week pivot'!B11 -> 6 | C45: 14.42352941 | D45: 25.81702601 | E45: 3.030032815 | I45: 6 | J45: 6 | Q45: 5 | R45: 0 | S45: 0 | T45: 0 | U45: 1 | V45: 3 | W45: 1 | X45: 5 | Y45: 1 | Z45: 0 | AA45: 5 | AB45: 0 | AC45: 0 | AD45: 7
A46: ='Eligible by week pivot'!A12 -> 8 | B46: ='Eligible by week pivot'!B12 -> 4 | C46: 14.42352941 | D46: 25.81702601 | E46: 3.030032815 | I46: 4 | J46: 4 | P46: 4 | Q46: 5 | R46: 0 | S46: 0 | T46: 0 | U46: 1 | V46: 3 | W46: 1 | X46: 5 | Y46: 0 | Z46: -1 | AA46: =IF(OR(AND(Z46=-Y45,Z46<>0),AND(Y46=-Z45,Y46<>0)),AA45+1,0) -> 6 | AB46: 0 | AC46: 0 | AD46: 8
A47: ='Eligible by week pivot'!A13 -> 9 | B47: ='Eligible by week pivot'!B13 -> 3 | C47: 14.42352941 | D47: 25.81702601 | E47: 3.030032815 | G47: 3 | H47: 3 | I47: 3 | J47: 3 | P47: 3 | Q47: 5 | R47: 0 | S47: 1 | T47: 1 | U47: 1 | V47: 3 | W47: 1 | X47: 5 | Y47: 0 | Z47: -2 | AA47: =IF(OR(AND(Z47=-Y46,Z47<>0),AND(Y47=-Z46,Y47<>0)),AA46+1,0) -> 0 | AB47: 0 | AC47: 0 | AD47: 9
A48: ='Eligible by week pivot'!A14 -> 10 | B48: ='Eligible by week pivot'!B14 -> 6 | C48: 14.42352941 | D48: 25.81702601 | E48: 3.030032815 | I48: 6 | J48: 6 | P48: 6 | Q48: 5 | R48: 0 | S48: 0 | T48: 0 | U48: 1 | V48: 3 | W48: 1 | X48: 5 | Y48: 1 | Z48: 0 | AA48: 0 | AB48: 0 | AC48: 0 | AD48: 10
A49: ='Eligible by week pivot'!A15 -> 11 | B49: ='Eligible by week pivot'!B15 -> 2 | C49: 14.42352941 | D49: 25.81702601 | E49: 3.030032815 | G49: 2 | H49: 2 | I49: 2 | J49: 2 | P49: 2 | Q49: 5 | R49: 0 | S49: 1 | T49: 1 | U49: 1 | V49: 3 | W49: 1 | X49: 5 | Y49: 0 | Z49: -1 | AA49: 1 | AB49: 0 | AC49: 0 | AD49: 11
A50: ='Eligible by week pivot'!A16 -> 12 | B50: ='Eligible by week pivot'!B16 -> 2 | C50: 14.42352941 | D50: 25.81702601 | E50: 3.030032815 | G50: 2 | H50: 2 | I50: 2 | J50: 2 | P50: 2 | Q50: 5 | R50: 0 | S50: 1 | T50: 2 | U50: 1 | V50: 3 | W50: 1 | X50: 5 | Y50: 0 | Z50: 0 | AA50: 0 | AB50: 0 | AC50: 0 | AD50: 12
A51: ='Eligible by week pivot'!A17 -> 13 | B51: ='Eligible by week pivot'!B17 -> 4 | C51: 14.42352941 | D51: 25.81702601 | E51: 3.030032815 | I51: 4 | J51: 4 | P51: 4 | Q51: 5 | R51: 0 | S51: 0 | T51: 0 | U51: 1 | V51: 3 | W51: 1 | X51: 5 | Y51: 1 | Z51: 0 | AA51: 0 | AB51: 0 | AC51: 0 | AD51: 13
A52: ='Eligible by week pivot'!A18 -> 14 | B52: ='Eligible by week pivot'!B18 -> 3 | C52: 14.42352941 | D52: 25.81702601 | E52: 3.030032815 | G52: 3 | H52: 3 | I52: 3 | J52: 3 | P52: 3 | Q52: 5 | R52: 0 | S52: 1 | T52: 1 | U52: 1 | V52: 3 | W52: 1 | X52: 5 | Y52: 0 | Z52: -1 | AA52: 1 | AB52: 0 | AC52: 0 | AD52: 14
A53: ='Eligible by week pivot'!A19 -> 15 | B53: ='Eligible by week pivot'!B19 -> 4 | C53: 14.42352941 | D53: 25.81702601 | E53: 3.030032815 | I53: 4 | J53: 4 | P53: 4 | Q53: 5 | R53: 0 | S53: 0 | T53: 0 | U53: 1 | V53: 3 | W53: 1 | X53: 5 | Y53: 1 | Z53: 0 | AA53: 2 | AB53: 0 | AC53: 0 | AD53: 15
A54: ='Eligible by week pivot'!A20 -> 16 | B54: ='Eligible by week pivot'!B20 -> 4 | C54: 14.42352941 | D54: 25.81702601 | E54: 3.030032815 | I54: 4 | J54: 4 | P54: 4 | Q54: 5 | R54: 0 | S54: 0 | T54: 0 | U54: 1 | V54: =SUM(U52:U54) -> 3 | W54: 1 | X54: =SUM(W50:W54) -> 5 | Y54: 0 | Z54: 0 | AA54: 0 | AB54: 0 | AC54: 0 | AD54: 16
A55: ='Eligible by week pivot'!A21 -> 17 | B55: ='Eligible by week pivot'!B21 -> 5 | C55: 14.42352941 | D55: 25.81702601 | E55: 3.030032815 | I55: 5 | J55: 5 | P55: 5 | Q55: 5 | R55: 0 | S55: 0 | T55: 0 | U55: 1 | V55: 3 | W55: 1 | X55: 5 | Y55: 1 | Z55: 0 | AA55: 0 | AB55: 0 | AC55: 0 | AD55: 17
A56: ='Eligible by week pivot'!A22 -> 18 | B56: ='Eligible by week pivot'!B22 -> 8 | C56: 14.42352941 | D56: 25.81702601 | E56: 3.030032815 | I56: 8 | J56: 8 | P56: 8 | Q56: 5 | R56: 0 | S56: 0 | T56: 0 | U56: 0 | V56: 2 | W56: 1 | X56: 5 | Y56: 2 | Z56: 0 | AA56: 0 | AB56: 0 | AC56: 0 | AD56: 18
A57: ='Eligible by week pivot'!A23 -> 19 | B57: ='Eligible by week pivot'!B23 -> 5 | C57: 14.42352941 | D57: 25.81702601 | E57: 3.030032815 | I57: 5 | J57: 5 | P57: 5 | Q57: 5 | R57: 0 | S57: 0 | T57: 0 | U57: 1 | V57: 2 | W57: 1 | X57: 5 | Y57: 0 | Z57: -1 | AA57: 0 | AB57: 0 | AC57: 0 | AD57: 19
A58: ='Eligible by week pivot'!A24 -> 20 | B58: ='Eligible by week pivot'!B24 -> 15 | C58: 14.42352941 | D58: 25.81702601 | E58: 3.030032815 | J58: 15 | Q58: 5 | R58: 0 | S58: 0 | T58: 0 | U58: 0 | V58: 1 | W58: 0 | X58: 4 | Y58: 1 | Z58: 0 | AA58: 1 | AB58: 1 | AC58: 1 | AD58: 0
A59: ='Eligible by week pivot'!A25 -> 21 | B59: ='Eligible by week pivot'!B25 -> 8 | C59: 14.42352941 | D59: 25.81702601 | E59: 3.030032815 | J59: 8 | Q59: 5 | R59: 0 | S59: 0 | T59: 0 | U59: 0 | V59: 1 | W59: 1 | X59: 4 | Y59: 0 | Z59: -1 | AA59: 2 | AB59: 0 | AC59: 0 | AD59: 1
A60: ='Eligible by week pivot'!A26 -> 22 | B60: ='Eligible by week pivot'!B26 -> 11 | C60: 14.42352941 | D60: 25.81702601 | E60: 3.030032815 | Q60: 5 | R60: 0 | S60: 0 | T60: 0 | U60: 0 | V60: 0 | W60: 0 | X60: 3 | Y60: 1 | Z60: 0 | AA60: 3 | AB60: 1 | AC60: 0 | AD60: 2
A61: ='Eligible by week pivot'!A27 -> 23 | B61: ='Eligible by week pivot'!B27 -> 17 | C61: 14.42352941 | D61: 25.81702601 | E61: 3.030032815 | Q61: 5 | R61: 0 | S61: 0 | T61: 0 | U61: 0 | V61: 0 | W61: 0 | X61: 2 | Y61: 2 | Z61: 0 | AA61: 0 | AB61: 2 | AC61: 1 | AD61: 0
A62: ='Eligible by week pivot'!A28 -> 24 | B62: ='Eligible by week pivot'!B28 -> 16 | C62: 14.42352941 | D62: 25.81702601 | E62: 3.030032815 | Q62: 5 | R62: 0 | S62: 0 | T62: 0 | U62: 0 | V62: 0 | W62: 0 | X62: 1 | Y62: 0 | Z62: -1 | AA62: 0 | AB62: 3 | AC62: 2 | AD62: 0
A63: ='Eligible by week pivot'!A29 -> 25 | B63: ='Eligible by week pivot'!B29 -> 15 | C63: 14.42352941 | D63: 25.81702601 | E63: 3.030032815 | Q63: 5 | R63: 0 | S63: 0 | T63: 0 | U63: 0 | V63: 0 | W63: 0 | X63: 1 | Y63: 0 | Z63: -2 | AA63: 0 | AB63: 4 | AC63: 3 | AD63: 0
A64: ='Eligible by week pivot'!A30 -> 26 | B64: ='Eligible by week pivot'!B30 -> 9 | C64: 14.42352941 | D64: 25.81702601 | E64: 3.030032815 | Q64: 5 | R64: 0 | S64: 0 | T64: 0 | U64: 0 | V64: 0 | W64: 1 | X64: 1 | Y64: 0 | Z64: -3 | AA64: 0 | AB64: 0 | AC64: 0 | AD64: 1
A65: ='Eligible by week pivot'!A31 -> 27 | B65: ='Eligible by week pivot'!B31 -> 13 | C65: 14.42352941 | D65: 25.81702601 | E65: 3.030032815 | Q65: 5 | R65: 0 | S65: 0 | T65: 0 | U65: 0 | V65: 0 | W65: 0 | X65: 1 | Y65: 1 | Z65: 0 | AA65: 0 | AB65: 1 | AC65: 0 | AD65: 2
A66: ='Eligible by week pivot'!A32 -> 28 | B66: ='Eligible by week pivot'!B32 -> 18 | C66: 14.42352941 | D66: 25.81702601 | E66: 3.030032815 | Q66: 5 | R66: 0 | S66: 0 | T66: 0 | U66: 0 | V66: 0 | W66: 0 | X66: 1 | Y66: 2 | Z66: 0 | AA66: 0 | AB66: 2 | AC66: 1 | AD66: 0
A67: ='Eligible by week pivot'!A33 -> 29 | B67: ='Eligible by week pivot'!B33 -> 17 | C67: 14.42352941 | D67: 25.81702601 | E67: 3.030032815 | Q67: 5 | R67: 0 | S67: 0 | T67: 0 | U67: 0 | V67: 0 | W67: 0 | X67: 1 | Y67: 0 | Z67: -1 | AA67: 0 | AB67: 3 | AC67: 2 | AD67: 0
A68: ='Eligible by week pivot'!A34 -> 30 | B68: ='Eligible by week pivot'!B34 -> 16 | C68: 14.42352941 | D68: 25.81702601 | E68: 3.030032815 | Q68: 5 | R68: 0 | S68: 0 | T68: 0 | U68: 0 | V68: 0 | W68: 0 | X68: 1 | Y68: 0 | Z68: -2 | AA68: 0 | AB68: 4 | AC68: 3 | AD68: 0
A69: ='Eligible by week pivot'!A35 -> 31 | B69: ='Eligible by week pivot'!B35 -> 7 | C69: 14.42352941 | D69: 25.81702601 | E69: 3.030032815 | Q69: 5 | R69: 0 | S69: 0 | T69: 0 | U69: 0 | V69: 0 | W69: 1 | X69: 1 | Y69: 0 | Z69: -3 | AA69: 0 | AB69: 0 | AC69: 0 | AD69: 1
A70: ='Eligible by week pivot'!A36 -> 32 | B70: ='Eligible by week pivot'!B36 -> 12 | C70: 14.42352941 | D70: 25.81702601 | E70: 3.030032815 | Q70: 5 | R70: 0 | S70: 0 | T70: 0 | U70: 0 | V70: 0 | W70: 0 | X70: 1 | Y70: 1 | Z70: 0 | AA70: 0 | AB70: 1 | AC70: 0 | AD70: 2
A71: ='Eligible by week pivot'!A37 -> 33 | B71: ='Eligible by week pivot'!B37 -> 17 | C71: 14.42352941 | D71: 25.81702601 | E71: 3.030032815 | Q71: 5 | R71: 0 | S71: 0 | T71: 0 | U71: 0 | V71: 0 | W71: 0 | X71: 1 | Y71: 2 | Z71: 0 | AA71: 0 | AB71: 2 | AC71: 1 | AD71: 0
A72: ='Eligible by week pivot'!A38 -> 34 | B72: ='Eligible by week pivot'!B38 -> 20 | C72: 14.42352941 | D72: 25.81702601 | E72: 3.030032815 | Q72: 5 | R72: 0 | S72: 0 | T72: 0 | U72: 0 | V72: 0 | W72: 1 | X72: 2 | Y72: 3 | Z72: 0 | AA72: 0 | AB72: 0 | AC72: 2 | AD72: 0
A73: ='Eligible by week pivot'!A39 -> 35 | B73: ='Eligible by week pivot'!B39 -> 18 | C73: 14.42352941 | D73: 25.81702601 | E73: 3.030032815 | Q73: 5 | R73: 0 | S73: 0 | T73: 0 | U73: 0 | V73: 0 | W73: 0 | X73: 2 | Y73: 0 | Z73: -1 | AA73: 0 | AB73: 1 | AC73: 3 | AD73: 0
A74: ='Eligible by week pivot'!A40 -> 36 | B74: ='Eligible by week pivot'!B40 -> 6 | C74: 14.42352941 | D74: 25.81702601 | E74: 3.030032815 | Q74: 5 | R74: 0 | S74: 0 | T74: 0 | U74: 1 | V74: 1 | W74: 1 | X74: 2 | Y74: 0 | Z74: -2 | AA74: 0 | AB74: 0 | AC74: 0 | AD74: 1
A75: ='Eligible by week pivot'!A41 -> 37 | B75: ='Eligible by week pivot'!B41 -> 8 | C75: 14.42352941 | D75: 25.81702601 | E75: 3.030032815 | Q75: 5 | R75: 0 | S75: 0 | T75: 0 | U75: 0 | V75: 1 | W75: 1 | X75: 3 | Y75: 1 | Z75: 0 | AA75: 0 | AB75: 0 | AC75: 0 | AD75: 2
A76: ='Eligible by week pivot'!A42 -> 38 | B76: ='Eligible by week pivot'!B42 -> 23 | C76: 14.42352941 | D76: 25.81702601 | E76: 3.030032815 | I76: 23 | J76: 23 | Q76: 5 | R76: 0 | S76: 0 | T76: 0 | U76: 1 | V76: 2 | W76: 1 | X76: 4 | Y76: 2 | Z76: 0 | AA76: 0 | AB76: 0 | AC76: 1 | AD76: 0
A77: ='Eligible by week pivot'!A43 -> 39 | B77: ='Eligible by week pivot'!B43 -> 9 | C77: 14.42352941 | D77: 25.81702601 | E77: 3.030032815 | J77: 9 | Q77: 5 | R77: 0 | S77: 0 | T77: 0 | U77: 0 | V77: 1 | W77: 1 | X77: 4 | Y77: 0 | Z77: -1 | AA77: 0 | AB77: 0 | AC77: 0 | AD77: 1
A78: ='Eligible by week pivot'!A44 -> 40 | B78: ='Eligible by week pivot'!B44 -> 14 | C78: 14.42352941 | D78: 25.81702601 | E78: 3.030032815 | J78: 14 | Q78: 5 | R78: 0 | S78: 0 | T78: 0 | U78: 0 | V78: 1 | W78: 0 | X78: 4 | Y78: 1 | Z78: 0 | AA78: 1 | AB78: 1 | AC78: 0 | AD78: 2
A79: ='Eligible by week pivot'!A45 -> 41 | B79: ='Eligible by week pivot'!B45 -> 20 | C79: =M$5 -> 14.42352941 | D79: =M$7 -> 25.81702601 | E79: =M$8 -> 3.030032815 | F79: =IF(B79>D79,B79,#N/A) ->  | G79: =IF(B79<E79,B79,#N/A) ->  | H79: =IF(OR(B79>$M$5+3*$M$6,B79<$M$5-3*$M$6),B79,#N/A) ->  | I79: =IF(V79>1,B79,#N/A) ->  | J79: =IF(X79>3,B79,#N/A) -> 20 | K79: =IF(Y79>5,B79,#N/A) ->  | L79: =IF(Z79<-5,B79,#N/A) ->  | M79: =IF(AA79>13,B79,#N/A) ->  | N79: =IF(AB79>14,B79,#N/A) ->  | O79: =IF(AC79>7,B79,#N/A) ->  | P79: =IF(AD79>7,B79,#N/A) ->  | Q79: =M$9 -> 5 | R79: =IF(B79>D79,1,0) -> 0 | S79: =IF(B79<E79,1,0) -> 0 | T79: =IF(OR(B79>$M$5+3*$M$6,B79<$M$5-3*$M$6),T78+1,0) -> 0 | U79: =IF(OR(B79>$M$5+2*$M$6,B79<$M$5-2*$M$6),1,0) -> 0 | V79: =SUM(U77:U79) -> 0 | W79: =IF(OR(B79>$M$5+1*$M$6,B79<$M$5-1*$M$6),1,0) -> 1 | X79: =SUM(W75:W79) -> 4 | Y79: =IF(B79>B78,Y78+1,0) -> 2 | Z79: =IF(B79<B78,Z78-1,0) -> 0 | AA79: =IF(OR(AND(Z79=-Y78,Z79<>0),AND(Y79=-Z78,Y79<>0)),AA78+1,0) -> 0 | AB79: =IF(AND(B79<M$5+1*M$6,B79>M$5-1*M$6),AB78+1,0) -> 0 | AC79: =IF(B79>C79,AC78+1,0) -> 1 | AD79: =IF(B79<C79,AD78+1,0) -> 0
A80: ='Eligible by week pivot'!A46 -> 42 | B80: ='Eligible by week pivot'!B46 -> 17 | C80: =M$5 -> 14.42352941 | D80: =M$7 -> 25.81702601 | E80: =M$8 -> 3.030032815 | F80: =IF(B80>D80,B80,#N/A) ->  | G80: =IF(B80<E80,B80,#N/A) ->  | H80: =IF(OR(B80>$M$5+3*$M$6,B80<$M$5-3*$M$6),B80,#N/A) ->  | I80: =IF(V80>1,B80,#N/A) ->  | J80: =IF(X80>3,B80,#N/A) ->  | K80: =IF(Y80>5,B80,#N/A) ->  | L80: =IF(Z80<-5,B80,#N/A) ->  | M80: =IF(AA80>13,B80,#N/A) ->  | N80: =IF(AB80>14,B80,#N/A) ->  | O80: =IF(AC80>7,B80,#N/A) ->  | P80: =IF(AD80>7,B80,#N/A) ->  | Q80: =M$9 -> 5 | R80: =IF(B80>D80,1,0) -> 0 | S80: =IF(B80<E80,1,0) -> 0 | T80: =IF(OR(B80>$M$5+3*$M$6,B80<$M$5-3*$M$6),T79+1,0) -> 0 | U80: =IF(OR(B80>$M$5+2*$M$6,B80<$M$5-2*$M$6),1,0) -> 0 | V80: =SUM(U78:U80) -> 0 | W80: =IF(OR(B80>$M$5+1*$M$6,B80<$M$5-1*$M$6),1,0) -> 0 | X80: =SUM(W76:W80) -> 3 | Y80: =IF(B80>B79,Y79+1,0) -> 0 | Z80: =IF(B80<B79,Z79-1,0) -> -1 | AA80: =IF(OR(AND(Z80=-Y79,Z80<>0),AND(Y80=-Z79,Y80<>0)),AA79+1,0) -> 0 | AB80: =IF(AND(B80<M$5+1*M$6,B80>M$5-1*M$6),AB79+1,0) -> 1 | AC80: =IF(B80>C80,AC79+1,0) -> 2 | AD80: =IF(B80<C80,AD79+1,0) -> 0
A81: ='Eligible by week pivot'!A47 -> 43 | B81: ='Eligible by week pivot'!B47 -> 12 | C81: 14.42352941 | D81: 25.81702601 | E81: 3.030032815 | Q81: 5 | R81: 0 | S81: 0 | T81: 0 | U81: 0 | V81: 0 | W81: 0 | X81: 2 | Y81: 0 | Z81: -2 | AA81: 0 | AB81: 2 | AC81: 0 | AD81: 1
A82: ='Eligible by week pivot'!A48 -> 44 | B82: ='Eligible by week pivot'!B48 -> 12 | C82: =M$5 -> 14.42352941 | D82: =M$7 -> 25.81702601 | E82: =M$8 -> 3.030032815 | F82: =IF(B82>D82,B82,#N/A) ->  | G82: =IF(B82<E82,B82,#N/A) ->  | H82: =IF(OR(B82>$M$5+3*$M$6,B82<$M$5-3*$M$6),B82,#N/A) ->  | I82: =IF(V82>1,B82,#N/A) ->  | J82: =IF(X82>3,B82,#N/A) ->  | K82: =IF(Y82>5,B82,#N/A) ->  | L82: =IF(Z82<-5,B82,#N/A) ->  | M82: =IF(AA82>13,B82,#N/A) ->  | N82: =IF(AB82>14,B82,#N/A) ->  | O82: =IF(AC82>7,B82,#N/A) ->  | P82: =IF(AD82>7,B82,#N/A) ->  | Q82: =M$9 -> 5 | R82: =IF(B82>D82,1,0) -> 0 | S82: =IF(B82<E82,1,0) -> 0 | T82: =IF(OR(B82>$M$5+3*$M$6,B82<$M$5-3*$M$6),T81+1,0) -> 0 | U82: =IF(OR(B82>$M$5+2*$M$6,B82<$M$5-2*$M$6),1,0) -> 0 | V82: =SUM(U80:U82) -> 0 | W82: =IF(OR(B82>$M$5+1*$M$6,B82<$M$5-1*$M$6),1,0) -> 0 | X82: =SUM(W78:W82) -> 1 | Y82: =IF(B82>B81,Y81+1,0) -> 0 | Z82: =IF(B82<B81,Z81-1,0) -> 0 | AA82: =IF(OR(AND(Z82=-Y81,Z82<>0),AND(Y82=-Z81,Y82<>0)),AA81+1,0) -> 0 | AB82: =IF(AND(B82<M$5+1*M$6,B82>M$5-1*M$6),AB81+1,0) -> 3 | AC82: =IF(B82>C82,AC81+1,0) -> 0 | AD82: =IF(B82<C82,AD81+1,0) -> 2
A83: ='Eligible by week pivot'!A49 -> 45 | B83: ='Eligible by week pivot'!B49 -> 15 | C83: 14.42352941 | D83: 25.81702601 | E83: 3.030032815 | Q83: 5 | R83: 0 | S83: 0 | T83: 0 | U83: 0 | V83: 0 | W83: 0 | X83: 1 | Y83: 1 | Z83: 0 | AA83: 0 | AB83: 4 | AC83: 1 | AD83: 0
A84: ='Eligible by week pivot'!A50 -> 46 | B84: ='Eligible by week pivot'!B50 -> 18 | C84: =M$5 -> 14.42352941 | D84: =M$7 -> 25.81702601 | E84: =M$8 -> 3.030032815 | F84: =IF(B84>D84,B84,#N/A) ->  | G84: =IF(B84<E84,B84,#N/A) ->  | H84: =IF(OR(B84>$M$5+3*$M$6,B84<$M$5-3*$M$6),B84,#N/A) ->  | I84: =IF(V84>1,B84,#N/A) ->  | J84: =IF(X84>3,B84,#N/A) ->  | K84: =IF(Y84>5,B84,#N/A) ->  | L84: =IF(Z84<-5,B84,#N/A) ->  | M84: =IF(AA84>13,B84,#N/A) ->  | N84: =IF(AB84>14,B84,#N/A) ->  | O84: =IF(AC84>7,B84,#N/A) ->  | P84: =IF(AD84>7,B84,#N/A) ->  | Q84: =M$9 -> 5 | R84: =IF(B84>D84,1,0) -> 0 | S84: =IF(B84<E84,1,0) -> 0 | T84: =IF(OR(B84>$M$5+3*$M$6,B84<$M$5-3*$M$6),T83+1,0) -> 0 | U84: =IF(OR(B84>$M$5+2*$M$6,B84<$M$5-2*$M$6),1,0) -> 0 | V84: =SUM(U82:U84) -> 0 | W84: =IF(OR(B84>$M$5+1*$M$6,B84<$M$5-1*$M$6),1,0) -> 0 | X84: =SUM(W80:W84) -> 0 | Y84: =IF(B84>B83,Y83+1,0) -> 2 | Z84: =IF(B84<B83,Z83-1,0) -> 0 | AA84: =IF(OR(AND(Z84=-Y83,Z84<>0),AND(Y84=-Z83,Y84<>0)),AA83+1,0) -> 0 | AB84: =IF(AND(B84<M$5+1*M$6,B84>M$5-1*M$6),AB83+1,0) -> 5 | AC84: =IF(B84>C84,AC83+1,0) -> 2 | AD84: =IF(B84<C84,AD83+1,0) -> 0
A85: ='Eligible by week pivot'!A51 -> 47 | B85: ='Eligible by week pivot'!B51 -> 18 | C85: =M$5 -> 14.42352941 | D85: =M$7 -> 25.81702601 | E85: =M$8 -> 3.030032815 | F85: =IF(B85>D85,B85,#N/A) ->  | G85: =IF(B85<E85,B85,#N/A) ->  | H85: =IF(OR(B85>$M$5+3*$M$6,B85<$M$5-3*$M$6),B85,#N/A) ->  | I85: =IF(V85>1,B85,#N/A) ->  | J85: =IF(X85>3,B85,#N/A) ->  | K85: =IF(Y85>5,B85,#N/A) ->  | L85: =IF(Z85<-5,B85,#N/A) ->  | M85: =IF(AA85>13,B85,#N/A) ->  | N85: =IF(AB85>14,B85,#N/A) ->  | O85: =IF(AC85>7,B85,#N/A) ->  | P85: =IF(AD85>7,B85,#N/A) ->  | Q85: =M$9 -> 5 | R85: =IF(B85>D85,1,0) -> 0 | S85: =IF(B85<E85,1,0) -> 0 | T85: =IF(OR(B85>$M$5+3*$M$6,B85<$M$5-3*$M$6),T84+1,0) -> 0 | U85: =IF(OR(B85>$M$5+2*$M$6,B85<$M$5-2*$M$6),1,0) -> 0 | V85: =SUM(U83:U85) -> 0 | W85: =IF(OR(B85>$M$5+1*$M$6,B85<$M$5-1*$M$6),1,0) -> 0 | X85: =SUM(W81:W85) -> 0 | Y85: =IF(B85>B84,Y84+1,0) -> 0 | Z85: =IF(B85<B84,Z84-1,0) -> 0 | AA85: =IF(OR(AND(Z85=-Y84,Z85<>0),AND(Y85=-Z84,Y85<>0)),AA84+1,0) -> 0 | AB85: =IF(AND(B85<M$5+1*M$6,B85>M$5-1*M$6),AB84+1,0) -> 6 | AC85: =IF(B85>C85,AC84+1,0) -> 3 | AD85: =IF(B85<C85,AD84+1,0) -> 0
A86: ='Eligible by week pivot'!A52 -> 48 | B86: ='Eligible by week pivot'!B52 -> 16 | C86: =M$5 -> 14.42352941 | D86: =M$7 -> 25.81702601 | E86: =M$8 -> 3.030032815 | F86: =IF(B86>D86,B86,#N/A) ->  | G86: =IF(B86<E86,B86,#N/A) ->  | H86: =IF(OR(B86>$M$5+3*$M$6,B86<$M$5-3*$M$6),B86,#N/A) ->  | I86: =IF(V86>1,B86,#N/A) ->  | J86: =IF(X86>3,B86,#N/A) ->  | K86: =IF(Y86>5,B86,#N/A) ->  | L86: =IF(Z86<-5,B86,#N/A) ->  | M86: =IF(AA86>13,B86,#N/A) ->  | N86: =IF(AB86>14,B86,#N/A) ->  | O86: =IF(AC86>7,B86,#N/A) ->  | P86: =IF(AD86>7,B86,#N/A) ->  | Q86: =M$9 -> 5 | R86: =IF(B86>D86,1,0) -> 0 | S86: =IF(B86<E86,1,0) -> 0 | T86: =IF(OR(B86>$M$5+3*$M$6,B86<$M$5-3*$M$6),T85+1,0) -> 0 | U86: =IF(OR(B86>$M$5+2*$M$6,B86<$M$5-2*$M$6),1,0) -> 0 | V86: =SUM(U84:U86) -> 0 | W86: =IF(OR(B86>$M$5+1*$M$6,B86<$M$5-1*$M$6),1,0) -> 0 | X86: =SUM(W82:W86) -> 0 | Y86: =IF(B86>B85,Y85+1,0) -> 0 | Z86: =IF(B86<B85,Z85-1,0) -> -1 | AA86: =IF(OR(AND(Z86=-Y85,Z86<>0),AND(Y86=-Z85,Y86<>0)),AA85+1,0) -> 0 | AB86: =IF(AND(B86<M$5+1*M$6,B86>M$5-1*M$6),AB85+1,0) -> 7 | AC86: =IF(B86>C86,AC85+1,0) -> 4 | AD86: =IF(B86<C86,AD85+1,0) -> 0
A87: ='Eligible by week pivot'!A53 -> 49 | B87: ='Eligible by week pivot'!B53 -> 15 | C87: =M$5 -> 14.42352941 | D87: =M$7 -> 25.81702601 | E87: =M$8 -> 3.030032815 | F87: =IF(B87>D87,B87,#N/A) ->  | G87: =IF(B87<E87,B87,#N/A) ->  | H87: =IF(OR(B87>$M$5+3*$M$6,B87<$M$5-3*$M$6),B87,#N/A) ->  | I87: =IF(V87>1,B87,#N/A) ->  | J87: =IF(X87>3,B87,#N/A) ->  | K87: =IF(Y87>5,B87,#N/A) ->  | L87: =IF(Z87<-5,B87,#N/A) ->  | M87: =IF(AA87>13,B87,#N/A) ->  | N87: =IF(AB87>14,B87,#N/A) ->  | O87: =IF(AC87>7,B87,#N/A) ->  | P87: =IF(AD87>7,B87,#N/A) ->  | Q87: =M$9 -> 5 | R87: =IF(B87>D87,1,0) -> 0 | S87: =IF(B87<E87,1,0) -> 0 | T87: =IF(OR(B87>$M$5+3*$M$6,B87<$M$5-3*$M$6),T86+1,0) -> 0 | U87: =IF(OR(B87>$M$5+2*$M$6,B87<$M$5-2*$M$6),1,0) -> 0 | V87: =SUM(U85:U87) -> 0 | W87: =IF(OR(B87>$M$5+1*$M$6,B87<$M$5-1*$M$6),1,0) -> 0 | X87: =SUM(W83:W87) -> 0 | Y87: =IF(B87>B86,Y86+1,0) -> 0 | Z87: =IF(B87<B86,Z86-1,0) -> -2 | AA87: =IF(OR(AND(Z87=-Y86,Z87<>0),AND(Y87=-Z86,Y87<>0)),AA86+1,0) -> 0 | AB87: =IF(AND(B87<M$5+1*M$6,B87>M$5-1*M$6),AB86+1,0) -> 8 | AC87: =IF(B87>C87,AC86+1,0) -> 5 | AD87: =IF(B87<C87,AD86+1,0) -> 0
A88: ='Eligible by week pivot'!A54 -> 50 | B88: ='Eligible by week pivot'!B54 -> 7 | C88: =M$5 -> 14.42352941 | D88: =M$7 -> 25.81702601 | E88: =M$8 -> 3.030032815 | F88: =IF(B88>D88,B88,#N/A) ->  | G88: =IF(B88<E88,B88,#N/A) ->  | H88: =IF(OR(B88>$M$5+3*$M$6,B88<$M$5-3*$M$6),B88,#N/A) ->  | I88: =IF(V88>1,B88,#N/A) ->  | J88: =IF(X88>3,B88,#N/A) ->  | K88: =IF(Y88>5,B88,#N/A) ->  | L88: =IF(Z88<-5,B88,#N/A) ->  | M88: =IF(AA88>13,B88,#N/A) ->  | N88: =IF(AB88>14,B88,#N/A) ->  | O88: =IF(AC88>7,B88,#N/A) ->  | P88: =IF(AD88>7,B88,#N/A) ->  | Q88: =M$9 -> 5 | R88: =IF(B88>D88,1,0) -> 0 | S88: =IF(B88<E88,1,0) -> 0 | T88: =IF(OR(B88>$M$5+3*$M$6,B88<$M$5-3*$M$6),T87+1,0) -> 0 | U88: =IF(OR(B88>$M$5+2*$M$6,B88<$M$5-2*$M$6),1,0) -> 0 | V88: =SUM(U86:U88) -> 0 | W88: =IF(OR(B88>$M$5+1*$M$6,B88<$M$5-1*$M$6),1,0) -> 1 | X88: =SUM(W84:W88) -> 1 | Y88: =IF(B88>B87,Y87+1,0) -> 0 | Z88: =IF(B88<B87,Z87-1,0) -> -3 | AA88: =IF(OR(AND(Z88=-Y87,Z88<>0),AND(Y88=-Z87,Y88<>0)),AA87+1,0) -> 0 | AB88: =IF(AND(B88<M$5+1*M$6,B88>M$5-1*M$6),AB87+1,0) -> 0 | AC88: =IF(B88>C88,AC87+1,0) -> 0 | AD88: =IF(B88<C88,AD87+1,0) -> 1
A89: ='Eligible by week pivot'!A55 -> 51 | B89: ='Eligible by week pivot'!B55 -> 13 | C89: =M$5 -> 14.42352941 | D89: =M$7 -> 25.81702601 | E89: =M$8 -> 3.030032815 | F89: =IF(B89>D89,B89,#N/A) ->  | G89: =IF(B89<E89,B89,#N/A) ->  | H89: =IF(OR(B89>$M$5+3*$M$6,B89<$M$5-3*$M$6),B89,#N/A) ->  | I89: =IF(V89>1,B89,#N/A) ->  | J89: =IF(X89>3,B89,#N/A) ->  | K89: =IF(Y89>5,B89,#N/A) ->  | L89: =IF(Z89<-5,B89,#N/A) ->  | M89: =IF(AA89>13,B89,#N/A) ->  | N89: =IF(AB89>14,B89,#N/A) ->  | O89: =IF(AC89>7,B89,#N/A) ->  | P89: =IF(AD89>7,B89,#N/A) ->  | Q89: =M$9 -> 5 | R89: =IF(B89>D89,1,0) -> 0 | S89: =IF(B89<E89,1,0) -> 0 | T89: =IF(OR(B89>$M$5+3*$M$6,B89<$M$5-3*$M$6),T88+1,0) -> 0 | U89: =IF(OR(B89>$M$5+2*$M$6,B89<$M$5-2*$M$6),1,0) -> 0 | V89: =SUM(U87:U89) -> 0 | W89: =IF(OR(B89>$M$5+1*$M$6,B89<$M$5-1*$M$6),1,0) -> 0 | X89: =SUM(W85:W89) -> 1 | Y89: =IF(B89>B88,Y88+1,0) -> 1 | Z89: =IF(B89<B88,Z88-1,0) -> 0 | AA89: =IF(OR(AND(Z89=-Y88,Z89<>0),AND(Y89=-Z88,Y89<>0)),AA88+1,0) -> 0 | AB89: =IF(AND(B89<M$5+1*M$6,B89>M$5-1*M$6),AB88+1,0) -> 1 | AC89: =IF(B89>C89,AC88+1,0) -> 0 | AD89: =IF(B89<C89,AD88+1,0) -> 2
A90: ='Eligible by week pivot'!A56 -> 52 | B90: ='Eligible by week pivot'!B56 -> 18 | C90: =M$5 -> 14.42352941 | D90: =M$7 -> 25.81702601 | E90: =M$8 -> 3.030032815 | F90: =IF(B90>D90,B90,#N/A) ->  | G90: =IF(B90<E90,B90,#N/A) ->  | H90: =IF(OR(B90>$M$5+3*$M$6,B90<$M$5-3*$M$6),B90,#N/A) ->  | I90: =IF(V90>1,B90,#N/A) ->  | J90: =IF(X90>3,B90,#N/A) ->  | K90: =IF(Y90>5,B90,#N/A) ->  | L90: =IF(Z90<-5,B90,#N/A) ->  | M90: =IF(AA90>13,B90,#N/A) ->  | N90: =IF(AB90>14,B90,#N/A) ->  | O90: =IF(AC90>7,B90,#N/A) ->  | P90: =IF(AD90>7,B90,#N/A) ->  | Q90: =M$9 -> 5 | R90: =IF(B90>D90,1,0) -> 0 | S90: =IF(B90<E90,1,0) -> 0 | T90: =IF(OR(B90>$M$5+3*$M$6,B90<$M$5-3*$M$6),T89+1,0) -> 0 | U90: =IF(OR(B90>$M$5+2*$M$6,B90<$M$5-2*$M$6),1,0) -> 0 | V90: =SUM(U88:U90) -> 0 | W90: =IF(OR(B90>$M$5+1*$M$6,B90<$M$5-1*$M$6),1,0) -> 0 | X90: =SUM(W86:W90) -> 1 | Y90: =IF(B90>B89,Y89+1,0) -> 2 | Z90: =IF(B90<B89,Z89-1,0) -> 0 | AA90: =IF(OR(AND(Z90=-Y89,Z90<>0),AND(Y90=-Z89,Y90<>0)),AA89+1,0) -> 0 | AB90: =IF(AND(B90<M$5+1*M$6,B90>M$5-1*M$6),AB89+1,0) -> 2 | AC90: =IF(B90>C90,AC89+1,0) -> 1 | AD90: =IF(B90<C90,AD89+1,0) -> 0
A91: ='Eligible by week pivot'!A57 -> 53 | B91: ='Eligible by week pivot'!B57 -> 12 | C91: =M$5 -> 14.42352941 | D91: =M$7 -> 25.81702601 | E91: =M$8 -> 3.030032815 | F91: =IF(B91>D91,B91,#N/A) ->  | G91: =IF(B91<E91,B91,#N/A) ->  | H91: =IF(OR(B91>$M$5+3*$M$6,B91<$M$5-3*$M$6),B91,#N/A) ->  | I91: =IF(V91>1,B91,#N/A) ->  | J91: =IF(X91>3,B91,#N/A) ->  | K91: =IF(Y91>5,B91,#N/A) ->  | L91: =IF(Z91<-5,B91,#N/A) ->  | M91: =IF(AA91>13,B91,#N/A) ->  | N91: =IF(AB91>14,B91,#N/A) ->  | O91: =IF(AC91>7,B91,#N/A) ->  | P91: =IF(AD91>7,B91,#N/A) ->  | Q91: =M$9 -> 5 | R91: =IF(B91>D91,1,0) -> 0 | S91: =IF(B91<E91,1,0) -> 0 | T91: =IF(OR(B91>$M$5+3*$M$6,B91<$M$5-3*$M$6),T90+1,0) -> 0 | U91: =IF(OR(B91>$M$5+2*$M$6,B91<$M$5-2*$M$6),1,0) -> 0 | V91: =SUM(U89:U91) -> 0 | W91: =IF(OR(B91>$M$5+1*$M$6,B91<$M$5-1*$M$6),1,0) -> 0 | X91: =SUM(W87:W91) -> 1 | Y91: =IF(B91>B90,Y90+1,0) -> 0 | Z91: =IF(B91<B90,Z90-1,0) -> -1 | AA91: =IF(OR(AND(Z91=-Y90,Z91<>0),AND(Y91=-Z90,Y91<>0)),AA90+1,0) -> 0 | AB91: =IF(AND(B91<M$5+1*M$6,B91>M$5-1*M$6),AB90+1,0) -> 3 | AC91: =IF(B91>C91,AC90+1,0) -> 0 | AD91: =IF(B91<C91,AD90+1,0) -> 1
A92: ='Eligible by week pivot'!A58 -> 54 | B92: ='Eligible by week pivot'!B58 -> 14 | C92: =M$5 -> 14.42352941 | D92: =M$7 -> 25.81702601 | E92: =M$8 -> 3.030032815 | F92: =IF(B92>D92,B92,#N/A) ->  | G92: =IF(B92<E92,B92,#N/A) ->  | H92: =IF(OR(B92>$M$5+3*$M$6,B92<$M$5-3*$M$6),B92,#N/A) ->  | I92: =IF(V92>1,B92,#N/A) ->  | J92: =IF(X92>3,B92,#N/A) ->  | K92: =IF(Y92>5,B92,#N/A) ->  | L92: =IF(Z92<-5,B92,#N/A) ->  | M92: =IF(AA92>13,B92,#N/A) ->  | N92: =IF(AB92>14,B92,#N/A) ->  | O92: =IF(AC92>7,B92,#N/A) ->  | P92: =IF(AD92>7,B92,#N/A) ->  | Q92: =M$9 -> 5 | R92: =IF(B92>D92,1,0) -> 0 | S92: =IF(B92<E92,1,0) -> 0 | T92: =IF(OR(B92>$M$5+3*$M$6,B92<$M$5-3*$M$6),T91+1,0) -> 0 | U92: =IF(OR(B92>$M$5+2*$M$6,B92<$M$5-2*$M$6),1,0) -> 0 | V92: =SUM(U90:U92) -> 0 | W92: =IF(OR(B92>$M$5+1*$M$6,B92<$M$5-1*$M$6),1,0) -> 0 | X92: =SUM(W88:W92) -> 1 | Y92: =IF(B92>B91,Y91+1,0) -> 1 | Z92: =IF(B92<B91,Z91-1,0) -> 0 | AA92: =IF(OR(AND(Z92=-Y91,Z92<>0),AND(Y92=-Z91,Y92<>0)),AA91+1,0) -> 1 | AB92: =IF(AND(B92<M$5+1*M$6,B92>M$5-1*M$6),AB91+1,0) -> 4 | AC92: =IF(B92>C92,AC91+1,0) -> 0 | AD92: =IF(B92<C92,AD91+1,0) -> 2
A93: ='Eligible by week pivot'!A59 -> 55 | B93: ='Eligible by week pivot'!B59 -> 16 | C93: =M$5 -> 14.42352941 | D93: =M$7 -> 25.81702601 | E93: =M$8 -> 3.030032815 | F93: =IF(B93>D93,B93,#N/A) ->  | G93: =IF(B93<E93,B93,#N/A) ->  | H93: =IF(OR(B93>$M$5+3*$M$6,B93<$M$5-3*$M$6),B93,#N/A) ->  | I93: =IF(V93>1,B93,#N/A) ->  | J93: =IF(X93>3,B93,#N/A) ->  | K93: =IF(Y93>5,B93,#N/A) ->  | L93: =IF(Z93<-5,B93,#N/A) ->  | M93: =IF(AA93>13,B93,#N/A) ->  | N93: =IF(AB93>14,B93,#N/A) ->  | O93: =IF(AC93>7,B93,#N/A) ->  | P93: =IF(AD93>7,B93,#N/A) ->  | Q93: =M$9 -> 5 | R93: =IF(B93>D93,1,0) -> 0 | S93: =IF(B93<E93,1,0) -> 0 | T93: =IF(OR(B93>$M$5+3*$M$6,B93<$M$5-3*$M$6),T92+1,0) -> 0 | U93: =IF(OR(B93>$M$5+2*$M$6,B93<$M$5-2*$M$6),1,0) -> 0 | V93: =SUM(U91:U93) -> 0 | W93: =IF(OR(B93>$M$5+1*$M$6,B93<$M$5-1*$M$6),1,0) -> 0 | X93: =SUM(W89:W93) -> 0 | Y93: =IF(B93>B92,Y92+1,0) -> 2 | Z93: =IF(B93<B92,Z92-1,0) -> 0 | AA93: =IF(OR(AND(Z93=-Y92,Z93<>0),AND(Y93=-Z92,Y93<>0)),AA92+1,0) -> 0 | AB93: =IF(AND(B93<M$5+1*M$6,B93>M$5-1*M$6),AB92+1,0) -> 5 | AC93: =IF(B93>C93,AC92+1,0) -> 1 | AD93: =IF(B93<C93,AD92+1,0) -> 0
A94: ='Eligible by week pivot'!A60 -> 56 | B94: ='Eligible by week pivot'!B60 -> 15 | C94: =M$5 -> 14.42352941 | D94: =M$7 -> 25.81702601 | E94: =M$8 -> 3.030032815 | F94: =IF(B94>D94,B94,#N/A) ->  | G94: =IF(B94<E94,B94,#N/A) ->  | H94: =IF(OR(B94>$M$5+3*$M$6,B94<$M$5-3*$M$6),B94,#N/A) ->  | I94: =IF(V94>1,B94,#N/A) ->  | J94: =IF(X94>3,B94,#N/A) ->  | K94: =IF(Y94>5,B94,#N/A) ->  | L94: =IF(Z94<-5,B94,#N/A) ->  | M94: =IF(AA94>13,B94,#N/A) ->  | N94: =IF(AB94>14,B94,#N/A) ->  | O94: =IF(AC94>7,B94,#N/A) ->  | P94: =IF(AD94>7,B94,#N/A) ->  | Q94: =M$9 -> 5 | R94: =IF(B94>D94,1,0) -> 0 | S94: =IF(B94<E94,1,0) -> 0 | T94: =IF(OR(B94>$M$5+3*$M$6,B94<$M$5-3*$M$6),T93+1,0) -> 0 | U94: =IF(OR(B94>$M$5+2*$M$6,B94<$M$5-2*$M$6),1,0) -> 0 | V94: =SUM(U92:U94) -> 0 | W94: =IF(OR(B94>$M$5+1*$M$6,B94<$M$5-1*$M$6),1,0) -> 0 | X94: =SUM(W90:W94) -> 0 | Y94: =IF(B94>B93,Y93+1,0) -> 0 | Z94: =IF(B94<B93,Z93-1,0) -> -1 | AA94: =IF(OR(AND(Z94=-Y93,Z94<>0),AND(Y94=-Z93,Y94<>0)),AA93+1,0) -> 0 | AB94: =IF(AND(B94<M$5+1*M$6,B94>M$5-1*M$6),AB93+1,0) -> 6 | AC94: =IF(B94>C94,AC93+1,0) -> 2 | AD94: =IF(B94<C94,AD93+1,0) -> 0
A95: ='Eligible by week pivot'!A61 -> 57 | B95: ='Eligible by week pivot'!B61 -> 17 | C95: =M$5 -> 14.42352941 | D95: =M$7 -> 25.81702601 | E95: =M$8 -> 3.030032815 | F95: =IF(B95>D95,B95,#N/A) ->  | G95: =IF(B95<E95,B95,#N/A) ->  | H95: =IF(OR(B95>$M$5+3*$M$6,B95<$M$5-3*$M$6),B95,#N/A) ->  | I95: =IF(V95>1,B95,#N/A) ->  | J95: =IF(X95>3,B95,#N/A) ->  | K95: =IF(Y95>5,B95,#N/A) ->  | L95: =IF(Z95<-5,B95,#N/A) ->  | M95: =IF(AA95>13,B95,#N/A) ->  | N95: =IF(AB95>14,B95,#N/A) ->  | O95: =IF(AC95>7,B95,#N/A) ->  | P95: =IF(AD95>7,B95,#N/A) ->  | Q95: =M$9 -> 5 | R95: =IF(B95>D95,1,0) -> 0 | S95: =IF(B95<E95,1,0) -> 0 | T95: =IF(OR(B95>$M$5+3*$M$6,B95<$M$5-3*$M$6),T94+1,0) -> 0 | U95: =IF(OR(B95>$M$5+2*$M$6,B95<$M$5-2*$M$6),1,0) -> 0 | V95: =SUM(U93:U95) -> 0 | W95: =IF(OR(B95>$M$5+1*$M$6,B95<$M$5-1*$M$6),1,0) -> 0 | X95: =SUM(W91:W95) -> 0 | Y95: =IF(B95>B94,Y94+1,0) -> 1 | Z95: =IF(B95<B94,Z94-1,0) -> 0 | AA95: =IF(OR(AND(Z95=-Y94,Z95<>0),AND(Y95=-Z94,Y95<>0)),AA94+1,0) -> 1 | AB95: =IF(AND(B95<M$5+1*M$6,B95>M$5-1*M$6),AB94+1,0) -> 7 | AC95: =IF(B95>C95,AC94+1,0) -> 3 | AD95: =IF(B95<C95,AD94+1,0) -> 0
A96: ='Eligible by week pivot'!A62 -> 58 | B96: ='Eligible by week pivot'!B62 -> 16 | C96: =M$5 -> 14.42352941 | D96: =M$7 -> 25.81702601 | E96: =M$8 -> 3.030032815 | F96: =IF(B96>D96,B96,#N/A) ->  | G96: =IF(B96<E96,B96,#N/A) ->  | H96: =IF(OR(B96>$M$5+3*$M$6,B96<$M$5-3*$M$6),B96,#N/A) ->  | I96: =IF(V96>1,B96,#N/A) ->  | J96: =IF(X96>3,B96,#N/A) ->  | K96: =IF(Y96>5,B96,#N/A) ->  | L96: =IF(Z96<-5,B96,#N/A) ->  | M96: =IF(AA96>13,B96,#N/A) ->  | N96: =IF(AB96>14,B96,#N/A) ->  | O96: =IF(AC96>7,B96,#N/A) ->  | P96: =IF(AD96>7,B96,#N/A) ->  | Q96: =M$9 -> 5 | R96: =IF(B96>D96,1,0) -> 0 | S96: =IF(B96<E96,1,0) -> 0 | T96: =IF(OR(B96>$M$5+3*$M$6,B96<$M$5-3*$M$6),T95+1,0) -> 0 | U96: =IF(OR(B96>$M$5+2*$M$6,B96<$M$5-2*$M$6),1,0) -> 0 | V96: =SUM(U94:U96) -> 0 | W96: =IF(OR(B96>$M$5+1*$M$6,B96<$M$5-1*$M$6),1,0) -> 0 | X96: =SUM(W92:W96) -> 0 | Y96: =IF(B96>B95,Y95+1,0) -> 0 | Z96: =IF(B96<B95,Z95-1,0) -> -1 | AA96: =IF(OR(AND(Z96=-Y95,Z96<>0),AND(Y96=-Z95,Y96<>0)),AA95+1,0) -> 2 | AB96: =IF(AND(B96<M$5+1*M$6,B96>M$5-1*M$6),AB95+1,0) -> 8 | AC96: =IF(B96>C96,AC95+1,0) -> 4 | AD96: =IF(B96<C96,AD95+1,0) -> 0
A97: ='Eligible by week pivot'!A63 -> 59 | B97: ='Eligible by week pivot'!B63 -> 31 | C97: 14.42352941 | D97: 25.81702601 | E97: 3.030032815 | F97: 31 | H97: 31 | Q97: 5 | R97: 1 | S97: 0 | T97: 1 | U97: 1 | V97: 1 | W97: 1 | X97: 1 | Y97: 1 | Z97: 0 | AA97: 3 | AB97: 0 | AC97: 5 | AD97: 0
A98: ='Eligible by week pivot'!A64 -> 60 | B98: ='Eligible by week pivot'!B64 -> 23 | C98: 14.42352941 | D98: 25.81702601 | E98: 3.030032815 | I98: 23 | Q98: 5 | R98: 0 | S98: 0 | T98: 0 | U98: 1 | V98: 2 | W98: 1 | X98: 2 | Y98: 0 | Z98: -1 | AA98: 4 | AB98: 0 | AC98: 6 | AD98: 0
A99: ='Eligible by week pivot'!A65 -> 61 | B99: ='Eligible by week pivot'!B65 -> 17 | C99: =M$5 -> 14.42352941 | D99: =M$7 -> 25.81702601 | E99: =M$8 -> 3.030032815 | F99: =IF(B99>D99,B99,#N/A) ->  | G99: =IF(B99<E99,B99,#N/A) ->  | H99: =IF(OR(B99>$M$5+3*$M$6,B99<$M$5-3*$M$6),B99,#N/A) ->  | I99: =IF(V99>1,B99,#N/A) -> 17 | J99: =IF(X99>3,B99,#N/A) ->  | K99: =IF(Y99>5,B99,#N/A) ->  | L99: =IF(Z99<-5,B99,#N/A) ->  | M99: =IF(AA99>13,B99,#N/A) ->  | N99: =IF(AB99>14,B99,#N/A) ->  | O99: =IF(AC99>7,B99,#N/A) ->  | P99: =IF(AD99>7,B99,#N/A) ->  | Q99: =M$9 -> 5 | R99: =IF(B99>D99,1,0) -> 0 | S99: =IF(B99<E99,1,0) -> 0 | T99: =IF(OR(B99>$M$5+3*$M$6,B99<$M$5-3*$M$6),T98+1,0) -> 0 | U99: =IF(OR(B99>$M$5+2*$M$6,B99<$M$5-2*$M$6),1,0) -> 0 | V99: =SUM(U97:U99) -> 2 | W99: =IF(OR(B99>$M$5+1*$M$6,B99<$M$5-1*$M$6),1,0) -> 0 | X99: =SUM(W95:W99) -> 2 | Y99: =IF(B99>B98,Y98+1,0) -> 0 | Z99: =IF(B99<B98,Z98-1,0) -> -2 | AA99: =IF(OR(AND(Z99=-Y98,Z99<>0),AND(Y99=-Z98,Y99<>0)),AA98+1,0) -> 0 | AB99: =IF(AND(B99<M$5+1*M$6,B99>M$5-1*M$6),AB98+1,0) -> 1 | AC99: =IF(B99>C99,AC98+1,0) -> 7 | AD99: =IF(B99<C99,AD98+1,0) -> 0
A100: ='Eligible by week pivot'!A66 -> 62 | B100: ='Eligible by week pivot'!B66 -> 20 | C100: =M$5 -> 14.42352941 | D100: =M$7 -> 25.81702601 | E100: =M$8 -> 3.030032815 | F100: =IF(B100>D100,B100,#N/A) ->  | G100: =IF(B100<E100,B100,#N/A) ->  | H100: =IF(OR(B100>$M$5+3*$M$6,B100<$M$5-3*$M$6),B100,#N/A) ->  | I100: =IF(V100>1,B100,#N/A) ->  | J100: =IF(X100>3,B100,#N/A) ->  | K100: =IF(Y100>5,B100,#N/A) ->  | L100: =IF(Z100<-5,B100,#N/A) ->  | M100: =IF(AA100>13,B100,#N/A) ->  | N100: =IF(AB100>14,B100,#N/A) ->  | O100: =IF(AC100>7,B100,#N/A) -> 20 | P100: =IF(AD100>7,B100,#N/A) ->  | Q100: =M$9 -> 5 | R100: =IF(B100>D100,1,0) -> 0 | S100: =IF(B100<E100,1,0) -> 0 | T100: =IF(OR(B100>$M$5+3*$M$6,B100<$M$5-3*$M$6),T99+1,0) -> 0 | U100: =IF(OR(B100>$M$5+2*$M$6,B100<$M$5-2*$M$6),1,0) -> 0 | V100: =SUM(U98:U100) -> 1 | W100: =IF(OR(B100>$M$5+1*$M$6,B100<$M$5-1*$M$6),1,0) -> 1 | X100: =SUM(W96:W100) -> 3 | Y100: =IF(B100>B99,Y99+1,0) -> 1 | Z100: =IF(B100<B99,Z99-1,0) -> 0 | AA100: =IF(OR(AND(Z100=-Y99,Z100<>0),AND(Y100=-Z99,Y100<>0)),AA99+1,0) -> 0 | AB100: =IF(AND(B100<M$5+1*M$6,B100>M$5-1*M$6),AB99+1,0) -> 0 | AC100: =IF(B100>C100,AC99+1,0) -> 8 | AD100: =IF(B100<C100,AD99+1,0) -> 0
A101: ='Eligible by week pivot'!A67 -> 63 | B101: ='Eligible by week pivot'!B67 -> 29 | C101: =M$5 -> 14.42352941 | D101: =M$7 -> 25.81702601 | E101: =M$8 -> 3.030032815 | F101: =IF(B101>D101,B101,#N/A) -> 29 | G101: =IF(B101<E101,B101,#N/A) ->  | H101: =IF(OR(B101>$M$5+3*$M$6,B101<$M$5-3*$M$6),B101,#N/A) -> 29 | I101: =IF(V101>1,B101,#N/A) ->  | J101: =IF(X101>3,B101,#N/A) -> 29 | K101: =IF(Y101>5,B101,#N/A) ->  | L101: =IF(Z101<-5,B101,#N/A) ->  | M101: =IF(AA101>13,B101,#N/A) ->  | N101: =IF(AB101>14,B101,#N/A) ->  | O101: =IF(AC101>7,B101,#N/A) -> 29 | P101: =IF(AD101>7,B101,#N/A) ->  | Q101: =M$9 -> 5 | R101: =IF(B101>D101,1,0) -> 1 | S101: =IF(B101<E101,1,0) -> 0 | T101: =IF(OR(B101>$M$5+3*$M$6,B101<$M$5-3*$M$6),T100+1,0) -> 1 | U101: =IF(OR(B101>$M$5+2*$M$6,B101<$M$5-2*$M$6),1,0) -> 1 | V101: =SUM(U99:U101) -> 1 | W101: =IF(OR(B101>$M$5+1*$M$6,B101<$M$5-1*$M$6),1,0) -> 1 | X101: =SUM(W97:W101) -> 4 | Y101: =IF(B101>B100,Y100+1,0) -> 2 | Z101: =IF(B101<B100,Z100-1,0) -> 0 | AA101: =IF(OR(AND(Z101=-Y100,Z101<>0),AND(Y101=-Z100,Y101<>0)),AA100+1,0) -> 0 | AB101: =IF(AND(B101<M$5+1*M$6,B101>M$5-1*M$6),AB100+1,0) -> 0 | AC101: =IF(B101>C101,AC100+1,0) -> 9 | AD101: =IF(B101<C101,AD100+1,0) -> 0
A102: ='Eligible by week pivot'!A68 -> 64 | B102: ='Eligible by week pivot'!B68 -> 25 | C102: =M$5 -> 14.42352941 | D102: =M$7 -> 25.81702601 | E102: =M$8 -> 3.030032815 | F102: =IF(B102>D102,B102,#N/A) ->  | G102: =IF(B102<E102,B102,#N/A) ->  | H102: =IF(OR(B102>$M$5+3*$M$6,B102<$M$5-3*$M$6),B102,#N/A) ->  | I102: =IF(V102>1,B102,#N/A) -> 25 | J102: =IF(X102>3,B102,#N/A) -> 25 | K102: =IF(Y102>5,B102,#N/A) ->  | L102: =IF(Z102<-5,B102,#N/A) ->  | M102: =IF(AA102>13,B102,#N/A) ->  | N102: =IF(AB102>14,B102,#N/A) ->  | O102: =IF(AC102>7,B102,#N/A) -> 25 | P102: =IF(AD102>7,B102,#N/A) ->  | Q102: =M$9 -> 5 | R102: =IF(B102>D102,1,0) -> 0 | S102: =IF(B102<E102,1,0) -> 0 | T102: =IF(OR(B102>$M$5+3*$M$6,B102<$M$5-3*$M$6),T101+1,0) -> 0 | U102: =IF(OR(B102>$M$5+2*$M$6,B102<$M$5-2*$M$6),1,0) -> 1 | V102: =SUM(U100:U102) -> 2 | W102: =IF(OR(B102>$M$5+1*$M$6,B102<$M$5-1*$M$6),1,0) -> 1 | X102: =SUM(W98:W102) -> 4 | Y102: =IF(B102>B101,Y101+1,0) -> 0 | Z102: =IF(B102<B101,Z101-1,0) -> -1 | AA102: =IF(OR(AND(Z102=-Y101,Z102<>0),AND(Y102=-Z101,Y102<>0)),AA101+1,0) -> 0 | AB102: =IF(AND(B102<M$5+1*M$6,B102>M$5-1*M$6),AB101+1,0) -> 0 | AC102: =IF(B102>C102,AC101+1,0) -> 10 | AD102: =IF(B102<C102,AD101+1,0) -> 0
A103: ='Eligible by week pivot'!A69 -> 65 | B103: ='Eligible by week pivot'!B69 -> 22 | C103: 14.42352941 | D103: 25.81702601 | E103: 3.030032815 | I103: 22 | J103: 22 | O103: 22 | Q103: 5 | R103: 0 | S103: 0 | T103: 0 | U103: 0 | V103: 2 | W103: 1 | X103: 4 | Y103: 0 | Z103: -2 | AA103: 0 | AB103: 0 | AC103: 11 | AD103: 0
A104: ='Eligible by week pivot'!A70 -> 66 | B104: ='Eligible by week pivot'!B70 -> 27 | C104: 14.42352941 | D104: 25.81702601 | E104: 3.030032815 | F104: 27 | H104: 27 | I104: 27 | J104: 27 | O104: 27 | Q104: 5 | R104: 1 | S104: 0 | T104: 1 | U104: 1 | V104: 2 | W104: 1 | X104: 5 | Y104: 1 | Z104: 0 | AA104: 0 | AB104: 0 | AC104: 12 | AD104: 0
A105: ='Eligible by week pivot'!A71 -> 67 | B105: ='Eligible by week pivot'!B71 -> 22 | C105: 14.42352941 | D105: 25.81702601 | E105: 3.030032815 | J105: 22 | O105: 22 | Q105: 5 | R105: 0 | S105: 0 | T105: 0 | U105: 0 | V105: 1 | W105: 1 | X105: 5 | Y105: 0 | Z105: -1 | AA105: 1 | AB105: 0 | AC105: 13 | AD105: 0
A106: ='Eligible by week pivot'!A72 -> 68 | B106: ='Eligible by week pivot'!B72 -> 26 | C106: 14.42352941 | D106: 25.81702601 | E106: 3.030032815 | F106: 26 | H106: 26 | I106: 26 | J106: 26 | O106: 26 | Q106: 5 | R106: 1 | S106: 0 | T106: 1 | U106: 1 | V106: 2 | W106: 1 | X106: 5 | Y106: 1 | Z106: 0 | AA106: 2 | AB106: 0 | AC106: 14 | AD106: 0
A107: ='Eligible by week pivot'!A73 -> 69 | B107: ='Eligible by week pivot'!B73 -> 18 | C107: =M$5 -> 14.42352941 | D107: =M$7 -> 25.81702601 | E107: =M$8 -> 3.030032815 | F107: =IF(B107>D107,B107,#N/A) ->  | G107: =IF(B107<E107,B107,#N/A) ->  | H107: =IF(OR(B107>$M$5+3*$M$6,B107<$M$5-3*$M$6),B107,#N/A) ->  | I107: =IF(V107>1,B107,#N/A) ->  | J107: =IF(X107>3,B107,#N/A) -> 18 | K107: =IF(Y107>5,B107,#N/A) ->  | L107: =IF(Z107<-5,B107,#N/A) ->  | M107: =IF(AA107>13,B107,#N/A) ->  | N107: =IF(AB107>14,B107,#N/A) ->  | O107: =IF(AC107>7,B107,#N/A) -> 18 | P107: =IF(AD107>7,B107,#N/A) ->  | Q107: =M$9 -> 5 | R107: =IF(B107>D107,1,0) -> 0 | S107: =IF(B107<E107,1,0) -> 0 | T107: =IF(OR(B107>$M$5+3*$M$6,B107<$M$5-3*$M$6),T106+1,0) -> 0 | U107: =IF(OR(B107>$M$5+2*$M$6,B107<$M$5-2*$M$6),1,0) -> 0 | V107: =SUM(U105:U107) -> 1 | W107: =IF(OR(B107>$M$5+1*$M$6,B107<$M$5-1*$M$6),1,0) -> 0 | X107: =SUM(W103:W107) -> 4 | Y107: =IF(B107>B106,Y106+1,0) -> 0 | Z107: =IF(B107<B106,Z106-1,0) -> -1 | AA107: =IF(OR(AND(Z107=-Y106,Z107<>0),AND(Y107=-Z106,Y107<>0)),AA106+1,0) -> 3 | AB107: =IF(AND(B107<M$5+1*M$6,B107>M$5-1*M$6),AB106+1,0) -> 1 | AC107: =IF(B107>C107,AC106+1,0) -> 15 | AD107: =IF(B107<C107,AD106+1,0) -> 0
A108: ='Eligible by week pivot'!A74 -> 70 | B108: ='Eligible by week pivot'!B74 -> 29 | C108: =M$5 -> 14.42352941 | D108: =M$7 -> 25.81702601 | E108: =M$8 -> 3.030032815 | F108: =IF(B108>D108,B108,#N/A) -> 29 | G108: =IF(B108<E108,B108,#N/A) ->  | H108: =IF(OR(B108>$M$5+3*$M$6,B108<$M$5-3*$M$6),B108,#N/A) -> 29 | I108: =IF(V108>1,B108,#N/A) -> 29 | J108: =IF(X108>3,B108,#N/A) -> 29 | K108: =IF(Y108>5,B108,#N/A) ->  | L108: =IF(Z108<-5,B108,#N/A) ->  | M108: =IF(AA108>13,B108,#N/A) ->  | N108: =IF(AB108>14,B108,#N/A) ->  | O108: =IF(AC108>7,B108,#N/A) -> 29 | P108: =IF(AD108>7,B108,#N/A) ->  | Q108: =M$9 -> 5 | R108: =IF(B108>D108,1,0) -> 1 | S108: =IF(B108<E108,1,0) -> 0 | T108: =IF(OR(B108>$M$5+3*$M$6,B108<$M$5-3*$M$6),T107+1,0) -> 1 | U108: =IF(OR(B108>$M$5+2*$M$6,B108<$M$5-2*$M$6),1,0) -> 1 | V108: =SUM(U106:U108) -> 2 | W108: =IF(OR(B108>$M$5+1*$M$6,B108<$M$5-1*$M$6),1,0) -> 1 | X108: =SUM(W104:W108) -> 4 | Y108: =IF(B108>B107,Y107+1,0) -> 1 | Z108: =IF(B108<B107,Z107-1,0) -> 0 | AA108: =IF(OR(AND(Z108=-Y107,Z108<>0),AND(Y108=-Z107,Y108<>0)),AA107+1,0) -> 4 | AB108: =IF(AND(B108<M$5+1*M$6,B108>M$5-1*M$6),AB107+1,0) -> 0 | AC108: =IF(B108>C108,AC107+1,0) -> 16 | AD108: =IF(B108<C108,AD107+1,0) -> 0
A109: ='Eligible by week pivot'!A75 -> 71 | B109: ='Eligible by week pivot'!B75 -> 22 | C109: 14.42352941 | D109: 25.81702601 | E109: 3.030032815 | J109: 22 | O109: 22 | Q109: 5 | R109: 0 | S109: 0 | T109: 0 | U109: 0 | V109: 1 | W109: 1 | X109: 4 | Y109: 0 | Z109: -1 | AA109: 5 | AB109: 0 | AC109: 17 | AD109: 0
A110: ='Eligible by week pivot'!A76 -> 72 | B110: ='Eligible by week pivot'!B76 -> 19 | C110: 14.42352941 | D110: 25.81702601 | E110: 3.030032815 | J110: 19 | O110: 19 | Q110: 5 | R110: 0 | S110: 0 | T110: 0 | U110: 0 | V110: 1 | W110: 1 | X110: 4 | Y110: 0 | Z110: -2 | AA110: 0 | AB110: 0 | AC110: 18 | AD110: 0
A111: ='Eligible by week pivot'!A77 -> 73 | B111: ='Eligible by week pivot'!B77 -> 21 | C111: 14.42352941 | D111: 25.81702601 | E111: 3.030032815 | J111: 21 | O111: 21 | Q111: 5 | R111: 0 | S111: 0 | T111: 0 | U111: 0 | V111: 0 | W111: 1 | X111: 4 | Y111: 1 | Z111: 0 | AA111: 0 | AB111: 0 | AC111: 19 | AD111: 0
A112: ='Eligible by week pivot'!A78 -> 74 | B112: ='Eligible by week pivot'!B78 -> 21 | C112: 14.42352941 | D112: 25.81702601 | E112: 3.030032815 | J112: 21 | O112: 21 | Q112: 5 | R112: 0 | S112: 0 | T112: 0 | U112: 0 | V112: 0 | W112: 1 | X112: 5 | Y112: 0 | Z112: 0 | AA112: 0 | AB112: 0 | AC112: 20 | AD112: 0
A113: ='Eligible by week pivot'!A79 -> 75 | B113: ='Eligible by week pivot'!B79 -> 28 | C113: 14.42352941 | D113: 25.81702601 | E113: 3.030032815 | F113: 28 | H113: 28 | J113: 28 | O113: 28 | Q113: 5 | R113: 1 | S113: 0 | T113: 1 | U113: 1 | V113: 1 | W113: 1 | X113: 5 | Y113: 1 | Z113: 0 | AA113: 0 | AB113: 0 | AC113: 21 | AD113: 0
A114: ='Eligible by week pivot'!A80 -> 76 | B114: ='Eligible by week pivot'!B80 -> 18 | C114: =M$5 -> 14.42352941 | D114: =M$7 -> 25.81702601 | E114: =M$8 -> 3.030032815 | F114: =IF(B114>D114,B114,#N/A) ->  | G114: =IF(B114<E114,B114,#N/A) ->  | H114: =IF(OR(B114>$M$5+3*$M$6,B114<$M$5-3*$M$6),B114,#N/A) ->  | I114: =IF(V114>1,B114,#N/A) ->  | J114: =IF(X114>3,B114,#N/A) -> 18 | K114: =IF(Y114>5,B114,#N/A) ->  | L114: =IF(Z114<-5,B114,#N/A) ->  | M114: =IF(AA114>13,B114,#N/A) ->  | N114: =IF(AB114>14,B114,#N/A) ->  | O114: =IF(AC114>7,B114,#N/A) -> 18 | P114: =IF(AD114>7,B114,#N/A) ->  | Q114: =M$9 -> 5 | R114: =IF(B114>D114,1,0) -> 0 | S114: =IF(B114<E114,1,0) -> 0 | T114: =IF(OR(B114>$M$5+3*$M$6,B114<$M$5-3*$M$6),T113+1,0) -> 0 | U114: =IF(OR(B114>$M$5+2*$M$6,B114<$M$5-2*$M$6),1,0) -> 0 | V114: =SUM(U112:U114) -> 1 | W114: =IF(OR(B114>$M$5+1*$M$6,B114<$M$5-1*$M$6),1,0) -> 0 | X114: =SUM(W110:W114) -> 4 | Y114: =IF(B114>B113,Y113+1,0) -> 0 | Z114: =IF(B114<B113,Z113-1,0) -> -1 | AA114: =IF(OR(AND(Z114=-Y113,Z114<>0),AND(Y114=-Z113,Y114<>0)),AA113+1,0) -> 1 | AB114: =IF(AND(B114<M$5+1*M$6,B114>M$5-1*M$6),AB113+1,0) -> 1 | AC114: =IF(B114>C114,AC113+1,0) -> 22 | AD114: =IF(B114<C114,AD113+1,0) -> 0
A115: ='Eligible by week pivot'!A81 -> 77 | B115: ='Eligible by week pivot'!B81 -> 14 | C115: =M$5 -> 14.42352941 | D115: =M$7 -> 25.81702601 | E115: =M$8 -> 3.030032815 | F115: =IF(B115>D115,B115,#N/A) ->  | G115: =IF(B115<E115,B115,#N/A) ->  | H115: =IF(OR(B115>$M$5+3*$M$6,B115<$M$5-3*$M$6),B115,#N/A) ->  | I115: =IF(V115>1,B115,#N/A) ->  | J115: =IF(X115>3,B115,#N/A) ->  | K115: =IF(Y115>5,B115,#N/A) ->  | L115: =IF(Z115<-5,B115,#N/A) ->  | M115: =IF(AA115>13,B115,#N/A) ->  | N115: =IF(AB115>14,B115,#N/A) ->  | O115: =IF(AC115>7,B115,#N/A) ->  | P115: =IF(AD115>7,B115,#N/A) ->  | Q115: =M$9 -> 5 | R115: =IF(B115>D115,1,0) -> 0 | S115: =IF(B115<E115,1,0) -> 0 | T115: =IF(OR(B115>$M$5+3*$M$6,B115<$M$5-3*$M$6),T114+1,0) -> 0 | U115: =IF(OR(B115>$M$5+2*$M$6,B115<$M$5-2*$M$6),1,0) -> 0 | V115: =SUM(U113:U115) -> 1 | W115: =IF(OR(B115>$M$5+1*$M$6,B115<$M$5-1*$M$6),1,0) -> 0 | X115: =SUM(W111:W115) -> 3 | Y115: =IF(B115>B114,Y114+1,0) -> 0 | Z115: =IF(B115<B114,Z114-1,0) -> -2 | AA115: =IF(OR(AND(Z115=-Y114,Z115<>0),AND(Y115=-Z114,Y115<>0)),AA114+1,0) -> 0 | AB115: =IF(AND(B115<M$5+1*M$6,B115>M$5-1*M$6),AB114+1,0) -> 2 | AC115: =IF(B115>C115,AC114+1,0) -> 0 | AD115: =IF(B115<C115,AD114+1,0) -> 1
A116: ='Eligible by week pivot'!A82 -> 78 | B116: ='Eligible by week pivot'!B82 -> 22 | C116: =M$5 -> 14.42352941 | D116: =M$7 -> 25.81702601 | E116: =M$8 -> 3.030032815 | F116: =IF(B116>D116,B116,#N/A) ->  | G116: =IF(B116<E116,B116,#N/A) ->  | H116: =IF(OR(B116>$M$5+3*$M$6,B116<$M$5-3*$M$6),B116,#N/A) ->  | I116: =IF(V116>1,B116,#N/A) ->  | J116: =IF(X116>3,B116,#N/A) ->  | K116: =IF(Y116>5,B116,#N/A) ->  | L116: =IF(Z116<-5,B116,#N/A) ->  | M116: =IF(AA116>13,B116,#N/A) ->  | N116: =IF(AB116>14,B116,#N/A) ->  | O116: =IF(AC116>7,B116,#N/A) ->  | P116: =IF(AD116>7,B116,#N/A) ->  | Q116: =M$9 -> 5 | R116: =IF(B116>D116,1,0) -> 0 | S116: =IF(B116<E116,1,0) -> 0 | T116: =IF(OR(B116>$M$5+3*$M$6,B116<$M$5-3*$M$6),T115+1,0) -> 0 | U116: =IF(OR(B116>$M$5+2*$M$6,B116<$M$5-2*$M$6),1,0) -> 0 | V116: =SUM(U114:U116) -> 0 | W116: =IF(OR(B116>$M$5+1*$M$6,B116<$M$5-1*$M$6),1,0) -> 1 | X116: =SUM(W112:W116) -> 3 | Y116: =IF(B116>B115,Y115+1,0) -> 1 | Z116: =IF(B116<B115,Z115-1,0) -> 0 | AA116: =IF(OR(AND(Z116=-Y115,Z116<>0),AND(Y116=-Z115,Y116<>0)),AA115+1,0) -> 0 | AB116: =IF(AND(B116<M$5+1*M$6,B116>M$5-1*M$6),AB115+1,0) -> 0 | AC116: =IF(B116>C116,AC115+1,0) -> 1 | AD116: =IF(B116<C116,AD115+1,0) -> 0
A117: ='Eligible by week pivot'!A83 -> 79 | B117: ='Eligible by week pivot'!B83 -> 13 | C117: =M$5 -> 14.42352941 | D117: =M$7 -> 25.81702601 | E117: =M$8 -> 3.030032815 | F117: =IF(B117>D117,B117,#N/A) ->  | G117: =IF(B117<E117,B117,#N/A) ->  | H117: =IF(OR(B117>$M$5+3*$M$6,B117<$M$5-3*$M$6),B117,#N/A) ->  | I117: =IF(V117>1,B117,#N/A) ->  | J117: =IF(X117>3,B117,#N/A) ->  | K117: =IF(Y117>5,B117,#N/A) ->  | L117: =IF(Z117<-5,B117,#N/A) ->  | M117: =IF(AA117>13,B117,#N/A) ->  | N117: =IF(AB117>14,B117,#N/A) ->  | O117: =IF(AC117>7,B117,#N/A) ->  | P117: =IF(AD117>7,B117,#N/A) ->  | Q117: =M$9 -> 5 | R117: =IF(B117>D117,1,0) -> 0 | S117: =IF(B117<E117,1,0) -> 0 | T117: =IF(OR(B117>$M$5+3*$M$6,B117<$M$5-3*$M$6),T116+1,0) -> 0 | U117: =IF(OR(B117>$M$5+2*$M$6,B117<$M$5-2*$M$6),1,0) -> 0 | V117: =SUM(U115:U117) -> 0 | W117: =IF(OR(B117>$M$5+1*$M$6,B117<$M$5-1*$M$6),1,0) -> 0 | X117: =SUM(W113:W117) -> 2 | Y117: =IF(B117>B116,Y116+1,0) -> 0 | Z117: =IF(B117<B116,Z116-1,0) -> -1 | AA117: =IF(OR(AND(Z117=-Y116,Z117<>0),AND(Y117=-Z116,Y117<>0)),AA116+1,0) -> 1 | AB117: =IF(AND(B117<M$5+1*M$6,B117>M$5-1*M$6),AB116+1,0) -> 1 | AC117: =IF(B117>C117,AC116+1,0) -> 0 | AD117: =IF(B117<C117,AD116+1,0) -> 1
A118: ='Eligible by week pivot'!A84 -> 80 | B118: ='Eligible by week pivot'!B84 -> 18 | C118: 14.42352941 | D118: 25.81702601 | E118: 3.030032815 | Q118: 5 | R118: 0 | S118: 0 | T118: 0 | U118: 0 | V118: 0 | W118: 0 | X118: 1 | Y118: 1 | Z118: 0 | AA118: 2 | AB118: 2 | AC118: 1 | AD118: 0
A119: ='Eligible by week pivot'!A85 -> 81 | B119: ='Eligible by week pivot'!B85 -> 25 | C119: =M$5 -> 14.42352941 | D119: =M$7 -> 25.81702601 | E119: =M$8 -> 3.030032815 | F119: =IF(B119>D119,B119,#N/A) ->  | G119: =IF(B119<E119,B119,#N/A) ->  | H119: =IF(OR(B119>$M$5+3*$M$6,B119<$M$5-3*$M$6),B119,#N/A) ->  | I119: =IF(V119>1,B119,#N/A) ->  | J119: =IF(X119>3,B119,#N/A) ->  | K119: =IF(Y119>5,B119,#N/A) ->  | L119: =IF(Z119<-5,B119,#N/A) ->  | M119: =IF(AA119>13,B119,#N/A) ->  | N119: =IF(AB119>14,B119,#N/A) ->  | O119: =IF(AC119>7,B119,#N/A) ->  | P119: =IF(AD119>7,B119,#N/A) ->  | Q119: =M$9 -> 5 | R119: =IF(B119>D119,1,0) -> 0 | S119: =IF(B119<E119,1,0) -> 0 | T119: =IF(OR(B119>$M$5+3*$M$6,B119<$M$5-3*$M$6),T118+1,0) -> 0 | U119: =IF(OR(B119>$M$5+2*$M$6,B119<$M$5-2*$M$6),1,0) -> 1 | V119: =SUM(U117:U119) -> 1 | W119: =IF(OR(B119>$M$5+1*$M$6,B119<$M$5-1*$M$6),1,0) -> 1 | X119: =SUM(W115:W119) -> 2 | Y119: =IF(B119>B118,Y118+1,0) -> 2 | Z119: =IF(B119<B118,Z118-1,0) -> 0 | AA119: =IF(OR(AND(Z119=-Y118,Z119<>0),AND(Y119=-Z118,Y119<>0)),AA118+1,0) -> 0 | AB119: =IF(AND(B119<M$5+1*M$6,B119>M$5-1*M$6),AB118+1,0) -> 0 | AC119: =IF(B119>C119,AC118+1,0) -> 2 | AD119: =IF(B119<C119,AD118+1,0) -> 0
A120: ='Eligible by week pivot'!A86 -> 82 | B120: ='Eligible by week pivot'!B86 -> 13 | C120: =M$5 -> 14.42352941 | D120: =M$7 -> 25.81702601 | E120: =M$8 -> 3.030032815 | F120: =IF(B120>D120,B120,#N/A) ->  | G120: =IF(B120<E120,B120,#N/A) ->  | H120: =IF(OR(B120>$M$5+3*$M$6,B120<$M$5-3*$M$6),B120,#N/A) ->  | I120: =IF(V120>1,B120,#N/A) ->  | J120: =IF(X120>3,B120,#N/A) ->  | K120: =IF(Y120>5,B120,#N/A) ->  | L120: =IF(Z120<-5,B120,#N/A) ->  | M120: =IF(AA120>13,B120,#N/A) ->  | N120: =IF(AB120>14,B120,#N/A) ->  | O120: =IF(AC120>7,B120,#N/A) ->  | P120: =IF(AD120>7,B120,#N/A) ->  | Q120: =M$9 -> 5 | R120: =IF(B120>D120,1,0) -> 0 | S120: =IF(B120<E120,1,0) -> 0 | T120: =IF(OR(B120>$M$5+3*$M$6,B120<$M$5-3*$M$6),T119+1,0) -> 0 | U120: =IF(OR(B120>$M$5+2*$M$6,B120<$M$5-2*$M$6),1,0) -> 0 | V120: =SUM(U118:U120) -> 1 | W120: =IF(OR(B120>$M$5+1*$M$6,B120<$M$5-1*$M$6),1,0) -> 0 | X120: =SUM(W116:W120) -> 2 | Y120: =IF(B120>B119,Y119+1,0) -> 0 | Z120: =IF(B120<B119,Z119-1,0) -> -1 | AA120: =IF(OR(AND(Z120=-Y119,Z120<>0),AND(Y120=-Z119,Y120<>0)),AA119+1,0) -> 0 | AB120: =IF(AND(B120<M$5+1*M$6,B120>M$5-1*M$6),AB119+1,0) -> 1 | AC120: =IF(B120>C120,AC119+1,0) -> 0 | AD120: =IF(B120<C120,AD119+1,0) -> 1
A121: ='Eligible by week pivot'!A87 -> 83 | B121: ='Eligible by week pivot'!B87 -> 20 | C121: =M$5 -> 14.42352941 | D121: =M$7 -> 25.81702601 | E121: =M$8 -> 3.030032815 | F121: =IF(B121>D121,B121,#N/A) ->  | G121: =IF(B121<E121,B121,#N/A) ->  | H121: =IF(OR(B121>$M$5+3*$M$6,B121<$M$5-3*$M$6),B121,#N/A) ->  | I121: =IF(V121>1,B121,#N/A) ->  | J121: =IF(X121>3,B121,#N/A) ->  | K121: =IF(Y121>5,B121,#N/A) ->  | L121: =IF(Z121<-5,B121,#N/A) ->  | M121: =IF(AA121>13,B121,#N/A) ->  | N121: =IF(AB121>14,B121,#N/A) ->  | O121: =IF(AC121>7,B121,#N/A) ->  | P121: =IF(AD121>7,B121,#N/A) ->  | Q121: =M$9 -> 5 | R121: =IF(B121>D121,1,0) -> 0 | S121: =IF(B121<E121,1,0) -> 0 | T121: =IF(OR(B121>$M$5+3*$M$6,B121<$M$5-3*$M$6),T120+1,0) -> 0 | U121: =IF(OR(B121>$M$5+2*$M$6,B121<$M$5-2*$M$6),1,0) -> 0 | V121: =SUM(U119:U121) -> 1 | W121: =IF(OR(B121>$M$5+1*$M$6,B121<$M$5-1*$M$6),1,0) -> 1 | X121: =SUM(W117:W121) -> 2 | Y121: =IF(B121>B120,Y120+1,0) -> 1 | Z121: =IF(B121<B120,Z120-1,0) -> 0 | AA121: =IF(OR(AND(Z121=-Y120,Z121<>0),AND(Y121=-Z120,Y121<>0)),AA120+1,0) -> 1 | AB121: =IF(AND(B121<M$5+1*M$6,B121>M$5-1*M$6),AB120+1,0) -> 0 | AC121: =IF(B121>C121,AC120+1,0) -> 1 | AD121: =IF(B121<C121,AD120+1,0) -> 0
A122: ='Eligible by week pivot'!A88 -> 84 | B122: ='Eligible by week pivot'!B88 -> 22 | C122: =M$5 -> 14.42352941 | D122: =M$7 -> 25.81702601 | E122: =M$8 -> 3.030032815 | F122: =IF(B122>D122,B122,#N/A) ->  | G122: =IF(B122<E122,B122,#N/A) ->  | H122: =IF(OR(B122>$M$5+3*$M$6,B122<$M$5-3*$M$6),B122,#N/A) ->  | I122: =IF(V122>1,B122,#N/A) ->  | J122: =IF(X122>3,B122,#N/A) ->  | K122: =IF(Y122>5,B122,#N/A) ->  | L122: =IF(Z122<-5,B122,#N/A) ->  | M122: =IF(AA122>13,B122,#N/A) ->  | N122: =IF(AB122>14,B122,#N/A) ->  | O122: =IF(AC122>7,B122,#N/A) ->  | P122: =IF(AD122>7,B122,#N/A) ->  | Q122: =M$9 -> 5 | R122: =IF(B122>D122,1,0) -> 0 | S122: =IF(B122<E122,1,0) -> 0 | T122: =IF(OR(B122>$M$5+3*$M$6,B122<$M$5-3*$M$6),T121+1,0) -> 0 | U122: =IF(OR(B122>$M$5+2*$M$6,B122<$M$5-2*$M$6),1,0) -> 0 | V122: =SUM(U120:U122) -> 0 | W122: =IF(OR(B122>$M$5+1*$M$6,B122<$M$5-1*$M$6),1,0) -> 1 | X122: =SUM(W118:W122) -> 3 | Y122: =IF(B122>B121,Y121+1,0) -> 2 | Z122: =IF(B122<B121,Z121-1,0) -> 0 | AA122: =IF(OR(AND(Z122=-Y121,Z122<>0),AND(Y122=-Z121,Y122<>0)),AA121+1,0) -> 0 | AB122: =IF(AND(B122<M$5+1*M$6,B122>M$5-1*M$6),AB121+1,0) -> 0 | AC122: =IF(B122>C122,AC121+1,0) -> 2 | AD122: =IF(B122<C122,AD121+1,0) -> 0
A123: ='Eligible by week pivot'!A89 -> 85 | B123: ='Eligible by week pivot'!B89 -> 24 | C123: 14.42352941 | D123: 25.81702601 | E123: 3.030032815 | J123: 24 | Q123: 5 | R123: 0 | S123: 0 | T123: 0 | U123: 1 | V123: 1 | W123: 1 | X123: 4 | Y123: 3 | Z123: 0 | AA123: 0 | AB123: 0 | AC123: 3 | AD123: 0

Sheet Eligible by week pivot
A1: last row | B1: =ROW(INDEX(A:A,MAX((A:A<>"")*(ROW(A:A))))) -> 91
A3: Count of Screening ID | B3: Column Labels
A4: Row Labels | B4: Eligible (2) | C4: Ineligible (1) | D4: Needs to be Followed (3) | E4: (blank) | F4: Grand Total
A5: 1 | B5: 4 | C5: 162 | F5: 166
A6: 2 | C6: 59 | F6: 59
A7: 3 | B7: 6 | C7: 65 | F7: 71
A8: 4 | B8: 3 | C8: 163 | F8: 166
A9: 5 | B9: 6 | C9: 187 | F9: 193
A10: 6 | B10: 2 | C10: 197 | F10: 199
A11: 7 | B11: 6 | C11: 185 | F11: 191
A12: 8 | B12: 4 | C12: 228 | F12: 232
A13: 9 | B13: 3 | C13: 196 | F13: 199
A14: 10 | B14: 6 | C14: 201 | F14: 207
A15: 11 | B15: 2 | C15: 124 | F15: 126
A16: 12 | B16: 2 | C16: 89 | F16: 91
A17: 13 | B17: 4 | C17: 129 | F17: 133
A18: 14 | B18: 3 | C18: 103 | F18: 106
A19: 15 | B19: 4 | C19: 114 | F19: 118
A20: 16 | B20: 4 | C20: 102 | F20: 106
A21: 17 | B21: 5 | C21: 111 | F21: 116
A22: 18 | B22: 8 | C22: 99 | F22: 107
A23: 19 | B23: 5 | C23: 131 | F23: 136
A24: 20 | B24: 15 | C24: 141 | F24: 156
A25: 21 | B25: 8 | C25: 206 | F25: 214
A26: 22 | B26: 11 | C26: 143 | F26: 154
A27: 23 | B27: 17 | C27: 146 | F27: 163
A28: 24 | B28: 16 | C28: 183 | F28: 199
A29: 25 | B29: 15 | C29: 142 | F29: 157
A30: 26 | B30: 9 | C30: 162 | F30: 171
A31: 27 | B31: 13 | C31: 154 | E31: 1 | F31: 168
A32: 28 | B32: 18 | C32: 147 | F32: 165
A33: 29 | B33: 17 | C33: 152 | F33: 169
A34: 30 | B34: 16 | C34: 179 | F34: 195
A35: 31 | B35: 7 | C35: 125 | F35: 132
A36: 32 | B36: 12 | C36: 105 | F36: 117
A37: 33 | B37: 17 | C37: 126 | F37: 143
A38: 34 | B38: 20 | C38: 142 | F38: 162
A39: 35 | B39: 18 | C39: 179 | F39: 197
A40: 36 | B40: 6 | C40: 187 | F40: 193
A41: 37 | B41: 8 | C41: 139 | F41: 147
A42: 38 | B42: 23 | C42: 158 | F42: 181
A43: 39 | B43: 9 | C43: 95 | F43: 104
A44: 40 | B44: 14 | C44: 135 | F44: 149
A45: 41 | B45: 20 | C45: 144 | F45: 164
A46: 42 | B46: 17 | C46: 87 | F46: 104
A47: 43 | B47: 12 | C47: 126 | F47: 138
A48: 44 | B48: 12 | C48: 155 | F48: 167
A49: 45 | B49: 15 | C49: 104 | F49: 119
A50: 46 | B50: 18 | C50: 124 | F50: 142
A51: 47 | B51: 18 | C51: 97 | F51: 115
A52: 48 | B52: 16 | C52: 78 | F52: 94
A53: 49 | B53: 15 | C53: 107 | F53: 122
A54: 50 | B54: 7 | C54: 96 | F54: 103
A55: 51 | B55: 13 | C55: 103 | F55: 116
A56: 52 | B56: 18 | C56: 100 | F56: 118
A57: 53 | B57: 12 | C57: 112 | F57: 124
A58: 54 | B58: 14 | C58: 116 | F58: 130
A59: 55 | B59: 16 | C59: 110 | F59: 126
A60: 56 | B60: 15 | C60: 103 | F60: 118
A61: 57 | B61: 17 | C61: 122 | E61: 1 | F61: 140
A62: 58 | B62: 16 | C62: 122 | F62: 138
A63: 59 | B63: 31 | C63: 122 | F63: 153
A64: 60 | B64: 23 | C64: 112 | F64: 135
A65: 61 | B65: 17 | C65: 124 | F65: 141
A66: 62 | B66: 20 | C66: 122 | F66: 142
A67: 63 | B67: 29 | C67: 126 | E67: 1 | F67: 156
A68: 64 | B68: 25 | C68: 134 | F68: 159
A69: 65 | B69: 22 | C69: 98 | F69: 120
A70: 66 | B70: 27 | C70: 125 | D70: 1 | E70: 1 | F70: 154
A71: 67 | B71: 22 | C71: 127 | F71: 149
A72: 68 | B72: 26 | C72: 162 | F72: 188
A73: 69 | B73: 18 | C73: 128 | F73: 146
A74: 70 | B74: 29 | C74: 138 | F74: 167
A75: 71 | B75: 22 | C75: 128 | E75: 1 | F75: 151
A76: 72 | B76: 19 | C76: 100 | E76: 1 | F76: 120
A77: 73 | B77: 21 | C77: 135 | F77: 156
A78: 74 | B78: 21 | C78: 107 | E78: 1 | F78: 129
A79: 75 | B79: 28 | C79: 132 | F79: 160
A80: 76 | B80: 18 | C80: 140 | F80: 158
A81: 77 | B81: 14 | C81: 147 | D81: 1 | F81: 162
A82: 78 | B82: 22 | C82: 150 | F82: 172
A83: 79 | B83: 13 | C83: 154 | F83: 167
A84: 80 | B84: 18 | C84: 140 | D84: 1 | F84: 159
A85: 81 | B85: 25 | C85: 164 | F85: 189
A86: 82 | B86: 13 | C86: 128 | F86: 141
A87: 83 | B87: 20 | C87: 144 | F87: 164
A88: 84 | B88: 22 | C88: 109 | D88: 1 | F88: 132
A89: 85 | B89: 24 | C89: 141 | D89: 2 | E89: 1 | F89: 168
A90: 86 | B90: 18 | C90: 104 | D90: 16 | E90: 1 | F90: 139
A91: Grand Total | B91: 1244 | C91: 11438 | D91: 22 | E91: 9 | F91: 12713

Sheet %Eligible by week calculations
B1: =ROW(INDEX(A:A,MAX((A:A<>"")*(ROW(A:A))))) -> 89
A4: Week | B4: ='Screened by week pivot'!B3 -> Count of Screening ID | C4: ='Eligible by week pivot'!B4 -> Eligible (2) | D4: %Eligible
A5: ='Screened by week pivot'!A4 -> 1 | B5: ='Screened by week pivot'!B4 -> 166 | C5: ='Eligible by week pivot'!B5 -> 4 | D5: =C5/B5 -> 2.41%
A6: ='Screened by week pivot'!A5 -> 2 | B6: ='Screened by week pivot'!B5 -> 59 | C6: ='Eligible by week pivot'!B6 -> 0 | D6: =C6/B6 -> 0.00%
A7: ='Screened by week pivot'!A6 -> 3 | B7: ='Screened by week pivot'!B6 -> 71 | C7: ='Eligible by week pivot'!B7 -> 6 | D7: 8.45%
A8: ='Screened by week pivot'!A7 -> 4 | B8: ='Screened by week pivot'!B7 -> 166 | C8: ='Eligible by week pivot'!B8 -> 3 | D8: 1.81%
A9: ='Screened by week pivot'!A8 -> 5 | B9: ='Screened by week pivot'!B8 -> 193 | C9: ='Eligible by week pivot'!B9 -> 6 | D9: 3.11%
A10: ='Screened by week pivot'!A9 -> 6 | B10: ='Screened by week pivot'!B9 -> 199 | C10: ='Eligible by week pivot'!B10 -> 2 | D10: 1.01%
A11: ='Screened by week pivot'!A10 -> 7 | B11: ='Screened by week pivot'!B10 -> 191 | C11: ='Eligible by week pivot'!B11 -> 6 | D11: 3.14%
A12: ='Screened by week pivot'!A11 -> 8 | B12: ='Screened by week pivot'!B11 -> 232 | C12: ='Eligible by week pivot'!B12 -> 4 | D12: 1.72%
A13: ='Screened by week pivot'!A12 -> 9 | B13: ='Screened by week pivot'!B12 -> 199 | C13: ='Eligible by week pivot'!B13 -> 3 | D13: 1.51%
A14: ='Screened by week pivot'!A13 -> 10 | B14: ='Screened by week pivot'!B13 -> 207 | C14: ='Eligible by week pivot'!B14 -> 6 | D14: 2.90%
A15: ='Screened by week pivot'!A14 -> 11 | B15: ='Screened by week pivot'!B14 -> 126 | C15: ='Eligible by week pivot'!B15 -> 2 | D15: 1.59%
A16: ='Screened by week pivot'!A15 -> 12 | B16: ='Screened by week pivot'!B15 -> 91 | C16: ='Eligible by week pivot'!B16 -> 2 | D16: 2.20%
A17: ='Screened by week pivot'!A16 -> 13 | B17: ='Screened by week pivot'!B16 -> 133 | C17: ='Eligible by week pivot'!B17 -> 4 | D17: 3.01%
A18: ='Screened by week pivot'!A17 -> 14 | B18: ='Screened by week pivot'!B17 -> 106 | C18: ='Eligible by week pivot'!B18 -> 3 | D18: 2.83%
A19: ='Screened by week pivot'!A18 -> 15 | B19: ='Screened by week pivot'!B18 -> 118 | C19: ='Eligible by week pivot'!B19 -> 4 | D19: 3.39%
A20: ='Screened by week pivot'!A19 -> 16 | B20: ='Screened by week pivot'!B19 -> 106 | C20: ='Eligible by week pivot'!B20 -> 4 | D20: 3.77%
A21: ='Screened by week pivot'!A20 -> 17 | B21: ='Screened by week pivot'!B20 -> 116 | C21: ='Eligible by week pivot'!B21 -> 5 | D21: 4.31%
A22: ='Screened by week pivot'!A21 -> 18 | B22: ='Screened by week pivot'!B21 -> 107 | C22: ='Eligible by week pivot'!B22 -> 8 | D22: 7.48%
A23: ='Screened by week pivot'!A22 -> 19 | B23: ='Screened by week pivot'!B22 -> 136 | C23: ='Eligible by week pivot'!B23 -> 5 | D23: 3.68%
A24: ='Screened by week pivot'!A23 -> 20 | B24: ='Screened by week pivot'!B23 -> 156 | C24: ='Eligible by week pivot'!B24 -> 15 | D24: 9.62%
A25: ='Screened by week pivot'!A24 -> 21 | B25: ='Screened by week pivot'!B24 -> 214 | C25: ='Eligible by week pivot'!B25 -> 8 | D25: 3.74%
A26: ='Screened by week pivot'!A25 -> 22 | B26: ='Screened by week pivot'!B25 -> 154 | C26: ='Eligible by week pivot'!B26 -> 11 | D26: 7.14%
A27: ='Screened by week pivot'!A26 -> 23 | B27: ='Screened by week pivot'!B26 -> 163 | C27: ='Eligible by week pivot'!B27 -> 17 | D27: 10.43%
A28: ='Screened by week pivot'!A27 -> 24 | B28: ='Screened by week pivot'!B27 -> 199 | C28: ='Eligible by week pivot'!B28 -> 16 | D28: 8.04%
A29: ='Screened by week pivot'!A28 -> 25 | B29: ='Screened by week pivot'!B28 -> 157 | C29: ='Eligible by week pivot'!B29 -> 15 | D29: 9.55%
A30: ='Screened by week pivot'!A29 -> 26 | B30: ='Screened by week pivot'!B29 -> 171 | C30: ='Eligible by week pivot'!B30 -> 9 | D30: 5.26%
A31: ='Screened by week pivot'!A30 -> 27 | B31: ='Screened by week pivot'!B30 -> 168 | C31: ='Eligible by week pivot'!B31 -> 13 | D31: 7.74%
A32: ='Screened by week pivot'!A31 -> 28 | B32: ='Screened by week pivot'!B31 -> 165 | C32: ='Eligible by week pivot'!B32 -> 18 | D32: 10.91%
A33: ='Screened by week pivot'!A32 -> 29 | B33: ='Screened by week pivot'!B32 -> 169 | C33: ='Eligible by week pivot'!B33 -> 17 | D33: 10.06%
A34: ='Screened by week pivot'!A33 -> 30 | B34: ='Screened by week pivot'!B33 -> 195 | C34: ='Eligible by week pivot'!B34 -> 16 | D34: 8.21%
A35: ='Screened by week pivot'!A34 -> 31 | B35: ='Screened by week pivot'!B34 -> 132 | C35: ='Eligible by week pivot'!B35 -> 7 | D35: 5.30%
A36: ='Screened by week pivot'!A35 -> 32 | B36: ='Screened by week pivot'!B35 -> 117 | C36: ='Eligible by week pivot'!B36 -> 12 | D36: 10.26%
A37: ='Screened by week pivot'!A36 -> 33 | B37: ='Screened by week pivot'!B36 -> 143 | C37: ='Eligible by week pivot'!B37 -> 17 | D37: 11.89%
A38: ='Screened by week pivot'!A37 -> 34 | B38: ='Screened by week pivot'!B37 -> 162 | C38: ='Eligible by week pivot'!B38 -> 20 | D38: 12.35%
A39: ='Screened by week pivot'!A38 -> 35 | B39: ='Screened by week pivot'!B38 -> 197 | C39: ='Eligible by week pivot'!B39 -> 18 | D39: 9.14%
A40: ='Screened by week pivot'!A39 -> 36 | B40: ='Screened by week pivot'!B39 -> 193 | C40: ='Eligible by week pivot'!B40 -> 6 | D40: 3.11%
A41: ='Screened by week pivot'!A40 -> 37 | B41: ='Screened by week pivot'!B40 -> 147 | C41: ='Eligible by week pivot'!B41 -> 8 | D41: 5.44%
A42: ='Screened by week pivot'!A41 -> 38 | B42: ='Screened by week pivot'!B41 -> 181 | C42: ='Eligible by week pivot'!B42 -> 23 | D42: 12.71%
A43: ='Screened by week pivot'!A42 -> 39 | B43: ='Screened by week pivot'!B42 -> 104 | C43: ='Eligible by week pivot'!B43 -> 9 | D43: 8.65%
A44: ='Screened by week pivot'!A43 -> 40 | B44: ='Screened by week pivot'!B43 -> 149 | C44: ='Eligible by week pivot'!B44 -> 14 | D44: 9.40%
A45: ='Screened by week pivot'!A44 -> 41 | B45: ='Screened by week pivot'!B44 -> 164 | C45: ='Eligible by week pivot'!B45 -> 20 | D45: 12.20%
A46: ='Screened by week pivot'!A45 -> 42 | B46: ='Screened by week pivot'!B45 -> 104 | C46: ='Eligible by week pivot'!B46 -> 17 | D46: =C46/B46 -> 16.35%
A47: ='Screened by week pivot'!A46 -> 43 | B47: ='Screened by week pivot'!B46 -> 138 | C47: ='Eligible by week pivot'!B47 -> 12 | D47: 8.70%
A48: ='Screened by week pivot'!A47 -> 44 | B48: ='Screened by week pivot'!B47 -> 167 | C48: ='Eligible by week pivot'!B48 -> 12 | D48: =C48/B48 -> 7.19%
A49: ='Screened by week pivot'!A48 -> 45 | B49: ='Screened by week pivot'!B48 -> 119 | C49: ='Eligible by week pivot'!B49 -> 15 | D49: 12.61%
A50: ='Screened by week pivot'!A49 -> 46 | B50: ='Screened by week pivot'!B49 -> 142 | C50: ='Eligible by week pivot'!B50 -> 18 | D50: =C50/B50 -> 12.68%
A51: ='Screened by week pivot'!A50 -> 47 | B51: ='Screened by week pivot'!B50 -> 115 | C51: ='Eligible by week pivot'!B51 -> 18 | D51: =C51/B51 -> 15.65%
A52: ='Screened by week pivot'!A51 -> 48 | B52: ='Screened by week pivot'!B51 -> 94 | C52: ='Eligible by week pivot'!B52 -> 16 | D52: =C52/B52 -> 17.02%
A53: ='Screened by week pivot'!A52 -> 49 | B53: ='Screened by week pivot'!B52 -> 122 | C53: ='Eligible by week pivot'!B53 -> 15 | D53: =C53/B53 -> 12.30%
A54: ='Screened by week pivot'!A53 -> 50 | B54: ='Screened by week pivot'!B53 -> 103 | C54: ='Eligible by week pivot'!B54 -> 7 | D54: =C54/B54 -> 6.80%
A55: ='Screened by week pivot'!A54 -> 51 | B55: ='Screened by week pivot'!B54 -> 116 | C55: ='Eligible by week pivot'!B55 -> 13 | D55: =C55/B55 -> 11.21%
A56: ='Screened by week pivot'!A55 -> 52 | B56: ='Screened by week pivot'!B55 -> 118 | C56: ='Eligible by week pivot'!B56 -> 18 | D56: =C56/B56 -> 15.25%
A57: ='Screened by week pivot'!A56 -> 53 | B57: ='Screened by week pivot'!B56 -> 124 | C57: ='Eligible by week pivot'!B57 -> 12 | D57: =C57/B57 -> 9.68%
A58: ='Screened by week pivot'!A57 -> 54 | B58: ='Screened by week pivot'!B57 -> 130 | C58: ='Eligible by week pivot'!B58 -> 14 | D58: =C58/B58 -> 10.77%
A59: ='Screened by week pivot'!A58 -> 55 | B59: ='Screened by week pivot'!B58 -> 126 | C59: ='Eligible by week pivot'!B59 -> 16 | D59: =C59/B59 -> 12.70%
A60: ='Screened by week pivot'!A59 -> 56 | B60: ='Screened by week pivot'!B59 -> 118 | C60: ='Eligible by week pivot'!B60 -> 15 | D60: =C60/B60 -> 12.71%
A61: ='Screened by week pivot'!A60 -> 57 | B61: ='Screened by week pivot'!B60 -> 140 | C61: ='Eligible by week pivot'!B61 -> 17 | D61: =C61/B61 -> 12.14%
A62: ='Screened by week pivot'!A61 -> 58 | B62: ='Screened by week pivot'!B61 -> 138 | C62: ='Eligible by week pivot'!B62 -> 16 | D62: =C62/B62 -> 11.59%
A63: ='Screened by week pivot'!A62 -> 59 | B63: ='Screened by week pivot'!B62 -> 153 | C63: ='Eligible by week pivot'!B63 -> 31 | D63: 20.26%
A64: ='Screened by week pivot'!A63 -> 60 | B64: ='Screened by week pivot'!B63 -> 135 | C64: ='Eligible by week pivot'!B64 -> 23 | D64: 17.04%
A65: ='Screened by week pivot'!A64 -> 61 | B65: ='Screened by week pivot'!B64 -> 141 | C65: ='Eligible by week pivot'!B65 -> 17 | D65: =C65/B65 -> 12.06%
A66: ='Screened by week pivot'!A65 -> 62 | B66: ='Screened by week pivot'!B65 -> 142 | C66: ='Eligible by week pivot'!B66 -> 20 | D66: =C66/B66 -> 14.08%
A67: ='Screened by week pivot'!A66 -> 63 | B67: ='Screened by week pivot'!B66 -> 156 | C67: ='Eligible by week pivot'!B67 -> 29 | D67: =C67/B67 -> 18.59%
A68: ='Screened by week pivot'!A67 -> 64 | B68: ='Screened by week pivot'!B67 -> 159 | C68: ='Eligible by week pivot'!B68 -> 25 | D68: =C68/B68 -> 15.72%
A69: ='Screened by week pivot'!A68 -> 65 | B69: ='Screened by week pivot'!B68 -> 120 | C69: ='Eligible by week pivot'!B69 -> 22 | D69: 18.33%
A70: ='Screened by week pivot'!A69 -> 66 | B70: ='Screened by week pivot'!B69 -> 154 | C70: ='Eligible by week pivot'!B70 -> 27 | D70: 17.53%
A71: ='Screened by week pivot'!A70 -> 67 | B71: ='Screened by week pivot'!B70 -> 149 | C71: ='Eligible by week pivot'!B71 -> 22 | D71: 14.77%
A72: ='Screened by week pivot'!A71 -> 68 | B72: ='Screened by week pivot'!B71 -> 188 | C72: ='Eligible by week pivot'!B72 -> 26 | D72: 13.83%
A73: ='Screened by week pivot'!A72 -> 69 | B73: ='Screened by week pivot'!B72 -> 146 | C73: ='Eligible by week pivot'!B73 -> 18 | D73: =C73/B73 -> 12.33%
A74: ='Screened by week pivot'!A73 -> 70 | B74: ='Screened by week pivot'!B73 -> 167 | C74: ='Eligible by week pivot'!B74 -> 29 | D74: =C74/B74 -> 17.37%
A75: ='Screened by week pivot'!A74 -> 71 | B75: ='Screened by week pivot'!B74 -> 151 | C75: ='Eligible by week pivot'!B75 -> 22 | D75: 14.57%
A76: ='Screened by week pivot'!A75 -> 72 | B76: ='Screened by week pivot'!B75 -> 120 | C76: ='Eligible by week pivot'!B76 -> 19 | D76: 15.83%
A77: ='Screened by week pivot'!A76 -> 73 | B77: ='Screened by week pivot'!B76 -> 156 | C77: ='Eligible by week pivot'!B77 -> 21 | D77: 13.46%
A78: ='Screened by week pivot'!A77 -> 74 | B78: ='Screened by week pivot'!B77 -> 129 | C78: ='Eligible by week pivot'!B78 -> 21 | D78: 16.28%
A79: ='Screened by week pivot'!A78 -> 75 | B79: ='Screened by week pivot'!B78 -> 160 | C79: ='Eligible by week pivot'!B79 -> 28 | D79: 17.50%
A80: ='Screened by week pivot'!A79 -> 76 | B80: ='Screened by week pivot'!B79 -> 158 | C80: ='Eligible by week pivot'!B80 -> 18 | D80: =C80/B80 -> 11.39%
A81: ='Screened by week pivot'!A80 -> 77 | B81: ='Screened by week pivot'!B80 -> 162 | C81: ='Eligible by week pivot'!B81 -> 14 | D81: =C81/B81 -> 8.64%
A82: ='Screened by week pivot'!A81 -> 78 | B82: ='Screened by week pivot'!B81 -> 172 | C82: ='Eligible by week pivot'!B82 -> 22 | D82: =C82/B82 -> 12.79%
A83: ='Screened by week pivot'!A82 -> 79 | B83: ='Screened by week pivot'!B82 -> 167 | C83: ='Eligible by week pivot'!B83 -> 13 | D83: =C83/B83 -> 7.78%
A84: ='Screened by week pivot'!A83 -> 80 | B84: ='Screened by week pivot'!B83 -> 159 | C84: ='Eligible by week pivot'!B84 -> 18 | D84: 11.32%
A85: ='Screened by week pivot'!A84 -> 81 | B85: ='Screened by week pivot'!B84 -> 189 | C85: ='Eligible by week pivot'!B85 -> 25 | D85: =C85/B85 -> 13.23%
A86: ='Screened by week pivot'!A85 -> 82 | B86: ='Screened by week pivot'!B85 -> 141 | C86: ='Eligible by week pivot'!B86 -> 13 | D86: =C86/B86 -> 9.22%
A87: ='Screened by week pivot'!A86 -> 83 | B87: ='Screened by week pivot'!B86 -> 164 | C87: ='Eligible by week pivot'!B87 -> 20 | D87: =C87/B87 -> 12.20%
A88: ='Screened by week pivot'!A87 -> 84 | B88: ='Screened by week pivot'!B87 -> 132 | C88: ='Eligible by week pivot'!B88 -> 22 | D88: =C88/B88 -> 16.67%
A89: ='Screened by week pivot'!A88 -> 85 | B89: ='Screened by week pivot'!B88 -> 168 | C89: ='Eligible by week pivot'!B89 -> 24 | D89: 14.29%

Sheet %Eligible Control Chart
L1: Control Chart Parameters
L2: Sigma | M2: 3
L4: Sample statistics
L5: mean | M5: =AVERAGE(B39:B121) -> 9.77%
L6: sample stdev | M6: =(M5*(1-M5)/D34)^0.5 -> 3.22%
L7: UCL | M7: =M5+M2*M6 -> 19.43%
L8: LCL | M8: =MAX(0,M5-M2*M6) -> 0.11%
L9: Target | M9: 5.00%
P10: Signal Flag
L11: Signal Processing Results | P11: =SUM(P12:P22) -> 4 | Q11: =S12-Q12 -> -1 | R11: Trend Results
L12: =IF(M12>0, "Possible nonrandom event", "Random") -> Random | M12: =R37 -> 0 | N12: points above UCL | O12: =IF(M12>'Signal Process Switches'!C2, 1, 0) -> 0 | P12: =O12*'Signal Process Switches'!A2 -> 0 | Q12: =SUM(Q13:Q20) -> 1 | R12: Down | S12: =SUM(S13:S20) -> 0 | T12: Up
L13: =IF(M13>0, "Possible nonrandom event", "Random") -> Possible nonrandom event | M13: =S37 -> 1 | N13: points below LCL | O13: =IF(M13>'Signal Process Switches'!C3, 1, 0) -> 1 | P13: =O13*'Signal Process Switches'!A3 -> 1 | Q13: =IF(B50<$M$5-3*$M$6,1,0) -> 0 | R13: Last point 3 standard deviations below mean or lower | S13: =IF(B50>$M$5+3*$M$6,1,0) -> 0 | T13: Last point 3 standard deviations above mean or higher
L14: =IF(M14>0, "Possible nonrandom event", "Random") -> Possible nonrandom event | M14: =T37 -> 1 | N14: points outside 3 std dev | O14: =IF(M14>'Signal Process Switches'!C4, 1, 0) -> 1 | P14: =O14*'Signal Process Switches'!A4 -> 1 | Q14: =IF(AG50>1,1,0) -> 0 | R14: Last 2 out of 3 points 2 standard deviations below mean or lower | S14: =IF(AI50>1,1,0) -> 0 | T14: Last 2 out of 3 points 2 standard deviations above mean or higher
L15: =IF(M15>1, "Potential instability", "Random") -> Potential instability | M15: =V37 -> 3 | N15: 2 out of 3 outside 2 std dev | O15: =IF(M15>'Signal Process Switches'!C5, 1, 0) -> 1 | P15: =O15*'Signal Process Switches'!A5 -> 1 | Q15: =IF(AK50>3,1,0) -> 0 | R15: Last 4 out of 5 points 1 standard deviation below mean or lower | S15: =IF(AM50>3,1,0) -> 0 | T15: Last 4 out of 5 points 1 standard deviation above mean or higher
L16: =IF(M16>3, "Potential instability", "Random") -> Potential instability | M16: =X37 -> 5 | N16: 4 out of 5 outside 1 std dev | O16: =IF(M16>'Signal Process Switches'!C6, 1, 0) -> 1 | P16: =O16*'Signal Process Switches'!A6 -> 0 | Q16: =IF(AD50>5,1,0) -> 1 | R16: Last 6 points below mean | S16: =IF(AC50>5,1,0) -> 0 | T16: Last 6 points above mean
L17: =IF(M17>5, "Possible trend", "Random") -> Random | M17: =Y37 -> 4 | N17: consecutive going up | O17: =IF(M17>'Signal Process Switches'!C7, 1, 0) -> 0 | P17: =O17*'Signal Process Switches'!A7 -> 0 | Q17: =IF(AB$50<-5,1,0) -> 0 | R17: Last 6 points going down | S17: =IF(Y50>5,1,0) -> 0 | T17: Last 6 points going up
L18: =IF(M18>5, "Possible trend", "Random") -> Random | M18: =-Z37 -> 3 | N18: consecutive going down | O18: =IF(M18>'Signal Process Switches'!C8, 1, 0) -> 0 | P18: =O18*'Signal Process Switches'!A8 -> 0 | Q18: =IF(AND(Z50<-2,B50<M$5-2*M$6),1,0) -> 0 | R18: Last 3 points going down with last point 2 standard deviations below mean or lower | S18: =IF(AND(Y50>2,B50>M$5+2*M$6),1,0) -> 0 | T18: Last 3 points going up with last point 2 standard deviations above mean or higher
L19: =IF(M19>13, "Possible pattern", "Random") -> Random | M19: =AA37 -> 6 | N19: consecutive alternating points | O19: =IF(M19>'Signal Process Switches'!C9, 1, 0) -> 0 | P19: =O19*'Signal Process Switches'!A9 -> 0 | Q19: =IF(AND(Z50<-3,B50<M$5-1*M$6),1,0) -> 0 | R19: Last 4 points going down with last point 1 standard deviations below mean or lower | S19: =IF(AND(Y50>3,B50>M$5+1*M$6),1,0) -> 0 | T19: Last 4 points going up with last point 1 standard deviations above mean or higher
L20: =IF(M20>14, "Possible variance reduction", "Random") -> Random | M20: =AB37 -> 4 | N20: consecutive inside 1 std dev | O20: =IF(M20>'Signal Process Switches'!C10, 1, 0) -> 0 | P20: =O20*'Signal Process Switches'!A10 -> 0 | Q20: =IF(AND(Z50<-4,B50<M$5-0*M$6),1,0) -> 0 | R20: Last 5 points going down with last point below mean or lower | S20: =IF(AND(Y50>4,B50>M$5+0*M$6),1,0) -> 0 | T20: Last 5 points going up with last point above mean or higher
L21: =IF(M21>7, "Possible trend", "Random") -> Random | M21: =AC37 -> 2 | N21: consecutive above mean | O21: =IF(M21>'Signal Process Switches'!C11, 1, 0) -> 0 | P21: =O21*'Signal Process Switches'!A11 -> 0
L22: =IF(M22>7, "Possible trend", "Random") -> Possible trend | M22: =AD37 -> 22 | N22: consecutive below mean | O22: =IF(M22>'Signal Process Switches'!C12, 1, 0) -> 1 | P22: =O22*'Signal Process Switches'!A12 -> 1
F32: =F33-1 -> 120 | G32: =INDEX(B:B,F32,1) -> 0.09219858156
A33: Date | B33: Row of last nonblank | C33: final_score of last nonblank | F33: 121 | G33: =INDEX(B:B,F33,1) -> 0.1219512195
A34: =A39 -> 1 | B34: =ROW(INDEX(A:A,MAX((A:A<>"")*(ROW(A:A))))) -> 123 | C34: =INDEX(B:B,B34,1) -> 0.1428571429 | D34: =INDEX(A:A,B34,1) -> 85 | F34: =F35-1 -> 122 | G34: =INDEX(B:B,F34,1) -> 0.1666666667
F35: =ROW(INDEX(A:A,MAX((A:A<>"")*(ROW(A:A))))) -> 123 | G35: =INDEX(B:B,F35,1) -> 0.1428571429
A36: Data | C36: Control Chart Limits | F36: Signal Processing Flags | R36: Signal Processing Data
R37: =SUM(R39:R69) -> 0 | S37: =SUM(S39:S69) -> 1 | T37: 1 | U37: =MAX(U39:U69) -> 1 | V37: =MAX(V39:V69) -> 3 | W37: 1 | X37: 5 | Y37: 4 | Z37: =MIN(Z39:Z69) -> -3 | AA37: =MAX(AA39:AA69) -> 6 | AB37: =MAX(AB39:AB69) -> 4 | AC37: 2 | AD37: 22
A38: Week | B38: %Eligible | C38: Mean | D38: UCL | E38: LCL | F38: above UCL | G38: below LCL | H38: out3stddev | I38: 2 of 3 out2 | J38: 4 of 5 out1 | K38: uptrend | L38: downtrend | M38: alt | N38: in1stddev | O38: above mean | P38: below mean | Q38: =L9 -> Target | R38: above UCL | S38: below LCL | T38: out3stddev | U38: out2stddev | V38: 2 of 3 out2 | W38: out1stddev | X38: 4 of 5 out1 | Y38: uptrend | Z38: downtrend | AA38: alt | AB38: in1stddev | AC38: above mean | AD38: below mean
A39: ='%Eligible by week calculations'!A5 -> 1 | B39: ='%Eligible by week calculations'!D5 -> 2.41% | C39: =M$5 -> 0.09769675375 | D39: =M$7 -> 0.1943080966 | E39: =M$8 -> 0.001085410941 | F39: =IF(B39>D39,B39,#N/A) ->  | G39: =IF(B39<E39,B39,#N/A) ->  | H39: =IF(OR(B39>$M$5+3*$M$6,B39<$M$5-3*$M$6),B39,#N/A) ->  | K39: =IF(Y39>5,B39,#N/A) ->  | L39: =IF(Z39<-5,B39,#N/A) ->  | M39: =IF(AA39>13,B39,#N/A) ->  | N39: =IF(AB39>14,B39,#N/A) ->  | O39: =IF(AC39>7,B39,#N/A) ->  | P39: =IF(AD39>7,B39,#N/A) ->  | Q39: =M$9 -> 0.05 | R39: =IF(B39>D39,1,0) -> 0 | S39: =IF(B39<E39,1,0) -> 0 | T39: =IF(OR(B39>$M$5+3*$M$6,B39<$M$5-3*$M$6),1,0) -> 0 | U39: =IF(OR(B39>$M$5+2*$M$6,B39<$M$5-2*$M$6),1,0) -> 1 | W39: =IF(OR(B39>$M$5+1*$M$6,B39<$M$5-1*$M$6),1,0) -> 1 | Y39: 0 | Z39: 0 | AA39: 0 | AB39: =IF(AND(B39<M$5+1*M$6,B39>M$5-1*M$6),1,0) -> 0 | AC39: =IF(B39>C39,1,0) -> 0 | AD39: =IF(B39<C39,1,0) -> 1
A40: ='%Eligible by week calculations'!A6 -> 2 | B40: ='%Eligible by week calculations'!D6 -> 0.00% | C40: 0.09769675375 | D40: 0.1943080966 | E40: 0.001085410941 | G40: 0 | H40: 0 | Q40: =M$9 -> 0.05 | R40: 0 | S40: 1 | T40: =IF(OR(B40>$M$5+3*$M$6,B40<$M$5-3*$M$6),T39+1,0) -> 1 | U40: 1 | W40: 1 | Y40: =IF(B40>B39,Y39+1,0) -> 0 | Z40: =IF(B40<B39,Z39-1,0) -> -1 | AA40: =IF(OR(AND(Z40=-Y39,Z40<>0),AND(Y40=-Z39,Y40<>0)),AA39+1,0) -> 0 | AB40: =IF(AND(B40<M$5+1*M$6,B40>M$5-1*M$6),AB39+1,0) -> 0 | AC40: =IF(B40>C40,AC39+1,0) -> 0 | AD40: =IF(B40<C40,AD39+1,0) -> 2
A41: ='%Eligible by week calculations'!A7 -> 3 | B41: ='%Eligible by week calculations'!D7 -> 8.45% | C41: 0.09769675375 | D41: 0.1943080966 | E41: 0.001085410941 | I41: =IF(V41>1,B41,#N/A) -> 0.08450704225 | Q41: 0.05 | R41: 0 | S41: 0 | T41: 0 | U41: 0 | V41: =SUM(U39:U41) -> 2 | W41: 0 | Y41: 1 | Z41: 0 | AA41: =IF(OR(AND(Z41=-Y40,Z41<>0),AND(Y41=-Z40,Y41<>0)),AA40+1,0) -> 1 | AB41: 1 | AC41: 0 | AD41: 3
A42: ='%Eligible by week calculations'!A8 -> 4 | B42: ='%Eligible by week calculations'!D8 -> 1.81% | C42: 0.09769675375 | D42: 0.1943080966 | E42: 0.001085410941 | I42: 0.01807228916 | Q42: 0.05 | R42: 0 | S42: 0 | T42: 0 | U42: 1 | V42: =SUM(U40:U42) -> 2 | W42: 1 | Y42: 0 | Z42: -1 | AA42: 2 | AB42: 0 | AC42: 0 | AD42: 4
A43: ='%Eligible by week calculations'!A9 -> 5 | B43: ='%Eligible by week calculations'!D9 -> 3.11% | C43: 0.09769675375 | D43: 0.1943080966 | E43: 0.001085410941 | I43: 0.0310880829 | J43: =IF(X43>3,B43,#N/A) -> 0.0310880829 | Q43: 0.05 | R43: 0 | S43: 0 | T43: 0 | U43: 1 | V43: 2 | W43: 1 | X43: =SUM(W39:W43) -> 4 | Y43: 1 | Z43: 0 | AA43: 3 | AB43: 0 | AC43: 0 | AD43: 5
A44: ='%Eligible by week calculations'!A10 -> 6 | B44: ='%Eligible by week calculations'!D10 -> 1.01% | C44: 0.09769675375 | D44: 0.1943080966 | E44: 0.001085410941 | I44: 0.01005025126 | J44: 0.01005025126 | Q44: 0.05 | R44: 0 | S44: 0 | T44: 0 | U44: 1 | V44: 3 | W44: 1 | X44: =SUM(W40:W44) -> 4 | Y44: 0 | Z44: -1 | AA44: =IF(OR(AND(Z44=-Y43,Z44<>0),AND(Y44=-Z43,Y44<>0)),AA43+1,0) -> 4 | AB44: 0 | AC44: 0 | AD44: 6
A45: ='%Eligible by week calculations'!A11 -> 7 | B45: ='%Eligible by week calculations'!D11 -> 3.14% | C45: 0.09769675375 | D45: 0.1943080966 | E45: 0.001085410941 | I45: 0.03141361257 | J45: 0.03141361257 | Q45: 0.05 | R45: 0 | S45: 0 | T45: 0 | U45: 1 | V45: 3 | W45: 1 | X45: 4 | Y45: 1 | Z45: 0 | AA45: 5 | AB45: 0 | AC45: 0 | AD45: 7
A46: ='%Eligible by week calculations'!A12 -> 8 | B46: ='%Eligible by week calculations'!D12 -> 1.72% | C46: 0.09769675375 | D46: 0.1943080966 | E46: 0.001085410941 | I46: 0.01724137931 | J46: 0.01724137931 | P46: 0.01724137931 | Q46: 0.05 | R46: 0 | S46: 0 | T46: 0 | U46: 1 | V46: 3 | W46: 1 | X46: 5 | Y46: 0 | Z46: -1 | AA46: =IF(OR(AND(Z46=-Y45,Z46<>0),AND(Y46=-Z45,Y46<>0)),AA45+1,0) -> 6 | AB46: 0 | AC46: 0 | AD46: 8
A47: ='%Eligible by week calculations'!A13 -> 9 | B47: ='%Eligible by week calculations'!D13 -> 1.51% | C47: 0.09769675375 | D47: 0.1943080966 | E47: 0.001085410941 | I47: 0.01507537688 | J47: 0.01507537688 | P47: 0.01507537688 | Q47: 0.05 | R47: 0 | S47: 0 | T47: 0 | U47: 1 | V47: 3 | W47: 1 | X47: 5 | Y47: 0 | Z47: -2 | AA47: =IF(OR(AND(Z47=-Y46,Z47<>0),AND(Y47=-Z46,Y47<>0)),AA46+1,0) -> 0 | AB47: 0 | AC47: 0 | AD47: 9
A48: ='%Eligible by week calculations'!A14 -> 10 | B48: ='%Eligible by week calculations'!D14 -> 2.90% | C48: 0.09769675375 | D48: 0.1943080966 | E48: 0.001085410941 | I48: 0.02898550725 | J48: 0.02898550725 | P48: 0.02898550725 | Q48: 0.05 | R48: 0 | S48: 0 | T48: 0 | U48: 1 | V48: 3 | W48: 1 | X48: 5 | Y48: 1 | Z48: 0 | AA48: 0 | AB48: 0 | AC48: 0 | AD48: 10
A49: ='%Eligible by week calculations'!A15 -> 11 | B49: ='%Eligible by week calculations'!D15 -> 1.59% | C49: 0.09769675375 | D49: 0.1943080966 | E49: 0.001085410941 | I49: 0.01587301587 | J49: 0.01587301587 | P49: 0.01587301587 | Q49: 0.05 | R49: 0 | S49: 0 | T49: 0 | U49: 1 | V49: 3 | W49: 1 | X49: 5 | Y49: 0 | Z49: -1 | AA49: 1 | AB49: 0 | AC49: 0 | AD49: 11
A50: ='%Eligible by week calculations'!A16 -> 12 | B50: ='%Eligible by week calculations'!D16 -> 2.20% | C50: 0.09769675375 | D50: 0.1943080966 | E50: 0.001085410941 | I50: 0.02197802198 | J50: 0.02197802198 | P50: 0.02197802198 | Q50: 0.05 | R50: 0 | S50: 0 | T50: 0 | U50: 1 | V50: 3 | W50: 1 | X50: 5 | Y50: 1 | Z50: 0 | AA50: 2 | AB50: 0 | AC50: 0 | AD50: 12
A51: ='%Eligible by week calculations'!A17 -> 13 | B51: ='%Eligible by week calculations'!D17 -> 3.01% | C51: 0.09769675375 | D51: 0.1943080966 | E51: 0.001085410941 | I51: 0.03007518797 | J51: 0.03007518797 | P51: 0.03007518797 | Q51: 0.05 | R51: 0 | S51: 0 | T51: 0 | U51: 1 | V51: 3 | W51: 1 | X51: 5 | Y51: 2 | Z51: 0 | AA51: 0 | AB51: 0 | AC51: 0 | AD51: 13
A52: ='%Eligible by week calculations'!A18 -> 14 | B52: ='%Eligible by week calculations'!D18 -> 2.83% | C52: 0.09769675375 | D52: 0.1943080966 | E52: 0.001085410941 | I52: 0.02830188679 | J52: 0.02830188679 | P52: 0.02830188679 | Q52: 0.05 | R52: 0 | S52: 0 | T52: 0 | U52: 1 | V52: 3 | W52: 1 | X52: 5 | Y52: 0 | Z52: -1 | AA52: 0 | AB52: 0 | AC52: 0 | AD52: 14
A53: ='%Eligible by week calculations'!A19 -> 15 | B53: ='%Eligible by week calculations'!D19 -> 3.39% | C53: 0.09769675375 | D53: 0.1943080966 | E53: 0.001085410941 | I53: 0.03389830508 | J53: 0.03389830508 | P53: 0.03389830508 | Q53: 0.05 | R53: 0 | S53: 0 | T53: 0 | U53: 0 | V53: 2 | W53: 1 | X53: 5 | Y53: 1 | Z53: 0 | AA53: 1 | AB53: 0 | AC53: 0 | AD53: 15
A54: ='%Eligible by week calculations'!A20 -> 16 | B54: ='%Eligible by week calculations'!D20 -> 3.77% | C54: 0.09769675375 | D54: 0.1943080966 | E54: 0.001085410941 | J54: 0.03773584906 | P54: 0.03773584906 | Q54: 0.05 | R54: 0 | S54: 0 | T54: 0 | U54: 0 | V54: 1 | W54: 1 | X54: 5 | Y54: 2 | Z54: 0 | AA54: 0 | AB54: 0 | AC54: 0 | AD54: 16
A55: ='%Eligible by week calculations'!A21 -> 17 | B55: ='%Eligible by week calculations'!D21 -> 4.31% | C55: 0.09769675375 | D55: 0.1943080966 | E55: 0.001085410941 | J55: 0.04310344828 | P55: 0.04310344828 | Q55: 0.05 | R55: 0 | S55: 0 | T55: 0 | U55: 0 | V55: 0 | W55: 1 | X55: 5 | Y55: 3 | Z55: 0 | AA55: 0 | AB55: 0 | AC55: 0 | AD55: 17
A56: ='%Eligible by week calculations'!A22 -> 18 | B56: ='%Eligible by week calculations'!D22 -> 7.48% | C56: 0.09769675375 | D56: 0.1943080966 | E56: 0.001085410941 | J56: 0.07476635514 | P56: 0.07476635514 | Q56: 0.05 | R56: 0 | S56: 0 | T56: 0 | U56: 0 | V56: 0 | W56: 0 | X56: 4 | Y56: 4 | Z56: 0 | AA56: 0 | AB56: 1 | AC56: 0 | AD56: 18
A57: ='%Eligible by week calculations'!A23 -> 19 | B57: ='%Eligible by week calculations'!D23 -> 3.68% | C57: 0.09769675375 | D57: 0.1943080966 | E57: 0.001085410941 | J57: 0.03676470588 | P57: 0.03676470588 | Q57: 0.05 | R57: 0 | S57: 0 | T57: 0 | U57: 0 | V57: 0 | W57: 1 | X57: 4 | Y57: 0 | Z57: -1 | AA57: 0 | AB57: 0 | AC57: 0 | AD57: 19
A58: ='%Eligible by week calculations'!A24 -> 20 | B58: ='%Eligible by week calculations'!D24 -> 9.62% | C58: 0.09769675375 | D58: 0.1943080966 | E58: 0.001085410941 | P58: 0.09615384615 | Q58: 0.05 | R58: 0 | S58: 0 | T58: 0 | U58: 0 | V58: 0 | W58: 0 | X58: 3 | Y58: 1 | Z58: 0 | AA58: 1 | AB58: 1 | AC58: 0 | AD58: 20
A59: ='%Eligible by week calculations'!A25 -> 21 | B59: ='%Eligible by week calculations'!D25 -> 3.74% | C59: 0.09769675375 | D59: 0.1943080966 | E59: 0.001085410941 | P59: 0.03738317757 | Q59: 0.05 | R59: 0 | S59: 0 | T59: 0 | U59: 0 | V59: 0 | W59: 1 | X59: 3 | Y59: 0 | Z59: -1 | AA59: 2 | AB59: 0 | AC59: 0 | AD59: 21
A60: ='%Eligible by week calculations'!A26 -> 22 | B60: ='%Eligible by week calculations'!D26 -> 7.14% | C60: 0.09769675375 | D60: 0.1943080966 | E60: 0.001085410941 | P60: 0.07142857143 | Q60: 0.05 | R60: 0 | S60: 0 | T60: 0 | U60: 0 | V60: 0 | W60: 0 | X60: 2 | Y60: 1 | Z60: 0 | AA60: 3 | AB60: 1 | AC60: 0 | AD60: 22
A61: ='%Eligible by week calculations'!A27 -> 23 | B61: ='%Eligible by week calculations'!D27 -> 10.43% | C61: 0.09769675375 | D61: 0.1943080966 | E61: 0.001085410941 | Q61: 0.05 | R61: 0 | S61: 0 | T61: 0 | U61: 0 | V61: 0 | W61: 0 | X61: 2 | Y61: 2 | Z61: 0 | AA61: 0 | AB61: 2 | AC61: 1 | AD61: 0
A62: ='%Eligible by week calculations'!A28 -> 24 | B62: ='%Eligible by week calculations'!D28 -> 8.04% | C62: 0.09769675375 | D62: 0.1943080966 | E62: 0.001085410941 | Q62: 0.05 | R62: 0 | S62: 0 | T62: 0 | U62: 0 | V62: 0 | W62: 0 | X62: 1 | Y62: 0 | Z62: -1 | AA62: 0 | AB62: 3 | AC62: 0 | AD62: 1
A63: ='%Eligible by week calculations'!A29 -> 25 | B63: ='%Eligible by week calculations'!D29 -> 9.55% | C63: 0.09769675375 | D63: 0.1943080966 | E63: 0.001085410941 | Q63: 0.05 | R63: 0 | S63: 0 | T63: 0 | U63: 0 | V63: 0 | W63: 0 | X63: 1 | Y63: 1 | Z63: 0 | AA63: 1 | AB63: 4 | AC63: 0 | AD63: 2
A64: ='%Eligible by week calculations'!A30 -> 26 | B64: ='%Eligible by week calculations'!D30 -> 5.26% | C64: 0.09769675375 | D64: 0.1943080966 | E64: 0.001085410941 | Q64: 0.05 | R64: 0 | S64: 0 | T64: 0 | U64: 0 | V64: 0 | W64: 1 | X64: 1 | Y64: 0 | Z64: -1 | AA64: 2 | AB64: 0 | AC64: 0 | AD64: 3
A65: ='%Eligible by week calculations'!A31 -> 27 | B65: ='%Eligible by week calculations'!D31 -> 7.74% | C65: 0.09769675375 | D65: 0.1943080966 | E65: 0.001085410941 | Q65: 0.05 | R65: 0 | S65: 0 | T65: 0 | U65: 0 | V65: 0 | W65: 0 | X65: 1 | Y65: 1 | Z65: 0 | AA65: 3 | AB65: 1 | AC65: 0 | AD65: 4
A66: ='%Eligible by week calculations'!A32 -> 28 | B66: ='%Eligible by week calculations'!D32 -> 10.91% | C66: 0.09769675375 | D66: 0.1943080966 | E66: 0.001085410941 | Q66: 0.05 | R66: 0 | S66: 0 | T66: 0 | U66: 0 | V66: 0 | W66: 0 | X66: 1 | Y66: 2 | Z66: 0 | AA66: 0 | AB66: 2 | AC66: 1 | AD66: 0
A67: ='%Eligible by week calculations'!A33 -> 29 | B67: ='%Eligible by week calculations'!D33 -> 10.06% | C67: 0.09769675375 | D67: 0.1943080966 | E67: 0.001085410941 | Q67: 0.05 | R67: 0 | S67: 0 | T67: 0 | U67: 0 | V67: 0 | W67: 0 | X67: 1 | Y67: 0 | Z67: -1 | AA67: 0 | AB67: 3 | AC67: 2 | AD67: 0
A68: ='%Eligible by week calculations'!A34 -> 30 | B68: ='%Eligible by week calculations'!D34 -> 8.21% | C68: 0.09769675375 | D68: 0.1943080966 | E68: 0.001085410941 | Q68: 0.05 | R68: 0 | S68: 0 | T68: 0 | U68: 0 | V68: 0 | W68: 0 | X68: 1 | Y68: 0 | Z68: -2 | AA68: 0 | AB68: 4 | AC68: 0 | AD68: 1
A69: ='%Eligible by week calculations'!A35 -> 31 | B69: ='%Eligible by week calculations'!D35 -> 5.30% | C69: 0.09769675375 | D69: 0.1943080966 | E69: 0.001085410941 | Q69: 0.05 | R69: 0 | S69: 0 | T69: 0 | U69: 0 | V69: 0 | W69: 1 | X69: 1 | Y69: 0 | Z69: -3 | AA69: 0 | AB69: 0 | AC69: 0 | AD69: 2
A70: ='%Eligible by week calculations'!A36 -> 32 | B70: ='%Eligible by week calculations'!D36 -> 10.26% | C70: 0.09769675375 | D70: 0.1943080966 | E70: 0.001085410941 | Q70: 0.05 | R70: 0 | S70: 0 | T70: 0 | U70: 0 | V70: 0 | W70: 0 | X70: 1 | Y70: 1 | Z70: 0 | AA70: 0 | AB70: 1 | AC70: 1 | AD70: 0
A71: ='%Eligible by week calculations'!A37 -> 33 | B71: ='%Eligible by week calculations'!D37 -> 11.89% | C71: 0.09769675375 | D71: 0.1943080966 | E71: 0.001085410941 | Q71: 0.05 | R71: 0 | S71: 0 | T71: 0 | U71: 0 | V71: 0 | W71: 0 | X71: 1 | Y71: 2 | Z71: 0 | AA71: 0 | AB71: 2 | AC71: 2 | AD71: 0
A72: ='%Eligible by week calculations'!A38 -> 34 | B72: ='%Eligible by week calculations'!D38 -> 12.35% | C72: 0.09769675375 | D72: 0.1943080966 | E72: 0.001085410941 | Q72: 0.05 | R72: 0 | S72: 0 | T72: 0 | U72: 0 | V72: 0 | W72: 0 | X72: 1 | Y72: 3 | Z72: 0 | AA72: 0 | AB72: 3 | AC72: 3 | AD72: 0
A73: ='%Eligible by week calculations'!A39 -> 35 | B73: ='%Eligible by week calculations'!D39 -> 9.14% | C73: 0.09769675375 | D73: 0.1943080966 | E73: 0.001085410941 | Q73: 0.05 | R73: 0 | S73: 0 | T73: 0 | U73: 0 | V73: 0 | W73: 0 | X73: 1 | Y73: 0 | Z73: -1 | AA73: 0 | AB73: 4 | AC73: 0 | AD73: 1
A74: ='%Eligible by week calculations'!A40 -> 36 | B74: ='%Eligible by week calculations'!D40 -> 3.11% | C74: 0.09769675375 | D74: 0.1943080966 | E74: 0.001085410941 | Q74: 0.05 | R74: 0 | S74: 0 | T74: 0 | U74: 1 | V74: 1 | W74: 1 | X74: 1 | Y74: 0 | Z74: -2 | AA74: 0 | AB74: 0 | AC74: 0 | AD74: 2
A75: ='%Eligible by week calculations'!A41 -> 37 | B75: ='%Eligible by week calculations'!D41 -> 5.44% | C75: 0.09769675375 | D75: 0.1943080966 | E75: 0.001085410941 | Q75: 0.05 | R75: 0 | S75: 0 | T75: 0 | U75: 0 | V75: 1 | W75: 1 | X75: 2 | Y75: 1 | Z75: 0 | AA75: 0 | AB75: 0 | AC75: 0 | AD75: 3
A76: ='%Eligible by week calculations'!A42 -> 38 | B76: ='%Eligible by week calculations'!D42 -> 12.71% | C76: 0.09769675375 | D76: 0.1943080966 | E76: 0.001085410941 | Q76: 0.05 | R76: 0 | S76: 0 | T76: 0 | U76: 0 | V76: 1 | W76: 0 | X76: 2 | Y76: 2 | Z76: 0 | AA76: 0 | AB76: 1 | AC76: 1 | AD76: 0
A77: ='%Eligible by week calculations'!A43 -> 39 | B77: ='%Eligible by week calculations'!D43 -> 8.65% | C77: 0.09769675375 | D77: 0.1943080966 | E77: 0.001085410941 | Q77: 0.05 | R77: 0 | S77: 0 | T77: 0 | U77: 0 | V77: 0 | W77: 0 | X77: 2 | Y77: 0 | Z77: -1 | AA77: 0 | AB77: 2 | AC77: 0 | AD77: 1
A78: ='%Eligible by week calculations'!A44 -> 40 | B78: ='%Eligible by week calculations'!D44 -> 9.40% | C78: 0.09769675375 | D78: 0.1943080966 | E78: 0.001085410941 | Q78: 0.05 | R78: 0 | S78: 0 | T78: 0 | U78: 0 | V78: 0 | W78: 0 | X78: 2 | Y78: 1 | Z78: 0 | AA78: 1 | AB78: 3 | AC78: 0 | AD78: 2
A79: ='%Eligible by week calculations'!A45 -> 41 | B79: ='%Eligible by week calculations'!D45 -> 12.20% | C79: =M$5 -> 0.09769675375 | D79: =M$7 -> 0.1943080966 | E79: =M$8 -> 0.001085410941 | F79: =IF(B79>D79,B79,#N/A) ->  | G79: =IF(B79<E79,B79,#N/A) ->  | H79: =IF(OR(B79>$M$5+3*$M$6,B79<$M$5-3*$M$6),B79,#N/A) ->  | I79: =IF(V79>1,B79,#N/A) ->  | J79: =IF(X79>3,B79,#N/A) ->  | K79: =IF(Y79>5,B79,#N/A) ->  | L79: =IF(Z79<-5,B79,#N/A) ->  | M79: =IF(AA79>13,B79,#N/A) ->  | N79: =IF(AB79>14,B79,#N/A) ->  | O79: =IF(AC79>7,B79,#N/A) ->  | P79: =IF(AD79>7,B79,#N/A) ->  | Q79: =M$9 -> 0.05 | R79: =IF(B79>D79,1,0) -> 0 | S79: =IF(B79<E79,1,0) -> 0 | T79: =IF(OR(B79>$M$5+3*$M$6,B79<$M$5-3*$M$6),T78+1,0) -> 0 | U79: =IF(OR(B79>$M$5+2*$M$6,B79<$M$5-2*$M$6),1,0) -> 0 | V79: =SUM(U77:U79) -> 0 | W79: =IF(OR(B79>$M$5+1*$M$6,B79<$M$5-1*$M$6),1,0) -> 0 | X79: =SUM(W75:W79) -> 1 | Y79: =IF(B79>B78,Y78+1,0) -> 2 | Z79: =IF(B79<B78,Z78-1,0) -> 0 | AA79: =IF(OR(AND(Z79=-Y78,Z79<>0),AND(Y79=-Z78,Y79<>0)),AA78+1,0) -> 0 | AB79: =IF(AND(B79<M$5+1*M$6,B79>M$5-1*M$6),AB78+1,0) -> 4 | AC79: =IF(B79>C79,AC78+1,0) -> 1 | AD79: =IF(B79<C79,AD78+1,0) -> 0
A80: ='%Eligible by week calculations'!A46 -> 42 | B80: ='%Eligible by week calculations'!D46 -> 16.35% | C80: =M$5 -> 0.09769675375 | D80: =M$7 -> 0.1943080966 | E80: =M$8 -> 0.001085410941 | F80: =IF(B80>D80,B80,#N/A) ->  | G80: =IF(B80<E80,B80,#N/A) ->  | H80: =IF(OR(B80>$M$5+3*$M$6,B80<$M$5-3*$M$6),B80,#N/A) ->  | I80: =IF(V80>1,B80,#N/A) ->  | J80: =IF(X80>3,B80,#N/A) ->  | K80: =IF(Y80>5,B80,#N/A) ->  | L80: =IF(Z80<-5,B80,#N/A) ->  | M80: =IF(AA80>13,B80,#N/A) ->  | N80: =IF(AB80>14,B80,#N/A) ->  | O80: =IF(AC80>7,B80,#N/A) ->  | P80: =IF(AD80>7,B80,#N/A) ->  | Q80: =M$9 -> 0.05 | R80: =IF(B80>D80,1,0) -> 0 | S80: =IF(B80<E80,1,0) -> 0 | T80: =IF(OR(B80>$M$5+3*$M$6,B80<$M$5-3*$M$6),T79+1,0) -> 0 | U80: =IF(OR(B80>$M$5+2*$M$6,B80<$M$5-2*$M$6),1,0) -> 1 | V80: =SUM(U78:U80) -> 1 | W80: =IF(OR(B80>$M$5+1*$M$6,B80<$M$5-1*$M$6),1,0) -> 1 | X80: =SUM(W76:W80) -> 1 | Y80: =IF(B80>B79,Y79+1,0) -> 3 | Z80: =IF(B80<B79,Z79-1,0) -> 0 | AA80: =IF(OR(AND(Z80=-Y79,Z80<>0),AND(Y80=-Z79,Y80<>0)),AA79+1,0) -> 0 | AB80: =IF(AND(B80<M$5+1*M$6,B80>M$5-1*M$6),AB79+1,0) -> 0 | AC80: =IF(B80>C80,AC79+1,0) -> 2 | AD80: =IF(B80<C80,AD79+1,0) -> 0
A81: ='%Eligible by week calculations'!A47 -> 43 | B81: ='%Eligible by week calculations'!D47 -> 8.70% | C81: 0.09769675375 | D81: 0.1943080966 | E81: 0.001085410941 | Q81: 0.05 | R81: 0 | S81: 0 | T81: 0 | U81: 0 | V81: 1 | W81: 0 | X81: 1 | Y81: 0 | Z81: -1 | AA81: 0 | AB81: 1 | AC81: 0 | AD81: 1
A82: ='%Eligible by week calculations'!A48 -> 44 | B82: ='%Eligible by week calculations'!D48 -> 7.19% | C82: =M$5 -> 0.09769675375 | D82: =M$7 -> 0.1943080966 | E82: =M$8 -> 0.001085410941 | F82: =IF(B82>D82,B82,#N/A) ->  | G82: =IF(B82<E82,B82,#N/A) ->  | H82: =IF(OR(B82>$M$5+3*$M$6,B82<$M$5-3*$M$6),B82,#N/A) ->  | I82: =IF(V82>1,B82,#N/A) ->  | J82: =IF(X82>3,B82,#N/A) ->  | K82: =IF(Y82>5,B82,#N/A) ->  | L82: =IF(Z82<-5,B82,#N/A) ->  | M82: =IF(AA82>13,B82,#N/A) ->  | N82: =IF(AB82>14,B82,#N/A) ->  | O82: =IF(AC82>7,B82,#N/A) ->  | P82: =IF(AD82>7,B82,#N/A) ->  | Q82: =M$9 -> 0.05 | R82: =IF(B82>D82,1,0) -> 0 | S82: =IF(B82<E82,1,0) -> 0 | T82: =IF(OR(B82>$M$5+3*$M$6,B82<$M$5-3*$M$6),T81+1,0) -> 0 | U82: =IF(OR(B82>$M$5+2*$M$6,B82<$M$5-2*$M$6),1,0) -> 0 | V82: =SUM(U80:U82) -> 1 | W82: =IF(OR(B82>$M$5+1*$M$6,B82<$M$5-1*$M$6),1,0) -> 0 | X82: =SUM(W78:W82) -> 1 | Y82: =IF(B82>B81,Y81+1,0) -> 0 | Z82: =IF(B82<B81,Z81-1,0) -> -2 | AA82: =IF(OR(AND(Z82=-Y81,Z82<>0),AND(Y82=-Z81,Y82<>0)),AA81+1,0) -> 0 | AB82: =IF(AND(B82<M$5+1*M$6,B82>M$5-1*M$6),AB81+1,0) -> 2 | AC82: =IF(B82>C82,AC81+1,0) -> 0 | AD82: =IF(B82<C82,AD81+1,0) -> 2
A83: ='%Eligible by week calculations'!A49 -> 45 | B83: ='%Eligible by week calculations'!D49 -> 12.61% | C83: 0.09769675375 | D83: 0.1943080966 | E83: 0.001085410941 | Q83: 0.05 | R83: 0 | S83: 0 | T83: 0 | U83: 0 | V83: 0 | W83: 0 | X83: 1 | Y83: 1 | Z83: 0 | AA83: 0 | AB83: 3 | AC83: 1 | AD83: 0
A84: ='%Eligible by week calculations'!A50 -> 46 | B84: ='%Eligible by week calculations'!D50 -> 12.68% | C84: =M$5 -> 0.09769675375 | D84: =M$7 -> 0.1943080966 | E84: =M$8 -> 0.001085410941 | F84: =IF(B84>D84,B84,#N/A) ->  | G84: =IF(B84<E84,B84,#N/A) ->  | H84: =IF(OR(B84>$M$5+3*$M$6,B84<$M$5-3*$M$6),B84,#N/A) ->  | I84: =IF(V84>1,B84,#N/A) ->  | J84: =IF(X84>3,B84,#N/A) ->  | K84: =IF(Y84>5,B84,#N/A) ->  | L84: =IF(Z84<-5,B84,#N/A) ->  | M84: =IF(AA84>13,B84,#N/A) ->  | N84: =IF(AB84>14,B84,#N/A) ->  | O84: =IF(AC84>7,B84,#N/A) ->  | P84: =IF(AD84>7,B84,#N/A) ->  | Q84: =M$9 -> 0.05 | R84: =IF(B84>D84,1,0) -> 0 | S84: =IF(B84<E84,1,0) -> 0 | T84: =IF(OR(B84>$M$5+3*$M$6,B84<$M$5-3*$M$6),T83+1,0) -> 0 | U84: =IF(OR(B84>$M$5+2*$M$6,B84<$M$5-2*$M$6),1,0) -> 0 | V84: =SUM(U82:U84) -> 0 | W84: =IF(OR(B84>$M$5+1*$M$6,B84<$M$5-1*$M$6),1,0) -> 0 | X84: =SUM(W80:W84) -> 1 | Y84: =IF(B84>B83,Y83+1,0) -> 2 | Z84: =IF(B84<B83,Z83-1,0) -> 0 | AA84: =IF(OR(AND(Z84=-Y83,Z84<>0),AND(Y84=-Z83,Y84<>0)),AA83+1,0) -> 0 | AB84: =IF(AND(B84<M$5+1*M$6,B84>M$5-1*M$6),AB83+1,0) -> 4 | AC84: =IF(B84>C84,AC83+1,0) -> 2 | AD84: =IF(B84<C84,AD83+1,0) -> 0
A85: ='%Eligible by week calculations'!A51 -> 47 | B85: ='%Eligible by week calculations'!D51 -> 15.65% | C85: =M$5 -> 0.09769675375 | D85: =M$7 -> 0.1943080966 | E85: =M$8 -> 0.001085410941 | F85: =IF(B85>D85,B85,#N/A) ->  | G85: =IF(B85<E85,B85,#N/A) ->  | H85: =IF(OR(B85>$M$5+3*$M$6,B85<$M$5-3*$M$6),B85,#N/A) ->  | I85: =IF(V85>1,B85,#N/A) ->  | J85: =IF(X85>3,B85,#N/A) ->  | K85: =IF(Y85>5,B85,#N/A) ->  | L85: =IF(Z85<-5,B85,#N/A) ->  | M85: =IF(AA85>13,B85,#N/A) ->  | N85: =IF(AB85>14,B85,#N/A) ->  | O85: =IF(AC85>7,B85,#N/A) ->  | P85: =IF(AD85>7,B85,#N/A) ->  | Q85: =M$9 -> 0.05 | R85: =IF(B85>D85,1,0) -> 0 | S85: =IF(B85<E85,1,0) -> 0 | T85: =IF(OR(B85>$M$5+3*$M$6,B85<$M$5-3*$M$6),T84+1,0) -> 0 | U85: =IF(OR(B85>$M$5+2*$M$6,B85<$M$5-2*$M$6),1,0) -> 0 | V85: =SUM(U83:U85) -> 0 | W85: =IF(OR(B85>$M$5+1*$M$6,B85<$M$5-1*$M$6),1,0) -> 1 | X85: =SUM(W81:W85) -> 1 | Y85: =IF(B85>B84,Y84+1,0) -> 3 | Z85: =IF(B85<B84,Z84-1,0) -> 0 | AA85: =IF(OR(AND(Z85=-Y84,Z85<>0),AND(Y85=-Z84,Y85<>0)),AA84+1,0) -> 0 | AB85: =IF(AND(B85<M$5+1*M$6,B85>M$5-1*M$6),AB84+1,0) -> 0 | AC85: =IF(B85>C85,AC84+1,0) -> 3 | AD85: =IF(B85<C85,AD84+1,0) -> 0
A86: ='%Eligible by week calculations'!A52 -> 48 | B86: ='%Eligible by week calculations'!D52 -> 17.02% | C86: =M$5 -> 0.09769675375 | D86: =M$7 -> 0.1943080966 | E86: =M$8 -> 0.001085410941 | F86: =IF(B86>D86,B86,#N/A) ->  | G86: =IF(B86<E86,B86,#N/A) ->  | H86: =IF(OR(B86>$M$5+3*$M$6,B86<$M$5-3*$M$6),B86,#N/A) ->  | I86: =IF(V86>1,B86,#N/A) ->  | J86: =IF(X86>3,B86,#N/A) ->  | K86: =IF(Y86>5,B86,#N/A) ->  | L86: =IF(Z86<-5,B86,#N/A) ->  | M86: =IF(AA86>13,B86,#N/A) ->  | N86: =IF(AB86>14,B86,#N/A) ->  | O86: =IF(AC86>7,B86,#N/A) ->  | P86: =IF(AD86>7,B86,#N/A) ->  | Q86: =M$9 -> 0.05 | R86: =IF(B86>D86,1,0) -> 0 | S86: =IF(B86<E86,1,0) -> 0 | T86: =IF(OR(B86>$M$5+3*$M$6,B86<$M$5-3*$M$6),T85+1,0) -> 0 | U86: =IF(OR(B86>$M$5+2*$M$6,B86<$M$5-2*$M$6),1,0) -> 1 | V86: =SUM(U84:U86) -> 1 | W86: =IF(OR(B86>$M$5+1*$M$6,B86<$M$5-1*$M$6),1,0) -> 1 | X86: =SUM(W82:W86) -> 2 | Y86: =IF(B86>B85,Y85+1,0) -> 4 | Z86: =IF(B86<B85,Z85-1,0) -> 0 | AA86: =IF(OR(AND(Z86=-Y85,Z86<>0),AND(Y86=-Z85,Y86<>0)),AA85+1,0) -> 0 | AB86: =IF(AND(B86<M$5+1*M$6,B86>M$5-1*M$6),AB85+1,0) -> 0 | AC86: =IF(B86>C86,AC85+1,0) -> 4 | AD86: =IF(B86<C86,AD85+1,0) -> 0
A87: ='%Eligible by week calculations'!A53 -> 49 | B87: ='%Eligible by week calculations'!D53 -> 12.30% | C87: =M$5 -> 0.09769675375 | D87: =M$7 -> 0.1943080966 | E87: =M$8 -> 0.001085410941 | F87: =IF(B87>D87,B87,#N/A) ->  | G87: =IF(B87<E87,B87,#N/A) ->  | H87: =IF(OR(B87>$M$5+3*$M$6,B87<$M$5-3*$M$6),B87,#N/A) ->  | I87: =IF(V87>1,B87,#N/A) ->  | J87: =IF(X87>3,B87,#N/A) ->  | K87: =IF(Y87>5,B87,#N/A) ->  | L87: =IF(Z87<-5,B87,#N/A) ->  | M87: =IF(AA87>13,B87,#N/A) ->  | N87: =IF(AB87>14,B87,#N/A) ->  | O87: =IF(AC87>7,B87,#N/A) ->  | P87: =IF(AD87>7,B87,#N/A) ->  | Q87: =M$9 -> 0.05 | R87: =IF(B87>D87,1,0) -> 0 | S87: =IF(B87<E87,1,0) -> 0 | T87: =IF(OR(B87>$M$5+3*$M$6,B87<$M$5-3*$M$6),T86+1,0) -> 0 | U87: =IF(OR(B87>$M$5+2*$M$6,B87<$M$5-2*$M$6),1,0) -> 0 | V87: =SUM(U85:U87) -> 1 | W87: =IF(OR(B87>$M$5+1*$M$6,B87<$M$5-1*$M$6),1,0) -> 0 | X87: =SUM(W83:W87) -> 2 | Y87: =IF(B87>B86,Y86+1,0) -> 0 | Z87: =IF(B87<B86,Z86-1,0) -> -1 | AA87: =IF(OR(AND(Z87=-Y86,Z87<>0),AND(Y87=-Z86,Y87<>0)),AA86+1,0) -> 0 | AB87: =IF(AND(B87<M$5+1*M$6,B87>M$5-1*M$6),AB86+1,0) -> 1 | AC87: =IF(B87>C87,AC86+1,0) -> 5 | AD87: =IF(B87<C87,AD86+1,0) -> 0
A88: ='%Eligible by week calculations'!A54 -> 50 | B88: ='%Eligible by week calculations'!D54 -> 6.80% | C88: =M$5 -> 0.09769675375 | D88: =M$7 -> 0.1943080966 | E88: =M$8 -> 0.001085410941 | F88: =IF(B88>D88,B88,#N/A) ->  | G88: =IF(B88<E88,B88,#N/A) ->  | H88: =IF(OR(B88>$M$5+3*$M$6,B88<$M$5-3*$M$6),B88,#N/A) ->  | I88: =IF(V88>1,B88,#N/A) ->  | J88: =IF(X88>3,B88,#N/A) ->  | K88: =IF(Y88>5,B88,#N/A) ->  | L88: =IF(Z88<-5,B88,#N/A) ->  | M88: =IF(AA88>13,B88,#N/A) ->  | N88: =IF(AB88>14,B88,#N/A) ->  | O88: =IF(AC88>7,B88,#N/A) ->  | P88: =IF(AD88>7,B88,#N/A) ->  | Q88: =M$9 -> 0.05 | R88: =IF(B88>D88,1,0) -> 0 | S88: =IF(B88<E88,1,0) -> 0 | T88: =IF(OR(B88>$M$5+3*$M$6,B88<$M$5-3*$M$6),T87+1,0) -> 0 | U88: =IF(OR(B88>$M$5+2*$M$6,B88<$M$5-2*$M$6),1,0) -> 0 | V88: =SUM(U86:U88) -> 1 | W88: =IF(OR(B88>$M$5+1*$M$6,B88<$M$5-1*$M$6),1,0) -> 0 | X88: =SUM(W84:W88) -> 2 | Y88: =IF(B88>B87,Y87+1,0) -> 0 | Z88: =IF(B88<B87,Z87-1,0) -> -2 | AA88: =IF(OR(AND(Z88=-Y87,Z88<>0),AND(Y88=-Z87,Y88<>0)),AA87+1,0) -> 0 | AB88: =IF(AND(B88<M$5+1*M$6,B88>M$5-1*M$6),AB87+1,0) -> 2 | AC88: =IF(B88>C88,AC87+1,0) -> 0 | AD88: =IF(B88<C88,AD87+1,0) -> 1
A89: ='%Eligible by week calculations'!A55 -> 51 | B89: ='%Eligible by week calculations'!D55 -> 11.21% | C89: =M$5 -> 0.09769675375 | D89: =M$7 -> 0.1943080966 | E89: =M$8 -> 0.001085410941 | F89: =IF(B89>D89,B89,#N/A) ->  | G89: =IF(B89<E89,B89,#N/A) ->  | H89: =IF(OR(B89>$M$5+3*$M$6,B89<$M$5-3*$M$6),B89,#N/A) ->  | I89: =IF(V89>1,B89,#N/A) ->  | J89: =IF(X89>3,B89,#N/A) ->  | K89: =IF(Y89>5,B89,#N/A) ->  | L89: =IF(Z89<-5,B89,#N/A) ->  | M89: =IF(AA89>13,B89,#N/A) ->  | N89: =IF(AB89>14,B89,#N/A) ->  | O89: =IF(AC89>7,B89,#N/A) ->  | P89: =IF(AD89>7,B89,#N/A) ->  | Q89: =M$9 -> 0.05 | R89: =IF(B89>D89,1,0) -> 0 | S89: =IF(B89<E89,1,0) -> 0 | T89: =IF(OR(B89>$M$5+3*$M$6,B89<$M$5-3*$M$6),T88+1,0) -> 0 | U89: =IF(OR(B89>$M$5+2*$M$6,B89<$M$5-2*$M$6),1,0) -> 0 | V89: =SUM(U87:U89) -> 0 | W89: =IF(OR(B89>$M$5+1*$M$6,B89<$M$5-1*$M$6),1,0) -> 0 | X89: =SUM(W85:W89) -> 2 | Y89: =IF(B89>B88,Y88+1,0) -> 1 | Z89: =IF(B89<B88,Z88-1,0) -> 0 | AA89: =IF(OR(AND(Z89=-Y88,Z89<>0),AND(Y89=-Z88,Y89<>0)),AA88+1,0) -> 0 | AB89: =IF(AND(B89<M$5+1*M$6,B89>M$5-1*M$6),AB88+1,0) -> 3 | AC89: =IF(B89>C89,AC88+1,0) -> 1 | AD89: =IF(B89<C89,AD88+1,0) -> 0
A90: ='%Eligible by week calculations'!A56 -> 52 | B90: ='%Eligible by week calculations'!D56 -> 15.25% | C90: =M$5 -> 0.09769675375 | D90: =M$7 -> 0.1943080966 | E90: =M$8 -> 0.001085410941 | F90: =IF(B90>D90,B90,#N/A) ->  | G90: =IF(B90<E90,B90,#N/A) ->  | H90: =IF(OR(B90>$M$5+3*$M$6,B90<$M$5-3*$M$6),B90,#N/A) ->  | I90: =IF(V90>1,B90,#N/A) ->  | J90: =IF(X90>3,B90,#N/A) ->  | K90: =IF(Y90>5,B90,#N/A) ->  | L90: =IF(Z90<-5,B90,#N/A) ->  | M90: =IF(AA90>13,B90,#N/A) ->  | N90: =IF(AB90>14,B90,#N/A) ->  | O90: =IF(AC90>7,B90,#N/A) ->  | P90: =IF(AD90>7,B90,#N/A) ->  | Q90: =M$9 -> 0.05 | R90: =IF(B90>D90,1,0) -> 0 | S90: =IF(B90<E90,1,0) -> 0 | T90: =IF(OR(B90>$M$5+3*$M$6,B90<$M$5-3*$M$6),T89+1,0) -> 0 | U90: =IF(OR(B90>$M$5+2*$M$6,B90<$M$5-2*$M$6),1,0) -> 0 | V90: =SUM(U88:U90) -> 0 | W90: =IF(OR(B90>$M$5+1*$M$6,B90<$M$5-1*$M$6),1,0) -> 1 | X90: =SUM(W86:W90) -> 2 | Y90: =IF(B90>B89,Y89+1,0) -> 2 | Z90: =IF(B90<B89,Z89-1,0) -> 0 | AA90: =IF(OR(AND(Z90=-Y89,Z90<>0),AND(Y90=-Z89,Y90<>0)),AA89+1,0) -> 0 | AB90: =IF(AND(B90<M$5+1*M$6,B90>M$5-1*M$6),AB89+1,0) -> 0 | AC90: =IF(B90>C90,AC89+1,0) -> 2 | AD90: =IF(B90<C90,AD89+1,0) -> 0
A91: ='%Eligible by week calculations'!A57 -> 53 | B91: ='%Eligible by week calculations'!D57 -> 9.68% | C91: =M$5 -> 0.09769675375 | D91: =M$7 -> 0.1943080966 | E91: =M$8 -> 0.001085410941 | F91: =IF(B91>D91,B91,#N/A) ->  | G91: =IF(B91<E91,B91,#N/A) ->  | H91: =IF(OR(B91>$M$5+3*$M$6,B91<$M$5-3*$M$6),B91,#N/A) ->  | I91: =IF(V91>1,B91,#N/A) ->  | J91: =IF(X91>3,B91,#N/A) ->  | K91: =IF(Y91>5,B91,#N/A) ->  | L91: =IF(Z91<-5,B91,#N/A) ->  | M91: =IF(AA91>13,B91,#N/A) ->  | N91: =IF(AB91>14,B91,#N/A) ->  | O91: =IF(AC91>7,B91,#N/A) ->  | P91: =IF(AD91>7,B91,#N/A) ->  | Q91: =M$9 -> 0.05 | R91: =IF(B91>D91,1,0) -> 0 | S91: =IF(B91<E91,1,0) -> 0 | T91: =IF(OR(B91>$M$5+3*$M$6,B91<$M$5-3*$M$6),T90+1,0) -> 0 | U91: =IF(OR(B91>$M$5+2*$M$6,B91<$M$5-2*$M$6),1,0) -> 0 | V91: =SUM(U89:U91) -> 0 | W91: =IF(OR(B91>$M$5+1*$M$6,B91<$M$5-1*$M$6),1,0) -> 0 | X91: =SUM(W87:W91) -> 1 | Y91: =IF(B91>B90,Y90+1,0) -> 0 | Z91: =IF(B91<B90,Z90-1,0) -> -1 | AA91: =IF(OR(AND(Z91=-Y90,Z91<>0),AND(Y91=-Z90,Y91<>0)),AA90+1,0) -> 0 | AB91: =IF(AND(B91<M$5+1*M$6,B91>M$5-1*M$6),AB90+1,0) -> 1 | AC91: =IF(B91>C91,AC90+1,0) -> 0 | AD91: =IF(B91<C91,AD90+1,0) -> 1
A92: ='%Eligible by week calculations'!A58 -> 54 | B92: ='%Eligible by week calculations'!D58 -> 10.77% | C92: =M$5 -> 0.09769675375 | D92: =M$7 -> 0.1943080966 | E92: =M$8 -> 0.001085410941 | F92: =IF(B92>D92,B92,#N/A) ->  | G92: =IF(B92<E92,B92,#N/A) ->  | H92: =IF(OR(B92>$M$5+3*$M$6,B92<$M$5-3*$M$6),B92,#N/A) ->  | I92: =IF(V92>1,B92,#N/A) ->  | J92: =IF(X92>3,B92,#N/A) ->  | K92: =IF(Y92>5,B92,#N/A) ->  | L92: =IF(Z92<-5,B92,#N/A) ->  | M92: =IF(AA92>13,B92,#N/A) ->  | N92: =IF(AB92>14,B92,#N/A) ->  | O92: =IF(AC92>7,B92,#N/A) ->  | P92: =IF(AD92>7,B92,#N/A) ->  | Q92: =M$9 -> 0.05 | R92: =IF(B92>D92,1,0) -> 0 | S92: =IF(B92<E92,1,0) -> 0 | T92: =IF(OR(B92>$M$5+3*$M$6,B92<$M$5-3*$M$6),T91+1,0) -> 0 | U92: =IF(OR(B92>$M$5+2*$M$6,B92<$M$5-2*$M$6),1,0) -> 0 | V92: =SUM(U90:U92) -> 0 | W92: =IF(OR(B92>$M$5+1*$M$6,B92<$M$5-1*$M$6),1,0) -> 0 | X92: =SUM(W88:W92) -> 1 | Y92: =IF(B92>B91,Y91+1,0) -> 1 | Z92: =IF(B92<B91,Z91-1,0) -> 0 | AA92: =IF(OR(AND(Z92=-Y91,Z92<>0),AND(Y92=-Z91,Y92<>0)),AA91+1,0) -> 1 | AB92: =IF(AND(B92<M$5+1*M$6,B92>M$5-1*M$6),AB91+1,0) -> 2 | AC92: =IF(B92>C92,AC91+1,0) -> 1 | AD92: =IF(B92<C92,AD91+1,0) -> 0
A93: ='%Eligible by week calculations'!A59 -> 55 | B93: ='%Eligible by week calculations'!D59 -> 12.70% | C93: =M$5 -> 0.09769675375 | D93: =M$7 -> 0.1943080966 | E93: =M$8 -> 0.001085410941 | F93: =IF(B93>D93,B93,#N/A) ->  | G93: =IF(B93<E93,B93,#N/A) ->  | H93: =IF(OR(B93>$M$5+3*$M$6,B93<$M$5-3*$M$6),B93,#N/A) ->  | I93: =IF(V93>1,B93,#N/A) ->  | J93: =IF(X93>3,B93,#N/A) ->  | K93: =IF(Y93>5,B93,#N/A) ->  | L93: =IF(Z93<-5,B93,#N/A) ->  | M93: =IF(AA93>13,B93,#N/A) ->  | N93: =IF(AB93>14,B93,#N/A) ->  | O93: =IF(AC93>7,B93,#N/A) ->  | P93: =IF(AD93>7,B93,#N/A) ->  | Q93: =M$9 -> 0.05 | R93: =IF(B93>D93,1,0) -> 0 | S93: =IF(B93<E93,1,0) -> 0 | T93: =IF(OR(B93>$M$5+3*$M$6,B93<$M$5-3*$M$6),T92+1,0) -> 0 | U93: =IF(OR(B93>$M$5+2*$M$6,B93<$M$5-2*$M$6),1,0) -> 0 | V93: =SUM(U91:U93) -> 0 | W93: =IF(OR(B93>$M$5+1*$M$6,B93<$M$5-1*$M$6),1,0) -> 0 | X93: =SUM(W89:W93) -> 1 | Y93: =IF(B93>B92,Y92+1,0) -> 2 | Z93: =IF(B93<B92,Z92-1,0) -> 0 | AA93: =IF(OR(AND(Z93=-Y92,Z93<>0),AND(Y93=-Z92,Y93<>0)),AA92+1,0) -> 0 | AB93: =IF(AND(B93<M$5+1*M$6,B93>M$5-1*M$6),AB92+1,0) -> 3 | AC93: =IF(B93>C93,AC92+1,0) -> 2 | AD93: =IF(B93<C93,AD92+1,0) -> 0
A94: ='%Eligible by week calculations'!A60 -> 56 | B94: ='%Eligible by week calculations'!D60 -> 12.71% | C94: =M$5 -> 0.09769675375 | D94: =M$7 -> 0.1943080966 | E94: =M$8 -> 0.001085410941 | F94: =IF(B94>D94,B94,#N/A) ->  | G94: =IF(B94<E94,B94,#N/A) ->  | H94: =IF(OR(B94>$M$5+3*$M$6,B94<$M$5-3*$M$6),B94,#N/A) ->  | I94: =IF(V94>1,B94,#N/A) ->  | J94: =IF(X94>3,B94,#N/A) ->  | K94: =IF(Y94>5,B94,#N/A) ->  | L94: =IF(Z94<-5,B94,#N/A) ->  | M94: =IF(AA94>13,B94,#N/A) ->  | N94: =IF(AB94>14,B94,#N/A) ->  | O94: =IF(AC94>7,B94,#N/A) ->  | P94: =IF(AD94>7,B94,#N/A) ->  | Q94: =M$9 -> 0.05 | R94: =IF(B94>D94,1,0) -> 0 | S94: =IF(B94<E94,1,0) -> 0 | T94: =IF(OR(B94>$M$5+3*$M$6,B94<$M$5-3*$M$6),T93+1,0) -> 0 | U94: =IF(OR(B94>$M$5+2*$M$6,B94<$M$5-2*$M$6),1,0) -> 0 | V94: =SUM(U92:U94) -> 0 | W94: =IF(OR(B94>$M$5+1*$M$6,B94<$M$5-1*$M$6),1,0) -> 0 | X94: =SUM(W90:W94) -> 1 | Y94: =IF(B94>B93,Y93+1,0) -> 3 | Z94: =IF(B94<B93,Z93-1,0) -> 0 | AA94: =IF(OR(AND(Z94=-Y93,Z94<>0),AND(Y94=-Z93,Y94<>0)),AA93+1,0) -> 0 | AB94: =IF(AND(B94<M$5+1*M$6,B94>M$5-1*M$6),AB93+1,0) -> 4 | AC94: =IF(B94>C94,AC93+1,0) -> 3 | AD94: =IF(B94<C94,AD93+1,0) -> 0
A95: ='%Eligible by week calculations'!A61 -> 57 | B95: ='%Eligible by week calculations'!D61 -> 12.14% | C95: =M$5 -> 0.09769675375 | D95: =M$7 -> 0.1943080966 | E95: =M$8 -> 0.001085410941 | F95: =IF(B95>D95,B95,#N/A) ->  | G95: =IF(B95<E95,B95,#N/A) ->  | H95: =IF(OR(B95>$M$5+3*$M$6,B95<$M$5-3*$M$6),B95,#N/A) ->  | I95: =IF(V95>1,B95,#N/A) ->  | J95: =IF(X95>3,B95,#N/A) ->  | K95: =IF(Y95>5,B95,#N/A) ->  | L95: =IF(Z95<-5,B95,#N/A) ->  | M95: =IF(AA95>13,B95,#N/A) ->  | N95: =IF(AB95>14,B95,#N/A) ->  | O95: =IF(AC95>7,B95,#N/A) ->  | P95: =IF(AD95>7,B95,#N/A) ->  | Q95: =M$9 -> 0.05 | R95: =IF(B95>D95,1,0) -> 0 | S95: =IF(B95<E95,1,0) -> 0 | T95: =IF(OR(B95>$M$5+3*$M$6,B95<$M$5-3*$M$6),T94+1,0) -> 0 | U95: =IF(OR(B95>$M$5+2*$M$6,B95<$M$5-2*$M$6),1,0) -> 0 | V95: =SUM(U93:U95) -> 0 | W95: =IF(OR(B95>$M$5+1*$M$6,B95<$M$5-1*$M$6),1,0) -> 0 | X95: =SUM(W91:W95) -> 0 | Y95: =IF(B95>B94,Y94+1,0) -> 0 | Z95: =IF(B95<B94,Z94-1,0) -> -1 | AA95: =IF(OR(AND(Z95=-Y94,Z95<>0),AND(Y95=-Z94,Y95<>0)),AA94+1,0) -> 0 | AB95: =IF(AND(B95<M$5+1*M$6,B95>M$5-1*M$6),AB94+1,0) -> 5 | AC95: =IF(B95>C95,AC94+1,0) -> 4 | AD95: =IF(B95<C95,AD94+1,0) -> 0
A96: ='%Eligible by week calculations'!A62 -> 58 | B96: ='%Eligible by week calculations'!D62 -> 11.59% | C96: =M$5 -> 0.09769675375 | D96: =M$7 -> 0.1943080966 | E96: =M$8 -> 0.001085410941 | F96: =IF(B96>D96,B96,#N/A) ->  | G96: =IF(B96<E96,B96,#N/A) ->  | H96: =IF(OR(B96>$M$5+3*$M$6,B96<$M$5-3*$M$6),B96,#N/A) ->  | I96: =IF(V96>1,B96,#N/A) ->  | J96: =IF(X96>3,B96,#N/A) ->  | K96: =IF(Y96>5,B96,#N/A) ->  | L96: =IF(Z96<-5,B96,#N/A) ->  | M96: =IF(AA96>13,B96,#N/A) ->  | N96: =IF(AB96>14,B96,#N/A) ->  | O96: =IF(AC96>7,B96,#N/A) ->  | P96: =IF(AD96>7,B96,#N/A) ->  | Q96: =M$9 -> 0.05 | R96: =IF(B96>D96,1,0) -> 0 | S96: =IF(B96<E96,1,0) -> 0 | T96: =IF(OR(B96>$M$5+3*$M$6,B96<$M$5-3*$M$6),T95+1,0) -> 0 | U96: =IF(OR(B96>$M$5+2*$M$6,B96<$M$5-2*$M$6),1,0) -> 0 | V96: =SUM(U94:U96) -> 0 | W96: =IF(OR(B96>$M$5+1*$M$6,B96<$M$5-1*$M$6),1,0) -> 0 | X96: =SUM(W92:W96) -> 0 | Y96: =IF(B96>B95,Y95+1,0) -> 0 | Z96: =IF(B96<B95,Z95-1,0) -> -2 | AA96: =IF(OR(AND(Z96=-Y95,Z96<>0),AND(Y96=-Z95,Y96<>0)),AA95+1,0) -> 0 | AB96: =IF(AND(B96<M$5+1*M$6,B96>M$5-1*M$6),AB95+1,0) -> 6 | AC96: =IF(B96>C96,AC95+1,0) -> 5 | AD96: =IF(B96<C96,AD95+1,0) -> 0
A97: ='%Eligible by week calculations'!A63 -> 59 | B97: ='%Eligible by week calculations'!D63 -> 20.26% | C97: 0.09769675375 | D97: 0.1943080966 | E97: 0.001085410941 | F97: 0.2026143791 | H97: 0.2026143791 | Q97: 0.05 | R97: 1 | S97: 0 | T97: 1 | U97: 1 | V97: 1 | W97: 1 | X97: 1 | Y97: 1 | Z97: 0 | AA97: 0 | AB97: 0 | AC97: 6 | AD97: 0
A98: ='%Eligible by week calculations'!A64 -> 60 | B98: ='%Eligible by week calculations'!D64 -> 17.04% | C98: 0.09769675375 | D98: 0.1943080966 | E98: 0.001085410941 | I98: 0.1703703704 | Q98: 0.05 | R98: 0 | S98: 0 | T98: 0 | U98: 1 | V98: 2 | W98: 1 | X98: 2 | Y98: 0 | Z98: -1 | AA98: 1 | AB98: 0 | AC98: 7 | AD98: 0
A99: ='%Eligible by week calculations'!A65 -> 61 | B99: ='%Eligible by week calculations'!D65 -> 12.06% | C99: =M$5 -> 0.09769675375 | D99: =M$7 -> 0.1943080966 | E99: =M$8 -> 0.001085410941 | F99: =IF(B99>D99,B99,#N/A) ->  | G99: =IF(B99<E99,B99,#N/A) ->  | H99: =IF(OR(B99>$M$5+3*$M$6,B99<$M$5-3*$M$6),B99,#N/A) ->  | I99: =IF(V99>1,B99,#N/A) -> 0.1205673759 | J99: =IF(X99>3,B99,#N/A) ->  | K99: =IF(Y99>5,B99,#N/A) ->  | L99: =IF(Z99<-5,B99,#N/A) ->  | M99: =IF(AA99>13,B99,#N/A) ->  | N99: =IF(AB99>14,B99,#N/A) ->  | O99: =IF(AC99>7,B99,#N/A) -> 0.1205673759 | P99: =IF(AD99>7,B99,#N/A) ->  | Q99: =M$9 -> 0.05 | R99: =IF(B99>D99,1,0) -> 0 | S99: =IF(B99<E99,1,0) -> 0 | T99: =IF(OR(B99>$M$5+3*$M$6,B99<$M$5-3*$M$6),T98+1,0) -> 0 | U99: =IF(OR(B99>$M$5+2*$M$6,B99<$M$5-2*$M$6),1,0) -> 0 | V99: =SUM(U97:U99) -> 2 | W99: =IF(OR(B99>$M$5+1*$M$6,B99<$M$5-1*$M$6),1,0) -> 0 | X99: =SUM(W95:W99) -> 2 | Y99: =IF(B99>B98,Y98+1,0) -> 0 | Z99: =IF(B99<B98,Z98-1,0) -> -2 | AA99: =IF(OR(AND(Z99=-Y98,Z99<>0),AND(Y99=-Z98,Y99<>0)),AA98+1,0) -> 0 | AB99: =IF(AND(B99<M$5+1*M$6,B99>M$5-1*M$6),AB98+1,0) -> 1 | AC99: =IF(B99>C99,AC98+1,0) -> 8 | AD99: =IF(B99<C99,AD98+1,0) -> 0
A100: ='%Eligible by week calculations'!A66 -> 62 | B100: ='%Eligible by week calculations'!D66 -> 14.08% | C100: =M$5 -> 0.09769675375 | D100: =M$7 -> 0.1943080966 | E100: =M$8 -> 0.001085410941 | F100: =IF(B100>D100,B100,#N/A) ->  | G100: =IF(B100<E100,B100,#N/A) ->  | H100: =IF(OR(B100>$M$5+3*$M$6,B100<$M$5-3*$M$6),B100,#N/A) ->  | I100: =IF(V100>1,B100,#N/A) ->  | J100: =IF(X100>3,B100,#N/A) ->  | K100: =IF(Y100>5,B100,#N/A) ->  | L100: =IF(Z100<-5,B100,#N/A) ->  | M100: =IF(AA100>13,B100,#N/A) ->  | N100: =IF(AB100>14,B100,#N/A) ->  | O100: =IF(AC100>7,B100,#N/A) -> 0.1408450704 | P100: =IF(AD100>7,B100,#N/A) ->  | Q100: =M$9 -> 0.05 | R100: =IF(B100>D100,1,0) -> 0 | S100: =IF(B100<E100,1,0) -> 0 | T100: =IF(OR(B100>$M$5+3*$M$6,B100<$M$5-3*$M$6),T99+1,0) -> 0 | U100: =IF(OR(B100>$M$5+2*$M$6,B100<$M$5-2*$M$6),1,0) -> 0 | V100: =SUM(U98:U100) -> 1 | W100: =IF(OR(B100>$M$5+1*$M$6,B100<$M$5-1*$M$6),1,0) -> 1 | X100: =SUM(W96:W100) -> 3 | Y100: =IF(B100>B99,Y99+1,0) -> 1 | Z100: =IF(B100<B99,Z99-1,0) -> 0 | AA100: =IF(OR(AND(Z100=-Y99,Z100<>0),AND(Y100=-Z99,Y100<>0)),AA99+1,0) -> 0 | AB100: =IF(AND(B100<M$5+1*M$6,B100>M$5-1*M$6),AB99+1,0) -> 0 | AC100: =IF(B100>C100,AC99+1,0) -> 9 | AD100: =IF(B100<C100,AD99+1,0) -> 0
A101: ='%Eligible by week calculations'!A67 -> 63 | B101: ='%Eligible by week calculations'!D67 -> 18.59% | C101: =M$5 -> 0.09769675375 | D101: =M$7 -> 0.1943080966 | E101: =M$8 -> 0.001085410941 | F101: =IF(B101>D101,B101,#N/A) ->  | G101: =IF(B101<E101,B101,#N/A) ->  | H101: =IF(OR(B101>$M$5+3*$M$6,B101<$M$5-3*$M$6),B101,#N/A) ->  | I101: =IF(V101>1,B101,#N/A) ->  | J101: =IF(X101>3,B101,#N/A) -> 0.1858974359 | K101: =IF(Y101>5,B101,#N/A) ->  | L101: =IF(Z101<-5,B101,#N/A) ->  | M101: =IF(AA101>13,B101,#N/A) ->  | N101: =IF(AB101>14,B101,#N/A) ->  | O101: =IF(AC101>7,B101,#N/A) -> 0.1858974359 | P101: =IF(AD101>7,B101,#N/A) ->  | Q101: =M$9 -> 0.05 | R101: =IF(B101>D101,1,0) -> 0 | S101: =IF(B101<E101,1,0) -> 0 | T101: =IF(OR(B101>$M$5+3*$M$6,B101<$M$5-3*$M$6),T100+1,0) -> 0 | U101: =IF(OR(B101>$M$5+2*$M$6,B101<$M$5-2*$M$6),1,0) -> 1 | V101: =SUM(U99:U101) -> 1 | W101: =IF(OR(B101>$M$5+1*$M$6,B101<$M$5-1*$M$6),1,0) -> 1 | X101: =SUM(W97:W101) -> 4 | Y101: =IF(B101>B100,Y100+1,0) -> 2 | Z101: =IF(B101<B100,Z100-1,0) -> 0 | AA101: =IF(OR(AND(Z101=-Y100,Z101<>0),AND(Y101=-Z100,Y101<>0)),AA100+1,0) -> 0 | AB101: =IF(AND(B101<M$5+1*M$6,B101>M$5-1*M$6),AB100+1,0) -> 0 | AC101: =IF(B101>C101,AC100+1,0) -> 10 | AD101: =IF(B101<C101,AD100+1,0) -> 0
A102: ='%Eligible by week calculations'!A68 -> 64 | B102: ='%Eligible by week calculations'!D68 -> 15.72% | C102: =M$5 -> 0.09769675375 | D102: =M$7 -> 0.1943080966 | E102: =M$8 -> 0.001085410941 | F102: =IF(B102>D102,B102,#N/A) ->  | G102: =IF(B102<E102,B102,#N/A) ->  | H102: =IF(OR(B102>$M$5+3*$M$6,B102<$M$5-3*$M$6),B102,#N/A) ->  | I102: =IF(V102>1,B102,#N/A) ->  | J102: =IF(X102>3,B102,#N/A) -> 0.1572327044 | K102: =IF(Y102>5,B102,#N/A) ->  | L102: =IF(Z102<-5,B102,#N/A) ->  | M102: =IF(AA102>13,B102,#N/A) ->  | N102: =IF(AB102>14,B102,#N/A) ->  | O102: =IF(AC102>7,B102,#N/A) -> 0.1572327044 | P102: =IF(AD102>7,B102,#N/A) ->  | Q102: =M$9 -> 0.05 | R102: =IF(B102>D102,1,0) -> 0 | S102: =IF(B102<E102,1,0) -> 0 | T102: =IF(OR(B102>$M$5+3*$M$6,B102<$M$5-3*$M$6),T101+1,0) -> 0 | U102: =IF(OR(B102>$M$5+2*$M$6,B102<$M$5-2*$M$6),1,0) -> 0 | V102: =SUM(U100:U102) -> 1 | W102: =IF(OR(B102>$M$5+1*$M$6,B102<$M$5-1*$M$6),1,0) -> 1 | X102: =SUM(W98:W102) -> 4 | Y102: =IF(B102>B101,Y101+1,0) -> 0 | Z102: =IF(B102<B101,Z101-1,0) -> -1 | AA102: =IF(OR(AND(Z102=-Y101,Z102<>0),AND(Y102=-Z101,Y102<>0)),AA101+1,0) -> 0 | AB102: =IF(AND(B102<M$5+1*M$6,B102>M$5-1*M$6),AB101+1,0) -> 0 | AC102: =IF(B102>C102,AC101+1,0) -> 11 | AD102: =IF(B102<C102,AD101+1,0) -> 0
A103: ='%Eligible by week calculations'!A69 -> 65 | B103: ='%Eligible by week calculations'!D69 -> 18.33% | C103: 0.09769675375 | D103: 0.1943080966 | E103: 0.001085410941 | I103: 0.1833333333 | J103: 0.1833333333 | O103: 0.1833333333 | Q103: 0.05 | R103: 0 | S103: 0 | T103: 0 | U103: 1 | V103: 2 | W103: 1 | X103: 4 | Y103: 1 | Z103: 0 | AA103: 1 | AB103: 0 | AC103: 12 | AD103: 0
A104: ='%Eligible by week calculations'!A70 -> 66 | B104: ='%Eligible by week calculations'!D70 -> 17.53% | C104: 0.09769675375 | D104: 0.1943080966 | E104: 0.001085410941 | I104: 0.1753246753 | J104: 0.1753246753 | O104: 0.1753246753 | Q104: 0.05 | R104: 0 | S104: 0 | T104: 0 | U104: 1 | V104: 2 | W104: 1 | X104: 5 | Y104: 0 | Z104: -1 | AA104: 2 | AB104: 0 | AC104: 13 | AD104: 0
A105: ='%Eligible by week calculations'!A71 -> 67 | B105: ='%Eligible by week calculations'!D71 -> 14.77% | C105: 0.09769675375 | D105: 0.1943080966 | E105: 0.001085410941 | I105: 0.1476510067 | J105: 0.1476510067 | O105: 0.1476510067 | Q105: 0.05 | R105: 0 | S105: 0 | T105: 0 | U105: 0 | V105: 2 | W105: 1 | X105: 5 | Y105: 0 | Z105: -2 | AA105: 0 | AB105: 0 | AC105: 14 | AD105: 0
A106: ='%Eligible by week calculations'!A72 -> 68 | B106: ='%Eligible by week calculations'!D72 -> 13.83% | C106: 0.09769675375 | D106: 0.1943080966 | E106: 0.001085410941 | J106: 0.1382978723 | O106: 0.1382978723 | Q106: 0.05 | R106: 0 | S106: 0 | T106: 0 | U106: 0 | V106: 1 | W106: 1 | X106: 5 | Y106: 0 | Z106: -3 | AA106: 0 | AB106: 0 | AC106: 15 | AD106: 0
A107: ='%Eligible by week calculations'!A73 -> 69 | B107: ='%Eligible by week calculations'!D73 -> 12.33% | C107: 0.09769675375 | D107: 0.1943080966 | E107: 0.001085410941 | J107: 0.1232876712 | O107: 0.1232876712 | Q107: 0.05 | R107: 0 | S107: 0 | T107: 0 | U107: 0 | V107: 0 | W107: 0 | X107: 4 | Y107: 0 | Z107: -4 | AA107: 0 | AB107: 1 | AC107: 16 | AD107: 0
A108: ='%Eligible by week calculations'!A74 -> 70 | B108: ='%Eligible by week calculations'!D74 -> 17.37% | C108: =M$5 -> 0.09769675375 | D108: =M$7 -> 0.1943080966 | E108: =M$8 -> 0.001085410941 | F108: =IF(B108>D108,B108,#N/A) ->  | G108: =IF(B108<E108,B108,#N/A) ->  | H108: =IF(OR(B108>$M$5+3*$M$6,B108<$M$5-3*$M$6),B108,#N/A) ->  | I108: =IF(V108>1,B108,#N/A) ->  | J108: =IF(X108>3,B108,#N/A) -> 0.1736526946 | K108: =IF(Y108>5,B108,#N/A) ->  | L108: =IF(Z108<-5,B108,#N/A) ->  | M108: =IF(AA108>13,B108,#N/A) ->  | N108: =IF(AB108>14,B108,#N/A) ->  | O108: =IF(AC108>7,B108,#N/A) -> 0.1736526946 | P108: =IF(AD108>7,B108,#N/A) ->  | Q108: =M$9 -> 0.05 | R108: =IF(B108>D108,1,0) -> 0 | S108: =IF(B108<E108,1,0) -> 0 | T108: =IF(OR(B108>$M$5+3*$M$6,B108<$M$5-3*$M$6),T107+1,0) -> 0 | U108: =IF(OR(B108>$M$5+2*$M$6,B108<$M$5-2*$M$6),1,0) -> 1 | V108: =SUM(U106:U108) -> 1 | W108: =IF(OR(B108>$M$5+1*$M$6,B108<$M$5-1*$M$6),1,0) -> 1 | X108: =SUM(W104:W108) -> 4 | Y108: =IF(B108>B107,Y107+1,0) -> 1 | Z108: =IF(B108<B107,Z107-1,0) -> 0 | AA108: =IF(OR(AND(Z108=-Y107,Z108<>0),AND(Y108=-Z107,Y108<>0)),AA107+1,0) -> 0 | AB108: =IF(AND(B108<M$5+1*M$6,B108>M$5-1*M$6),AB107+1,0) -> 0 | AC108: =IF(B108>C108,AC107+1,0) -> 17 | AD108: =IF(B108<C108,AD107+1,0) -> 0
A109: ='%Eligible by week calculations'!A75 -> 71 | B109: ='%Eligible by week calculations'!D75 -> 14.57% | C109: 0.09769675375 | D109: 0.1943080966 | E109: 0.001085410941 | J109: 0.1456953642 | O109: 0.1456953642 | Q109: 0.05 | R109: 0 | S109: 0 | T109: 0 | U109: 0 | V109: 1 | W109: 1 | X109: 4 | Y109: 0 | Z109: -1 | AA109: 1 | AB109: 0 | AC109: 18 | AD109: 0
A110: ='%Eligible by week calculations'!A76 -> 72 | B110: ='%Eligible by week calculations'!D76 -> 15.83% | C110: 0.09769675375 | D110: 0.1943080966 | E110: 0.001085410941 | J110: 0.1583333333 | O110: 0.1583333333 | Q110: 0.05 | R110: 0 | S110: 0 | T110: 0 | U110: 0 | V110: 1 | W110: 1 | X110: 4 | Y110: 1 | Z110: 0 | AA110: 2 | AB110: 0 | AC110: 19 | AD110: 0
A111: ='%Eligible by week calculations'!A77 -> 73 | B111: ='%Eligible by week calculations'!D77 -> 13.46% | C111: 0.09769675375 | D111: 0.1943080966 | E111: 0.001085410941 | J111: 0.1346153846 | O111: 0.1346153846 | Q111: 0.05 | R111: 0 | S111: 0 | T111: 0 | U111: 0 | V111: 0 | W111: 1 | X111: 4 | Y111: 0 | Z111: -1 | AA111: 3 | AB111: 0 | AC111: 20 | AD111: 0
A112: ='%Eligible by week calculations'!A78 -> 74 | B112: ='%Eligible by week calculations'!D78 -> 16.28% | C112: 0.09769675375 | D112: 0.1943080966 | E112: 0.001085410941 | J112: 0.1627906977 | O112: 0.1627906977 | Q112: 0.05 | R112: 0 | S112: 0 | T112: 0 | U112: 1 | V112: 1 | W112: 1 | X112: 5 | Y112: 1 | Z112: 0 | AA112: 4 | AB112: 0 | AC112: 21 | AD112: 0
A113: ='%Eligible by week calculations'!A79 -> 75 | B113: ='%Eligible by week calculations'!D79 -> 17.50% | C113: 0.09769675375 | D113: 0.1943080966 | E113: 0.001085410941 | I113: 0.175 | J113: 0.175 | O113: 0.175 | Q113: 0.05 | R113: 0 | S113: 0 | T113: 0 | U113: 1 | V113: 2 | W113: 1 | X113: 5 | Y113: 2 | Z113: 0 | AA113: 0 | AB113: 0 | AC113: 22 | AD113: 0
A114: ='%Eligible by week calculations'!A80 -> 76 | B114: ='%Eligible by week calculations'!D80 -> 11.39% | C114: =M$5 -> 0.09769675375 | D114: =M$7 -> 0.1943080966 | E114: =M$8 -> 0.001085410941 | F114: =IF(B114>D114,B114,#N/A) ->  | G114: =IF(B114<E114,B114,#N/A) ->  | H114: =IF(OR(B114>$M$5+3*$M$6,B114<$M$5-3*$M$6),B114,#N/A) ->  | I114: =IF(V114>1,B114,#N/A) -> 0.1139240506 | J114: =IF(X114>3,B114,#N/A) -> 0.1139240506 | K114: =IF(Y114>5,B114,#N/A) ->  | L114: =IF(Z114<-5,B114,#N/A) ->  | M114: =IF(AA114>13,B114,#N/A) ->  | N114: =IF(AB114>14,B114,#N/A) ->  | O114: =IF(AC114>7,B114,#N/A) -> 0.1139240506 | P114: =IF(AD114>7,B114,#N/A) ->  | Q114: =M$9 -> 0.05 | R114: =IF(B114>D114,1,0) -> 0 | S114: =IF(B114<E114,1,0) -> 0 | T114: =IF(OR(B114>$M$5+3*$M$6,B114<$M$5-3*$M$6),T113+1,0) -> 0 | U114: =IF(OR(B114>$M$5+2*$M$6,B114<$M$5-2*$M$6),1,0) -> 0 | V114: =SUM(U112:U114) -> 2 | W114: =IF(OR(B114>$M$5+1*$M$6,B114<$M$5-1*$M$6),1,0) -> 0 | X114: =SUM(W110:W114) -> 4 | Y114: =IF(B114>B113,Y113+1,0) -> 0 | Z114: =IF(B114<B113,Z113-1,0) -> -1 | AA114: =IF(OR(AND(Z114=-Y113,Z114<>0),AND(Y114=-Z113,Y114<>0)),AA113+1,0) -> 0 | AB114: =IF(AND(B114<M$5+1*M$6,B114>M$5-1*M$6),AB113+1,0) -> 1 | AC114: =IF(B114>C114,AC113+1,0) -> 23 | AD114: =IF(B114<C114,AD113+1,0) -> 0
A115: ='%Eligible by week calculations'!A81 -> 77 | B115: ='%Eligible by week calculations'!D81 -> 8.64% | C115: =M$5 -> 0.09769675375 | D115: =M$7 -> 0.1943080966 | E115: =M$8 -> 0.001085410941 | F115: =IF(B115>D115,B115,#N/A) ->  | G115: =IF(B115<E115,B115,#N/A) ->  | H115: =IF(OR(B115>$M$5+3*$M$6,B115<$M$5-3*$M$6),B115,#N/A) ->  | I115: =IF(V115>1,B115,#N/A) ->  | J115: =IF(X115>3,B115,#N/A) ->  | K115: =IF(Y115>5,B115,#N/A) ->  | L115: =IF(Z115<-5,B115,#N/A) ->  | M115: =IF(AA115>13,B115,#N/A) ->  | N115: =IF(AB115>14,B115,#N/A) ->  | O115: =IF(AC115>7,B115,#N/A) ->  | P115: =IF(AD115>7,B115,#N/A) ->  | Q115: =M$9 -> 0.05 | R115: =IF(B115>D115,1,0) -> 0 | S115: =IF(B115<E115,1,0) -> 0 | T115: =IF(OR(B115>$M$5+3*$M$6,B115<$M$5-3*$M$6),T114+1,0) -> 0 | U115: =IF(OR(B115>$M$5+2*$M$6,B115<$M$5-2*$M$6),1,0) -> 0 | V115: =SUM(U113:U115) -> 1 | W115: =IF(OR(B115>$M$5+1*$M$6,B115<$M$5-1*$M$6),1,0) -> 0 | X115: =SUM(W111:W115) -> 3 | Y115: =IF(B115>B114,Y114+1,0) -> 0 | Z115: =IF(B115<B114,Z114-1,0) -> -2 | AA115: =IF(OR(AND(Z115=-Y114,Z115<>0),AND(Y115=-Z114,Y115<>0)),AA114+1,0) -> 0 | AB115: =IF(AND(B115<M$5+1*M$6,B115>M$5-1*M$6),AB114+1,0) -> 2 | AC115: =IF(B115>C115,AC114+1,0) -> 0 | AD115: =IF(B115<C115,AD114+1,0) -> 1
A116: ='%Eligible by week calculations'!A82 -> 78 | B116: ='%Eligible by week calculations'!D82 -> 12.79% | C116: =M$5 -> 0.09769675375 | D116: =M$7 -> 0.1943080966 | E116: =M$8 -> 0.001085410941 | F116: =IF(B116>D116,B116,#N/A) ->  | G116: =IF(B116<E116,B116,#N/A) ->  | H116: =IF(OR(B116>$M$5+3*$M$6,B116<$M$5-3*$M$6),B116,#N/A) ->  | I116: =IF(V116>1,B116,#N/A) ->  | J116: =IF(X116>3,B116,#N/A) ->  | K116: =IF(Y116>5,B116,#N/A) ->  | L116: =IF(Z116<-5,B116,#N/A) ->  | M116: =IF(AA116>13,B116,#N/A) ->  | N116: =IF(AB116>14,B116,#N/A) ->  | O116: =IF(AC116>7,B116,#N/A) ->  | P116: =IF(AD116>7,B116,#N/A) ->  | Q116: =M$9 -> 0.05 | R116: =IF(B116>D116,1,0) -> 0 | S116: =IF(B116<E116,1,0) -> 0 | T116: =IF(OR(B116>$M$5+3*$M$6,B116<$M$5-3*$M$6),T115+1,0) -> 0 | U116: =IF(OR(B116>$M$5+2*$M$6,B116<$M$5-2*$M$6),1,0) -> 0 | V116: =SUM(U114:U116) -> 0 | W116: =IF(OR(B116>$M$5+1*$M$6,B116<$M$5-1*$M$6),1,0) -> 0 | X116: =SUM(W112:W116) -> 2 | Y116: =IF(B116>B115,Y115+1,0) -> 1 | Z116: =IF(B116<B115,Z115-1,0) -> 0 | AA116: =IF(OR(AND(Z116=-Y115,Z116<>0),AND(Y116=-Z115,Y116<>0)),AA115+1,0) -> 0 | AB116: =IF(AND(B116<M$5+1*M$6,B116>M$5-1*M$6),AB115+1,0) -> 3 | AC116: =IF(B116>C116,AC115+1,0) -> 1 | AD116: =IF(B116<C116,AD115+1,0) -> 0
A117: ='%Eligible by week calculations'!A83 -> 79 | B117: ='%Eligible by week calculations'!D83 -> 7.78% | C117: =M$5 -> 0.09769675375 | D117: =M$7 -> 0.1943080966 | E117: =M$8 -> 0.001085410941 | F117: =IF(B117>D117,B117,#N/A) ->  | G117: =IF(B117<E117,B117,#N/A) ->  | H117: =IF(OR(B117>$M$5+3*$M$6,B117<$M$5-3*$M$6),B117,#N/A) ->  | I117: =IF(V117>1,B117,#N/A) ->  | J117: =IF(X117>3,B117,#N/A) ->  | K117: =IF(Y117>5,B117,#N/A) ->  | L117: =IF(Z117<-5,B117,#N/A) ->  | M117: =IF(AA117>13,B117,#N/A) ->  | N117: =IF(AB117>14,B117,#N/A) ->  | O117: =IF(AC117>7,B117,#N/A) ->  | P117: =IF(AD117>7,B117,#N/A) ->  | Q117: =M$9 -> 0.05 | R117: =IF(B117>D117,1,0) -> 0 | S117: =IF(B117<E117,1,0) -> 0 | T117: =IF(OR(B117>$M$5+3*$M$6,B117<$M$5-3*$M$6),T116+1,0) -> 0 | U117: =IF(OR(B117>$M$5+2*$M$6,B117<$M$5-2*$M$6),1,0) -> 0 | V117: =SUM(U115:U117) -> 0 | W117: =IF(OR(B117>$M$5+1*$M$6,B117<$M$5-1*$M$6),1,0) -> 0 | X117: =SUM(W113:W117) -> 1 | Y117: =IF(B117>B116,Y116+1,0) -> 0 | Z117: =IF(B117<B116,Z116-1,0) -> -1 | AA117: =IF(OR(AND(Z117=-Y116,Z117<>0),AND(Y117=-Z116,Y117<>0)),AA116+1,0) -> 1 | AB117: =IF(AND(B117<M$5+1*M$6,B117>M$5-1*M$6),AB116+1,0) -> 4 | AC117: =IF(B117>C117,AC116+1,0) -> 0 | AD117: =IF(B117<C117,AD116+1,0) -> 1
A118: ='%Eligible by week calculations'!A84 -> 80 | B118: ='%Eligible by week calculations'!D84 -> 11.32% | C118: 0.09769675375 | D118: 0.1943080966 | E118: 0.001085410941 | Q118: 0.05 | R118: 0 | S118: 0 | T118: 0 | U118: 0 | V118: 0 | W118: 0 | X118: 0 | Y118: 1 | Z118: 0 | AA118: 2 | AB118: 5 | AC118: 1 | AD118: 0
A119: ='%Eligible by week calculations'!A85 -> 81 | B119: ='%Eligible by week calculations'!D85 -> 13.23% | C119: =M$5 -> 0.09769675375 | D119: =M$7 -> 0.1943080966 | E119: =M$8 -> 0.001085410941 | F119: =IF(B119>D119,B119,#N/A) ->  | G119: =IF(B119<E119,B119,#N/A) ->  | H119: =IF(OR(B119>$M$5+3*$M$6,B119<$M$5-3*$M$6),B119,#N/A) ->  | I119: =IF(V119>1,B119,#N/A) ->  | J119: =IF(X119>3,B119,#N/A) ->  | K119: =IF(Y119>5,B119,#N/A) ->  | L119: =IF(Z119<-5,B119,#N/A) ->  | M119: =IF(AA119>13,B119,#N/A) ->  | N119: =IF(AB119>14,B119,#N/A) ->  | O119: =IF(AC119>7,B119,#N/A) ->  | P119: =IF(AD119>7,B119,#N/A) ->  | Q119: =M$9 -> 0.05 | R119: =IF(B119>D119,1,0) -> 0 | S119: =IF(B119<E119,1,0) -> 0 | T119: =IF(OR(B119>$M$5+3*$M$6,B119<$M$5-3*$M$6),T118+1,0) -> 0 | U119: =IF(OR(B119>$M$5+2*$M$6,B119<$M$5-2*$M$6),1,0) -> 0 | V119: =SUM(U117:U119) -> 0 | W119: =IF(OR(B119>$M$5+1*$M$6,B119<$M$5-1*$M$6),1,0) -> 1 | X119: =SUM(W115:W119) -> 1 | Y119: =IF(B119>B118,Y118+1,0) -> 2 | Z119: =IF(B119<B118,Z118-1,0) -> 0 | AA119: =IF(OR(AND(Z119=-Y118,Z119<>0),AND(Y119=-Z118,Y119<>0)),AA118+1,0) -> 0 | AB119: =IF(AND(B119<M$5+1*M$6,B119>M$5-1*M$6),AB118+1,0) -> 0 | AC119: =IF(B119>C119,AC118+1,0) -> 2 | AD119: =IF(B119<C119,AD118+1,0) -> 0
A120: ='%Eligible by week calculations'!A86 -> 82 | B120: ='%Eligible by week calculations'!D86 -> 9.22% | C120: =M$5 -> 0.09769675375 | D120: =M$7 -> 0.1943080966 | E120: =M$8 -> 0.001085410941 | F120: =IF(B120>D120,B120,#N/A) ->  | G120: =IF(B120<E120,B120,#N/A) ->  | H120: =IF(OR(B120>$M$5+3*$M$6,B120<$M$5-3*$M$6),B120,#N/A) ->  | I120: =IF(V120>1,B120,#N/A) ->  | J120: =IF(X120>3,B120,#N/A) ->  | K120: =IF(Y120>5,B120,#N/A) ->  | L120: =IF(Z120<-5,B120,#N/A) ->  | M120: =IF(AA120>13,B120,#N/A) ->  | N120: =IF(AB120>14,B120,#N/A) ->  | O120: =IF(AC120>7,B120,#N/A) ->  | P120: =IF(AD120>7,B120,#N/A) ->  | Q120: =M$9 -> 0.05 | R120: =IF(B120>D120,1,0) -> 0 | S120: =IF(B120<E120,1,0) -> 0 | T120: =IF(OR(B120>$M$5+3*$M$6,B120<$M$5-3*$M$6),T119+1,0) -> 0 | U120: =IF(OR(B120>$M$5+2*$M$6,B120<$M$5-2*$M$6),1,0) -> 0 | V120: =SUM(U118:U120) -> 0 | W120: =IF(OR(B120>$M$5+1*$M$6,B120<$M$5-1*$M$6),1,0) -> 0 | X120: =SUM(W116:W120) -> 1 | Y120: =IF(B120>B119,Y119+1,0) -> 0 | Z120: =IF(B120<B119,Z119-1,0) -> -1 | AA120: =IF(OR(AND(Z120=-Y119,Z120<>0),AND(Y120=-Z119,Y120<>0)),AA119+1,0) -> 0 | AB120: =IF(AND(B120<M$5+1*M$6,B120>M$5-1*M$6),AB119+1,0) -> 1 | AC120: =IF(B120>C120,AC119+1,0) -> 0 | AD120: =IF(B120<C120,AD119+1,0) -> 1
A121: ='%Eligible by week calculations'!A87 -> 83 | B121: ='%Eligible by week calculations'!D87 -> 12.20% | C121: =M$5 -> 0.09769675375 | D121: =M$7 -> 0.1943080966 | E121: =M$8 -> 0.001085410941 | F121: =IF(B121>D121,B121,#N/A) ->  | G121: =IF(B121<E121,B121,#N/A) ->  | H121: =IF(OR(B121>$M$5+3*$M$6,B121<$M$5-3*$M$6),B121,#N/A) ->  | I121: =IF(V121>1,B121,#N/A) ->  | J121: =IF(X121>3,B121,#N/A) ->  | K121: =IF(Y121>5,B121,#N/A) ->  | L121: =IF(Z121<-5,B121,#N/A) ->  | M121: =IF(AA121>13,B121,#N/A) ->  | N121: =IF(AB121>14,B121,#N/A) ->  | O121: =IF(AC121>7,B121,#N/A) ->  | P121: =IF(AD121>7,B121,#N/A) ->  | Q121: =M$9 -> 0.05 | R121: =IF(B121>D121,1,0) -> 0 | S121: =IF(B121<E121,1,0) -> 0 | T121: =IF(OR(B121>$M$5+3*$M$6,B121<$M$5-3*$M$6),T120+1,0) -> 0 | U121: =IF(OR(B121>$M$5+2*$M$6,B121<$M$5-2*$M$6),1,0) -> 0 | V121: =SUM(U119:U121) -> 0 | W121: =IF(OR(B121>$M$5+1*$M$6,B121<$M$5-1*$M$6),1,0) -> 0 | X121: =SUM(W117:W121) -> 1 | Y121: =IF(B121>B120,Y120+1,0) -> 1 | Z121: =IF(B121<B120,Z120-1,0) -> 0 | AA121: =IF(OR(AND(Z121=-Y120,Z121<>0),AND(Y121=-Z120,Y121<>0)),AA120+1,0) -> 1 | AB121: =IF(AND(B121<M$5+1*M$6,B121>M$5-1*M$6),AB120+1,0) -> 2 | AC121: =IF(B121>C121,AC120+1,0) -> 1 | AD121: =IF(B121<C121,AD120+1,0) -> 0
A122: ='%Eligible by week calculations'!A88 -> 84 | B122: ='%Eligible by week calculations'!D88 -> 16.67% | C122: =M$5 -> 0.09769675375 | D122: =M$7 -> 0.1943080966 | E122: =M$8 -> 0.001085410941 | F122: =IF(B122>D122,B122,#N/A) ->  | G122: =IF(B122<E122,B122,#N/A) ->  | H122: =IF(OR(B122>$M$5+3*$M$6,B122<$M$5-3*$M$6),B122,#N/A) ->  | I122: =IF(V122>1,B122,#N/A) ->  | J122: =IF(X122>3,B122,#N/A) ->  | K122: =IF(Y122>5,B122,#N/A) ->  | L122: =IF(Z122<-5,B122,#N/A) ->  | M122: =IF(AA122>13,B122,#N/A) ->  | N122: =IF(AB122>14,B122,#N/A) ->  | O122: =IF(AC122>7,B122,#N/A) ->  | P122: =IF(AD122>7,B122,#N/A) ->  | Q122: =M$9 -> 0.05 | R122: =IF(B122>D122,1,0) -> 0 | S122: =IF(B122<E122,1,0) -> 0 | T122: =IF(OR(B122>$M$5+3*$M$6,B122<$M$5-3*$M$6),T121+1,0) -> 0 | U122: =IF(OR(B122>$M$5+2*$M$6,B122<$M$5-2*$M$6),1,0) -> 1 | V122: =SUM(U120:U122) -> 1 | W122: =IF(OR(B122>$M$5+1*$M$6,B122<$M$5-1*$M$6),1,0) -> 1 | X122: =SUM(W118:W122) -> 2 | Y122: =IF(B122>B121,Y121+1,0) -> 2 | Z122: =IF(B122<B121,Z121-1,0) -> 0 | AA122: =IF(OR(AND(Z122=-Y121,Z122<>0),AND(Y122=-Z121,Y122<>0)),AA121+1,0) -> 0 | AB122: =IF(AND(B122<M$5+1*M$6,B122>M$5-1*M$6),AB121+1,0) -> 0 | AC122: =IF(B122>C122,AC121+1,0) -> 2 | AD122: =IF(B122<C122,AD121+1,0) -> 0
A123: ='%Eligible by week calculations'!A89 -> 85 | B123: ='%Eligible by week calculations'!D89 -> 14.29% | C123: 0.09769675375 | D123: 0.1943080966 | E123: 0.001085410941 | Q123: 0.05 | R123: 0 | S123: 0 | T123: 0 | U123: 0 | V123: 1 | W123: 1 | X123: 3 | Y123: 0 | Z123: -1 | AA123: 0 | AB123: 0 | AC123: 3 | AD123: 0

Sheet Enrolled by week pivot
A1: Last row pivot | B1: =ROW(INDEX(A:A,MAX((A:A<>"")*(ROW(A:A))))) -> 90
A3: Count of Screening ID | B3: Column Labels
A4: Row Labels | B4: Enrolled (1) | C4: Refused (0) | D4: Soft Refused (3) | E4: Grand Total
A5: 1 | B5: 3 | C5: 1 | E5: 4
A6: 3 | B6: 2 | C6: 1 | E6: 3
A7: 4 | B7: 1 | C7: 1 | E7: 2
A8: 5 | B8: 3 | C8: 2 | E8: 5
A9: 6 | B9: 1 | C9: 1 | E9: 2
A10: 7 | B10: 1 | C10: 4 | E10: 5
A11: 8 | B11: 3 | C11: 1 | E11: 4
A12: 9 | C12: 3 | E12: 3
A13: 10 | B13: 1 | C13: 3 | E13: 4
A14: 11 | B14: 1 | C14: 1 | E14: 2
A15: 12 | B15: 1 | E15: 1
A16: 13 | B16: 1 | C16: 2 | E16: 3
A17: 14 | B17: 1 | C17: 2 | E17: 3
A18: 15 | C18: 3 | E18: 3
A19: 16 | B19: 1 | C19: 3 | E19: 4
A20: 17 | B20: 1 | C20: 2 | E20: 3
A21: 18 | B21: 2 | C21: 1 | E21: 3
A22: 19 | B22: 2 | C22: 2 | E22: 4
A23: 20 | B23: 3 | C23: 6 | E23: 9
A24: 21 | B24: 4 | C24: 3 | E24: 7
A25: 22 | B25: 4 | C25: 4 | E25: 8
A26: 23 | B26: 5 | C26: 10 | E26: 15
A27: 24 | B27: 2 | C27: 8 | E27: 10
A28: 25 | B28: 3 | C28: 7 | E28: 10
A29: 26 | B29: 1 | C29: 7 | E29: 8
A30: 27 | B30: 5 | C30: 3 | E30: 8
A31: 28 | B31: 6 | C31: 9 | E31: 15
A32: 29 | B32: 2 | C32: 7 | E32: 9
A33: 30 | B33: 3 | C33: 6 | E33: 9
A34: 31 | B34: 1 | C34: 6 | E34: 7
A35: 32 | B35: 2 | C35: 6 | E35: 8
A36: 33 | B36: 1 | C36: 8 | E36: 9
A37: 34 | B37: 4 | C37: 13 | E37: 17
A38: 35 | B38: 4 | C38: 10 | E38: 14
A39: 36 | C39: 2 | E39: 2
A40: 37 | C40: 5 | E40: 5
A41: 38 | B41: 13 | C41: 6 | E41: 19
A42: 39 | B42: 8 | C42: 1 | E42: 9
A43: 40 | B43: 7 | C43: 2 | E43: 9
A44: 41 | B44: 7 | C44: 7 | E44: 14
A45: 42 | B45: 9 | C45: 3 | E45: 12
A46: 43 | B46: 6 | C46: 4 | E46: 10
A47: 44 | B47: 6 | C47: 3 | E47: 9
A48: 45 | B48: 7 | C48: 3 | E48: 10
A49: 46 | B49: 7 | C49: 7 | E49: 14
A50: 47 | B50: 8 | C50: 5 | E50: 13
A51: 48 | B51: 9 | C51: 2 | E51: 11
A52: 49 | B52: 7 | C52: 5 | E52: 12
A53: 50 | B53: 3 | C53: 2 | E53: 5
A54: 51 | B54: 2 | C54: 7 | E54: 9
A55: 52 | C55: 12 | E55: 12
A56: 53 | B56: 3 | C56: 6 | E56: 9
A57: 54 | B57: 3 | C57: 6 | E57: 9
A58: 55 | B58: 4 | C58: 6 | E58: 10
A59: 56 | B59: 6 | C59: 4 | E59: 10
A60: 57 | B60: 8 | C60: 5 | E60: 13
A61: 58 | B61: 5 | C61: 7 | E61: 12
A62: 59 | B62: 6 | C62: 7 | E62: 13
A63: 60 | B63: 3 | C63: 10 | E63: 13
A64: 61 | B64: 3 | C64: 8 | E64: 11
A65: 62 | B65: 2 | C65: 7 | E65: 9
A66: 63 | B66: 10 | C66: 11 | E66: 21
A67: 64 | B67: 8 | C67: 10 | D67: 1 | E67: 19
A68: 65 | B68: 6 | C68: 7 | E68: 13
A69: 66 | B69: 11 | C69: 12 | E69: 23
A70: 67 | B70: 5 | C70: 9 | E70: 14
A71: 68 | B71: 9 | C71: 7 | D71: 1 | E71: 17
A72: 69 | B72: 3 | C72: 8 | E72: 11
A73: 70 | B73: 14 | C73: 10 | E73: 24
A74: 71 | B74: 5 | C74: 9 | E74: 14
A75: 72 | B75: 9 | C75: 6 | E75: 15
A76: 73 | B76: 8 | C76: 7 | E76: 15
A77: 74 | B77: 7 | C77: 9 | E77: 16
A78: 75 | B78: 8 | C78: 15 | E78: 23
A79: 76 | B79: 3 | C79: 4 | D79: 3 | E79: 10
A80: 77 | B80: 6 | C80: 5 | E80: 11
A81: 78 | B81: 9 | C81: 6 | D81: 2 | E81: 17
A82: 79 | B82: 2 | C82: 6 | D82: 1 | E82: 9
A83: 80 | B83: 7 | C83: 4 | E83: 11
A84: 81 | B84: 4 | C84: 6 | D84: 2 | E84: 12
A85: 82 | B85: 2 | C85: 4 | E85: 6
A86: 83 | B86: 3 | C86: 5 | D86: 2 | E86: 10
A87: 84 | B87: 2 | C87: 5 | D87: 3 | E87: 10
A88: 85 | B88: 3 | C88: 8 | E88: 11
A89: 86 | B89: 2 | C89: 3 | D89: 1 | E89: 6
A90: Grand Total | B90: 363 | C90: 464 | D90: 16 | E90: 843

Sheet Refuse Data
A1: Screening ID | B1: Blank1 | C1: Blank2 | D1: Status | E1: Refuse Date | F1: Refuse Week
A2: 3762-82 | D2: Refused (0) | E2: 2023-02-15 | F2: =ROUNDUP((E2-StartDate)/7,0) -> 2
A3: 3762-250 | D3: Refused (0) | E3: 2023-02-24 | F3: 3
A4: 3762-384 | D4: Refused (0) | E4: 2023-03-19 | F4: 6
A5: 3762-416 | D5: Refused (0) | E5: 2023-03-08 | F5: 5
A6: 3762-419 | D6: Refused (0) | E6: 2023-03-14 | F6: 6
A7: 3762-553 | D7: Refused (0) | E7: 2023-03-23 | F7: 7
A8: 3762-663 | D8: Refused (0) | E8: 2023-03-23 | F8: 7
A9: 3762-666 | D9: Refused (0) | E9: 2023-03-24 | F9: 7
A10: 3762-671 | D10: Refused (0) | E10: 2023-03-27 | F10: 8
A11: 3762-817 | D11: Refused (0) | E11: 2023-04-06 | F11: 9
A12: 3762-850 | D12: Refused (0) | E12: 2023-04-06 | F12: 9
A13: 3762-901 | D13: Refused (0) | E13: 2023-04-14 | F13: 10
A14: 3762-958 | D14: Refused (0) | E14: 2023-04-13 | F14: 10
A15: 3762-985 | D15: Refused (0) | E15: 2023-04-20 | F15: 11
A16: 3762-1063 | D16: Refused (0) | E16: 2023-04-21 | F16: 11
A17: 3762-1257 | D17: Refused (0) | E17: 2023-05-17 | F17: 15
A18: 3762-1264 | D18: Refused (0) | E18: 2023-05-05 | F18: 13
A19: 3762-1333 | D19: Refused (0) | E19: 2023-05-09 | F19: 14
A20: 3762-1385 | D20: Refused (0) | E20: 2023-05-22 | F20: 16
A21: 3762-1412 | D21: Refused (0) | E21: 2023-05-19 | F21: 15
A22: 3762-1506 | D22: Refused (0) | E22: 2023-06-13 | F22: 19
A23: 3762-1552 | D23: Refused (0) | E23: 2023-05-26 | F23: 16
A24: 3762-1559 | D24: Refused (0) | E24: 2023-06-01 | F24: 17
A25: 3762-1572 | D25: Refused (0) | E25: 2023-06-02 | F25: 17
A26: 3762-1595 | D26: Refused (0) | E26: 2023-06-23 | F26: 20
A27: 3762-1741 | D27: Refused (0) | E27: 2023-06-09 | F27: 18
A28: 3762-1829 | D28: Refused (0) | E28: 2023-06-23 | F28: 20
A29: 3762-1830 | D29: Refused (0) | E29: 2023-06-29 | F29: 21
A30: 3762-1895 | D30: Refused (0) | E30: 2023-06-30 | F30: 21
A31: 3762-1910 | D31: Refused (0) | E31: 2023-07-11 | F31: 23
A32: 3762-1922 | D32: Refused (0) | E32: 2023-07-05 | F32: 22
A33: 3762-1956 | D33: Refused (0) | E33: 2023-07-06 | F33: 22
A34: 3762-1970 | D34: Refused (0) | E34: 2023-06-25 | F34: 20
A35: 3762-2071 | D35: Refused (0) | E35: 2023-06-30 | F35: 21
A36: 3762-2104 | D36: Refused (0) | E36: 2023-07-05 | F36: 22
A37: 3762-2118 | D37: Refused (0) | E37: 2023-07-05 | F37: 22
A38: 3762-2141 | D38: Refused (0) | E38: 2023-07-05 | F38: 22
A39: 3762-2220 | D39: Refused (0) | E39: 2023-08-01 | F39: 26
A40: 3762-2254 | D40: Refused (0) | E40: 2023-07-12 | F40: 23
A41: 3762-2264 | D41: Refused (0) | E41: 2023-07-12 | F41: 23
A42: 3762-2268 | D42: Refused (0) | E42: 2023-07-12 | F42: 23
A43: 3762-2286 | D43: Refused (0) | E43: 2023-08-29 | F43: 30
A44: 3762-2289 | D44: Refused (0) | E44: 2023-07-12 | F44: 23
A45: 3762-2295 | D45: Refused (0) | E45: 2023-07-17 | F45: 24
A46: 3762-2321 | D46: Refused (0) | E46: 2023-07-25 | F46: 25
A47: 3762-2344 | D47: Refused (0) | E47: 2023-07-28 | F47: 25
A48: 3762-2353 | D48: Refused (0) | E48: 2023-07-20 | F48: 24
A49: 3762-2354 | D49: Refused (0) | E49: 2023-07-17 | F49: 24
A50: 3762-2357 | D50: Refused (0) | E50: 2023-07-18 | F50: 24
A51: 3762-2358 | D51: Refused (0) | E51: 2023-07-19 | F51: 24
A52: 3762-2362 | D52: Refused (0) | E52: 2023-07-24 | F52: 25
A53: 3762-2375 | D53: Refused (0) | E53: 2023-07-21 | F53: 24
A54: 3762-2397 | D54: Refused (0) | E54: 2023-07-25 | F54: 25
A55: 3762-2399 | D55: Refused (0) | E55: 2023-07-24 | F55: 25
A56: 3762-2459 | D56: Refused (0) | E56: 2023-07-31 | F56: 26
A57: 3762-2473 | D57: Refused (0) | E57: 2023-08-04 | F57: 26
A58: 3762-2507 | D58: Refused (0) | E58: 2023-07-24 | F58: 25
A59: 3762-2508 | D59: Refused (0) | E59: 2023-08-04 | F59: 26
A60: 3762-2541 | D60: Refused (0) | E60: 2023-08-11 | F60: 27
A61: 3762-2587 | D61: Refused (0) | E61: 2023-07-31 | F61: 26
A62: 3762-2605 | D62: Refused (0) | E62: 2023-08-03 | F62: 26
... 77 more rows

Sheet Refuse Pivot
A1: last row | B1: =ROW(INDEX(A:A,MAX((A:A<>"")*(ROW(A:A))))) -> 89
A3: Count of Screening ID | B3: Column Labels
A4: Row Labels | B4: Refused (0) | C4: Soft Refused (3) | D4: Grand Total
A5: 2.00 | B5: 1 | D5: 1
A6: 3.00 | B6: 1 | D6: 1
A7: 5.00 | B7: 1 | D7: 1
A8: 6.00 | B8: 2 | D8: 2
A9: 7.00 | B9: 3 | D9: 3
A10: 8.00 | B10: 1 | D10: 1
A11: 9.00 | B11: 2 | D11: 2
A12: 10.00 | B12: 3 | D12: 3
A13: 11.00 | B13: 2 | D13: 2
A14: 12.00 | B14: 1 | D14: 1
A15: 13.00 | B15: 1 | D15: 1
A16: 14.00 | B16: 1 | D16: 1
A17: 15.00 | B17: 3 | D17: 3
A18: 16.00 | B18: 4 | D18: 4
A19: 17.00 | B19: 2 | D19: 2
A20: 18.00 | B20: 1 | D20: 1
A21: 19.00 | B21: 1 | D21: 1
A22: 20.00 | B22: 3 | D22: 3
A23: 21.00 | B23: 3 | D23: 3
A24: 22.00 | B24: 5 | D24: 5
A25: 23.00 | B25: 7 | D25: 7
A26: 24.00 | B26: 6 | D26: 6
A27: 25.00 | B27: 7 | D27: 7
A28: 26.00 | B28: 10 | D28: 10
A29: 27.00 | B29: 5 | D29: 5
A30: 28.00 | B30: 6 | D30: 6
A31: 29.00 | B31: 9 | D31: 9
A32: 30.00 | B32: 3 | D32: 3
A33: 31.00 | B33: 7 | D33: 7
A34: 32.00 | B34: 8 | D34: 8
A35: 33.00 | B35: 9 | D35: 9
A36: 34.00 | B36: 6 | D36: 6
A37: 35.00 | B37: 8 | D37: 8
A38: 36.00 | B38: 5 | D38: 5
A39: 37.00 | B39: 9 | D39: 9
A40: 38.00 | B40: 9 | D40: 9
A41: 39.00 | B41: 2 | D41: 2
A42: 40.00 | B42: 3 | D42: 3
A43: 41.00 | B43: 4 | D43: 4
A44: 42.00 | B44: 2 | D44: 2
A45: 43.00 | B45: 2 | D45: 2
A46: 44.00 | B46: 3 | D46: 3
A47: 45.00 | B47: 6 | D47: 6
A48: 46.00 | B48: 4 | D48: 4
A49: 47.00 | B49: 1 | D49: 1
A50: 48.00 | B50: 7 | D50: 7
A51: 49.00 | B51: 5 | D51: 5
A52: 50.00 | B52: 2 | D52: 2
A53: 51.00 | B53: 5 | D53: 5
A54: 52.00 | B54: 7 | D54: 7
A55: 53.00 | B55: 7 | D55: 7
A56: 54.00 | B56: 8 | D56: 8
A57: 55.00 | B57: 6 | D57: 6
A58: 56.00 | B58: 5 | D58: 5
A59: 57.00 | B59: 4 | D59: 4
A60: 58.00 | B60: 9 | D60: 9
A61: 59.00 | B61: 8 | D61: 8
A62: 60.00 | B62: 9 | D62: 9
A63: 61.00 | B63: 4 | D63: 4
A64: 62.00 | B64: 7 | D64: 7
A65: 63.00 | B65: 10 | D65: 10
A66: 64.00 | B66: 7 | D66: 7
A67: 65.00 | B67: 14 | C67: 1 | D67: 15
A68: 66.00 | B68: 11 | D68: 11
A69: 67.00 | B69: 12 | D69: 12
A70: 68.00 | B70: 10 | D70: 10
A71: 69.00 | B71: 3 | D71: 3
A72: 70.00 | B72: 5 | C72: 1 | D72: 6
A73: 71.00 | B73: 10 | D73: 10
A74: 72.00 | B74: 8 | D74: 8
A75: 73.00 | B75: 7 | D75: 7
A76: 74.00 | B76: 6 | D76: 6
A77: 75.00 | B77: 10 | D77: 10
A78: 76.00 | B78: 12 | C78: 1 | D78: 13
A79: 77.00 | B79: 4 | D79: 4
A80: 78.00 | B80: 11 | D80: 11
A81: 79.00 | B81: 5 | D81: 5
A82: 80.00 | B82: 5 | C82: 3 | D82: 8
A83: 81.00 | B83: 9 | C83: 2 | D83: 11
A84: 82.00 | B84: 1 | D84: 1
A85: 83.00 | B85: 2 | C85: 2 | D85: 4
A86: 84.00 | B86: 7 | D86: 7
A87: 85.00 | B87: 7 | C87: 3 | D87: 10
A88: 86.00 | B88: 13 | C88: 3 | D88: 16
A89: Grand Total | B89: 464 | C89: 16 | D89: 480

Sheet Consent Data
A1: Study ID | B1: Event | C1: instrument | D1: Instance | E1: Screening ID | F1: Consent Date | G1: LAR Consent | H1: Reconsent | I1: Randomization | J1: Rand Date | K1: Withdrawn? | L1: Date withdrawn | M1: Visit Status | N1: Visit Occur | O1: Visit Date
A2: AFAKE-0001 | B2: fake | E2: fake | F2: 2023-02-05 | J2: 2023-02-06
A3: AFAKE-0001 | B3: fake | E3: fake | M3: Baseline (1) | O3: 2023-02-05
A4: AFAKE-0001 | B4: fake | E4: fake | M4: 12 months (3) | O4: =O3+118 -> 2023-06-03
A5: AFAKE-0001 | B5: fake | E5: fake | M5: 18 months (4) | O5: =O4+110 -> 2023-09-21
A6: A-0001 | B6: Baseline | E6: 3762-2527 | F6: 2023-07-25T13:59:00 | K6: Yes (1) | L6: 2023-09-05
A7: A-0002 | B7: Baseline | E7: 3762-2322 | F7: 2023-07-28T15:36:00 | I7: Intervention Protocol (1) | J7: 2023-08-02T17:31:00
A8: A-0002 | B8: Acute Stage
A9: A-0002 | B9: Month 6 Follow-up | M9: 6 months (2) | N9: Yes (1) | O9: 2024-02-08
A10: A-0002 | B10: Month 12 Follow-up | M10: 12 months (3) | N10: Yes (1) | O10: 2024-08-07
A11: A-0002 | B11: Baseline | C11: Visit Checklist | D11: 1 | M11: Baseline (1) | N11: Yes (1) | O11: 2023-08-01
A12: A-0003 | B12: Baseline | E12: 3762-3447 | F12: 2023-09-19T11:41:00 | I12: Usual Care/Control (0) | J12: 2023-10-13T13:37:00
A13: A-0003 | B13: Month 6 Follow-up | M13: 6 months (2) | N13: Yes (1) | O13: 2024-03-26
A14: A-0003 | B14: Baseline | C14: Visit Checklist | D14: 1 | M14: Baseline (1) | N14: Yes (1) | O14: 2023-10-12
A15: A-0004 | B15: Baseline | E15: 3762-3756 | F15: 2023-10-11T17:03:00 | I15: Intervention Protocol (1) | J15: 2023-11-17T14:54:00 | K15: Yes (1) | L15: 2024-04-24
A16: A-0004 | B16: Acute Stage
A17: A-0004 | B17: Baseline | C17: Visit Checklist | D17: 1 | M17: Baseline (1) | N17: Yes (1) | O17: 2023-11-15
A18: A-0005 | B18: Baseline | E18: 3762-4244 | F18: 2023-11-09T14:17:00 | K18: Yes (1) | L18: 2023-12-13
A19: A-0006 | B19: Baseline | E19: 3762-4350 | F19: 2023-11-15T15:46:00 | I19: Usual Care/Control (0) | J19: 2023-12-13T09:40:00
A20: A-0006 | B20: Baseline | C20: Visit Checklist | D20: 1 | M20: Baseline (1) | N20: Yes (1) | O20: 2023-12-12
A21: A-0007 | B21: Baseline | E21: 3762-4597 | F21: 2023-11-27T16:34:00 | K21: Yes (1) | L21: 2024-01-12
A22: A-0008 | B22: Baseline | E22: 3762-5018 | F22: 2023-12-29T14:50:00 | K22: Yes (1) | L22: 2024-01-25
A23: A-0009 | B23: Baseline | E23: 3762-4931 | F23: 2024-02-02T11:05:00 | I23: Intervention Protocol (1) | J23: 2024-02-06T16:22:00
A24: A-0009 | B24: Acute Stage
A25: A-0009 | B25: Month 6 Follow-up | M25: 6 months (2) | N25: Yes (1) | O25: 2024-07-29
A26: A-0009 | B26: Baseline | C26: Visit Checklist | D26: 1 | M26: Baseline (1) | N26: Yes (1) | O26: 2024-02-06
A27: A-0010 | B27: Baseline | E27: 3762-5318 | F27: 2024-02-09T13:05:00 | I27: Intervention Protocol (1) | J27: 2024-03-08T13:44:00
A28: A-0010 | B28: Acute Stage
A29: A-0010 | B29: Month 6 Follow-up | M29: 6 months (2) | N29: Yes (1) | O29: 2024-08-28
A30: A-0010 | B30: Baseline | C30: Visit Checklist | D30: 1 | M30: Baseline (1) | N30: Yes (1) | O30: 2024-02-27
A31: A-0011 | B31: Baseline | E31: 3762-5791 | F31: 2024-03-06T14:24:00 | K31: Yes (1) | L31: 2024-04-01
A32: A-0012 | B32: Baseline | E32: 3762-5816 | F32: 2024-03-14T15:06:00 | K32: Yes (1) | L32: 2024-04-02
A33: A-0013 | B33: Baseline | E33: 3762-6226 | F33: 2024-04-05T13:46:00 | I33: Usual Care/Control (0) | J33: 2024-04-24T17:14:00
A34: A-0013 | B34: Baseline | C34: Visit Checklist | D34: 1 | M34: Baseline (1) | N34: Yes (1) | O34: 2024-04-24
A35: A-0014 | B35: Baseline | E35: 3762-6207 | F35: 2024-04-11T16:05:00 | K35: Yes (1) | L35: 2024-05-13
A36: A-0015 | B36: Baseline | E36: 3762-5974 | F36: 2024-04-12T16:08:00 | I36: Usual Care/Control (0) | J36: 2024-05-03T08:32:00
A37: A-0015 | B37: Baseline | C37: Visit Checklist | D37: 1 | M37: Baseline (1) | N37: Yes (1) | O37: 2024-05-02
A38: A-0016 | B38: Baseline | E38: 3762-6425 | F38: 2024-04-23T14:23:00 | K38: Yes (1) | L38: 2024-05-16
A39: A-0017 | B39: Baseline | E39: 3762-6543 | F39: 2024-05-02T13:09:00 | K39: Yes (1) | L39: 2024-07-08
A40: A-0018 | B40: Baseline | E40: 3762-6553 | F40: 2024-05-02T12:51:00 | I40: Usual Care/Control (0) | J40: 2024-07-17T16:14:00
A41: A-0019 | B41: Baseline | E41: 3762-6699 | G41: 2024-05-16T14:25:00 | I41: Intervention Protocol (1) | J41: 2024-06-10T10:31:00
A42: A-0019 | B42: Acute Stage
A43: A-0019 | B43: Baseline | C43: Visit Checklist | D43: 1 | M43: Baseline (1) | N43: Yes (1) | O43: 2024-06-07
A44: A-0020 | B44: Baseline | E44: 3762-6851 | F44: 2024-05-20T15:26:00 | K44: Yes (1) | L44: 2024-07-08
A45: A-0021 | B45: Baseline | E45: 3762-6680 | F45: 2024-05-28T16:04:00 | K45: Yes (1) | L45: 2024-08-26
A46: A-0022 | B46: Baseline | E46: 3762-7028 | F46: 2024-06-03T15:27:00 | I46: Intervention Protocol (1) | J46: 2024-07-02T10:51:00
A47: A-0022 | B47: Acute Stage
A48: A-0022 | B48: Baseline | C48: Visit Checklist | D48: 1 | M48: Baseline (1) | N48: Yes (1) | O48: 2024-06-27
A49: A-0023 | B49: Baseline | E49: 3762-7465 | F49: 2024-07-11T09:04:00 | I49: Usual Care/Control (0) | J49: 2024-07-30T10:27:00
A50: A-0023 | B50: Baseline | C50: Visit Checklist | D50: 1 | M50: Baseline (1) | N50: Yes (1) | O50: 2024-07-26
A51: A-0024 | B51: Baseline | E51: 3762-7826 | F51: 2024-07-26T16:00:00 | I51: Intervention Protocol (1) | J51: 45530.61597
A52: A-0024 | B52: Acute Stage
A53: A-0024 | B53: Baseline | C53: Visit Checklist | D53: 1 | M53: Baseline (1) | N53: Yes (1) | O53: 45530
A54: A-0025 | B54: Baseline | E54: 3762-8118 | F54: 45520.65972 | I54: Usual Care/Control (0) | J54: 45541.41528
A55: A-0025 | B55: Baseline | C55: Visit Checklist | D55: 1 | M55: Baseline (1) | N55: Yes (1) | O55: 45540
A56: A-0026 | B56: Baseline | E56: 3762-8607 | F56: 45553.44653
A57: A-0027 | B57: Baseline | E57: 3762-8745 | F57: 45561.49236
A58: B-0001 | B58: Baseline | E58: 3762-83 | F58: 44970.52778 | I58: Intervention Protocol (1) | J58: 45014.41111
A59: B-0001 | B59: Acute Stage
A60: B-0001 | B60: Month 6 Follow-up | M60: 6 months (2) | N60: Yes (1) | O60: 45163
A61: B-0001 | B61: Month 12 Follow-up | M61: 12 months (3) | N61: Yes (1) | O61: 45391
A62: B-0001 | B62: Baseline | C62: Visit Checklist | D62: 1 | M62: Baseline (1) | N62: Yes (1) | O62: 2023-03-29
... 77 more rows

Sheet Consent Data Calculations
A1: Study ID | B1: uncertain meaning | C1: Screening ID | D1: DateTimeConsent | E1: LARDateTimeConsent | F1: Reconsent | G1: LastConsent | H1: Consent Week | I1: Randomization | J1: Randomization Date | K1: Randomization Week | L1: Withdrew (Y/N) | M1: WithdrewDate | N1: Withdrew Week | O1: VisitType | P1: VisitOccur (Y/N) | Q1: VisitDate | R1: Visit Week
A2: ='Consent Data'!A2 -> AFAKE-0001 | B2: ='Consent Data'!B2 -> fake | C2: ='Consent Data'!E2 -> fake | D2: ='Consent Data'!F2 -> 44962 | E2: ='Consent Data'!G2 -> 0 | F2: ='Consent Data'!H2 -> 0 | G2: =IF(MAX(D2:F2)>0,MAX(D2:F2),#N/A) -> 2023-02-05 | H2: =ROUNDUP((G2-StartDate)/7,0) -> 0.00 | I2: ='Consent Data'!I2 -> 00:00:00 | J2: ='Consent Data'!J2 -> 2023-02-06 | K2: =IF(ROUNDUP((J2-StartDate)/7,0)>0,ROUNDUP((J2-StartDate)/7,0),#N/A) -> 1.00 | L2: ='Consent Data'!K2 -> 0 | M2: ='Consent Data'!L2 -> 0 | N2: =IF(ROUNDUP((M2-StartDate)/7,0)>0,ROUNDUP((M2-StartDate)/7,0),#N/A) ->  | O2: ='Consent Data'!M2 -> 0 | P2: ='Consent Data'!N2 -> 0 | Q2: ='Consent Data'!O2 -> 0 | R2: =IF(ROUNDUP((Q2-StartDate)/7,0)>0,ROUNDUP((Q2-StartDate)/7,0),#N/A) -> 
A3: ='Consent Data'!A3 -> AFAKE-0001 | B3: ='Consent Data'!B3 -> fake | C3: ='Consent Data'!E3 -> fake | D3: ='Consent Data'!F3 -> 0 | E3: ='Consent Data'!G3 -> 0 | F3: ='Consent Data'!H3 -> 0 | G3: =IF(MAX(D3:F3)>0,MAX(D3:F3),#N/A) ->  | H3: =ROUNDUP((G3-StartDate)/7,0) ->  | I3: ='Consent Data'!I3 -> 00:00:00 | J3: ='Consent Data'!J3 -> 00:00:00 | K3: =IF(ROUNDUP((J3-StartDate)/7,0)>0,ROUNDUP((J3-StartDate)/7,0),#N/A) ->  | L3: ='Consent Data'!K3 -> 0 | M3: ='Consent Data'!L3 -> 0 | N3: =IF(ROUNDUP((M3-StartDate)/7,0)>0,ROUNDUP((M3-StartDate)/7,0),#N/A) ->  | O3: ='Consent Data'!M3 -> Baseline (1) | P3: ='Consent Data'!N3 -> 0 | Q3: ='Consent Data'!O3 -> 44962 | R3: =IF(ROUNDUP((Q3-StartDate)/7,0)>0,ROUNDUP((Q3-StartDate)/7,0),#N/A) -> 
A4: ='Consent Data'!A4 -> AFAKE-0001 | B4: ='Consent Data'!B4 -> fake | C4: ='Consent Data'!E4 -> fake | D4: ='Consent Data'!F4 -> 0 | E4: ='Consent Data'!G4 -> 0 | F4: ='Consent Data'!H4 -> 0 | G4: =IF(MAX(D4:F4)>0,MAX(D4:F4),#N/A) ->  | I4: ='Consent Data'!I4 -> 00:00:00 | J4: ='Consent Data'!J4 -> 00:00:00 | L4: ='Consent Data'!K4 -> 0 | M4: ='Consent Data'!L4 -> 0 | O4: ='Consent Data'!M4 -> 12 months (3) | P4: ='Consent Data'!N4 -> 0 | Q4: ='Consent Data'!O4 -> 45080 | R4: 17.00
A5: ='Consent Data'!A5 -> AFAKE-0001 | B5: ='Consent Data'!B5 -> fake | C5: ='Consent Data'!E5 -> fake | D5: ='Consent Data'!F5 -> 0 | E5: ='Consent Data'!G5 -> 0 | F5: ='Consent Data'!H5 -> 0 | H5: =ROUNDUP((G5-StartDate)/7,0) ->  | I5: ='Consent Data'!I5 -> 00:00:00 | J5: ='Consent Data'!J5 -> 00:00:00 | K5: =IF(ROUNDUP((J5-StartDate)/7,0)>0,ROUNDUP((J5-StartDate)/7,0),#N/A) ->  | L5: ='Consent Data'!K5 -> 0 | M5: ='Consent Data'!L5 -> 0 | N5: =IF(ROUNDUP((M5-StartDate)/7,0)>0,ROUNDUP((M5-StartDate)/7,0),#N/A) ->  | O5: ='Consent Data'!M5 -> 18 months (4) | P5: ='Consent Data'!N5 -> 0 | Q5: ='Consent Data'!O5 -> 45190 | R5: =IF(ROUNDUP((Q5-StartDate)/7,0)>0,ROUNDUP((Q5-StartDate)/7,0),#N/A) -> 33.00
A6: ='Consent Data'!A6 -> A-0001 | B6: ='Consent Data'!B6 -> Baseline | C6: ='Consent Data'!E6 -> 3762-2527 | D6: ='Consent Data'!F6 -> 45132.58264 | E6: ='Consent Data'!G6 -> 0 | F6: ='Consent Data'!H6 -> 0 | G6: 2023-07-25T13:59:00 | H6: 25.00 | I6: ='Consent Data'!I6 -> 00:00:00 | J6: ='Consent Data'!J6 -> 00:00:00 | L6: ='Consent Data'!K6 -> Yes (1) | M6: ='Consent Data'!L6 -> 45174 | N6: 31.00 | O6: ='Consent Data'!M6 -> 0 | P6: ='Consent Data'!N6 -> 0 | Q6: ='Consent Data'!O6 -> 0
A7: ='Consent Data'!A7 -> A-0002 | B7: ='Consent Data'!B7 -> Baseline | C7: ='Consent Data'!E7 -> 3762-2322 | D7: ='Consent Data'!F7 -> 45135.65 | E7: ='Consent Data'!G7 -> 0 | F7: ='Consent Data'!H7 -> 0 | G7: 2023-07-28T15:36:00 | H7: 25.00 | I7: ='Consent Data'!I7 -> Intervention Protocol (1) | J7: ='Consent Data'!J7 -> 2023-08-02T17:31:00 | K7: 26.00 | L7: ='Consent Data'!K7 -> 0 | M7: ='Consent Data'!L7 -> 0 | O7: ='Consent Data'!M7 -> 0 | P7: ='Consent Data'!N7 -> 0 | Q7: ='Consent Data'!O7 -> 0
A8: ='Consent Data'!A8 -> A-0002 | B8: ='Consent Data'!B8 -> Acute Stage | C8: ='Consent Data'!E8 -> 0 | D8: ='Consent Data'!F8 -> 0 | E8: ='Consent Data'!G8 -> 0 | F8: ='Consent Data'!H8 -> 0 | I8: ='Consent Data'!I8 -> 00:00:00 | J8: ='Consent Data'!J8 -> 00:00:00 | L8: ='Consent Data'!K8 -> 0 | M8: ='Consent Data'!L8 -> 0 | O8: ='Consent Data'!M8 -> 0 | P8: ='Consent Data'!N8 -> 0 | Q8: ='Consent Data'!O8 -> 0
A9: ='Consent Data'!A9 -> A-0002 | B9: ='Consent Data'!B9 -> Month 6 Follow-up | C9: ='Consent Data'!E9 -> 0 | D9: ='Consent Data'!F9 -> 0 | E9: ='Consent Data'!G9 -> 0 | F9: ='Consent Data'!H9 -> 0 | I9: ='Consent Data'!I9 -> 00:00:00 | J9: ='Consent Data'!J9 -> 00:00:00 | L9: ='Consent Data'!K9 -> 0 | M9: ='Consent Data'!L9 -> 0 | O9: ='Consent Data'!M9 -> 6 months (2) | P9: ='Consent Data'!N9 -> Yes (1) | Q9: ='Consent Data'!O9 -> 45330 | R9: 53.00
A10: ='Consent Data'!A10 -> A-0002 | B10: ='Consent Data'!B10 -> Month 12 Follow-up | C10: ='Consent Data'!E10 -> 0 | D10: ='Consent Data'!F10 -> 0 | E10: ='Consent Data'!G10 -> 0 | F10: ='Consent Data'!H10 -> 0 | I10: ='Consent Data'!I10 -> 00:00:00 | J10: ='Consent Data'!J10 -> 00:00:00 | L10: ='Consent Data'!K10 -> 0 | M10: ='Consent Data'!L10 -> 0 | O10: ='Consent Data'!M10 -> 12 months (3) | P10: ='Consent Data'!N10 -> Yes (1) | Q10: ='Consent Data'!O10 -> 45511 | R10: 79.00
A11: ='Consent Data'!A11 -> A-0002 | B11: ='Consent Data'!B11 -> Baseline | C11: ='Consent Data'!E11 -> 0 | D11: ='Consent Data'!F11 -> 0 | E11: ='Consent Data'!G11 -> 0 | F11: ='Consent Data'!H11 -> 0 | I11: ='Consent Data'!I11 -> 00:00:00 | J11: ='Consent Data'!J11 -> 00:00:00 | L11: ='Consent Data'!K11 -> 0 | M11: ='Consent Data'!L11 -> 0 | O11: ='Consent Data'!M11 -> Baseline (1) | P11: ='Consent Data'!N11 -> Yes (1) | Q11: ='Consent Data'!O11 -> 45139 | R11: 26.00
A12: ='Consent Data'!A12 -> A-0003 | B12: ='Consent Data'!B12 -> Baseline | C12: ='Consent Data'!E12 -> 3762-3447 | D12: ='Consent Data'!F12 -> 45188.48681 | E12: ='Consent Data'!G12 -> 0 | F12: ='Consent Data'!H12 -> 0 | G12: 2023-09-19T11:41:00 | H12: 33.00 | I12: ='Consent Data'!I12 -> Usual Care/Control (0) | J12: ='Consent Data'!J12 -> 2023-10-13T13:37:00 | K12: 36.00 | L12: ='Consent Data'!K12 -> 0 | M12: ='Consent Data'!L12 -> 0 | O12: ='Consent Data'!M12 -> 0 | P12: ='Consent Data'!N12 -> 0 | Q12: ='Consent Data'!O12 -> 0
A13: ='Consent Data'!A13 -> A-0003 | B13: ='Consent Data'!B13 -> Month 6 Follow-up | C13: ='Consent Data'!E13 -> 0 | D13: ='Consent Data'!F13 -> 0 | E13: ='Consent Data'!G13 -> 0 | F13: ='Consent Data'!H13 -> 0 | I13: ='Consent Data'!I13 -> 00:00:00 | J13: ='Consent Data'!J13 -> 00:00:00 | L13: ='Consent Data'!K13 -> 0 | M13: ='Consent Data'!L13 -> 0 | O13: ='Consent Data'!M13 -> 6 months (2) | P13: ='Consent Data'!N13 -> Yes (1) | Q13: ='Consent Data'!O13 -> 45377 | R13: 60.00
A14: ='Consent Data'!A14 -> A-0003 | B14: ='Consent Data'!B14 -> Baseline | C14: ='Consent Data'!E14 -> 0 | D14: ='Consent Data'!F14 -> 0 | E14: ='Consent Data'!G14 -> 0 | F14: ='Consent Data'!H14 -> 0 | I14: ='Consent Data'!I14 -> 00:00:00 | J14: ='Consent Data'!J14 -> 00:00:00 | L14: ='Consent Data'!K14 -> 0 | M14: ='Consent Data'!L14 -> 0 | O14: ='Consent Data'!M14 -> Baseline (1) | P14: ='Consent Data'!N14 -> Yes (1) | Q14: ='Consent Data'!O14 -> 45211 | R14: 36.00
A15: ='Consent Data'!A15 -> A-0004 | B15: ='Consent Data'!B15 -> Baseline | C15: ='Consent Data'!E15 -> 3762-3756 | D15: ='Consent Data'!F15 -> 45210.71042 | E15: ='Consent Data'!G15 -> 0 | F15: ='Consent Data'!H15 -> 0 | G15: 2023-10-11T17:03:00 | H15: 36.00 | I15: ='Consent Data'!I15 -> Intervention Protocol (1) | J15: ='Consent Data'!J15 -> 2023-11-17T14:54:00 | K15: 41.00 | L15: ='Consent Data'!K15 -> Yes (1) | M15: ='Consent Data'!L15 -> 45406 | N15: 64.00 | O15: ='Consent Data'!M15 -> 0 | P15: ='Consent Data'!N15 -> 0 | Q15: ='Consent Data'!O15 -> 0
A16: ='Consent Data'!A16 -> A-0004 | B16: ='Consent Data'!B16 -> Acute Stage | C16: ='Consent Data'!E16 -> 0 | D16: ='Consent Data'!F16 -> 0 | E16: ='Consent Data'!G16 -> 0 | F16: ='Consent Data'!H16 -> 0 | I16: ='Consent Data'!I16 -> 00:00:00 | J16: ='Consent Data'!J16 -> 00:00:00 | L16: ='Consent Data'!K16 -> 0 | M16: ='Consent Data'!L16 -> 0 | O16: ='Consent Data'!M16 -> 0 | P16: ='Consent Data'!N16 -> 0 | Q16: ='Consent Data'!O16 -> 0
A17: ='Consent Data'!A17 -> A-0004 | B17: ='Consent Data'!B17 -> Baseline | C17: ='Consent Data'!E17 -> 0 | D17: ='Consent Data'!F17 -> 0 | E17: ='Consent Data'!G17 -> 0 | F17: ='Consent Data'!H17 -> 0 | I17: ='Consent Data'!I17 -> 00:00:00 | J17: ='Consent Data'!J17 -> 00:00:00 | L17: ='Consent Data'!K17 -> 0 | M17: ='Consent Data'!L17 -> 0 | O17: ='Consent Data'!M17 -> Baseline (1) | P17: ='Consent Data'!N17 -> Yes (1) | Q17: ='Consent Data'!O17 -> 45245 | R17: 41.00
A18: ='Consent Data'!A18 -> A-0005 | B18: ='Consent Data'!B18 -> Baseline | C18: ='Consent Data'!E18 -> 3762-4244 | D18: ='Consent Data'!F18 -> 45239.59514 | E18: ='Consent Data'!G18 -> 0 | F18: ='Consent Data'!H18 -> 0 | G18: 2023-11-09T14:17:00 | H18: 40.00 | I18: ='Consent Data'!I18 -> 00:00:00 | J18: ='Consent Data'!J18 -> 00:00:00 | L18: ='Consent Data'!K18 -> Yes (1) | M18: ='Consent Data'!L18 -> 45273 | N18: 45.00 | O18: ='Consent Data'!M18 -> 0 | P18: ='Consent Data'!N18 -> 0 | Q18: ='Consent Data'!O18 -> 0
A19: ='Consent Data'!A19 -> A-0006 | B19: ='Consent Data'!B19 -> Baseline | C19: ='Consent Data'!E19 -> 3762-4350 | D19: ='Consent Data'!F19 -> 45245.65694 | E19: ='Consent Data'!G19 -> 0 | F19: ='Consent Data'!H19 -> 0 | G19: 2023-11-15T15:46:00 | H19: 41.00 | I19: ='Consent Data'!I19 -> Usual Care/Control (0) | J19: ='Consent Data'!J19 -> 2023-12-13T09:40:00 | K19: 45.00 | L19: ='Consent Data'!K19 -> 0 | M19: ='Consent Data'!L19 -> 0 | O19: ='Consent Data'!M19 -> 0 | P19: ='Consent Data'!N19 -> 0 | Q19: ='Consent Data'!O19 -> 0
A20: ='Consent Data'!A20 -> A-0006 | B20: ='Consent Data'!B20 -> Baseline | C20: ='Consent Data'!E20 -> 0 | D20: ='Consent Data'!F20 -> 0 | E20: ='Consent Data'!G20 -> 0 | F20: ='Consent Data'!H20 -> 0 | I20: ='Consent Data'!I20 -> 00:00:00 | J20: ='Consent Data'!J20 -> 00:00:00 | L20: ='Consent Data'!K20 -> 0 | M20: ='Consent Data'!L20 -> 0 | O20: ='Consent Data'!M20 -> Baseline (1) | P20: ='Consent Data'!N20 -> Yes (1) | Q20: ='Consent Data'!O20 -> 45272 | R20: 45.00
A21: ='Consent Data'!A21 -> A-0007 | B21: ='Consent Data'!B21 -> Baseline | C21: ='Consent Data'!E21 -> 3762-4597 | D21: ='Consent Data'!F21 -> 45257.69028 | E21: ='Consent Data'!G21 -> 0 | F21: ='Consent Data'!H21 -> 0 | G21: 2023-11-27T16:34:00 | H21: 43.00 | I21: ='Consent Data'!I21 -> 00:00:00 | J21: ='Consent Data'!J21 -> 00:00:00 | L21: ='Consent Data'!K21 -> Yes (1) | M21: ='Consent Data'!L21 -> 45303 | N21: 49.00 | O21: ='Consent Data'!M21 -> 0 | P21: ='Consent Data'!N21 -> 0 | Q21: ='Consent Data'!O21 -> 0
A22: ='Consent Data'!A22 -> A-0008 | B22: ='Consent Data'!B22 -> Baseline | C22: ='Consent Data'!E22 -> 3762-5018 | D22: ='Consent Data'!F22 -> 45289.61806 | E22: ='Consent Data'!G22 -> 0 | F22: ='Consent Data'!H22 -> 0 | G22: 2023-12-29T14:50:00 | H22: 47.00 | I22: ='Consent Data'!I22 -> 00:00:00 | J22: ='Consent Data'!J22 -> 00:00:00 | L22: ='Consent Data'!K22 -> Yes (1) | M22: ='Consent Data'!L22 -> 45316 | N22: 51.00 | O22: ='Consent Data'!M22 -> 0 | P22: ='Consent Data'!N22 -> 0 | Q22: ='Consent Data'!O22 -> 0
A23: ='Consent Data'!A23 -> A-0009 | B23: ='Consent Data'!B23 -> Baseline | C23: ='Consent Data'!E23 -> 3762-4931 | D23: ='Consent Data'!F23 -> 45324.46181 | E23: ='Consent Data'!G23 -> 0 | F23: ='Consent Data'!H23 -> 0 | G23: 2024-02-02T11:05:00 | H23: 52.00 | I23: ='Consent Data'!I23 -> Intervention Protocol (1) | J23: ='Consent Data'!J23 -> 2024-02-06T16:22:00 | K23: 53.00 | L23: ='Consent Data'!K23 -> 0 | M23: ='Consent Data'!L23 -> 0 | O23: ='Consent Data'!M23 -> 0 | P23: ='Consent Data'!N23 -> 0 | Q23: ='Consent Data'!O23 -> 0
A24: ='Consent Data'!A24 -> A-0009 | B24: ='Consent Data'!B24 -> Acute Stage | C24: ='Consent Data'!E24 -> 0 | D24: ='Consent Data'!F24 -> 0 | E24: ='Consent Data'!G24 -> 0 | F24: ='Consent Data'!H24 -> 0 | I24: ='Consent Data'!I24 -> 00:00:00 | J24: ='Consent Data'!J24 -> 00:00:00 | L24: ='Consent Data'!K24 -> 0 | M24: ='Consent Data'!L24 -> 0 | O24: ='Consent Data'!M24 -> 0 | P24: ='Consent Data'!N24 -> 0 | Q24: ='Consent Data'!O24 -> 0
A25: ='Consent Data'!A25 -> A-0009 | B25: ='Consent Data'!B25 -> Month 6 Follow-up | C25: ='Consent Data'!E25 -> 0 | D25: ='Consent Data'!F25 -> 0 | E25: ='Consent Data'!G25 -> 0 | F25: ='Consent Data'!H25 -> 0 | I25: ='Consent Data'!I25 -> 00:00:00 | J25: ='Consent Data'!J25 -> 00:00:00 | L25: ='Consent Data'!K25 -> 0 | M25: ='Consent Data'!L25 -> 0 | O25: ='Consent Data'!M25 -> 6 months (2) | P25: ='Consent Data'!N25 -> Yes (1) | Q25: ='Consent Data'!O25 -> 45502 | R25: 78.00
A26: ='Consent Data'!A26 -> A-0009 | B26: ='Consent Data'!B26 -> Baseline | C26: ='Consent Data'!E26 -> 0 | D26: ='Consent Data'!F26 -> 0 | E26: ='Consent Data'!G26 -> 0 | F26: ='Consent Data'!H26 -> 0 | I26: ='Consent Data'!I26 -> 00:00:00 | J26: ='Consent Data'!J26 -> 00:00:00 | L26: ='Consent Data'!K26 -> 0 | M26: ='Consent Data'!L26 -> 0 | O26: ='Consent Data'!M26 -> Baseline (1) | P26: ='Consent Data'!N26 -> Yes (1) | Q26: ='Consent Data'!O26 -> 45328 | R26: 53.00
A27: ='Consent Data'!A27 -> A-0010 | B27: ='Consent Data'!B27 -> Baseline | C27: ='Consent Data'!E27 -> 3762-5318 | D27: ='Consent Data'!F27 -> 45331.54514 | E27: ='Consent Data'!G27 -> 0 | F27: ='Consent Data'!H27 -> 0 | G27: 2024-02-09T13:05:00 | H27: 53.00 | I27: ='Consent Data'!I27 -> Intervention Protocol (1) | J27: ='Consent Data'!J27 -> 2024-03-08T13:44:00 | K27: 57.00 | L27: ='Consent Data'!K27 -> 0 | M27: ='Consent Data'!L27 -> 0 | O27: ='Consent Data'!M27 -> 0 | P27: ='Consent Data'!N27 -> 0 | Q27: ='Consent Data'!O27 -> 0
A28: ='Consent Data'!A28 -> A-0010 | B28: ='Consent Data'!B28 -> Acute Stage | C28: ='Consent Data'!E28 -> 0 | D28: ='Consent Data'!F28 -> 0 | E28: ='Consent Data'!G28 -> 0 | F28: ='Consent Data'!H28 -> 0 | I28: ='Consent Data'!I28 -> 00:00:00 | J28: ='Consent Data'!J28 -> 00:00:00 | L28: ='Consent Data'!K28 -> 0 | M28: ='Consent Data'!L28 -> 0 | O28: ='Consent Data'!M28 -> 0 | P28: ='Consent Data'!N28 -> 0 | Q28: ='Consent Data'!O28 -> 0
A29: ='Consent Data'!A29 -> A-0010 | B29: ='Consent Data'!B29 -> Month 6 Follow-up | C29: ='Consent Data'!E29 -> 0 | D29: ='Consent Data'!F29 -> 0 | E29: ='Consent Data'!G29 -> 0 | F29: ='Consent Data'!H29 -> 0 | I29: ='Consent Data'!I29 -> 00:00:00 | J29: ='Consent Data'!J29 -> 00:00:00 | L29: ='Consent Data'!K29 -> 0 | M29: ='Consent Data'!L29 -> 0 | O29: ='Consent Data'!M29 -> 6 months (2) | P29: ='Consent Data'!N29 -> Yes (1) | Q29: ='Consent Data'!O29 -> 45532 | R29: 82.00
A30: ='Consent Data'!A30 -> A-0010 | B30: ='Consent Data'!B30 -> Baseline | C30: ='Consent Data'!E30 -> 0 | D30: ='Consent Data'!F30 -> 0 | E30: ='Consent Data'!G30 -> 0 | F30: ='Consent Data'!H30 -> 0 | I30: ='Consent Data'!I30 -> 00:00:00 | J30: ='Consent Data'!J30 -> 00:00:00 | L30: ='Consent Data'!K30 -> 0 | M30: ='Consent Data'!L30 -> 0 | O30: ='Consent Data'!M30 -> Baseline (1) | P30: ='Consent Data'!N30 -> Yes (1) | Q30: ='Consent Data'!O30 -> 45349 | R30: 56.00
A31: ='Consent Data'!A31 -> A-0011 | B31: ='Consent Data'!B31 -> Baseline | C31: ='Consent Data'!E31 -> 3762-5791 | D31: ='Consent Data'!F31 -> 45357.6 | E31: ='Consent Data'!G31 -> 0 | F31: ='Consent Data'!H31 -> 0 | G31: 2024-03-06T14:24:00 | H31: 57.00 | I31: ='Consent Data'!I31 -> 00:00:00 | J31: ='Consent Data'!J31 -> 00:00:00 | L31: ='Consent Data'!K31 -> Yes (1) | M31: ='Consent Data'!L31 -> 45383 | N31: 61.00 | O31: ='Consent Data'!M31 -> 0 | P31: ='Consent Data'!N31 -> 0 | Q31: ='Consent Data'!O31 -> 0
A32: ='Consent Data'!A32 -> A-0012 | B32: ='Consent Data'!B32 -> Baseline | C32: ='Consent Data'!E32 -> 3762-5816 | D32: ='Consent Data'!F32 -> 45365.62917 | E32: ='Consent Data'!G32 -> 0 | F32: ='Consent Data'!H32 -> 0 | G32: 2024-03-14T15:06:00 | H32: 58.00 | I32: ='Consent Data'!I32 -> 00:00:00 | J32: ='Consent Data'!J32 -> 00:00:00 | L32: ='Consent Data'!K32 -> Yes (1) | M32: ='Consent Data'!L32 -> 45384 | N32: 61.00 | O32: ='Consent Data'!M32 -> 0 | P32: ='Consent Data'!N32 -> 0 | Q32: ='Consent Data'!O32 -> 0
A33: ='Consent Data'!A33 -> A-0013 | B33: ='Consent Data'!B33 -> Baseline | C33: ='Consent Data'!E33 -> 3762-6226 | D33: ='Consent Data'!F33 -> 45387.57361 | E33: ='Consent Data'!G33 -> 0 | F33: ='Consent Data'!H33 -> 0 | G33: 2024-04-05T13:46:00 | H33: 61.00 | I33: ='Consent Data'!I33 -> Usual Care/Control (0) | J33: ='Consent Data'!J33 -> 2024-04-24T17:14:00 | K33: 64.00 | L33: ='Consent Data'!K33 -> 0 | M33: ='Consent Data'!L33 -> 0 | O33: ='Consent Data'!M33 -> 0 | P33: ='Consent Data'!N33 -> 0 | Q33: ='Consent Data'!O33 -> 0
A34: ='Consent Data'!A34 -> A-0013 | B34: ='Consent Data'!B34 -> Baseline | C34: ='Consent Data'!E34 -> 0 | D34: ='Consent Data'!F34 -> 0 | E34: ='Consent Data'!G34 -> 0 | F34: ='Consent Data'!H34 -> 0 | I34: ='Consent Data'!I34 -> 00:00:00 | J34: ='Consent Data'!J34 -> 00:00:00 | L34: ='Consent Data'!K34 -> 0 | M34: ='Consent Data'!L34 -> 0 | O34: ='Consent Data'!M34 -> Baseline (1) | P34: ='Consent Data'!N34 -> Yes (1) | Q34: ='Consent Data'!O34 -> 45406 | R34: 64.00
A35: ='Consent Data'!A35 -> A-0014 | B35: ='Consent Data'!B35 -> Baseline | C35: ='Consent Data'!E35 -> 3762-6207 | D35: ='Consent Data'!F35 -> 45393.67014 | E35: ='Consent Data'!G35 -> 0 | F35: ='Consent Data'!H35 -> 0 | G35: 2024-04-11T16:05:00 | H35: 62.00 | I35: ='Consent Data'!I35 -> 00:00:00 | J35: ='Consent Data'!J35 -> 00:00:00 | L35: ='Consent Data'!K35 -> Yes (1) | M35: ='Consent Data'!L35 -> 45425 | N35: 67.00 | O35: ='Consent Data'!M35 -> 0 | P35: ='Consent Data'!N35 -> 0 | Q35: ='Consent Data'!O35 -> 0
A36: ='Consent Data'!A36 -> A-0015 | B36: ='Consent Data'!B36 -> Baseline | C36: ='Consent Data'!E36 -> 3762-5974 | D36: ='Consent Data'!F36 -> 45394.67222 | E36: ='Consent Data'!G36 -> 0 | F36: ='Consent Data'!H36 -> 0 | G36: 2024-04-12T16:08:00 | H36: 62.00 | I36: ='Consent Data'!I36 -> Usual Care/Control (0) | J36: ='Consent Data'!J36 -> 2024-05-03T08:32:00 | K36: 65.00 | L36: ='Consent Data'!K36 -> 0 | M36: ='Consent Data'!L36 -> 0 | O36: ='Consent Data'!M36 -> 0 | P36: ='Consent Data'!N36 -> 0 | Q36: ='Consent Data'!O36 -> 0
A37: ='Consent Data'!A37 -> A-0015 | B37: ='Consent Data'!B37 -> Baseline | C37: ='Consent Data'!E37 -> 0 | D37: ='Consent Data'!F37 -> 0 | E37: ='Consent Data'!G37 -> 0 | F37: ='Consent Data'!H37 -> 0 | I37: ='Consent Data'!I37 -> 00:00:00 | J37: ='Consent Data'!J37 -> 00:00:00 | L37: ='Consent Data'!K37 -> 0 | M37: ='Consent Data'!L37 -> 0 | O37: ='Consent Data'!M37 -> Baseline (1) | P37: ='Consent Data'!N37 -> Yes (1) | Q37: ='Consent Data'!O37 -> 45414 | R37: 65.00
A38: ='Consent Data'!A38 -> A-0016 | B38: ='Consent Data'!B38 -> Baseline | C38: ='Consent Data'!E38 -> 3762-6425 | D38: ='Consent Data'!F38 -> 45405.59931 | E38: ='Consent Data'!G38 -> 0 | F38: ='Consent Data'!H38 -> 0 | G38: 2024-04-23T14:23:00 | H38: 64.00 | I38: ='Consent Data'!I38 -> 00:00:00 | J38: ='Consent Data'!J38 -> 00:00:00 | L38: ='Consent Data'!K38 -> Yes (1) | M38: ='Consent Data'!L38 -> 45428 | N38: 67.00 | O38: ='Consent Data'!M38 -> 0 | P38: ='Consent Data'!N38 -> 0 | Q38: ='Consent Data'!O38 -> 0
A39: ='Consent Data'!A39 -> A-0017 | B39: ='Consent Data'!B39 -> Baseline | C39: ='Consent Data'!E39 -> 3762-6543 | D39: ='Consent Data'!F39 -> 45414.54792 | E39: ='Consent Data'!G39 -> 0 | F39: ='Consent Data'!H39 -> 0 | G39: 2024-05-02T13:09:00 | H39: 65.00 | I39: ='Consent Data'!I39 -> 00:00:00 | J39: ='Consent Data'!J39 -> 00:00:00 | L39: ='Consent Data'!K39 -> Yes (1) | M39: ='Consent Data'!L39 -> 45481 | N39: 75.00 | O39: ='Consent Data'!M39 -> 0 | P39: ='Consent Data'!N39 -> 0 | Q39: ='Consent Data'!O39 -> 0
A40: ='Consent Data'!A40 -> A-0018 | B40: ='Consent Data'!B40 -> Baseline | C40: ='Consent Data'!E40 -> 3762-6553 | D40: ='Consent Data'!F40 -> 45414.53542 | E40: ='Consent Data'!G40 -> 0 | F40: ='Consent Data'!H40 -> 0 | G40: 2024-05-02T12:51:00 | H40: 65.00 | I40: ='Consent Data'!I40 -> Usual Care/Control (0) | J40: ='Consent Data'!J40 -> 2024-07-17T16:14:00 | K40: 76.00 | L40: ='Consent Data'!K40 -> 0 | M40: ='Consent Data'!L40 -> 0 | O40: ='Consent Data'!M40 -> 0 | P40: ='Consent Data'!N40 -> 0 | Q40: ='Consent Data'!O40 -> 0
A41: ='Consent Data'!A41 -> A-0019 | B41: ='Consent Data'!B41 -> Baseline | C41: ='Consent Data'!E41 -> 3762-6699 | D41: ='Consent Data'!F41 -> 0 | E41: ='Consent Data'!G41 -> 45428.60069 | F41: ='Consent Data'!H41 -> 0 | G41: 2024-05-16T14:25:00 | H41: 67.00 | I41: ='Consent Data'!I41 -> Intervention Protocol (1) | J41: ='Consent Data'!J41 -> 2024-06-10T10:31:00 | K41: 71.00 | L41: ='Consent Data'!K41 -> 0 | M41: ='Consent Data'!L41 -> 0 | O41: ='Consent Data'!M41 -> 0 | P41: ='Consent Data'!N41 -> 0 | Q41: ='Consent Data'!O41 -> 0
A42: ='Consent Data'!A42 -> A-0019 | B42: ='Consent Data'!B42 -> Acute Stage | C42: ='Consent Data'!E42 -> 0 | D42: ='Consent Data'!F42 -> 0 | E42: ='Consent Data'!G42 -> 0 | F42: ='Consent Data'!H42 -> 0 | I42: ='Consent Data'!I42 -> 00:00:00 | J42: ='Consent Data'!J42 -> 00:00:00 | L42: ='Consent Data'!K42 -> 0 | M42: ='Consent Data'!L42 -> 0 | O42: ='Consent Data'!M42 -> 0 | P42: ='Consent Data'!N42 -> 0 | Q42: ='Consent Data'!O42 -> 0
A43: ='Consent Data'!A43 -> A-0019 | B43: ='Consent Data'!B43 -> Baseline | C43: ='Consent Data'!E43 -> 0 | D43: ='Consent Data'!F43 -> 0 | E43: ='Consent Data'!G43 -> 0 | F43: ='Consent Data'!H43 -> 0 | I43: ='Consent Data'!I43 -> 00:00:00 | J43: ='Consent Data'!J43 -> 00:00:00 | L43: ='Consent Data'!K43 -> 0 | M43: ='Consent Data'!L43 -> 0 | O43: ='Consent Data'!M43 -> Baseline (1) | P43: ='Consent Data'!N43 -> Yes (1) | Q43: ='Consent Data'!O43 -> 45450 | R43: 70.00
A44: ='Consent Data'!A44 -> A-0020 | B44: ='Consent Data'!B44 -> Baseline | C44: ='Consent Data'!E44 -> 3762-6851 | D44: ='Consent Data'!F44 -> 45432.64306 | E44: ='Consent Data'!G44 -> 0 | F44: ='Consent Data'!H44 -> 0 | G44: 2024-05-20T15:26:00 | H44: 68.00 | I44: ='Consent Data'!I44 -> 00:00:00 | J44: ='Consent Data'!J44 -> 00:00:00 | L44: ='Consent Data'!K44 -> Yes (1) | M44: ='Consent Data'!L44 -> 45481 | N44: 75.00 | O44: ='Consent Data'!M44 -> 0 | P44: ='Consent Data'!N44 -> 0 | Q44: ='Consent Data'!O44 -> 0
A45: ='Consent Data'!A45 -> A-0021 | B45: ='Consent Data'!B45 -> Baseline | C45: ='Consent Data'!E45 -> 3762-6680 | D45: ='Consent Data'!F45 -> 45440.66944 | E45: ='Consent Data'!G45 -> 0 | F45: ='Consent Data'!H45 -> 0 | G45: 2024-05-28T16:04:00 | H45: 69.00 | I45: ='Consent Data'!I45 -> 00:00:00 | J45: ='Consent Data'!J45 -> 00:00:00 | L45: ='Consent Data'!K45 -> Yes (1) | M45: ='Consent Data'!L45 -> 45530 | N45: 82.00 | O45: ='Consent Data'!M45 -> 0 | P45: ='Consent Data'!N45 -> 0 | Q45: ='Consent Data'!O45 -> 0
A46: ='Consent Data'!A46 -> A-0022 | B46: ='Consent Data'!B46 -> Baseline | C46: ='Consent Data'!E46 -> 3762-7028 | D46: ='Consent Data'!F46 -> 45446.64375 | E46: ='Consent Data'!G46 -> 0 | F46: ='Consent Data'!H46 -> 0 | G46: 2024-06-03T15:27:00 | H46: 70.00 | I46: ='Consent Data'!I46 -> Intervention Protocol (1) | J46: ='Consent Data'!J46 -> 2024-07-02T10:51:00 | K46: 74.00 | L46: ='Consent Data'!K46 -> 0 | M46: ='Consent Data'!L46 -> 0 | O46: ='Consent Data'!M46 -> 0 | P46: ='Consent Data'!N46 -> 0 | Q46: ='Consent Data'!O46 -> 0
A47: ='Consent Data'!A47 -> A-0022 | B47: ='Consent Data'!B47 -> Acute Stage | C47: ='Consent Data'!E47 -> 0 | D47: ='Consent Data'!F47 -> 0 | E47: ='Consent Data'!G47 -> 0 | F47: ='Consent Data'!H47 -> 0 | I47: ='Consent Data'!I47 -> 00:00:00 | J47: ='Consent Data'!J47 -> 00:00:00 | L47: ='Consent Data'!K47 -> 0 | M47: ='Consent Data'!L47 -> 0 | O47: ='Consent Data'!M47 -> 0 | P47: ='Consent Data'!N47 -> 0 | Q47: ='Consent Data'!O47 -> 0
A48: ='Consent Data'!A48 -> A-0022 | B48: ='Consent Data'!B48 -> Baseline | C48: ='Consent Data'!E48 -> 0 | D48: ='Consent Data'!F48 -> 0 | E48: ='Consent Data'!G48 -> 0 | F48: ='Consent Data'!H48 -> 0 | I48: ='Consent Data'!I48 -> 00:00:00 | J48: ='Consent Data'!J48 -> 00:00:00 | L48: ='Consent Data'!K48 -> 0 | M48: ='Consent Data'!L48 -> 0 | O48: ='Consent Data'!M48 -> Baseline (1) | P48: ='Consent Data'!N48 -> Yes (1) | Q48: ='Consent Data'!O48 -> 45470 | R48: 73.00
A49: ='Consent Data'!A49 -> A-0023 | B49: ='Consent Data'!B49 -> Baseline | C49: ='Consent Data'!E49 -> 3762-7465 | D49: ='Consent Data'!F49 -> 45484.37778 | E49: ='Consent Data'!G49 -> 0 | F49: ='Consent Data'!H49 -> 0 | G49: 2024-07-11T09:04:00 | H49: 75.00 | I49: ='Consent Data'!I49 -> Usual Care/Control (0) | J49: ='Consent Data'!J49 -> 2024-07-30T10:27:00 | K49: 78.00 | L49: ='Consent Data'!K49 -> 0 | M49: ='Consent Data'!L49 -> 0 | O49: ='Consent Data'!M49 -> 0 | P49: ='Consent Data'!N49 -> 0 | Q49: ='Consent Data'!O49 -> 0
A50: ='Consent Data'!A50 -> A-0023 | B50: ='Consent Data'!B50 -> Baseline | C50: ='Consent Data'!E50 -> 0 | D50: ='Consent Data'!F50 -> 0 | E50: ='Consent Data'!G50 -> 0 | F50: ='Consent Data'!H50 -> 0 | I50: ='Consent Data'!I50 -> 00:00:00 | J50: ='Consent Data'!J50 -> 00:00:00 | L50: ='Consent Data'!K50 -> 0 | M50: ='Consent Data'!L50 -> 0 | O50: ='Consent Data'!M50 -> Baseline (1) | P50: ='Consent Data'!N50 -> Yes (1) | Q50: ='Consent Data'!O50 -> 45499 | R50: 77.00
A51: ='Consent Data'!A51 -> A-0024 | B51: ='Consent Data'!B51 -> Baseline | C51: ='Consent Data'!E51 -> 3762-7826 | D51: ='Consent Data'!F51 -> 45499.66667 | E51: ='Consent Data'!G51 -> 0 | F51: ='Consent Data'!H51 -> 0 | G51: 2024-07-26T16:00:00 | H51: 77.00 | I51: ='Consent Data'!I51 -> Intervention Protocol (1) | J51: ='Consent Data'!J51 -> 2024-08-26T14:47:00 | K51: 82.00 | L51: ='Consent Data'!K51 -> 0 | M51: ='Consent Data'!L51 -> 0 | O51: ='Consent Data'!M51 -> 0 | P51: ='Consent Data'!N51 -> 0 | Q51: ='Consent Data'!O51 -> 0
A52: ='Consent Data'!A52 -> A-0024 | B52: ='Consent Data'!B52 -> Acute Stage | C52: ='Consent Data'!E52 -> 0 | D52: ='Consent Data'!F52 -> 0 | E52: ='Consent Data'!G52 -> 0 | F52: ='Consent Data'!H52 -> 0 | I52: ='Consent Data'!I52 -> 00:00:00 | J52: ='Consent Data'!J52 -> 00:00:00 | L52: ='Consent Data'!K52 -> 0 | M52: ='Consent Data'!L52 -> 0 | O52: ='Consent Data'!M52 -> 0 | P52: ='Consent Data'!N52 -> 0 | Q52: ='Consent Data'!O52 -> 0
A53: ='Consent Data'!A53 -> A-0024 | B53: ='Consent Data'!B53 -> Baseline | C53: ='Consent Data'!E53 -> 0 | D53: ='Consent Data'!F53 -> 0 | E53: ='Consent Data'!G53 -> 0 | F53: ='Consent Data'!H53 -> 0 | I53: ='Consent Data'!I53 -> 00:00:00 | J53: ='Consent Data'!J53 -> 00:00:00 | L53: ='Consent Data'!K53 -> 0 | M53: ='Consent Data'!L53 -> 0 | O53: ='Consent Data'!M53 -> Baseline (1) | P53: ='Consent Data'!N53 -> Yes (1) | Q53: ='Consent Data'!O53 -> 45530 | R53: 82.00
A54: ='Consent Data'!A54 -> A-0025 | B54: ='Consent Data'!B54 -> Baseline | C54: ='Consent Data'!E54 -> 3762-8118 | D54: ='Consent Data'!F54 -> 45520.65972 | E54: ='Consent Data'!G54 -> 0 | F54: ='Consent Data'!H54 -> 0 | G54: 2024-08-16T15:50:00 | H54: 80.00 | I54: ='Consent Data'!I54 -> Usual Care/Control (0) | J54: ='Consent Data'!J54 -> 2024-09-06T09:58:00 | K54: 83.00 | L54: ='Consent Data'!K54 -> 0 | M54: ='Consent Data'!L54 -> 0 | O54: ='Consent Data'!M54 -> 0 | P54: ='Consent Data'!N54 -> 0 | Q54: ='Consent Data'!O54 -> 0
A55: ='Consent Data'!A55 -> A-0025 | B55: ='Consent Data'!B55 -> Baseline | C55: ='Consent Data'!E55 -> 0 | D55: ='Consent Data'!F55 -> 0 | E55: ='Consent Data'!G55 -> 0 | F55: ='Consent Data'!H55 -> 0 | I55: ='Consent Data'!I55 -> 00:00:00 | J55: ='Consent Data'!J55 -> 00:00:00 | L55: ='Consent Data'!K55 -> 0 | M55: ='Consent Data'!L55 -> 0 | O55: ='Consent Data'!M55 -> Baseline (1) | P55: ='Consent Data'!N55 -> Yes (1) | Q55: ='Consent Data'!O55 -> 45540 | R55: 83.00
A56: ='Consent Data'!A56 -> A-0026 | B56: ='Consent Data'!B56 -> Baseline | C56: ='Consent Data'!E56 -> 3762-8607 | D56: ='Consent Data'!F56 -> 45553.44653 | E56: ='Consent Data'!G56 -> 0 | F56: ='Consent Data'!H56 -> 0 | G56: 2024-09-18T10:43:00 | H56: 85.00 | I56: ='Consent Data'!I56 -> 00:00:00 | J56: ='Consent Data'!J56 -> 00:00:00 | L56: ='Consent Data'!K56 -> 0 | M56: ='Consent Data'!L56 -> 0 | O56: ='Consent Data'!M56 -> 0 | P56: ='Consent Data'!N56 -> 0 | Q56: ='Consent Data'!O56 -> 0
A57: ='Consent Data'!A57 -> A-0027 | B57: ='Consent Data'!B57 -> Baseline | C57: ='Consent Data'!E57 -> 3762-8745 | D57: ='Consent Data'!F57 -> 45561.49236 | E57: ='Consent Data'!G57 -> 0 | F57: ='Consent Data'!H57 -> 0 | G57: 2024-09-26T11:49:00 | H57: 86.00 | I57: ='Consent Data'!I57 -> 00:00:00 | J57: ='Consent Data'!J57 -> 00:00:00 | L57: ='Consent Data'!K57 -> 0 | M57: ='Consent Data'!L57 -> 0 | O57: ='Consent Data'!M57 -> 0 | P57: ='Consent Data'!N57 -> 0 | Q57: ='Consent Data'!O57 -> 0
A58: ='Consent Data'!A58 -> B-0001 | B58: ='Consent Data'!B58 -> Baseline | C58: ='Consent Data'!E58 -> 3762-83 | D58: ='Consent Data'!F58 -> 44970.52778 | E58: ='Consent Data'!G58 -> 0 | F58: ='Consent Data'!H58 -> 0 | G58: 2023-02-13T12:40:00 | H58: 2.00 | I58: ='Consent Data'!I58 -> Intervention Protocol (1) | J58: ='Consent Data'!J58 -> 2023-03-29T09:52:00 | K58: 8.00 | L58: ='Consent Data'!K58 -> 0 | M58: ='Consent Data'!L58 -> 0 | O58: ='Consent Data'!M58 -> 0 | P58: ='Consent Data'!N58 -> 0 | Q58: ='Consent Data'!O58 -> 0
A59: ='Consent Data'!A59 -> B-0001 | B59: ='Consent Data'!B59 -> Acute Stage | C59: ='Consent Data'!E59 -> 0 | D59: ='Consent Data'!F59 -> 0 | E59: ='Consent Data'!G59 -> 0 | F59: ='Consent Data'!H59 -> 0 | I59: ='Consent Data'!I59 -> 00:00:00 | J59: ='Consent Data'!J59 -> 00:00:00 | L59: ='Consent Data'!K59 -> 0 | M59: ='Consent Data'!L59 -> 0 | O59: ='Consent Data'!M59 -> 0 | P59: ='Consent Data'!N59 -> 0 | Q59: ='Consent Data'!O59 -> 0
A60: ='Consent Data'!A60 -> B-0001 | B60: ='Consent Data'!B60 -> Month 6 Follow-up | C60: ='Consent Data'!E60 -> 0 | D60: ='Consent Data'!F60 -> 0 | E60: ='Consent Data'!G60 -> 0 | F60: ='Consent Data'!H60 -> 0 | I60: ='Consent Data'!I60 -> 00:00:00 | J60: ='Consent Data'!J60 -> 00:00:00 | L60: ='Consent Data'!K60 -> 0 | M60: ='Consent Data'!L60 -> 0 | O60: ='Consent Data'!M60 -> 6 months (2) | P60: ='Consent Data'!N60 -> Yes (1) | Q60: ='Consent Data'!O60 -> 45163 | R60: 29.00
A61: ='Consent Data'!A61 -> B-0001 | B61: ='Consent Data'!B61 -> Month 12 Follow-up | C61: ='Consent Data'!E61 -> 0 | D61: ='Consent Data'!F61 -> 0 | E61: ='Consent Data'!G61 -> 0 | F61: ='Consent Data'!H61 -> 0 | I61: ='Consent Data'!I61 -> 00:00:00 | J61: ='Consent Data'!J61 -> 00:00:00 | L61: ='Consent Data'!K61 -> 0 | M61: ='Consent Data'!L61 -> 0 | O61: ='Consent Data'!M61 -> 12 months (3) | P61: ='Consent Data'!N61 -> Yes (1) | Q61: ='Consent Data'!O61 -> 45391 | R61: 62.00
A62: ='Consent Data'!A62 -> B-0001 | B62: ='Consent Data'!B62 -> Baseline | C62: ='Consent Data'!E62 -> 0 | D62: ='Consent Data'!F62 -> 0 | E62: ='Consent Data'!G62 -> 0 | F62: ='Consent Data'!H62 -> 0 | I62: ='Consent Data'!I62 -> 00:00:00 | J62: ='Consent Data'!J62 -> 00:00:00 | L62: ='Consent Data'!K62 -> 0 | M62: ='Consent Data'!L62 -> 0 | O62: ='Consent Data'!M62 -> Baseline (1) | P62: ='Consent Data'!N62 -> Yes (1) | Q62: ='Consent Data'!O62 -> 45014 | R62: 8.00
... 77 more rows

Sheet Consent by week pivot
A1: Last row pivot | B1: =ROW(INDEX(A:A,MAX((A:A<>"")*(ROW(A:A))))) -> 84 | D1: Last row week | E1: =ROW(INDEX(D:D,MAX((D:D<>"")*(ROW(D:D))))) -> 88
A3: Row Labels | B3: Count of Study ID | D3: Week | E3: find row | F3: get value | G3: Consented | H3: find row | I3: get value | J3: Refused | K3: find row | L3: get value | M3: SoftRefused | N3: Approached | O3: Eligible | P3: RunTotEl | Q3: %Approached | R3: %Consented
A4: 0 | B4: 1 | D4: 1 | E4: =MATCH($D4,A$4:A$39,0) ->  | F4: =INDEX(B$4:B$39,E4) ->  | G4: =_xlfn.IFNA(F4,0) -> 0 | H4: =MATCH($D4,'Refuse Pivot'!A$5:A$50,0) ->  | I4: =INDEX('Refuse Pivot'!B$5:B$50,H4) ->  | J4: =_xlfn.IFNA(I4,0) -> 0 | K4: =MATCH($D4,'Refuse Pivot'!A$5:A$50,0) ->  | L4: =INDEX('Refuse Pivot'!C$5:C$50,K4) ->  | M4: =_xlfn.IFNA(L4,0) -> 0 | N4: =SUM(G4,J4,M4) -> 0 | O4: ='Eligible by week pivot'!B5 -> 4 | P4: =O4 -> 4 | Q4: =IF(P4>0,MIN(N4/P4,1),0) -> 0.00% | R4: =IF(N4>0,(MIN(G4/SUM(G4,J4),1)),0) -> 0%
A5: 2 | B5: 3 | D5: =D4+1 -> 2 | E5: =MATCH($D5,A$4:A$39,0) -> 2 | F5: =INDEX(B$4:B$39,E5) -> 3 | G5: =_xlfn.IFNA(F5,0) -> 3 | H5: =MATCH($D5,'Refuse Pivot'!A$5:A$50,0) -> 1 | I5: =INDEX('Refuse Pivot'!B$5:B$50,H5) -> 1 | J5: =_xlfn.IFNA(I5,0) -> 1 | K5: =MATCH($D5,'Refuse Pivot'!A$5:A$50,0) -> 1 | L5: =INDEX('Refuse Pivot'!C$5:C$50,K5) -> 0 | M5: =_xlfn.IFNA(L5,0) -> 0 | N5: =SUM(G5,J5,M5) -> 4 | O5: ='Eligible by week pivot'!B6 -> 0 | P5: =SUM(O4:O5)-N4 -> 4 | Q5: =IF(P5>0,MIN(N5/P5,1),0) -> 100.00% | R5: =IF(N5>0,(MIN(G5/SUM(G5,J5),1)),0) -> 75%
A6: 4 | B6: 2 | D6: =D5+1 -> 3 | F6: =INDEX(B$4:B$39,E6) ->  | G6: 0 | H6: =MATCH($D6,'Refuse Pivot'!A$5:A$50,0) -> 2 | I6: =INDEX('Refuse Pivot'!B$5:B$50,H6) -> 1 | J6: 1 | K6: =MATCH($D6,'Refuse Pivot'!A$5:A$50,0) -> 2 | L6: =INDEX('Refuse Pivot'!C$5:C$50,K6) -> 0 | M6: 0 | N6: 1 | O6: ='Eligible by week pivot'!B7 -> 6 | P6: =SUM(O4:O6)-SUM(N4:N5) -> 6 | Q6: 16.67% | R6: 0%
A7: 5 | B7: 1 | D7: 4 | E7: 3 | F7: =INDEX(B$4:B$39,E7) -> 2 | G7: 2 | H7: =MATCH($D7,'Refuse Pivot'!A$5:A$50,0) ->  | I7: =INDEX('Refuse Pivot'!B$5:B$50,H7) ->  | J7: 0 | K7: =MATCH($D7,'Refuse Pivot'!A$5:A$50,0) ->  | L7: =INDEX('Refuse Pivot'!C$5:C$50,K7) ->  | M7: 0 | N7: 2 | O7: ='Eligible by week pivot'!B8 -> 3 | P7: =SUM(O4:O7)-SUM(N4:N6) -> 8 | Q7: 25.00% | R7: 100%
A8: 6 | B8: 1 | D8: 5 | E8: 4 | F8: =INDEX(B$4:B$39,E8) -> 1 | G8: 1 | H8: =MATCH($D8,'Refuse Pivot'!A$5:A$50,0) -> 3 | I8: =INDEX('Refuse Pivot'!B$5:B$50,H8) -> 1 | J8: 1 | K8: =MATCH($D8,'Refuse Pivot'!A$5:A$50,0) -> 3 | L8: =INDEX('Refuse Pivot'!C$5:C$50,K8) -> 0 | M8: 0 | N8: 2 | O8: ='Eligible by week pivot'!B9 -> 6 | P8: =SUM(O4:O8)-SUM(N4:N7) -> 12 | Q8: 16.67% | R8: 50%
A9: 7 | B9: 2 | D9: 6 | E9: 5 | F9: =INDEX(B$4:B$39,E9) -> 1 | G9: 1 | H9: =MATCH($D9,'Refuse Pivot'!A$5:A$50,0) -> 4 | I9: =INDEX('Refuse Pivot'!B$5:B$50,H9) -> 2 | J9: 2 | K9: =MATCH($D9,'Refuse Pivot'!A$5:A$50,0) -> 4 | L9: =INDEX('Refuse Pivot'!C$5:C$50,K9) -> 0 | M9: 0 | N9: 3 | O9: ='Eligible by week pivot'!B10 -> 2 | P9: =SUM(O4:O9)-SUM(N4:N8) -> 12 | Q9: 25.00% | R9: 33%
A10: 8 | B10: 2 | D10: 7 | E10: 6 | F10: =INDEX(B$4:B$39,E10) -> 2 | G10: 2 | H10: =MATCH($D10,'Refuse Pivot'!A$5:A$50,0) -> 5 | I10: =INDEX('Refuse Pivot'!B$5:B$50,H10) -> 3 | J10: 3 | K10: =MATCH($D10,'Refuse Pivot'!A$5:A$50,0) -> 5 | L10: =INDEX('Refuse Pivot'!C$5:C$50,K10) -> 0 | M10: 0 | N10: 5 | O10: ='Eligible by week pivot'!B11 -> 6 | P10: =SUM(O5:O10)-SUM(N5:N9) -> 11 | Q10: 45.45% | R10: 40%
A11: 9 | B11: 2 | D11: 8 | E11: 7 | F11: =INDEX(B$4:B$39,E11) -> 2 | G11: 2 | H11: =MATCH($D11,'Refuse Pivot'!A$5:A$50,0) -> 6 | I11: =INDEX('Refuse Pivot'!B$5:B$50,H11) -> 1 | J11: 1 | K11: =MATCH($D11,'Refuse Pivot'!A$5:A$50,0) -> 6 | L11: =INDEX('Refuse Pivot'!C$5:C$50,K11) -> 0 | M11: 0 | N11: 3 | O11: ='Eligible by week pivot'!B12 -> 4 | P11: 14 | Q11: 21.43% | R11: 67%
A12: 12 | B12: 3 | D12: 9 | E12: 8 | F12: =INDEX(B$4:B$39,E12) -> 2 | G12: 2 | H12: =MATCH($D12,'Refuse Pivot'!A$5:A$50,0) -> 7 | I12: =INDEX('Refuse Pivot'!B$5:B$50,H12) -> 2 | J12: 2 | K12: =MATCH($D12,'Refuse Pivot'!A$5:A$50,0) -> 7 | L12: =INDEX('Refuse Pivot'!C$5:C$50,K12) -> 0 | M12: 0 | N12: 4 | O12: ='Eligible by week pivot'!B13 -> 3 | P12: 9 | Q12: 44.44% | R12: 50%
A13: 14 | B13: 1 | D13: 10 | F13: =INDEX(B$4:B$39,E13) ->  | G13: 0 | H13: =MATCH($D13,'Refuse Pivot'!A$5:A$50,0) -> 8 | I13: =INDEX('Refuse Pivot'!B$5:B$50,H13) -> 3 | J13: 3 | K13: =MATCH($D13,'Refuse Pivot'!A$5:A$50,0) -> 8 | L13: =INDEX('Refuse Pivot'!C$5:C$50,K13) -> 0 | M13: 0 | N13: 3 | O13: ='Eligible by week pivot'!B14 -> 6 | P13: 10 | Q13: 30.00% | R13: 0%
A14: 15 | B14: 1 | D14: 11 | F14: =INDEX(B$4:B$39,E14) ->  | G14: 0 | H14: =MATCH($D14,'Refuse Pivot'!A$5:A$50,0) -> 9 | I14: =INDEX('Refuse Pivot'!B$5:B$50,H14) -> 2 | J14: 2 | K14: =MATCH($D14,'Refuse Pivot'!A$5:A$50,0) -> 9 | L14: =INDEX('Refuse Pivot'!C$5:C$50,K14) -> 0 | M14: 0 | N14: 2 | O14: ='Eligible by week pivot'!B15 -> 2 | P14: 5 | Q14: 40.00% | R14: 0%
A15: 17 | B15: 1 | D15: 12 | E15: 9 | F15: =INDEX(B$4:B$39,E15) -> 3 | G15: 3 | H15: =MATCH($D15,'Refuse Pivot'!A$5:A$50,0) -> 10 | I15: =INDEX('Refuse Pivot'!B$5:B$50,H15) -> 1 | J15: 1 | K15: =MATCH($D15,'Refuse Pivot'!A$5:A$50,0) -> 10 | L15: =INDEX('Refuse Pivot'!C$5:C$50,K15) -> 0 | M15: 0 | N15: 4 | O15: ='Eligible by week pivot'!B16 -> 2 | P15: 6 | Q15: 66.67% | R15: 75%
A16: 18 | B16: 2 | D16: 13 | F16: =INDEX(B$4:B$39,E16) ->  | G16: 0 | H16: =MATCH($D16,'Refuse Pivot'!A$5:A$50,0) -> 11 | I16: =INDEX('Refuse Pivot'!B$5:B$50,H16) -> 1 | J16: 1 | K16: =MATCH($D16,'Refuse Pivot'!A$5:A$50,0) -> 11 | L16: =INDEX('Refuse Pivot'!C$5:C$50,K16) -> 0 | M16: 0 | N16: 1 | O16: ='Eligible by week pivot'!B17 -> 4 | P16: 5 | Q16: 20.00% | R16: 0%
A17: 19 | B17: 1 | D17: 14 | E17: 10 | F17: =INDEX(B$4:B$39,E17) -> 1 | G17: 1 | H17: =MATCH($D17,'Refuse Pivot'!A$5:A$50,0) -> 12 | I17: =INDEX('Refuse Pivot'!B$5:B$50,H17) -> 1 | J17: 1 | K17: =MATCH($D17,'Refuse Pivot'!A$5:A$50,0) -> 12 | L17: =INDEX('Refuse Pivot'!C$5:C$50,K17) -> 0 | M17: 0 | N17: 2 | O17: ='Eligible by week pivot'!B18 -> 3 | P17: 6 | Q17: 33.33% | R17: 50%
A18: 20 | B18: 3 | D18: 15 | E18: 11 | F18: =INDEX(B$4:B$39,E18) -> 1 | G18: 1 | H18: =MATCH($D18,'Refuse Pivot'!A$5:A$50,0) -> 13 | I18: =INDEX('Refuse Pivot'!B$5:B$50,H18) -> 3 | J18: 3 | K18: =MATCH($D18,'Refuse Pivot'!A$5:A$50,0) -> 13 | L18: =INDEX('Refuse Pivot'!C$5:C$50,K18) -> 0 | M18: 0 | N18: 4 | O18: ='Eligible by week pivot'!B19 -> 4 | P18: 9 | Q18: 44.44% | R18: 25%
A19: 21 | B19: 2 | D19: 16 | F19: =INDEX(B$4:B$39,E19) ->  | G19: 0 | H19: =MATCH($D19,'Refuse Pivot'!A$5:A$50,0) -> 14 | I19: =INDEX('Refuse Pivot'!B$5:B$50,H19) -> 4 | J19: 4 | K19: =MATCH($D19,'Refuse Pivot'!A$5:A$50,0) -> 14 | L19: =INDEX('Refuse Pivot'!C$5:C$50,K19) -> 0 | M19: 0 | N19: 4 | O19: ='Eligible by week pivot'!B20 -> 4 | P19: 6 | Q19: 66.67% | R19: 0%
A20: 22 | B20: 4 | D20: 17 | E20: 12 | F20: =INDEX(B$4:B$39,E20) -> 1 | G20: 1 | H20: =MATCH($D20,'Refuse Pivot'!A$5:A$50,0) -> 15 | I20: =INDEX('Refuse Pivot'!B$5:B$50,H20) -> 2 | J20: 2 | K20: =MATCH($D20,'Refuse Pivot'!A$5:A$50,0) -> 15 | L20: =INDEX('Refuse Pivot'!C$5:C$50,K20) -> 0 | M20: 0 | N20: 3 | O20: ='Eligible by week pivot'!B21 -> 5 | P20: 7 | Q20: 42.86% | R20: 33%
A21: 23 | B21: 3 | D21: 18 | E21: 13 | F21: =INDEX(B$4:B$39,E21) -> 2 | G21: 2 | H21: =MATCH($D21,'Refuse Pivot'!A$5:A$50,0) -> 16 | I21: =INDEX('Refuse Pivot'!B$5:B$50,H21) -> 1 | J21: 1 | K21: =MATCH($D21,'Refuse Pivot'!A$5:A$50,0) -> 16 | L21: =INDEX('Refuse Pivot'!C$5:C$50,K21) -> 0 | M21: 0 | N21: 3 | O21: ='Eligible by week pivot'!B22 -> 8 | P21: 14 | Q21: 21.43% | R21: 67%
A22: 24 | B22: 5 | D22: 19 | E22: 14 | F22: =INDEX(B$4:B$39,E22) -> 1 | G22: 1 | H22: =MATCH($D22,'Refuse Pivot'!A$5:A$50,0) -> 17 | I22: =INDEX('Refuse Pivot'!B$5:B$50,H22) -> 1 | J22: 1 | K22: =MATCH($D22,'Refuse Pivot'!A$5:A$50,0) -> 17 | L22: =INDEX('Refuse Pivot'!C$5:C$50,K22) -> 0 | M22: 0 | N22: 2 | O22: ='Eligible by week pivot'!B23 -> 5 | P22: 13 | Q22: 15.38% | R22: 50%
A23: 25 | B23: 5 | D23: 20 | E23: 15 | F23: =INDEX(B$4:B$39,E23) -> 3 | G23: 3 | H23: =MATCH($D23,'Refuse Pivot'!A$5:A$50,0) -> 18 | I23: =INDEX('Refuse Pivot'!B$5:B$50,H23) -> 3 | J23: 3 | K23: =MATCH($D23,'Refuse Pivot'!A$5:A$50,0) -> 18 | L23: =INDEX('Refuse Pivot'!C$5:C$50,K23) -> 0 | M23: 0 | N23: 6 | O23: ='Eligible by week pivot'!B24 -> 15 | P23: 25 | Q23: 24.00% | R23: 50%
A24: 26 | B24: 2 | D24: 21 | E24: 16 | F24: =INDEX(B$4:B$39,E24) -> 2 | G24: 2 | H24: =MATCH($D24,'Refuse Pivot'!A$5:A$50,0) -> 19 | I24: =INDEX('Refuse Pivot'!B$5:B$50,H24) -> 3 | J24: 3 | K24: =MATCH($D24,'Refuse Pivot'!A$5:A$50,0) -> 19 | L24: =INDEX('Refuse Pivot'!C$5:C$50,K24) -> 0 | M24: 0 | N24: 5 | O24: ='Eligible by week pivot'!B25 -> 8 | P24: 27 | Q24: 18.52% | R24: 40%
A25: 27 | B25: 2 | D25: 22 | E25: 17 | F25: =INDEX(B$4:B$39,E25) -> 4 | G25: 4 | H25: =MATCH($D25,'Refuse Pivot'!A$5:A$50,0) -> 20 | I25: =INDEX('Refuse Pivot'!B$5:B$50,H25) -> 5 | J25: 5 | K25: =MATCH($D25,'Refuse Pivot'!A$5:A$50,0) -> 20 | L25: =INDEX('Refuse Pivot'!C$5:C$50,K25) -> 0 | M25: 0 | N25: 9 | O25: ='Eligible by week pivot'!B26 -> 11 | P25: 33 | Q25: 27.27% | R25: 44%
A26: 28 | B26: 6 | D26: 23 | E26: 18 | F26: =INDEX(B$4:B$39,E26) -> 3 | G26: 3 | H26: =MATCH($D26,'Refuse Pivot'!A$5:A$50,0) -> 21 | I26: =INDEX('Refuse Pivot'!B$5:B$50,H26) -> 7 | J26: 7 | K26: =MATCH($D26,'Refuse Pivot'!A$5:A$50,0) -> 21 | L26: =INDEX('Refuse Pivot'!C$5:C$50,K26) -> 0 | M26: 0 | N26: 10 | O26: ='Eligible by week pivot'!B27 -> 17 | P26: 39 | Q26: 25.64% | R26: 30%
A27: 29 | B27: 1 | D27: 24 | E27: 19 | F27: =INDEX(B$4:B$39,E27) -> 5 | G27: 5 | H27: =MATCH($D27,'Refuse Pivot'!A$5:A$50,0) -> 22 | I27: =INDEX('Refuse Pivot'!B$5:B$50,H27) -> 6 | J27: 6 | K27: =MATCH($D27,'Refuse Pivot'!A$5:A$50,0) -> 22 | L27: =INDEX('Refuse Pivot'!C$5:C$50,K27) -> 0 | M27: 0 | N27: 11 | O27: ='Eligible by week pivot'!B28 -> 16 | P27: 40 | Q27: 27.50% | R27: 45%
A28: 30 | B28: 6 | D28: 25 | E28: 20 | F28: =INDEX(B$4:B$39,E28) -> 5 | G28: 5 | H28: =MATCH($D28,'Refuse Pivot'!A$5:A$50,0) -> 23 | I28: =INDEX('Refuse Pivot'!B$5:B$50,H28) -> 7 | J28: 7 | K28: =MATCH($D28,'Refuse Pivot'!A$5:A$50,0) -> 23 | L28: =INDEX('Refuse Pivot'!C$5:C$50,K28) -> 0 | M28: 0 | N28: 12 | O28: ='Eligible by week pivot'!B29 -> 15 | P28: 41 | Q28: 29.27% | R28: 42%
A29: 32 | B29: 4 | D29: 26 | E29: 21 | F29: =INDEX(B$4:B$39,E29) -> 2 | G29: 2 | H29: =MATCH($D29,'Refuse Pivot'!A$5:A$50,0) -> 24 | I29: =INDEX('Refuse Pivot'!B$5:B$50,H29) -> 10 | J29: 10 | K29: =MATCH($D29,'Refuse Pivot'!A$5:A$50,0) -> 24 | L29: =INDEX('Refuse Pivot'!C$5:C$50,K29) -> 0 | M29: 0 | N29: 12 | O29: ='Eligible by week pivot'!B30 -> 9 | P29: 29 | Q29: 41.38% | R29: 17%
A30: 33 | B30: 2 | D30: 27 | E30: 22 | F30: =INDEX(B$4:B$39,E30) -> 2 | G30: 2 | H30: =MATCH($D30,'Refuse Pivot'!A$5:A$50,0) -> 25 | I30: =INDEX('Refuse Pivot'!B$5:B$50,H30) -> 5 | J30: 5 | K30: =MATCH($D30,'Refuse Pivot'!A$5:A$50,0) -> 25 | L30: =INDEX('Refuse Pivot'!C$5:C$50,K30) -> 0 | M30: 0 | N30: 7 | O30: ='Eligible by week pivot'!B31 -> 13 | P30: 27 | Q30: 25.93% | R30: 29%
A31: 34 | B31: 2 | D31: 28 | E31: 23 | F31: =INDEX(B$4:B$39,E31) -> 6 | G31: 6 | H31: =MATCH($D31,'Refuse Pivot'!A$5:A$50,0) -> 26 | I31: =INDEX('Refuse Pivot'!B$5:B$50,H31) -> 6 | J31: 6 | K31: =MATCH($D31,'Refuse Pivot'!A$5:A$50,0) -> 26 | L31: =INDEX('Refuse Pivot'!C$5:C$50,K31) -> 0 | M31: 0 | N31: 12 | O31: ='Eligible by week pivot'!B32 -> 18 | P31: 36 | Q31: 33.33% | R31: 50%
A32: 35 | B32: 2 | D32: 29 | E32: 24 | F32: =INDEX(B$4:B$39,E32) -> 1 | G32: 1 | H32: =MATCH($D32,'Refuse Pivot'!A$5:A$50,0) -> 27 | I32: =INDEX('Refuse Pivot'!B$5:B$50,H32) -> 9 | J32: 9 | K32: =MATCH($D32,'Refuse Pivot'!A$5:A$50,0) -> 27 | L32: =INDEX('Refuse Pivot'!C$5:C$50,K32) -> 0 | M32: 0 | N32: 10 | O32: ='Eligible by week pivot'!B33 -> 17 | P32: 34 | Q32: 29.41% | R32: 10%
A33: 36 | B33: 1 | D33: 30 | E33: 25 | F33: =INDEX(B$4:B$39,E33) -> 6 | G33: 6 | H33: =MATCH($D33,'Refuse Pivot'!A$5:A$50,0) -> 28 | I33: =INDEX('Refuse Pivot'!B$5:B$50,H33) -> 3 | J33: 3 | K33: =MATCH($D33,'Refuse Pivot'!A$5:A$50,0) -> 28 | L33: =INDEX('Refuse Pivot'!C$5:C$50,K33) -> 0 | M33: 0 | N33: 9 | O33: ='Eligible by week pivot'!B34 -> 16 | P33: 35 | Q33: 25.71% | R33: 67%
A34: 37 | B34: 1 | D34: 31 | F34: =INDEX(B$4:B$39,E34) ->  | G34: 0 | H34: =MATCH($D34,'Refuse Pivot'!A$5:A$50,0) -> 29 | I34: =INDEX('Refuse Pivot'!B$5:B$50,H34) -> 7 | J34: 7 | K34: =MATCH($D34,'Refuse Pivot'!A$5:A$50,0) -> 29 | L34: =INDEX('Refuse Pivot'!C$5:C$50,K34) -> 0 | M34: 0 | N34: 7 | O34: ='Eligible by week pivot'!B35 -> 7 | P34: 30 | Q34: 23.33% | R34: 0%
A35: 38 | B35: 5 | D35: 32 | E35: 26 | F35: =INDEX(B$4:B$39,E35) -> 4 | G35: 4 | H35: =MATCH($D35,'Refuse Pivot'!A$5:A$50,0) -> 30 | I35: =INDEX('Refuse Pivot'!B$5:B$50,H35) -> 8 | J35: 8 | K35: =MATCH($D35,'Refuse Pivot'!A$5:A$50,0) -> 30 | L35: =INDEX('Refuse Pivot'!C$5:C$50,K35) -> 0 | M35: 0 | N35: 12 | O35: ='Eligible by week pivot'!B36 -> 12 | P35: 38 | Q35: 31.58% | R35: 33%
A36: 39 | B36: 6 | D36: 33 | E36: 27 | F36: =INDEX(B$4:B$39,E36) -> 2 | G36: 2 | H36: =MATCH($D36,'Refuse Pivot'!A$5:A$50,0) -> 31 | I36: =INDEX('Refuse Pivot'!B$5:B$50,H36) -> 9 | J36: 9 | K36: =MATCH($D36,'Refuse Pivot'!A$5:A$50,0) -> 31 | L36: =INDEX('Refuse Pivot'!C$5:C$50,K36) -> 0 | M36: 0 | N36: 11 | O36: ='Eligible by week pivot'!B37 -> 17 | P36: 37 | Q36: 29.73% | R36: 18%
A37: 40 | B37: 13 | D37: =D36+1 -> 34 | E37: 28 | F37: =INDEX(B$4:B$39,E37) -> 2 | G37: 2 | H37: =MATCH($D37,'Refuse Pivot'!A$5:A$50,0) -> 32 | I37: =INDEX('Refuse Pivot'!B$5:B$50,H37) -> 6 | J37: 6 | K37: =MATCH($D37,'Refuse Pivot'!A$5:A$50,0) -> 32 | L37: =INDEX('Refuse Pivot'!C$5:C$50,K37) -> 0 | M37: 0 | N37: 8 | O37: ='Eligible by week pivot'!B38 -> 20 | P37: 40 | Q37: 20.00% | R37: 25%
A38: 41 | B38: 7 | D38: 35 | E38: 29 | F38: =INDEX(B$4:B$39,E38) -> 2 | G38: 2 | H38: =MATCH($D38,'Refuse Pivot'!A$5:A$50,0) -> 33 | I38: =INDEX('Refuse Pivot'!B$5:B$50,H38) -> 8 | J38: 8 | K38: =MATCH($D38,'Refuse Pivot'!A$5:A$50,0) -> 33 | L38: =INDEX('Refuse Pivot'!C$5:C$50,K38) -> 0 | M38: 0 | N38: 10 | O38: ='Eligible by week pivot'!B39 -> 18 | P38: 43 | Q38: 23.26% | R38: 20%
A39: 42 | B39: 4 | D39: 36 | E39: 30 | F39: =INDEX(B$4:B$39,E39) -> 1 | G39: 1 | H39: =MATCH($D39,'Refuse Pivot'!A$5:A$50,0) -> 34 | I39: =INDEX('Refuse Pivot'!B$5:B$50,H39) -> 5 | J39: 5 | K39: =MATCH($D39,'Refuse Pivot'!A$5:A$50,0) -> 34 | L39: =INDEX('Refuse Pivot'!C$5:C$50,K39) -> 0 | M39: 0 | N39: 6 | O39: ='Eligible by week pivot'!B40 -> 6 | P39: 32 | Q39: 18.75% | R39: 17%
A40: 43 | B40: 10 | D40: =D39+1 -> 37 | E40: 31 | F40: =INDEX(B$4:B$39,E40) -> 1 | G40: 1 | H40: =MATCH($D40,'Refuse Pivot'!A$5:A$50,0) -> 35 | I40: =INDEX('Refuse Pivot'!B$5:B$50,H40) -> 9 | J40: 9 | K40: =MATCH($D40,'Refuse Pivot'!A$5:A$50,0) -> 35 | L40: =INDEX('Refuse Pivot'!C$5:C$50,K40) -> 0 | M40: 0 | N40: 10 | O40: ='Eligible by week pivot'!B41 -> 8 | P40: 34 | Q40: 29.41% | R40: 10%
A41: 44 | B41: 7 | D41: 38 | E41: 32 | F41: =INDEX(B$4:B$39,E41) -> 5 | G41: 5 | H41: =MATCH($D41,'Refuse Pivot'!A$5:A$50,0) -> 36 | I41: =INDEX('Refuse Pivot'!B$5:B$50,H41) -> 9 | J41: 9 | K41: =MATCH($D41,'Refuse Pivot'!A$5:A$50,0) -> 36 | L41: =INDEX('Refuse Pivot'!C$5:C$50,K41) -> 0 | M41: 0 | N41: 14 | O41: ='Eligible by week pivot'!B42 -> 23 | P41: 47 | Q41: 29.79% | R41: 36%
A42: 45 | B42: 5 | D42: 39 | E42: 33 | F42: =INDEX(B$4:B$39,E42) -> 6 | G42: 6 | H42: =MATCH($D42,'Refuse Pivot'!A$5:A$50,0) -> 37 | I42: =INDEX('Refuse Pivot'!B$5:B$50,H42) -> 2 | J42: 2 | K42: =MATCH($D42,'Refuse Pivot'!A$5:A$50,0) -> 37 | L42: =INDEX('Refuse Pivot'!C$5:C$50,K42) -> 0 | M42: 0 | N42: 8 | O42: ='Eligible by week pivot'!B43 -> 9 | P42: 36 | Q42: 22.22% | R42: 75%
A43: 46 | B43: 9 | D43: =D42+1 -> 40 | E43: 34 | F43: =INDEX(B$4:B$39,E43) -> 13 | G43: 13 | H43: =MATCH($D43,'Refuse Pivot'!A$5:A$50,0) -> 38 | I43: =INDEX('Refuse Pivot'!B$5:B$50,H43) -> 3 | J43: 3 | K43: =MATCH($D43,'Refuse Pivot'!A$5:A$50,0) -> 38 | L43: =INDEX('Refuse Pivot'!C$5:C$50,K43) -> 0 | M43: 0 | N43: 16 | O43: ='Eligible by week pivot'!B44 -> 14 | P43: 30 | Q43: 53.33% | R43: 81%
A44: 47 | B44: 2 | D44: =D43+1 -> 41 | E44: 35 | F44: =INDEX(B$4:B$39,E44) -> 7 | G44: =_xlfn.IFNA(F44,0) -> 7 | H44: =MATCH($D44,'Refuse Pivot'!A$5:A$50,0) -> 39 | I44: =INDEX('Refuse Pivot'!B$5:B$50,H44) -> 4 | J44: 4 | K44: =MATCH($D44,'Refuse Pivot'!A$5:A$50,0) -> 39 | L44: =INDEX('Refuse Pivot'!C$5:C$50,K44) -> 0 | M44: 0 | N44: 11 | O44: ='Eligible by week pivot'!B45 -> 20 | P44: 26 | Q44: 42.31% | R44: 64%
A45: 48 | B45: 10 | D45: =D44+1 -> 42 | E45: 36 | F45: =INDEX(B$4:B$39,E45) -> 4 | G45: =_xlfn.IFNA(F45,0) -> 4 | H45: =MATCH($D45,'Refuse Pivot'!A$5:A$50,0) -> 40 | I45: =INDEX('Refuse Pivot'!B$5:B$50,H45) -> 2 | J45: 2 | K45: =MATCH($D45,'Refuse Pivot'!A$5:A$50,0) -> 40 | L45: =INDEX('Refuse Pivot'!C$5:C$50,K45) -> 0 | M45: 0 | N45: 6 | O45: ='Eligible by week pivot'!B46 -> 17 | P45: 32 | Q45: 18.75% | R45: 67%
A46: 49 | B46: 8 | D46: 43 | E46: =MATCH($D46,A$4:A$44,0) -> 37 | F46: =INDEX(B$4:B$44,E46) -> 10 | G46: 10 | H46: =MATCH($D46,'Refuse Pivot'!A$5:A$50,0) -> 41 | I46: =INDEX('Refuse Pivot'!B$5:B$50,H46) -> 2 | J46: 2 | K46: =MATCH($D46,'Refuse Pivot'!A$5:A$50,0) -> 41 | L46: =INDEX('Refuse Pivot'!C$5:C$50,K46) -> 0 | M46: 0 | N46: 12 | O46: ='Eligible by week pivot'!B47 -> 12 | P46: 40 | Q46: 30.00% | R46: 83%
A47: 50 | B47: 2 | D47: 44 | E47: =MATCH($D47,A$4:A$44,0) -> 38 | F47: =INDEX(B$4:B$44,E47) -> 7 | G47: =_xlfn.IFNA(F47,0) -> 7 | H47: =MATCH($D47,'Refuse Pivot'!A$5:A$50,0) -> 42 | I47: =INDEX('Refuse Pivot'!B$5:B$50,H47) -> 3 | J47: =_xlfn.IFNA(I47,0) -> 3 | K47: =MATCH($D47,'Refuse Pivot'!A$5:A$50,0) -> 42 | L47: =INDEX('Refuse Pivot'!C$5:C$50,K47) -> 0 | M47: =_xlfn.IFNA(L47,0) -> 0 | N47: 10 | O47: ='Eligible by week pivot'!B48 -> 12 | P47: 31 | Q47: 32.26% | R47: 70%
A48: 51 | B48: 4 | D48: 45 | E48: 39 | F48: =INDEX(B$4:B$44,E48) -> 5 | G48: 5 | H48: =MATCH($D48,'Refuse Pivot'!A$5:A$50,0) -> 43 | I48: =INDEX('Refuse Pivot'!B$5:B$50,H48) -> 6 | J48: 6 | K48: =MATCH($D48,'Refuse Pivot'!A$5:A$50,0) -> 43 | L48: =INDEX('Refuse Pivot'!C$5:C$50,K48) -> 0 | M48: 0 | N48: 11 | O48: ='Eligible by week pivot'!B49 -> 15 | P48: 35 | Q48: 31.43% | R48: 45%
A49: 52 | B49: 2 | D49: 46 | E49: =MATCH(D49, $A$4:$A$44) -> 40 | F49: =INDEX($B$4:$B$44,E49, ) -> 9 | G49: 9 | H49: =MATCH($D49,'Refuse Pivot'!A$5:A$50,0) -> 44 | I49: =INDEX('Refuse Pivot'!B$5:B$50,H49) -> 4 | J49: 4 | K49: =MATCH($D49,'Refuse Pivot'!A$5:A$50,0) -> 44 | L49: =INDEX('Refuse Pivot'!C$5:C$50,K49) -> 0 | M49: 0 | N49: 13 | O49: ='Eligible by week pivot'!B50 -> 18 | P49: 44 | Q49: 29.55% | R49: 69%
A50: 53 | B50: 9 | D50: 47 | E50: =MATCH(D50, $A$4:$A$45) -> 41 | F50: =INDEX($B$4:$B$45,E50, ) -> 2 | G50: =_xlfn.IFNA(F50,0) -> 2 | H50: =MATCH($D50,'Refuse Pivot'!$A$4:$A$51) -> 46 | I50: =INDEX('Refuse Pivot'!$B$4:$B$51,H50) -> 1 | J50: =_xlfn.IFNA(I50,0) -> 1 | K50: =MATCH(D50,'Refuse Pivot'!$A$5:$A$51) -> 45 | L50: =INDEX('Refuse Pivot'!$C$5:$C$51,K50) -> 0 | M50: =_xlfn.IFNA(L50,0) -> 0 | N50: 3 | O50: ='Eligible by week pivot'!B51 -> 18 | P50: 40 | Q50: 7.50% | R50: 67%
A51: 54 | B51: 4 | D51: 48 | E51: =MATCH(D51, $A$4:$A$45) -> 42 | F51: =INDEX($B$4:$B$45,E51, ) -> 10 | G51: =_xlfn.IFNA(F51,0) -> 10 | H51: =MATCH($D51,'Refuse Pivot'!$A$4:$A$51) -> 47 | I51: =INDEX('Refuse Pivot'!$B$4:$B$51,H51) -> 7 | J51: =_xlfn.IFNA(I51,0) -> 7 | K51: =MATCH(D51,'Refuse Pivot'!$A$5:$A$51) -> 46 | L51: =INDEX('Refuse Pivot'!$C$5:$C$51,K51) -> 0 | M51: =_xlfn.IFNA(L51,0) -> 0 | N51: 17 | O51: ='Eligible by week pivot'!B52 -> 16 | P51: =SUM(O46:O51)-SUM(N46:N50) -> 42 | Q51: 40.48% | R51: 59%
A52: 55 | B52: 2 | D52: 49 | E52: =MATCH(D52, $A$4:$A$46) -> 43 | F52: =INDEX($B$4:$B$46,E52, ) -> 8 | G52: 8 | H52: =MATCH($D52,'Refuse Pivot'!$A$4:$A$53) -> 48 | I52: =INDEX('Refuse Pivot'!$B$4:$B$53,H52) -> 5 | J52: 5 | K52: =MATCH(D52,'Refuse Pivot'!$A$5:$A$53) -> 47 | L52: =INDEX('Refuse Pivot'!$C$5:$C$53,K52) -> 0 | M52: 0 | N52: 13 | O52: ='Eligible by week pivot'!B53 -> 15 | P52: 40 | Q52: 32.50% | R52: 62%
A53: 56 | B53: 3 | D53: 50 | E53: =MATCH(D53, $A$4:$A$47) -> 44 | F53: =INDEX($B$4:$B$47,E53, ) -> 2 | G53: =_xlfn.IFNA(F53,0) -> 2 | H53: =MATCH($D53,'Refuse Pivot'!$A$4:$A$54) -> 49 | I53: =INDEX('Refuse Pivot'!$B$4:$B$54,H53) -> 2 | J53: =_xlfn.IFNA(I53,0) -> 2 | K53: =MATCH(D53,'Refuse Pivot'!$A$5:$A$54) -> 48 | L53: =INDEX('Refuse Pivot'!$C$5:$C$54,K53) -> 0 | M53: =_xlfn.IFNA(L53,0) -> 0 | N53: 4 | O53: ='Eligible by week pivot'!B54 -> 7 | P53: =SUM(O48:O53)-SUM(N48:N52) -> 32 | Q53: 12.50% | R53: 50%
A54: 57 | B54: 8 | D54: 51 | E54: =MATCH(D54, $A$4:$A$49) -> 45 | F54: =INDEX($B$4:$B$49,E54, ) -> 4 | G54: =_xlfn.IFNA(F54,0) -> 4 | H54: =MATCH($D54,'Refuse Pivot'!$A$4:$A$54) -> 50 | I54: =INDEX('Refuse Pivot'!$B$4:$B$54,H54) -> 5 | J54: =_xlfn.IFNA(I54,0) -> 5 | K54: =MATCH(D54,'Refuse Pivot'!$A$5:$A$54) -> 49 | L54: =INDEX('Refuse Pivot'!$C$5:$C$54,K54) -> 0 | M54: =_xlfn.IFNA(L54,0) -> 0 | N54: 9 | O54: ='Eligible by week pivot'!B55 -> 13 | P54: =SUM(O49:O54)-SUM(N49:N53) -> 37 | Q54: 24.32% | R54: 44%
A55: 58 | B55: 7 | D55: 52 | E55: =MATCH(D55, $A$4:$A$50) -> 46 | F55: =INDEX($B$4:$B$50,E55, ) -> 2 | G55: =_xlfn.IFNA(F55,0) -> 2 | H55: =MATCH($D55,'Refuse Pivot'!$A$4:$A$55) -> 51 | I55: =INDEX('Refuse Pivot'!$B$4:$B$55,H55) -> 7 | J55: =_xlfn.IFNA(I55,0) -> 7 | K55: =MATCH(D55,'Refuse Pivot'!$A$5:$A$55) -> 50 | L55: =INDEX('Refuse Pivot'!$C$5:$C$55,K55) -> 0 | M55: =_xlfn.IFNA(L55,0) -> 0 | N55: 9 | O55: ='Eligible by week pivot'!B56 -> 18 | P55: =SUM(O50:O55)-SUM(N50:N54) -> 41 | Q55: 21.95% | R55: 22%
A56: 59 | B56: 4 | D56: 53 | E56: =MATCH(D56, $A$4:$A$51) -> 47 | F56: =INDEX($B$4:$B$51,E56, ) -> 9 | G56: =_xlfn.IFNA(F56,0) -> 9 | H56: =MATCH($D56,'Refuse Pivot'!$A$4:$A$56) -> 52 | I56: =INDEX('Refuse Pivot'!$B$4:$B$56,H56) -> 7 | J56: =_xlfn.IFNA(I56,0) -> 7 | K56: =MATCH(D56,'Refuse Pivot'!$A$5:$A$56) -> 51 | L56: =INDEX('Refuse Pivot'!$C$5:$C$56,K56) -> 0 | M56: =_xlfn.IFNA(L56,0) -> 0 | N56: 16 | O56: ='Eligible by week pivot'!B57 -> 12 | P56: =SUM(O51:O56)-SUM(N51:N55) -> 29 | Q56: 55.17% | R56: 56%
A57: 60 | B57: 6 | D57: 54 | E57: =MATCH(D57, $A$4:$A$52) -> 48 | F57: =INDEX($B$4:$B$52,E57, ) -> 4 | G57: =_xlfn.IFNA(F57,0) -> 4 | H57: =MATCH($D57,'Refuse Pivot'!$A$4:$A$57) -> 53 | I57: =INDEX('Refuse Pivot'!$B$4:$B$57,H57) -> 8 | J57: =_xlfn.IFNA(I57,0) -> 8 | K57: =MATCH(D57,'Refuse Pivot'!$A$5:$A$57) -> 52 | L57: =INDEX('Refuse Pivot'!$C$5:$C$57,K57) -> 0 | M57: =_xlfn.IFNA(L57,0) -> 0 | N57: 12 | O57: ='Eligible by week pivot'!B58 -> 14 | P57: =SUM(O52:O57)-SUM(N52:N56) -> 28 | Q57: 42.86% | R57: 33%
A58: 61 | B58: 3 | D58: 55 | E58: =MATCH(D58, $A$4:$A$54) -> 49 | F58: =INDEX($B$4:$B$54,E58, ) -> 2 | G58: =_xlfn.IFNA(F58,0) -> 2 | H58: =MATCH($D58,'Refuse Pivot'!$A$4:$A$59) -> 54 | I58: =INDEX('Refuse Pivot'!$B$4:$B$59,H58) -> 6 | J58: =_xlfn.IFNA(I58,0) -> 6 | K58: =MATCH(D58,'Refuse Pivot'!$A$5:$A$59) -> 53 | L58: =INDEX('Refuse Pivot'!$C$5:$C$59,K58) -> 0 | M58: =_xlfn.IFNA(L58,0) -> 0 | N58: 8 | O58: ='Eligible by week pivot'!B59 -> 16 | P58: =SUM(O53:O58)-SUM(N53:N57) -> 30 | Q58: 26.67% | R58: 25%
A59: 62 | B59: 3 | D59: 56 | E59: =MATCH(D59, $A$4:$A$54) -> 50 | F59: =INDEX($B$4:$B$54,E59, ) -> 3 | G59: =_xlfn.IFNA(F59,0) -> 3 | H59: =MATCH($D59,'Refuse Pivot'!$A$4:$A$59) -> 55 | I59: =INDEX('Refuse Pivot'!$B$4:$B$59,H59) -> 5 | J59: =_xlfn.IFNA(I59,0) -> 5 | K59: =MATCH(D59,'Refuse Pivot'!$A$5:$A$59) -> 54 | L59: =INDEX('Refuse Pivot'!$C$5:$C$59,K59) -> 0 | M59: =_xlfn.IFNA(L59,0) -> 0 | N59: 8 | O59: ='Eligible by week pivot'!B60 -> 15 | P59: =SUM(O54:O59)-SUM(N54:N58) -> 34 | Q59: 23.53% | R59: 38%
A60: 63 | B60: 6 | D60: 57 | E60: =MATCH(D60, $A$4:$A$57) -> 51 | F60: =INDEX($B$4:$B$57,E60, ) -> 8 | G60: =_xlfn.IFNA(F60,0) -> 8 | H60: =MATCH($D60,'Refuse Pivot'!$A$4:$A$63) -> 56 | I60: =INDEX('Refuse Pivot'!$B$4:$B$63,H60) -> 4 | J60: =_xlfn.IFNA(I60,0) -> 4 | K60: =MATCH(D60,'Refuse Pivot'!$A$5:$A$63) -> 55 | L60: =INDEX('Refuse Pivot'!$C$5:$C$63,K60) -> 0 | M60: =_xlfn.IFNA(L60,0) -> 0 | N60: 12 | O60: ='Eligible by week pivot'!B61 -> 17 | P60: =SUM(O55:O60)-SUM(N55:N59) -> 39 | Q60: 30.77% | R60: 67%
A61: 64 | B61: 4 | D61: 58 | E61: =MATCH(D61, $A$4:$A$57) -> 52 | F61: =INDEX($B$4:$B$57,E61, ) -> 7 | G61: =_xlfn.IFNA(F61,0) -> 7 | H61: =MATCH($D61,'Refuse Pivot'!$A$4:$A$63) -> 57 | I61: =INDEX('Refuse Pivot'!$B$4:$B$63,H61) -> 9 | J61: =_xlfn.IFNA(I61,0) -> 9 | K61: =MATCH(D61,'Refuse Pivot'!$A$5:$A$63) -> 56 | L61: =INDEX('Refuse Pivot'!$C$5:$C$63,K61) -> 0 | M61: =_xlfn.IFNA(L61,0) -> 0 | N61: 16 | O61: ='Eligible by week pivot'!B62 -> 16 | P61: =SUM(O56:O61)-SUM(N56:N60) -> 34 | Q61: 47.06% | R61: 44%
A62: 65 | B62: 10 | D62: 59 | E62: 53 | F62: =INDEX($B$4:$B$57,E62, ) -> 4 | G62: 4 | H62: =MATCH($D62,'Refuse Pivot'!$A$4:$A$63) -> 58 | I62: =INDEX('Refuse Pivot'!$B$4:$B$63,H62) -> 8 | J62: 8 | K62: =MATCH(D62,'Refuse Pivot'!$A$5:$A$63) -> 57 | L62: =INDEX('Refuse Pivot'!$C$5:$C$63,K62) -> 0 | M62: 0 | N62: 12 | O62: ='Eligible by week pivot'!B63 -> 31 | P62: 53 | Q62: 22.64% | R62: 33%
A63: 66 | B63: 6 | D63: 60 | E63: =MATCH(D63, $A$4:$A$58) -> 54 | F63: =INDEX($B$4:$B$58,E63, ) -> 6 | G63: 6 | H63: =MATCH($D63,'Refuse Pivot'!$A$4:$A$64) -> 59 | I63: =INDEX('Refuse Pivot'!$B$4:$B$64,H63) -> 9 | J63: 9 | K63: =MATCH(D63,'Refuse Pivot'!$A$5:$A$64) -> 58 | L63: =INDEX('Refuse Pivot'!$C$5:$C$64,K63) -> 0 | M63: 0 | N63: 15 | O63: ='Eligible by week pivot'!B64 -> 23 | P63: 62 | Q63: 24.19% | R63: 40%
A64: 67 | B64: 8 | D64: 61 | E64: =MATCH(D64, $A$4:$A$60) -> 55 | F64: =INDEX($B$4:$B$60,E64, ) -> 3 | G64: =_xlfn.IFNA(F64,0) -> 3 | H64: =MATCH($D64,'Refuse Pivot'!$A$4:$A$65) -> 60 | I64: =INDEX('Refuse Pivot'!$B$4:$B$65,H64) -> 4 | J64: =_xlfn.IFNA(I64,0) -> 4 | K64: =MATCH(D64,'Refuse Pivot'!$A$5:$A$65) -> 59 | L64: =INDEX('Refuse Pivot'!$C$5:$C$65,K64) -> 0 | M64: =_xlfn.IFNA(L64,0) -> 0 | N64: 7 | O64: ='Eligible by week pivot'!B65 -> 17 | P64: =SUM(O59:O64)-SUM(N59:N63) -> 56 | Q64: 12.50% | R64: 43%
A65: 68 | B65: 9 | D65: 62 | E65: =MATCH(D65, $A$4:$A$61) -> 56 | F65: =INDEX($B$4:$B$61,E65, ) -> 3 | G65: =_xlfn.IFNA(F65,0) -> 3 | H65: =MATCH($D65,'Refuse Pivot'!$A$4:$A$65) -> 61 | I65: =INDEX('Refuse Pivot'!$B$4:$B$65,H65) -> 7 | J65: =_xlfn.IFNA(I65,0) -> 7 | K65: =MATCH(D65,'Refuse Pivot'!$A$5:$A$65) -> 60 | L65: =INDEX('Refuse Pivot'!$C$5:$C$65,K65) -> 0 | M65: =_xlfn.IFNA(L65,0) -> 0 | N65: =SUM(G65,J65,M65) -> 10 | O65: ='Eligible by week pivot'!B66 -> 20 | P65: =SUM(O60:O65)-SUM(N60:N64) -> 62 | Q65: =IF(P65>0,MIN(N65/P65,1),0) -> 16.13% | R65: =IF(N65>0,(MIN(G65/SUM(G65,J65),1)),0) -> 30%
A66: 69 | B66: 6 | D66: 63 | E66: =MATCH(D66, $A$4:$A$65) -> 57 | F66: =INDEX($B$4:$B$65,E66, ) -> 6 | G66: =_xlfn.IFNA(F66,0) -> 6 | H66: =MATCH($D66,'Refuse Pivot'!$A$4:$A$70) -> 62 | I66: =INDEX('Refuse Pivot'!$B$4:$B$70,H66) -> 10 | J66: =_xlfn.IFNA(I66,0) -> 10 | K66: =MATCH(D66,'Refuse Pivot'!$A$5:$A$70) -> 61 | L66: =INDEX('Refuse Pivot'!$C$5:$C$70,K66) -> 0 | M66: =_xlfn.IFNA(L66,0) -> 0 | N66: =SUM(G66,J66,M66) -> 16 | O66: ='Eligible by week pivot'!B67 -> 29 | P66: =SUM(O61:O66)-SUM(N61:N65) -> 76 | Q66: =IF(P66>0,MIN(N66/P66,1),0) -> 21.05% | R66: =IF(N66>0,(MIN(G66/SUM(G66,J66),1)),0) -> 38%
A67: 70 | B67: 12 | D67: 64 | E67: =MATCH(D67, $A$4:$A$65) -> 58 | F67: =INDEX($B$4:$B$65,E67, ) -> 4 | G67: =_xlfn.IFNA(F67,0) -> 4 | H67: =MATCH($D67,'Refuse Pivot'!$A$4:$A$70) -> 63 | I67: =INDEX('Refuse Pivot'!$B$4:$B$70,H67) -> 7 | J67: =_xlfn.IFNA(I67,0) -> 7 | K67: =MATCH(D67,'Refuse Pivot'!$A$5:$A$70) -> 62 | L67: =INDEX('Refuse Pivot'!$C$5:$C$70,K67) -> 0 | M67: =_xlfn.IFNA(L67,0) -> 0 | N67: =SUM(G67,J67,M67) -> 11 | O67: ='Eligible by week pivot'!B68 -> 25 | P67: =SUM(O62:O67)-SUM(N62:N66) -> 85 | Q67: =IF(P67>0,MIN(N67/P67,1),0) -> 12.94% | R67: =IF(N67>0,(MIN(G67/SUM(G67,J67),1)),0) -> 36%
A68: 71 | B68: 8 | D68: 65 | E68: 59 | F68: =INDEX($B$4:$B$65,E68, ) -> 10 | G68: 10 | H68: =MATCH($D68,'Refuse Pivot'!$A$4:$A$70) -> 64 | I68: =INDEX('Refuse Pivot'!$B$4:$B$70,H68) -> 14 | J68: 14 | K68: =MATCH(D68,'Refuse Pivot'!$A$5:$A$70) -> 63 | L68: =INDEX('Refuse Pivot'!$C$5:$C$70,K68) -> 1 | M68: 1 | N68: 25 | O68: ='Eligible by week pivot'!B69 -> 22 | P68: 77 | Q68: 32.47% | R68: 42%
A69: 72 | B69: 3 | D69: 66 | E69: 60 | F69: =INDEX($B$4:$B$65,E69, ) -> 6 | G69: 6 | H69: =MATCH($D69,'Refuse Pivot'!$A$4:$A$70) -> 65 | I69: =INDEX('Refuse Pivot'!$B$4:$B$70,H69) -> 11 | J69: 11 | K69: =MATCH(D69,'Refuse Pivot'!$A$5:$A$70) -> 64 | L69: =INDEX('Refuse Pivot'!$C$5:$C$70,K69) -> 0 | M69: 0 | N69: 17 | O69: ='Eligible by week pivot'!B70 -> 27 | P69: 71 | Q69: 23.94% | R69: 35%
A70: 73 | B70: 10 | D70: 67 | E70: 61 | F70: =INDEX($B$4:$B$65,E70, ) -> 8 | G70: 8 | H70: =MATCH($D70,'Refuse Pivot'!$A$4:$A$70) -> 66 | I70: =INDEX('Refuse Pivot'!$B$4:$B$70,H70) -> 12 | J70: 12 | K70: =MATCH(D70,'Refuse Pivot'!$A$5:$A$70) -> 65 | L70: =INDEX('Refuse Pivot'!$C$5:$C$70,K70) -> 0 | M70: 0 | N70: 20 | O70: ='Eligible by week pivot'!B71 -> 22 | P70: 66 | Q70: 30.30% | R70: 40%
A71: 74 | B71: 8 | D71: 68 | E71: =MATCH(D71, $A$4:$A$66) -> 62 | F71: =INDEX($B$4:$B$66,E71, ) -> 9 | G71: 9 | H71: =MATCH($D71,'Refuse Pivot'!$A$4:$A$71) -> 67 | I71: =INDEX('Refuse Pivot'!$B$4:$B$71,H71) -> 10 | J71: 10 | K71: =MATCH(D71,'Refuse Pivot'!$A$5:$A$71) -> 66 | L71: =INDEX('Refuse Pivot'!$C$5:$C$71,K71) -> 0 | M71: 0 | N71: 19 | O71: ='Eligible by week pivot'!B72 -> 26 | P71: 62 | Q71: 30.65% | R71: 47%
A72: 75 | B72: 4 | D72: 69 | E72: =MATCH(D72, $A$4:$A$72) -> 63 | F72: =INDEX($B$4:$B$72,E72, ) -> 6 | G72: =_xlfn.IFNA(F72,0) -> 6 | H72: =MATCH($D72,'Refuse Pivot'!$A$4:$A$77) -> 68 | I72: =INDEX('Refuse Pivot'!$B$4:$B$77,H72) -> 3 | J72: =_xlfn.IFNA(I72,0) -> 3 | K72: =MATCH(D72,'Refuse Pivot'!$A$5:$A$77) -> 67 | L72: =INDEX('Refuse Pivot'!$C$5:$C$77,K72) -> 0 | M72: =_xlfn.IFNA(L72,0) -> 0 | N72: =SUM(G72,J72,M72) -> 9 | O72: ='Eligible by week pivot'!B73 -> 18 | P72: =SUM(O67:O72)-SUM(N67:N71) -> 48 | Q72: =IF(P72>0,MIN(N72/P72,1),0) -> 18.75% | R72: =IF(N72>0,(MIN(G72/SUM(G72,J72),1)),0) -> 67%
A73: 76 | B73: 5 | D73: 70 | E73: =MATCH(D73, $A$4:$A$72) -> 64 | F73: =INDEX($B$4:$B$72,E73, ) -> 12 | G73: =_xlfn.IFNA(F73,0) -> 12 | H73: =MATCH($D73,'Refuse Pivot'!$A$4:$A$77) -> 69 | I73: =INDEX('Refuse Pivot'!$B$4:$B$77,H73) -> 5 | J73: =_xlfn.IFNA(I73,0) -> 5 | K73: =MATCH(D73,'Refuse Pivot'!$A$5:$A$77) -> 68 | L73: =INDEX('Refuse Pivot'!$C$5:$C$77,K73) -> 1 | M73: =_xlfn.IFNA(L73,0) -> 1 | N73: =SUM(G73,J73,M73) -> 18 | O73: ='Eligible by week pivot'!B74 -> 29 | P73: =SUM(O68:O73)-SUM(N68:N72) -> 54 | Q73: =IF(P73>0,MIN(N73/P73,1),0) -> 33.33% | R73: =IF(N73>0,(MIN(G73/SUM(G73,J73),1)),0) -> 71%
A74: 77 | B74: 8 | D74: 71 | E74: 65 | F74: =INDEX($B$4:$B$72,E74, ) -> 8 | G74: 8 | H74: =MATCH($D74,'Refuse Pivot'!$A$4:$A$77) -> 70 | I74: =INDEX('Refuse Pivot'!$B$4:$B$77,H74) -> 10 | J74: 10 | K74: =MATCH(D74,'Refuse Pivot'!$A$5:$A$77) -> 69 | L74: =INDEX('Refuse Pivot'!$C$5:$C$77,K74) -> 0 | M74: 0 | N74: 18 | O74: ='Eligible by week pivot'!B75 -> 22 | P74: 61 | Q74: 29.51% | R74: 44%
A75: 78 | B75: 8 | D75: 72 | E75: 66 | F75: =INDEX($B$4:$B$72,E75, ) -> 3 | G75: 3 | H75: =MATCH($D75,'Refuse Pivot'!$A$4:$A$77) -> 71 | I75: =INDEX('Refuse Pivot'!$B$4:$B$77,H75) -> 8 | J75: 8 | K75: =MATCH(D75,'Refuse Pivot'!$A$5:$A$77) -> 70 | L75: =INDEX('Refuse Pivot'!$C$5:$C$77,K75) -> 0 | M75: 0 | N75: 11 | O75: ='Eligible by week pivot'!B76 -> 19 | P75: 52 | Q75: 21.15% | R75: 27%
A76: 79 | B76: 5 | D76: 73 | E76: 67 | F76: =INDEX($B$4:$B$72,E76, ) -> 10 | G76: 10 | H76: =MATCH($D76,'Refuse Pivot'!$A$4:$A$77) -> 72 | I76: =INDEX('Refuse Pivot'!$B$4:$B$77,H76) -> 7 | J76: 7 | K76: =MATCH(D76,'Refuse Pivot'!$A$5:$A$77) -> 71 | L76: =INDEX('Refuse Pivot'!$C$5:$C$77,K76) -> 0 | M76: 0 | N76: 17 | O76: ='Eligible by week pivot'!B77 -> 21 | P76: 60 | Q76: 28.33% | R76: 59%
A77: 80 | B77: 5 | D77: 74 | E77: 68 | F77: =INDEX($B$4:$B$72,E77, ) -> 8 | G77: 8 | H77: =MATCH($D77,'Refuse Pivot'!$A$4:$A$77) -> 73 | I77: =INDEX('Refuse Pivot'!$B$4:$B$77,H77) -> 6 | J77: 6 | K77: =MATCH(D77,'Refuse Pivot'!$A$5:$A$77) -> 72 | L77: =INDEX('Refuse Pivot'!$C$5:$C$77,K77) -> 0 | M77: 0 | N77: 14 | O77: ='Eligible by week pivot'!B78 -> 21 | P77: 57 | Q77: 24.56% | R77: 57%
A78: 81 | B78: 2 | D78: 75 | E78: =MATCH(D78, $A$4:$A$73) -> 69 | F78: =INDEX($B$4:$B$73,E78, ) -> 4 | G78: 4 | H78: =MATCH($D78,'Refuse Pivot'!$A$4:$A$79) -> 74 | I78: =INDEX('Refuse Pivot'!$B$4:$B$79,H78) -> 10 | J78: 10 | K78: =MATCH(D78,'Refuse Pivot'!$A$5:$A$79) -> 73 | L78: =INDEX('Refuse Pivot'!$C$5:$C$79,K78) -> 0 | M78: 0 | N78: 14 | O78: ='Eligible by week pivot'!B79 -> 28 | P78: 62 | Q78: 22.58% | R78: 29%
A79: 82 | B79: 5 | D79: 76 | E79: =MATCH(D79, $A$4:$A$74) -> 70 | F79: =INDEX($B$4:$B$74,E79, ) -> 5 | G79: =_xlfn.IFNA(F79,0) -> 5 | H79: =MATCH($D79,'Refuse Pivot'!$A$4:$A$79) -> 75 | I79: =INDEX('Refuse Pivot'!$B$4:$B$79,H79) -> 12 | J79: =_xlfn.IFNA(I79,0) -> 12 | K79: =MATCH(D79,'Refuse Pivot'!$A$5:$A$79) -> 74 | L79: =INDEX('Refuse Pivot'!$C$5:$C$79,K79) -> 1 | M79: =_xlfn.IFNA(L79,0) -> 1 | N79: =SUM(G79,J79,M79) -> 18 | O79: ='Eligible by week pivot'!B80 -> 18 | P79: =SUM(O74:O79)-SUM(N74:N78) -> 55 | Q79: =IF(P79>0,MIN(N79/P79,1),0) -> 32.73% | R79: =IF(N79>0,(MIN(G79/SUM(G79,J79),1)),0) -> 29%
A80: 83 | B80: 4 | D80: 77 | E80: =MATCH(D80, $A$4:$A$75) -> 71 | F80: =INDEX($B$4:$B$75,E80, ) -> 8 | G80: =_xlfn.IFNA(F80,0) -> 8 | H80: =MATCH($D80,'Refuse Pivot'!$A$4:$A$80) -> 76 | I80: =INDEX('Refuse Pivot'!$B$4:$B$80,H80) -> 4 | J80: =_xlfn.IFNA(I80,0) -> 4 | K80: =MATCH(D80,'Refuse Pivot'!$A$5:$A$80) -> 75 | L80: =INDEX('Refuse Pivot'!$C$5:$C$80,K80) -> 0 | M80: =_xlfn.IFNA(L80,0) -> 0 | N80: =SUM(G80,J80,M80) -> 12 | O80: ='Eligible by week pivot'!B81 -> 14 | P80: =SUM(O75:O80)-SUM(N75:N79) -> 47 | Q80: =IF(P80>0,MIN(N80/P80,1),0) -> 25.53% | R80: =IF(N80>0,(MIN(G80/SUM(G80,J80),1)),0) -> 67%
A81: 84 | B81: 1 | D81: 78 | E81: =MATCH(D81, $A$4:$A$77) -> 72 | F81: =INDEX($B$4:$B$77,E81, ) -> 8 | G81: =_xlfn.IFNA(F81,0) -> 8 | H81: =MATCH($D81,'Refuse Pivot'!$A$4:$A$82) -> 77 | I81: =INDEX('Refuse Pivot'!$B$4:$B$82,H81) -> 11 | J81: =_xlfn.IFNA(I81,0) -> 11 | K81: =MATCH(D81,'Refuse Pivot'!$A$5:$A$82) -> 76 | L81: =INDEX('Refuse Pivot'!$C$5:$C$82,K81) -> 0 | M81: =_xlfn.IFNA(L81,0) -> 0 | N81: =SUM(G81,J81,M81) -> 19 | O81: ='Eligible by week pivot'!B82 -> 22 | P81: =SUM(O76:O81)-SUM(N76:N80) -> 49 | Q81: =IF(P81>0,MIN(N81/P81,1),0) -> 38.78% | R81: =IF(N81>0,(MIN(G81/SUM(G81,J81),1)),0) -> 42%
A82: 85 | B82: 3 | D82: 79 | E82: =MATCH(D82, $A$4:$A$77) -> 73 | F82: =INDEX($B$4:$B$77,E82, ) -> 5 | G82: =_xlfn.IFNA(F82,0) -> 5 | H82: =MATCH($D82,'Refuse Pivot'!$A$4:$A$82) -> 78 | I82: =INDEX('Refuse Pivot'!$B$4:$B$82,H82) -> 5 | J82: =_xlfn.IFNA(I82,0) -> 5 | K82: =MATCH(D82,'Refuse Pivot'!$A$5:$A$82) -> 77 | L82: =INDEX('Refuse Pivot'!$C$5:$C$82,K82) -> 0 | M82: =_xlfn.IFNA(L82,0) -> 0 | N82: =SUM(G82,J82,M82) -> 10 | O82: ='Eligible by week pivot'!B83 -> 13 | P82: =SUM(O77:O82)-SUM(N77:N81) -> 39 | Q82: =IF(P82>0,MIN(N82/P82,1),0) -> 25.64% | R82: =IF(N82>0,(MIN(G82/SUM(G82,J82),1)),0) -> 50%
A83: 86 | B83: 6 | D83: 80 | E83: =MATCH(D83, $A$4:$A$78) -> 74 | F83: =INDEX($B$4:$B$78,E83, ) -> 5 | G83: 5 | H83: =MATCH($D83,'Refuse Pivot'!$A$4:$A$83) -> 79 | I83: =INDEX('Refuse Pivot'!$B$4:$B$83,H83) -> 5 | J83: 5 | K83: =MATCH(D83,'Refuse Pivot'!$A$5:$A$83) -> 78 | L83: =INDEX('Refuse Pivot'!$C$5:$C$83,K83) -> 3 | M83: 3 | N83: 13 | O83: ='Eligible by week pivot'!B84 -> 18 | P83: 40 | Q83: 32.50% | R83: 50%
A84: Grand Total | B84: 363 | D84: 81 | E84: =MATCH(D84, $A$4:$A$79) -> 75 | F84: =INDEX($B$4:$B$79,E84, ) -> 2 | G84: =_xlfn.IFNA(F84,0) -> 2 | H84: =MATCH($D84,'Refuse Pivot'!$A$4:$A$84) -> 80 | I84: =INDEX('Refuse Pivot'!$B$4:$B$84,H84) -> 9 | J84: =_xlfn.IFNA(I84,0) -> 9 | K84: =MATCH(D84,'Refuse Pivot'!$A$5:$A$84) -> 79 | L84: =INDEX('Refuse Pivot'!$C$5:$C$84,K84) -> 2 | M84: =_xlfn.IFNA(L84,0) -> 2 | N84: =SUM(G84,J84,M84) -> 13 | O84: ='Eligible by week pivot'!B85 -> 25 | P84: =SUM(O79:O84)-SUM(N79:N83) -> 38 | Q84: =IF(P84>0,MIN(N84/P84,1),0) -> 34.21% | R84: =IF(N84>0,(MIN(G84/SUM(G84,J84),1)),0) -> 18%
